{"text_format":"1","workbook":"xlsx","n_sheets":9,"sheets":["Thisworkbook.Names","Custom Shortcuts","Win & Mac Shortcuts table","Excel Shortcuts","Custom_Theme","Misc","Link Format Exceptions","Capitalised Word Exceptions","Settings"],"not_rendered":{"charts":0,"images":1,"macros":1,"external_links":0,"defined_names":107,"comments":1,"pivot_tables":0},"unopened":[],"bounds":{"document_bytes":16777216,"sheet_cells":100000,"rows_first":2000,"rows_last":500,"rows_between":2000,"halvings":0,"cell_chars":16384,"cell_head_chars":4096},"cells_cut":0,"cells_raw":0,"read":"whole","date_system":"1900"}

{"sheet":"Thisworkbook.Names","index":0,"n_rows":109,"n_cols":5,"rows_kept":109,"cut":false,"hidden":false,"merged":[]}
["2022-04-01T12:40:53","Name","RefersTo","Visible","Comment"]
[null,"'Custom Shortcuts'!_FilterDatabase","='Custom Shortcuts'!$B$14:$AZJ$103",false,""]
[null,"_xlfn.XLOOKUP","=#NAME?",false,""]
[null,"AutoFormatting","=Misc!$D$7",true,""]
[null,"bMacrosRun","=Misc!$D$6",true,""]
[null,"bRebindKeysOnFirstInvoke","=Misc!$D$5",true,""]
[null,"bTestMode","=Misc!$D$3",true,""]
[null,"CASmodifiers","=Misc!$F$3:$F$6",true,""]
[null,"cf_AddChangeLog","='Custom Shortcuts'!$G$25",true,""]
[null,"cf_AddSparkline","='Custom Shortcuts'!$G$33",true,""]
[null,"cf_Anchoring","='Custom Shortcuts'!$G$21",true,""]
[null,"cf_Black","='Custom Shortcuts'!$G$60",true,""]
[null,"cf_Border","='Custom Shortcuts'!$G$63",true,""]
[null,"cf_Brackets","='Custom Shortcuts'!$G$64",true,""]
[null,"cf_ChangeColours","='Custom Shortcuts'!$G$28",true,""]
[null,"cf_ClearFill","='Custom Shortcuts'!$G$49",true,""]
[null,"cf_CollapseGroup","='Custom Shortcuts'!$G$71",true,""]
[null,"cf_CopyAcross","='Custom Shortcuts'!$G$16",true,""]
[null,"cf_CounterflowFill","='Custom Shortcuts'!$G$53",true,""]
[null,"cf_CreateOutputTrack","='Custom Shortcuts'!$G$29",true,""]
[null,"cf_DateStyle","='Custom Shortcuts'!$G$44",true,""]
[null,"cf_DecreaseZero","='Custom Shortcuts'!$G$40",true,""]
[null,"cf_DeleteCondFormat","='Custom Shortcuts'!$G$35",true,""]
[null,"cf_DeleteSheet","='Custom Shortcuts'!$G$31",true,""]
[null,"cf_Exceptions","='Custom Shortcuts'!$G$75",true,""]
[null,"cf_ExpandGroup","='Custom Shortcuts'!$G$70",true,""]
[null,"cf_Export","='Custom Shortcuts'!$G$62",true,""]
[null,"cf_FactorStyle","='Custom Shortcuts'!$G$42",true,""]
[null,"cf_GreenFill","='Custom Shortcuts'!$G$51",true,""]
[null,"cf_Hide","='Custom Shortcuts'!$G$30",true,""]
[null,"cf_Import","='Custom Shortcuts'!$G$61",true,""]
[null,"cf_IncreaseZero","='Custom Shortcuts'!$G$39",true,""]
[null,"cf_InputFill","='Custom Shortcuts'!$G$52",true,""]
[null,"cf_JumpFrom","='Custom Shortcuts'!$G$69",true,""]
[null,"cf_JumpTo","='Custom Shortcuts'!$G$68",true,""]
[null,"cf_LimeFill","='Custom Shortcuts'!$G$54",true,""]
[null,"cf_MacroFill","='Custom Shortcuts'!$G$55",true,""]
[null,"cf_NormalStyle","='Custom Shortcuts'!$G$41",true,""]
[null,"cf_PasteData","='Custom Shortcuts'!$G$22",true,""]
[null,"cf_PasteDate","='Custom Shortcuts'!$G$22",true,""]
[null,"cf_PasteFormats","='Custom Shortcuts'!$G$23",true,""]
[null,"cf_PercentStyle","='Custom Shortcuts'!$G$43",true,""]
[null,"cf_PlaceHolderFill","='Custom Shortcuts'!$G$50",true,""]
[null,"cf_Placeholders","='Custom Shortcuts'!$G$20",true,""]
[null,"cf_PowerBI","='Custom Shortcuts'!$G$56",true,""]
[null,"cf_PrepareForRelease","='Custom Shortcuts'!$G$76",true,""]
[null,"cf_PrepareForRelease01","='Custom Shortcuts'!$G$78",true,""]
[null,"cf_PrepareForRelease02","='Custom Shortcuts'!$G$79",true,""]
[null,"cf_PrepareForRelease03","='Custom Shortcuts'!$G$80",true,""]
[null,"cf_PrepareForRelease04","='Custom Shortcuts'!$G$81",true,""]
[null,"cf_PrepareForRelease05","='Custom Shortcuts'!$G$84",true,""]
[null,"cf_PrepareForRelease06","='Custom Shortcuts'!$G$85",true,""]
[null,"cf_PrepareForRelease07","='Custom Shortcuts'!$G$86",true,""]
[null,"cf_PrepareForRelease08","='Custom Shortcuts'!$G$87",true,""]
[null,"cf_PrepareForRelease09","='Custom Shortcuts'!$G$88",true,""]
[null,"cf_PrepareForRelease10","='Custom Shortcuts'!$G$89",true,""]
[null,"cf_PrepareForRelease11","='Custom Shortcuts'!$G$90",true,""]
[null,"cf_PrepareForRelease12","='Custom Shortcuts'!$G$91",true,""]
[null,"cf_PrepareForRelease13","='Custom Shortcuts'!$G$95",true,""]
[null,"cf_PrepareForRelease14","='Custom Shortcuts'!$G$96",true,""]
[null,"cf_PrepareForRelease15","='Custom Shortcuts'!$G$97",true,""]
[null,"cf_PrepareForRelease16","='Custom Shortcuts'!$G$98",true,""]
[null,"cf_PrepareForRelease17","='Custom Shortcuts'!$G$99",true,""]
[null,"cf_Queries","='Custom Shortcuts'!$G$24",true,""]
[null,"cf_QuickLink","='Custom Shortcuts'!$G$15",true,""]
[null,"cf_RelocateInputs","='Custom Shortcuts'!$G$18",true,""]
[null,"cf_RelocateOutputs","='Custom Shortcuts'!$G$19",true,""]
[null,"cf_ResetEnd","='Custom Shortcuts'!$G$32",true,""]
[null,"cf_SaveChangeLog","='Custom Shortcuts'!$G$26",true,""]
[null,"cf_SumAcross","='Custom Shortcuts'!$G$17",true,""]
[null,"cf_VarReport","='Custom Shortcuts'!$G$27",true,""]
[null,"COL_INP","=Settings!$C$4",true,""]
[null,"ConstantColumn","=Settings!$B$4",true,""]
[null,"Custom_Shortcuts_Table","='Custom Shortcuts'!$A$14:$G$76",true,""]
[null,"Font_Name","=Custom_Theme!$B$17",true,""]
[null,"keybindchk","='Custom Shortcuts'!$H$11",true,""]
[null,"LABEL_INP","=Settings!$C$2",true,""]
[null,"LabelColumn","=Settings!$B$2",true,""]
[null,"lstCaptalisationExceptions","='Capitalised Word Exceptions'!$A$2:$A$77",true,""]
[null,"lstCommands","='Custom Shortcuts'!$G$15:$G$76",true,""]
[null,"lstSheetsIgnore","='Link Format Exceptions'!$A$2:$A$37",true,""]
[null,"MacModifierKey","='Custom Shortcuts'!$E$13",true,""]
[null,"Modifiers","=Misc!$F$3:$F$5",true,""]
[null,"nmKeyBindCheck","='Custom Shortcuts'!$C$6",true,""]
[null,"OSVersion","='Custom Shortcuts'!$E$12",true,""]
[null,"'Custom Shortcuts'!Print_Area","='Custom Shortcuts'!$A$1:$N$103",true,""]
[null,"QueryColumn","=Settings!$B$5",true,""]
[null,"ROW_INP","=Settings!$C$6",true,""]
[null,"sCalculationMode","='Custom Shortcuts'!$F$11",true,""]
[null,"Sparkline_EndColumn","=Misc!$D$19",true,""]
[null,"Sparkline_RGB","=Misc!$D$16",true,""]
[null,"Sparkline_StartColumn","=Misc!$D$18",true,""]
[null,"Sparkline_Weight","=Misc!$D$17",true,""]
[null,"tblSheetsIgnore","='Link Format Exceptions'!$A$2:$B$37",true,""]
[null,"Theme_Colour","=Custom_Theme!$B$3",true,""]
[null,"Theme_Colour_01","=Custom_Theme!$B$3",true,""]
[null,"Theme_Font","=Custom_Theme!$B$19",true,""]
[null,"Theme_Name","=Custom_Theme!$B$1",true,""]
[null,"TimeSeriesStartColumn","=Settings!$B$6",true,""]
[null,"TOT_INP","=Settings!$C$7",true,""]
[null,"UF_Scaling","=Misc!$D$25",true,""]
[null,"UF_Scaling_Mac","=Misc!$D$23",true,""]
[null,"UF_Scaling_Windows","=Misc!$D$22",true,""]
[null,"Units_Inp","=Settings!$C$3",true,""]
[null,"UnitsColumn","=Settings!$B$3",true,""]
[null,"VariancesOnUserform","=Misc!$D$8",true,""]
[null,"VarPercentTab","=Misc!$D$9",true,""]
[null,"VarRpt_MaxCols","=Misc!$D$13",true,""]
[null,"VarRpt_MaxRows","=Misc!$D$12",true,""]

{"sheet":"Custom Shortcuts","index":1,"n_rows":103,"n_cols":14,"rows_kept":103,"cut":false,"hidden":false,"merged":[]}
[]
[]
[null,null,null,null,"Version 020a 01-Apr-22"]
[null,null,null,null,"If you are using a Mac, the Ctrl + Alt + Shift commands are invoked using "]
[null,null,null,null,"Ctrl + Option + Shift (hold Option down a little longer and release it last)"]
[null,null,null,null,"Option is the \"⌥\" key."]
[]
["Introduction"]
[null,null,"The range with the bold outside border is named Custom_Shortcuts_table.\nPlease edit, insert, or delete within that range."]
[null,null,null,null,null,null,null,null,null,null,{"$f":" IF(K11 = \"\", 0, 1)","v":0},{"$f":" IF(L11 = \"\", 0, 1)","v":0},{"$f":" IF(M11 = \"\", 0, 1)","v":0}]
[null,null,"Calculation setting to use when file opened",null,null,"Manual",null,{"$f":" IF( ISERR(SUM(K10:M10)), 1, SUM(K10:M10))","v":0},null,null,{"$f":" IF( SUM(K15:K71)=0, \"\", IF(  SUM(K15:K71)=1,  \"There is \" & SUM($K$15:$K$71) & \" keyboard shortcut error\",   \"There are \" & SUM($K$15:$K$71) & \" keyboard shortcut errors\" ) )","v":""},{"$f":" IF( SUM($L$15:$L$71) > 0, \"Duplicate shortcuts combinations used\",\"\")","v":""},{"$f":" IF( SUM($M$15:$M$71) > 0, \"Missing Modifiers\",\"\")","v":""}]
[null,null,"Current Operating system version",null,{"$f":"INFO(\"OSVERSION\")","v":"Windows (32-bit) NT 10.00"},null,null,null,null,null,"Check","Check","Check","Check"]
["Utilities",null,"Name of Mac modifier key",null,"Option"]
["range name \"Custom_Shortcuts_Table\" is A15:G76","Macro","Action","Keyboard Shortcut","Mac Modifier Key(s)","Win Modifier Key(s)","Custom Key",null,null,"Mnemonic","Shortcut 1 character check","Duplicate bind keys","Modifier check","Excel shortcut check"]
["mFAST_v001","QuickLink","Quick Link",{"$f":"IF(LEFT(OSVersion,3)=\"Mac\", E15,F15) & \" \" & G15","v":"Ctrl + Shift + Q"},{"$f":"IF( F15=\"Ctrl + Alt +\",\"Ctrl + \" & $E$13 & \" + Shift +\",F15&\"\")","v":"Ctrl + Shift +"},"Ctrl + Shift +","Q",null,null,"Q for Quick link",{"$f":" IF(LEN(G15)<>1, 1, 0)","v":0},{"$f":" IF(COUNTIF($D$14:$D14, $D15) = 0, 0, 1)","v":0},{"$f":"ISERROR(MATCH(F15,CASmodifiers,0))*1","v":0},{"$f":"_xlfn.XLOOKUP(SUBSTITUTE(D15,\" \",\"\"),ExcelShortcuts[Shortcut],ExcelShortcuts[Value],\"\",0)","v":0}]
["mFAST_v001","CopyAcross","Copy Across","Ctrl + Shift + A",{"$f":"IF( F16=\"Ctrl + Alt +\",\"Ctrl + \" & $E$13 & \" + Shift +\",F16&\"\")","v":"Ctrl + Shift +"},"Ctrl + Shift +","A",null,null,"A for Copy Across",0,{"$f":" IF(COUNTIF($D$14:$D15, $D16) = 0, 0, 1)","v":0},0,{"$f":"_xlfn.XLOOKUP(SUBSTITUTE(D16,\" \",\"\"),ExcelShortcuts[Shortcut],ExcelShortcuts[Value],\"\",0)","v":"Insert arguments in formula"}]
["mFAST_v001","RowSummation","Sum Across","Ctrl + Shift + N","Ctrl + Shift +","Ctrl + Shift +","N",null,null,"N for SummatioN",0,{"$f":" IF(COUNTIF($D$14:$D16, $D17) = 0, 0, 1)","v":0},0,{"$f":"_xlfn.XLOOKUP(SUBSTITUTE(D17,\" \",\"\"),ExcelShortcuts[Shortcut],ExcelShortcuts[Value],\"\",0)","v":""}]
["mFAST_v001","RelocateInput","Relocate Inputs","Ctrl + Alt + R","Ctrl + Option + Shift +","Ctrl + Alt +","R",null,null,"R for Relocate inputs",0,{"$f":" IF(COUNTIF($D$14:$D17, $D18) = 0, 0, 1)","v":0},0,{"$f":"_xlfn.XLOOKUP(SUBSTITUTE(D18,\" \",\"\"),ExcelShortcuts[Shortcut],ExcelShortcuts[Value],\"\",0)","v":""}]
["mFAST_v001","RelocateOutput","Relocate Outputs","Ctrl + Alt + O","Ctrl + Option + Shift +","Ctrl + Alt +","O",null,null,null,0,{"$f":" IF(COUNTIF($D$14:$D18, $D19) = 0, 0, 1)","v":0},0,{"$f":"_xlfn.XLOOKUP(SUBSTITUTE(D19,\" \",\"\"),ExcelShortcuts[Shortcut],ExcelShortcuts[Value],\"\",0)","v":""}]
["mFAST_v001","FAST_Placeholders","Placeholders List with comments","Ctrl + Alt + P","Ctrl + Option + Shift +","Ctrl + Alt +","P",null,null,"P for Placeholder list",0,{"$f":" IF(COUNTIF($D$14:$D19, $D20) = 0, 0, 1)","v":0},0,{"$f":"_xlfn.XLOOKUP(SUBSTITUTE(D20,\" \",\"\"),ExcelShortcuts[Shortcut],ExcelShortcuts[Value],\"\",0)","v":""}]
["mFAST_v001","Anchoring","Anchoring","Ctrl + Alt + A","Ctrl + Option + Shift +","Ctrl + Alt +","A",null,null,"A for Anchoring",0,{"$f":" IF(COUNTIF($D$14:$D20, $D21) = 0, 0, 1)","v":0},0,{"$f":"_xlfn.XLOOKUP(SUBSTITUTE(D21,\" \",\"\"),ExcelShortcuts[Shortcut],ExcelShortcuts[Value],\"\",0)","v":""}]
["mUtilityCopyPaste","PasteAsValue","Paste As Value w/o Format","Ctrl + Alt + D","Ctrl + Option + Shift +","Ctrl + Alt +","D",null,null,"D for Data",0,{"$f":" IF(COUNTIF($D$14:$D21, $D22) = 0, 0, 1)","v":0},0,{"$f":"_xlfn.XLOOKUP(SUBSTITUTE(D22,\" \",\"\"),ExcelShortcuts[Shortcut],ExcelShortcuts[Value],\"\",0)","v":""}]
["mUtilityCopyPaste","PasteAsValueFormat","Paste Format From Copied Range","Ctrl + Alt + S","Ctrl + Option + Shift +","Ctrl + Alt +","S",null,null,null,0,{"$f":" IF(COUNTIF($D$14:$D22, $D23) = 0, 0, 1)","v":0},0,{"$f":"_xlfn.XLOOKUP(SUBSTITUTE(D23,\" \",\"\"),ExcelShortcuts[Shortcut],ExcelShortcuts[Value],\"\",0)","v":""}]
["mModelFeedback_v001","AddModelQuery","Model Queries ","Ctrl + Alt + Q","Ctrl + Option + Shift +","Ctrl + Alt +","Q",null,null,"Q for Query",0,{"$f":" IF(COUNTIF($D$14:$D23, $D24) = 0, 0, 1)","v":0},0,{"$f":"_xlfn.XLOOKUP(SUBSTITUTE(D24,\" \",\"\"),ExcelShortcuts[Shortcut],ExcelShortcuts[Value],\"\",0)","v":0}]
["mUtilityChangeLog","AddToChangeLog","Add To Change Log","Ctrl + Shift + 1","Ctrl + Shift +","Ctrl + Shift +",1,null,null,null,0,{"$f":" IF(COUNTIF($D$14:$D24, $D25) = 0, 0, 1)","v":0},0,{"$f":"_xlfn.XLOOKUP(SUBSTITUTE(D25,\" \",\"\"),ExcelShortcuts[Shortcut],ExcelShortcuts[Value],\"\",0)","v":"Fixed decimal & comma format"}]
["mUtilityChangeLog","HardCodeChangeLog","Save Change Log Values","Ctrl + Shift + 2","Ctrl + Shift +","Ctrl + Shift +",2,null,null,null,0,{"$f":" IF(COUNTIF($D$14:$D25, $D26) = 0, 0, 1)","v":0},0,{"$f":"_xlfn.XLOOKUP(SUBSTITUTE(D26,\" \",\"\"),ExcelShortcuts[Shortcut],ExcelShortcuts[Value],\"\",0)","v":"Time (AM/PM) format"}]
["mReportVar","VarianceReport","Create Variance tabs","Ctrl + Shift + 9","Ctrl + Shift +","Ctrl + Shift +",9,null,null,null,0,{"$f":" IF(COUNTIF($D$14:$D26, $D27) = 0, 0, 1)","v":0},0,{"$f":"_xlfn.XLOOKUP(SUBSTITUTE(D27,\" \",\"\"),ExcelShortcuts[Shortcut],ExcelShortcuts[Value],\"\",0)","v":"Unhide Row"}]
["mUtilityChangeColours","ChangeColours","Change Colours","Ctrl + Shift + 4","Ctrl + Shift +","Ctrl + Shift +",4,null,null,null,0,{"$f":" IF(COUNTIF($D$14:$D27, $D28) = 0, 0, 1)","v":0},0,{"$f":"_xlfn.XLOOKUP(SUBSTITUTE(D28,\" \",\"\"),ExcelShortcuts[Shortcut],ExcelShortcuts[Value],\"\",0)","v":"Currency format"}]
["mStoreTrack","StoreTrack","Create Output Track","Ctrl + Shift + 5","Ctrl + Shift +","Ctrl + Shift +",5,null,null,null,0,{"$f":" IF(COUNTIF($D$14:$D28, $D29) = 0, 0, 1)","v":0},0,{"$f":"_xlfn.XLOOKUP(SUBSTITUTE(D29,\" \",\"\"),ExcelShortcuts[Shortcut],ExcelShortcuts[Value],\"\",0)","v":"Percentage format"}]
["mFAST_v001","ShowMe","Unhide / Rehide Macro File","Ctrl + Shift + 7","Ctrl + Shift +","Ctrl + Shift +",7,null,null,null,0,{"$f":" IF(COUNTIF($D$14:$D29, $D30) = 0, 0, 1)","v":0},0,{"$f":"_xlfn.XLOOKUP(SUBSTITUTE(D30,\" \",\"\"),ExcelShortcuts[Shortcut],ExcelShortcuts[Value],\"\",0)","v":"Outline border"}]
["mFAST_v001","DeleteSheet","Delete Worksheet","Ctrl + Alt + -","Ctrl + Option + Shift +","Ctrl + Alt +","-",null,null,null,0,{"$f":" IF(COUNTIF($D$14:$D30, $D31) = 0, 0, 1)","v":0},0,{"$f":"_xlfn.XLOOKUP(SUBSTITUTE(D31,\" \",\"\"),ExcelShortcuts[Shortcut],ExcelShortcuts[Value],\"\",0)","v":""}]
["mFAST_v001","ResetEnd","Reset end cell / clear unused range","Ctrl + Alt + C","Ctrl + Option + Shift +","Ctrl + Alt +","C",null,null,null,0,{"$f":" IF(COUNTIF($D$14:$D31, $D32) = 0, 0, 1)","v":0},0,{"$f":"_xlfn.XLOOKUP(SUBSTITUTE(D32,\" \",\"\"),ExcelShortcuts[Shortcut],ExcelShortcuts[Value],\"\",0)","v":""}]
["mUtilitiesOther","AddSparkline","Add Sparkline in column F","Ctrl + Shift + S","Ctrl + Shift +","Ctrl + Shift +","S",null,null,null,0,null,null,{"$f":"_xlfn.XLOOKUP(SUBSTITUTE(D33,\" \",\"\"),ExcelShortcuts[Shortcut],ExcelShortcuts[Value],\"\",0)","v":""}]
["While on Conditional Formats Sheet:",null,null,null,"",null,null,"Conditional Formats Report Name (Updates Automatically)",null,null,null,null,null,{"$f":"_xlfn.XLOOKUP(SUBSTITUTE(D34,\" \",\"\"),ExcelShortcuts[Shortcut],ExcelShortcuts[Value],\"\",0)","v":""}]
["mAllConditionalFormats","DeleteConditionalFormat","Delete selected Conditional Format(s)",{"$f":"IF(LEFT(OSVersion,3)=\"Mac\", E35,F35) & \" \" & G35","v":"Ctrl + Shift + 8"},"Ctrl + Shift +","Ctrl + Shift +",8,"Book4",null,null,{"$f":" IF(LEN(G35)<>1, 1, 0)","v":0},{"$f":" IF(COUNTIF($D$14:$D34, $D35) = 0, 0, 1)","v":0},{"$f":"ISERROR(MATCH(F35,CASmodifiers,0))*1","v":0},{"$f":"_xlfn.XLOOKUP(SUBSTITUTE(D35,\" \",\"\"),ExcelShortcuts[Shortcut],ExcelShortcuts[Value],\"\",0)","v":"Select current region"}]
[null,null,null,null,"",null,null,null,null,null,null,null,null,{"$f":"_xlfn.XLOOKUP(SUBSTITUTE(D36,\" \",\"\"),ExcelShortcuts[Shortcut],ExcelShortcuts[Value],\"\",0)","v":""}]
["Number Formats",null,null,null,"",null,null,null,null,null,null,null,null,{"$f":"_xlfn.XLOOKUP(SUBSTITUTE(D37,\" \",\"\"),ExcelShortcuts[Shortcut],ExcelShortcuts[Value],\"\",0)","v":""}]
[null,"Macro","Action","Keyboard Shortcut","Modifier Key(s)","Modifier Key(s)","Custom Key","User Defined Format","Defined formats",null,null,null,null,{"$f":"_xlfn.XLOOKUP(SUBSTITUTE(D38,\" \",\"\"),ExcelShortcuts[Shortcut],ExcelShortcuts[Value],\"\",0)","v":""}]
["mFormatOther","IncreaseZeros","Increase 0s",{"$f":"IF(LEFT(OSVersion,3)=\"Mac\", E39,F39) & \" \" & G39","v":"Ctrl + ."},"Ctrl +","Ctrl +",".",null,null,"> for increase",{"$f":" IF(LEN(G39)<>1, 1, 0)","v":0},{"$f":" IF(COUNTIF($D$14:$D38, $D39) = 0, 0, 1)","v":0},{"$f":"ISERROR(MATCH(F39,CASmodifiers,0))*1","v":0},{"$f":"_xlfn.XLOOKUP(SUBSTITUTE(D39,\" \",\"\"),ExcelShortcuts[Shortcut],ExcelShortcuts[Value],\"\",0)","v":"Rotates the Active Cell through the corners of the selection"}]
["mFormatOther","DecreaseZeros","Decrease 0s","Ctrl + ,","Ctrl +","Ctrl +",",",null,null,"< for decrease",0,{"$f":" IF(COUNTIF($D$14:$D39, $D40) = 0, 0, 1)","v":0},0,{"$f":"_xlfn.XLOOKUP(SUBSTITUTE(D40,\" \",\"\"),ExcelShortcuts[Shortcut],ExcelShortcuts[Value],\"\",0)","v":0}]
["mFormatOther","Normal","Normal Style Toggle","Ctrl + Shift + ,","Ctrl + Shift +","Ctrl + Shift +",",",10000,null,"000 separator (Comma)",0,{"$f":" IF(COUNTIF($D$14:$D40, $D41) = 0, 0, 1)","v":0},0,{"$f":"_xlfn.XLOOKUP(SUBSTITUTE(D41,\" \",\"\"),ExcelShortcuts[Shortcut],ExcelShortcuts[Value],\"\",0)","v":"Fill down"}]
["mFormatOther","FactorStyle","Factor Style","Ctrl + Shift + .","Ctrl + Shift +","Ctrl + Shift +",".",10,null,"Decimal point key",0,{"$f":" IF(COUNTIF($D$14:$D41, $D42) = 0, 0, 1)","v":0},0,{"$f":"_xlfn.XLOOKUP(SUBSTITUTE(D42,\" \",\"\"),ExcelShortcuts[Shortcut],ExcelShortcuts[Value],\"\",0)","v":"Fill right"}]
["mFormatOther","PercentStyle","Percent Style","Ctrl + Shift + P","Ctrl + Shift +","Ctrl + Shift +","P",0.1,null,"P for Percent",0,{"$f":" IF(COUNTIF($D$14:$D42, $D43) = 0, 0, 1)","v":0},0,{"$f":"_xlfn.XLOOKUP(SUBSTITUTE(D43,\" \",\"\"),ExcelShortcuts[Shortcut],ExcelShortcuts[Value],\"\",0)","v":"Font size"}]
["mFormatOther","DateStyleToggle","Date Style Toggle","Ctrl + Shift + L","Ctrl + Shift +","Ctrl + Shift +","L",null,null,"L for Long date",0,{"$f":" IF(COUNTIF($D$14:$D43, $D44) = 0, 0, 1)","v":0},0,{"$f":"_xlfn.XLOOKUP(SUBSTITUTE(D44,\" \",\"\"),ExcelShortcuts[Shortcut],ExcelShortcuts[Value],\"\",0)","v":"Toggle AutoFilter"}]
[null,null,"Date style Long",null,"",null,null,"2020-04-01",null,null,null,null,null,{"$f":"_xlfn.XLOOKUP(SUBSTITUTE(D45,\" \",\"\"),ExcelShortcuts[Shortcut],ExcelShortcuts[Value],\"\",0)","v":""}]
[null,null,"Date style Short",null,"",null,null,"2020-04-01",null,null,null,null,null,{"$f":"_xlfn.XLOOKUP(SUBSTITUTE(D46,\" \",\"\"),ExcelShortcuts[Shortcut],ExcelShortcuts[Value],\"\",0)","v":""}]
["Shading",null,null,null,"",null,null,null,null,null,null,null,null,{"$f":"_xlfn.XLOOKUP(SUBSTITUTE(D47,\" \",\"\"),ExcelShortcuts[Shortcut],ExcelShortcuts[Value],\"\",0)","v":""}]
[null,"Macro","Action","Keyboard Shortcut","Modifier Key(s)","Modifier Key(s)","Custom Key","Format to be applied","Defined formats",null,null,null,null,{"$f":"_xlfn.XLOOKUP(SUBSTITUTE(D48,\" \",\"\"),ExcelShortcuts[Shortcut],ExcelShortcuts[Value],\"\",0)","v":""}]
["mFormatColor","ShadingNone","No shade",{"$f":"IF(LEFT(OSVersion,3)=\"Mac\", E49,F49) & \" \" & G49","v":"Ctrl + Shift + C"},"Ctrl + Shift +","Ctrl + Shift +","C",null,10,"C for Clear",{"$f":" IF(LEN(G49)<>1, 1, 0)","v":0},{"$f":" IF(COUNTIF($D$14:$D48, $D49) = 0, 0, 1)","v":0},{"$f":"ISERROR(MATCH(F49,CASmodifiers,0))*1","v":0},{"$f":"_xlfn.XLOOKUP(SUBSTITUTE(D49,\" \",\"\"),ExcelShortcuts[Shortcut],ExcelShortcuts[Value],\"\",0)","v":""}]
["mFormatColor","ShadingYellow","Placeholder","Ctrl + Shift + Y","Ctrl + Shift +","Ctrl + Shift +","Y",10,null,"Y for Yellow",0,{"$f":" IF(COUNTIF($D$14:$D49, $D50) = 0, 0, 1)","v":0},0,{"$f":"_xlfn.XLOOKUP(SUBSTITUTE(D50,\" \",\"\"),ExcelShortcuts[Shortcut],ExcelShortcuts[Value],\"\",0)","v":""}]
["mFormatColor","ShadingGreen","Green","Ctrl + Shift + G","Ctrl + Shift +","Ctrl + Shift +","G",10,null,"G for Green",0,{"$f":" IF(COUNTIF($D$14:$D50, $D51) = 0, 0, 1)","v":0},0,{"$f":"_xlfn.XLOOKUP(SUBSTITUTE(D51,\" \",\"\"),ExcelShortcuts[Shortcut],ExcelShortcuts[Value],\"\",0)","v":""}]
["mFormatColor","ShadingLtYellow","Input","Ctrl + Shift + I","Ctrl + Shift +","Ctrl + Shift +","I",10,null,"I for Inputs",0,{"$f":" IF(COUNTIF($D$14:$D51, $D52) = 0, 0, 1)","v":0},0,{"$f":"_xlfn.XLOOKUP(SUBSTITUTE(D52,\" \",\"\"),ExcelShortcuts[Shortcut],ExcelShortcuts[Value],\"\",0)","v":""}]
["mFormatColor","ShadingLtGray","Counterflow","Ctrl + Shift + O","Ctrl + Shift +","Ctrl + Shift +","O",10,null,"O for cOunterflOws",0,{"$f":" IF(COUNTIF($D$14:$D52, $D53) = 0, 0, 1)","v":0},0,{"$f":"_xlfn.XLOOKUP(SUBSTITUTE(D53,\" \",\"\"),ExcelShortcuts[Shortcut],ExcelShortcuts[Value],\"\",0)","v":"Select Comments"}]
["mFormatColor","ShadingLimeYellow","Review","Ctrl + Shift + R","Ctrl + Shift +","Ctrl + Shift +","R",10,null,"R for Review",0,{"$f":" IF(COUNTIF($D$14:$D53, $D54) = 0, 0, 1)","v":0},0,{"$f":"_xlfn.XLOOKUP(SUBSTITUTE(D54,\" \",\"\"),ExcelShortcuts[Shortcut],ExcelShortcuts[Value],\"\",0)","v":""}]
["mFormatColor","ShadingLtTurquoise","Valued","Ctrl + Shift + V","Ctrl + Shift +","Ctrl + Shift +","V",10,null,"V for Stored Values",{"$f":" IF(LEN(G55)<>1, 1, 0)","v":0},{"$f":" IF(COUNTIF($D$14:$D54, $D55) = 0, 0, 1)","v":0},0,{"$f":"_xlfn.XLOOKUP(SUBSTITUTE(D55,\" \",\"\"),ExcelShortcuts[Shortcut],ExcelShortcuts[Value],\"\",0)","v":""}]
["mFormatColor","ShadingPowerBI","Power BI","Ctrl + Shift + W","Ctrl + Shift +","Ctrl + Shift +","W",10,null,null,{"$f":" IF(LEN(G56)<>1, 1, 0)","v":0},{"$f":" IF(COUNTIF($D$14:$D55, $D56) = 0, 0, 1)","v":0},0,{"$f":"_xlfn.XLOOKUP(SUBSTITUTE(D56,\" \",\"\"),ExcelShortcuts[Shortcut],ExcelShortcuts[Value],\"\",0)","v":""}]
[null,null,null,null,"",null,null,null,null,null,null,null,null,{"$f":"_xlfn.XLOOKUP(SUBSTITUTE(D57,\" \",\"\"),ExcelShortcuts[Shortcut],ExcelShortcuts[Value],\"\",0)","v":""}]
["Font Colours, Borders & Text",null,null,null,"",null,null,null,null,null,null,null,null,{"$f":"_xlfn.XLOOKUP(SUBSTITUTE(D58,\" \",\"\"),ExcelShortcuts[Shortcut],ExcelShortcuts[Value],\"\",0)","v":""}]
[null,"Macro","Action","Keyboard Shortcut","Modifier Key(s)","Modifier Key(s)","Custom Key","Format to be applied","Defined formats",null,null,null,null,{"$f":"_xlfn.XLOOKUP(SUBSTITUTE(D59,\" \",\"\"),ExcelShortcuts[Shortcut],ExcelShortcuts[Value],\"\",0)","v":""}]
["mFormatColor","FontColourBlack","Black",{"$f":"IF(LEFT(OSVersion,3)=\"Mac\", E60,F60) & \" \" & G60","v":"Ctrl + Shift + B"},"Ctrl + Shift +","Ctrl + Shift +","B",10,null,"B for Black",{"$f":" IF(LEN(G60)<>1, 1, 0)","v":0},{"$f":" IF(COUNTIF($D$14:$D59, $D60) = 0, 0, 1)","v":0},{"$f":"ISERROR(MATCH(F60,CASmodifiers,0))*1","v":0},{"$f":"_xlfn.XLOOKUP(SUBSTITUTE(D60,\" \",\"\"),ExcelShortcuts[Shortcut],ExcelShortcuts[Value],\"\",0)","v":"Address Book (only when emailing not as attachment)"}]
["mFormatColor","FontColourBlue","Import",{"$f":"IF(LEFT(OSVersion,3)=\"Mac\", E61,F61) & \" \" & G61","v":"Ctrl + Shift + M"},"Ctrl + Shift +","Ctrl + Shift +","M",10,null,"M for iMport",{"$f":" IF(LEN(G61)<>1, 1, 0)","v":0},{"$f":" IF(COUNTIF($D$14:$D60, $D61) = 0, 0, 1)","v":0},{"$f":"ISERROR(MATCH(F61,CASmodifiers,0))*1","v":0},{"$f":"_xlfn.XLOOKUP(SUBSTITUTE(D61,\" \",\"\"),ExcelShortcuts[Shortcut],ExcelShortcuts[Value],\"\",0)","v":""}]
["mFormatColor","FontColourRed","Export",{"$f":"IF(LEFT(OSVersion,3)=\"Mac\", E62,F62) & \" \" & G62","v":"Ctrl + Shift + X"},"Ctrl + Shift +","Ctrl + Shift +","X",10,null,"X for eXport",{"$f":" IF(LEN(G62)<>1, 1, 0)","v":0},{"$f":" IF(COUNTIF($D$14:$D61, $D62) = 0, 0, 1)","v":0},{"$f":"ISERROR(MATCH(F62,CASmodifiers,0))*1","v":0},{"$f":"_xlfn.XLOOKUP(SUBSTITUTE(D62,\" \",\"\"),ExcelShortcuts[Shortcut],ExcelShortcuts[Value],\"\",0)","v":""}]
["mFormatOther","UnderOverLineWithBorder","Border",{"$f":"IF(LEFT(OSVersion,3)=\"Mac\", E63,F63) & \" \" & G63","v":"Ctrl + Shift + D"},"Ctrl + Shift +","Ctrl + Shift +","D",null,10,"D for unDerline",{"$f":" IF(LEN(G63)<>1, 1, 0)","v":0},{"$f":" IF(COUNTIF($D$14:$D62, $D63) = 0, 0, 1)","v":0},{"$f":"ISERROR(MATCH(F63,CASmodifiers,0))*1","v":0},{"$f":"_xlfn.XLOOKUP(SUBSTITUTE(D63,\" \",\"\"),ExcelShortcuts[Shortcut],ExcelShortcuts[Value],\"\",0)","v":""}]
["mFormatOther","other_Brackets","Square Brackets",{"$f":"IF(LEFT(OSVersion,3)=\"Mac\", E64,F64) & \" \" & G64","v":"Ctrl + Shift + T"},"Ctrl + Shift +","Ctrl + Shift +","T",null,"[example]","T for Temporary",{"$f":" IF(LEN(G64)<>1, 1, 0)","v":0},{"$f":" IF(COUNTIF($D$14:$D63, $D64) = 0, 0, 1)","v":0},{"$f":"ISERROR(MATCH(F64,CASmodifiers,0))*1","v":0},{"$f":"_xlfn.XLOOKUP(SUBSTITUTE(D64,\" \",\"\"),ExcelShortcuts[Shortcut],ExcelShortcuts[Value],\"\",0)","v":"Toggle Total Row"}]
[null,null,null,null,"",null,null,null,null,null,null,null,null,{"$f":"_xlfn.XLOOKUP(SUBSTITUTE(D65,\" \",\"\"),ExcelShortcuts[Shortcut],ExcelShortcuts[Value],\"\",0)","v":""}]
["Navigation",null,null,null,"",null,null,null,null,null,null,null,null,{"$f":"_xlfn.XLOOKUP(SUBSTITUTE(D66,\" \",\"\"),ExcelShortcuts[Shortcut],ExcelShortcuts[Value],\"\",0)","v":""}]
[null,"Macro","Action","Keyboard Shortcut","Modifier Key(s)","Modifier Key(s)","Custom Key",null,null,null,null,null,null,{"$f":"_xlfn.XLOOKUP(SUBSTITUTE(D67,\" \",\"\"),ExcelShortcuts[Shortcut],ExcelShortcuts[Value],\"\",0)","v":""}]
["mFormatOther","other_JumpLink","Jump to Precedent",{"$f":"IF(LEFT(OSVersion,3)=\"Mac\", E68,F68) & \" \" & G68","v":"Ctrl + Shift + J"},"Ctrl + Shift +","Ctrl + Shift +","J",null,null,"J for Jump",{"$f":" IF(LEN(G68)<>1, 1, 0)","v":0},{"$f":" IF(COUNTIF($D$14:$D67, $D68) = 0, 0, 1)","v":0},{"$f":"ISERROR(MATCH(F68,CASmodifiers,0))*1","v":0},{"$f":"_xlfn.XLOOKUP(SUBSTITUTE(D68,\" \",\"\"),ExcelShortcuts[Shortcut],ExcelShortcuts[Value],\"\",0)","v":""}]
["mFormatOther","other_JumpHome","Return from Jump",{"$f":"IF(LEFT(OSVersion,3)=\"Mac\", E69,F69) & \" \" & G69","v":"Ctrl + Shift + K"},"Ctrl + Shift +","Ctrl + Shift +","K",null,null,"Next to J",{"$f":" IF(LEN(G69)<>1, 1, 0)","v":0},{"$f":" IF(COUNTIF($D$14:$D68, $D69) = 0, 0, 1)","v":0},{"$f":"ISERROR(MATCH(F69,CASmodifiers,0))*1","v":0},{"$f":"_xlfn.XLOOKUP(SUBSTITUTE(D69,\" \",\"\"),ExcelShortcuts[Shortcut],ExcelShortcuts[Value],\"\",0)","v":""}]
["mFormatOther","Group_Expand","Expand Group",{"$f":"IF(LEFT(OSVersion,3)=\"Mac\", E70,F70) & \" \" & G70","v":"Ctrl + E"},"Ctrl +","Ctrl +","E",null,null,"E for Expand",{"$f":" IF(LEN(G70)<>1, 1, 0)","v":0},{"$f":" IF(COUNTIF($D$14:$D69, $D70) = 0, 0, 1)","v":0},{"$f":"ISERROR(MATCH(F70,CASmodifiers,0))*1","v":0},{"$f":"_xlfn.XLOOKUP(SUBSTITUTE(D70,\" \",\"\"),ExcelShortcuts[Shortcut],ExcelShortcuts[Value],\"\",0)","v":""}]
["mFormatOther","Group_Collapse","Collapse Group",{"$f":"IF(LEFT(OSVersion,3)=\"Mac\", E71,F71) & \" \" & G71","v":"Ctrl + Shift + E"},"Ctrl + Shift +","Ctrl + Shift +","E",null,null,"E for CollapsE",{"$f":" IF(LEN(G71)<>1, 1, 0)","v":0},{"$f":" IF(COUNTIF($D$14:$D70, $D71) = 0, 0, 1)","v":0},{"$f":"ISERROR(MATCH(F71,CASmodifiers,0))*1","v":0},{"$f":"_xlfn.XLOOKUP(SUBSTITUTE(D71,\" \",\"\"),ExcelShortcuts[Shortcut],ExcelShortcuts[Value],\"\",0)","v":""}]
[null,null,null,null,"",null,null,null,null,null,null,null,null,{"$f":"_xlfn.XLOOKUP(SUBSTITUTE(D72,\" \",\"\"),ExcelShortcuts[Shortcut],ExcelShortcuts[Value],\"\",0)","v":""}]
["Prepare for Release",null,null,null,"",null,null,null,null,null,null,null,null,{"$f":"_xlfn.XLOOKUP(SUBSTITUTE(D73,\" \",\"\"),ExcelShortcuts[Shortcut],ExcelShortcuts[Value],\"\",0)","v":""}]
[null,"Macro","Action","Keyboard Shortcut","Modifier Key(s)","Modifier Key(s)","Custom Key",null,null,null,null,null,null,{"$f":"_xlfn.XLOOKUP(SUBSTITUTE(D74,\" \",\"\"),ExcelShortcuts[Shortcut],ExcelShortcuts[Value],\"\",0)","v":""}]
["mUtilitiesExceptions","AmendExceptionSheets","Exceptions",{"$f":"IF(LEFT(OSVersion,3)=\"Mac\", E75,F75) & \" \" & G75","v":"Ctrl + Alt + E"},"Ctrl + Option + Shift +","Ctrl + Alt +","E",null,null,null,{"$f":" IF(LEN(G75)<>1, 1, 0)","v":0},{"$f":" IF(COUNTIF($D$14:$D74, $D75) = 0, 0, 1)","v":0},{"$f":"ISERROR(MATCH(F75,CASmodifiers,0))*1","v":0},{"$f":"_xlfn.XLOOKUP(SUBSTITUTE(D75,\" \",\"\"),ExcelShortcuts[Shortcut],ExcelShortcuts[Value],\"\",0)","v":""}]
["mUtilityPrepareForRelease","PrepareForRelease","Bring up selection userform",{"$f":"IF(LEFT(OSVersion,3)=\"Mac\", E76,F76) & \" \" & G76","v":"Ctrl + Shift + 6"},"Ctrl + Shift +","Ctrl + Shift +",6,null,null,null,0,{"$f":" IF(COUNTIF($D$14:$D75, $D76) = 0, 0, 1)","v":0},{"$f":"ISERROR(MATCH(F76,CASmodifiers,0))*1","v":0},{"$f":"_xlfn.XLOOKUP(SUBSTITUTE(D76,\" \",\"\"),ExcelShortcuts[Shortcut],ExcelShortcuts[Value],\"\",0)","v":"Exponential format"}]
[null,null,"Quick Build:",null,null,null,null,null,null,null,null,null,null,{"$f":"_xlfn.XLOOKUP(SUBSTITUTE(D77,\" \",\"\"),ExcelShortcuts[Shortcut],ExcelShortcuts[Value],\"\",0)","v":""}]
[null,null,"Corkscrew with no initial balance (on active tab)",null,null,null,"Q",null,null,null,null,null,null,{"$f":"_xlfn.XLOOKUP(SUBSTITUTE(D78,\" \",\"\"),ExcelShortcuts[Shortcut],ExcelShortcuts[Value],\"\",0)","v":""}]
[null,null,"Corkscrew with initial balance (on active tab)",null,null,null,"W",null,null,null,null,null,null,{"$f":"_xlfn.XLOOKUP(SUBSTITUTE(D79,\" \",\"\"),ExcelShortcuts[Shortcut],ExcelShortcuts[Value],\"\",0)","v":""}]
[null,null,"Add Temp tab with default page setup",null,null,null,"T",null,null,null,null,null,null,{"$f":"_xlfn.XLOOKUP(SUBSTITUTE(D80,\" \",\"\"),ExcelShortcuts[Shortcut],ExcelShortcuts[Value],\"\",0)","v":""}]
[null,null,"Add a Power BI table",null,null,null,"B",null,null,null,null,null,null,{"$f":"_xlfn.XLOOKUP(SUBSTITUTE(D81,\" \",\"\"),ExcelShortcuts[Shortcut],ExcelShortcuts[Value],\"\",0)","v":""}]
[null,null,"Prepare model for release:",null,null,null,null,null,null,null,null,null,null,{"$f":"_xlfn.XLOOKUP(SUBSTITUTE(D82,\" \",\"\"),ExcelShortcuts[Shortcut],ExcelShortcuts[Value],\"\",0)","v":""}]
[null,null,"Note: these run on selected tabs, or active tab if none selected",null,null,null,null,null,null,null,null,null,null,{"$f":"_xlfn.XLOOKUP(SUBSTITUTE(D83,\" \",\"\"),ExcelShortcuts[Shortcut],ExcelShortcuts[Value],\"\",0)","v":""}]
[null,null,"Set Zoom Level",null,null,null,1,null,null,null,null,null,null,{"$f":"_xlfn.XLOOKUP(SUBSTITUTE(D84,\" \",\"\"),ExcelShortcuts[Shortcut],ExcelShortcuts[Value],\"\",0)","v":""}]
[null,null,"Reset focus and select cell A1",null,null,null,2,null,null,null,null,null,null,{"$f":"_xlfn.XLOOKUP(SUBSTITUTE(D85,\" \",\"\"),ExcelShortcuts[Shortcut],ExcelShortcuts[Value],\"\",0)","v":""}]
[null,null,"Reapply level 1 and 2 groupings",null,null,null,3,null,null,null,null,null,null,{"$f":"_xlfn.XLOOKUP(SUBSTITUTE(D86,\" \",\"\"),ExcelShortcuts[Shortcut],ExcelShortcuts[Value],\"\",0)","v":""}]
[null,null,"Remove all gridlines",null,null,null,4,null,null,null,null,null,null,{"$f":"_xlfn.XLOOKUP(SUBSTITUTE(D87,\" \",\"\"),ExcelShortcuts[Shortcut],ExcelShortcuts[Value],\"\",0)","v":""}]
[null,null,"Check and fix header and label capitalisation",null,null,null,5,null,null,null,null,null,null,{"$f":"_xlfn.XLOOKUP(SUBSTITUTE(D88,\" \",\"\"),ExcelShortcuts[Shortcut],ExcelShortcuts[Value],\"\",0)","v":""}]
[null,null,"Collapse all grouping",null,null,null,6,null,null,null,null,null,null,{"$f":"_xlfn.XLOOKUP(SUBSTITUTE(D89,\" \",\"\"),ExcelShortcuts[Shortcut],ExcelShortcuts[Value],\"\",0)","v":""}]
[null,null,"Expand all grouping",null,null,null,7,null,null,null,null,null,null,{"$f":"_xlfn.XLOOKUP(SUBSTITUTE(D90,\" \",\"\"),ExcelShortcuts[Shortcut],ExcelShortcuts[Value],\"\",0)","v":""}]
[null,null,"Change Header",null,null,null,8,null,null,null,null,null,null,{"$f":"_xlfn.XLOOKUP(SUBSTITUTE(D91,\" \",\"\"),ExcelShortcuts[Shortcut],ExcelShortcuts[Value],\"\",0)","v":""}]
[null,null,null,null,null,null,null,null,null,null,null,null,null,{"$f":"_xlfn.XLOOKUP(SUBSTITUTE(D92,\" \",\"\"),ExcelShortcuts[Shortcut],ExcelShortcuts[Value],\"\",0)","v":""}]
[null,null,"Model information",null,null,null,null,null,null,null,null,null,null,{"$f":"_xlfn.XLOOKUP(SUBSTITUTE(D93,\" \",\"\"),ExcelShortcuts[Shortcut],ExcelShortcuts[Value],\"\",0)","v":""}]
[null,null,"Note: these run on all tabs - not just selected tabs",null,null,null,null,null,null,null,null,null,null,{"$f":"_xlfn.XLOOKUP(SUBSTITUTE(D94,\" \",\"\"),ExcelShortcuts[Shortcut],ExcelShortcuts[Value],\"\",0)","v":""}]
[null,null,"List all used labels",null,null,null,"L",null,null,null,null,null,null,{"$f":"_xlfn.XLOOKUP(SUBSTITUTE(D95,\" \",\"\"),ExcelShortcuts[Shortcut],ExcelShortcuts[Value],\"\",0)","v":""}]
[null,null,"List all unique units",null,null,null,"U",null,null,null,null,null,null,{"$f":"_xlfn.XLOOKUP(SUBSTITUTE(D96,\" \",\"\"),ExcelShortcuts[Shortcut],ExcelShortcuts[Value],\"\",0)","v":""}]
[null,null,"List all conditional formats",null,null,null,"C",null,null,null,null,null,null,{"$f":"_xlfn.XLOOKUP(SUBSTITUTE(D97,\" \",\"\"),ExcelShortcuts[Shortcut],ExcelShortcuts[Value],\"\",0)","v":""}]
[null,null,"List all used ranges",null,null,null,"R",null,null,null,null,null,null,{"$f":"_xlfn.XLOOKUP(SUBSTITUTE(D98,\" \",\"\"),ExcelShortcuts[Shortcut],ExcelShortcuts[Value],\"\",0)","v":""}]
[null,null,"List all used fonts",null,null,null,"F",null,null,null,null,null,null,{"$f":"_xlfn.XLOOKUP(SUBSTITUTE(D99,\" \",\"\"),ExcelShortcuts[Shortcut],ExcelShortcuts[Value],\"\",0)","v":""}]
[null,null,"Add custom Office format",null,null,null,"M","<== Disabled",null,null,null,null,null,{"$f":"_xlfn.XLOOKUP(SUBSTITUTE(D100,\" \",\"\"),ExcelShortcuts[Shortcut],ExcelShortcuts[Value],\"\",0)","v":""}]
[null,null,null,null,null,null,null,null,null,null,null,null,null,{"$f":"_xlfn.XLOOKUP(SUBSTITUTE(D101,\" \",\"\"),ExcelShortcuts[Shortcut],ExcelShortcuts[Value],\"\",0)","v":""}]
[null,null,null,null,null,null,null,null,null,null,null,null,null,{"$f":"_xlfn.XLOOKUP(SUBSTITUTE(D102,\" \",\"\"),ExcelShortcuts[Shortcut],ExcelShortcuts[Value],\"\",0)","v":""}]
[null,null,null,null,null,null,null,null,null,null,null,null,null,{"$f":"_xlfn.XLOOKUP(SUBSTITUTE(D103,\" \",\"\"),ExcelShortcuts[Shortcut],ExcelShortcuts[Value],\"\",0)","v":""}]

{"sheet":"Win & Mac Shortcuts table","index":2,"n_rows":244,"n_cols":6,"rows_kept":244,"cut":false,"hidden":false,"merged":[]}
["Action","WinKB","MacKB","Win","Mac","Although not documented, Ctrl+key in Mac usually works the same as Cmd+key.\nExcept for Cmd+H (Finder:Hide window)"]
["Create new workbook","CtrlN","⌘N","Ctrl+N","Cmd+N","UNICODE(\"⌘\") = 8984"]
["Open workbook","CtrlO","⌘O","Ctrl+O","Cmd+O","UNICODE(\"⇧\") = 8679"]
["Save workbook","CtrlS","⌘S","Ctrl+S","Cmd+S","UNICODE(\"⌃\") = 8963"]
["Save as","F12","⌘⇧S","F12","Cmd+Shift+S","Cmd+Shift+s"]
["Print file","CtrlP","⌘P","Ctrl+P","Cmd+P"]
["Open print preview window","CtrlF2","","Ctrl+F2",""]
["Close current workbook","CtrlW","⌘W","Ctrl+W","Cmd+W","Win:Ctrl+F4  (Mac: Activity Monitor)"]
["Close Excel","AltF4","⌘Q","Alt+F4","Cmd+Q"]
["Expand or collapse ribbon","CtrlF1","⌘⌥R","Ctrl+F1","Cmd+Option+R","UNICODE(\"⌥\") = 8997"]
["Activate access keys","Alt","","Alt+",""]
["Move to next ribbon control","Tab","Tab","Tab","Tab"]
["Activate or open selected control","Space","Space","Space","Space"]
["Confirm control change","Enter","Return","Enter","Return"]
["Get help on selected control","F1","","F1",""]
["Open options","AltFT","⌘,","Alt+FT","Cmd+,"]
["Open help","F1","⌘/","F1","Cmd+/"]
["Undo last action","CtrlZ","⌘Z","Ctrl+Z","Cmd+Z"]
["Redo last action","CtrlY","⌘Y","Ctrl+Y","Cmd+Y"]
["Copy selected cells","CtrlC","⌘C","Ctrl+C","Cmd+C"]
["Repeat last action","F4","⌘Y","F4","Cmd+Y"]
["Cut selected cells","CtrlX","⌘X","Ctrl+X","Cmd+X"]
["Paste content from clipboard","CtrlV","⌘V","Ctrl+V","Cmd+V"]
["Display the Paste Special dialog box","CtrlAltV","⌘⌃V","Ctrl+Alt+V","Cmd+Ctrl+V","Cmd+Option+V"]
["Display find and replace","CtrlF","⌘F","Ctrl+F","Cmd+F"]
["Display find and replace, replace selected","CtrlH","⌃H","Ctrl+H","Ctrl+H","Cmd+h (Finder:Hide window)"]
["Find next match","ShiftF4","⌘G","Shift+F4","Cmd+G"]
["Find previous match","CtrlShiftF4","⌘⇧G","Ctrl+Shift+F4","Cmd+Shift+G","Cmd+Shift+g"]
["Create embedded chart","AltF1","Fn⌥F1","Alt+F1","Fn+Option+F1"]
["Create chart in new worksheet","F11","FnF11","F11","Fn+F11"]
["Insert table","CtrlT","⌘T","Ctrl+T","Cmd+T"]
["Toggle Autofilter","CtrlShiftL","⌘⇧F","Ctrl+Shift+L","Cmd+Shift+F","Cmd+Shift+f"]
["Activate filter","Alt↓","⌥↓","Alt+↓","Option+↓"]
["Select table row","ShiftSpace","⇧Space","Shift+Space","Shift+Space"]
["Select table column","CtrlSpace","⌃Space","Ctrl+Space","Ctrl+Space","Cmd+Space: Spotlight Search"]
["Select table","CtrlA","⌘A","Ctrl+A","Cmd+A"]
["Clear slicer filter","AltC","⌥C","Alt+C","Option+C"]
["Toggle table total row","CtrlShiftT","⌃⇧T","Ctrl+Shift+T","Ctrl+Shift+T","Ctrl+Shift+t"]
["Drag and cut","drag","drag","drag","drag"]
["Drag and copy","Ctrldrag","⌥drag","Ctrl+drag","Option+drag"]
["Drag and insert","Shiftdrag","⇧drag","Shift+drag","Shift+drag"]
["Drag and insert copy","CtrlShiftdrag","⌥⇧drag","Ctrl+Shift+drag","Option+Shift+drag"]
["Drag to worksheet","Altdrag","⌘drag","Alt+drag","Cmd+drag"]
["Drag to duplicate worksheet","Ctrldrag","⌥drag","Ctrl+drag","Option+drag"]
["Move one cell right","→","→","→","→"]
["Move one cell left","←","←","←","←"]
["Move one cell up","↑","↑","↑","↑"]
["Move one cell down","↓","↓","↓","↓"]
["Move one screen right","AltPgDn","Fn⌥↓","Alt+PgDn","Fn+Option+↓"]
["Move one screen left","AltPgUp","Fn⌥↑","Alt+PgUp","Fn+Option+↑"]
["Move one screen up","PgUp","Fn↑","PgUp","Fn+↑"]
["Move one screen down","PgDn","Fn↓","PgDn","Fn+↓"]
["Move to right edge of data region","Ctrl→","⌘→","Ctrl+→","Cmd+→"]
["Move to left edge of data region","Ctrl←","⌘←","Ctrl+←","Cmd+←"]
["Move to top edge of data region","Ctrl↑","⌘↑","Ctrl+↑","Cmd+↑"]
["Move to bottom edge of data region","Ctrl↓","⌘↓","Ctrl+↓","Cmd+↓"]
["Move to beginning of row","Home","Fn←","Home","Fn+←"]
["Move to last cell in worksheet","CtrlEnd","Fn⌘→","Ctrl+End","Fn+Cmd+→"]
["Move to first cell in worksheet","CtrlHome","Fn⌘←","Ctrl+Home","Fn+Cmd+←"]
["Turn End mode on","End","Fn→","End","Fn+→"]
["Go back to hyperlink","CtrlGEnter","⌃GReturn","Ctrl+GEnter","Ctrl+GReturn"]
["Select entire row","ShiftSpace","⇧Space","Shift+Space","Shift+Space"]
["Select entire column","CtrlSpace","⌃Space","Ctrl+Space","Ctrl+Space"]
["Select entire worksheet","CtrlA","⌘A","Ctrl+A","Cmd+A"]
["Add adjacent cells to selection","ShiftClick","⇧Click","Shift+Click","Shift+Click"]
["Add non-adjacent cells to selection","CtrlClick","⌘Click","Ctrl+Click","Cmd+Click"]
["Same selection in next column",0,"⌥Tab","0","Option+Tab"]
["Same selection in previous column",0,"⌥⇧Tab","0","Option+Shift+Tab"]
["Move right between non-adjacent selections","CtrlAlt→","⌃⌥→","Ctrl+Alt+→","Ctrl+Option+→"]
["Move left between non-adjacent selections","CtrlAlt←","⌃⌥←","Ctrl+Alt+←","Ctrl+Option+←"]
["Toggle add to selection mode","ShiftF8","Fn⇧F8","Shift+F8","Fn+Shift+F8"]
["Cancel selection","Esc","Esc","Esc","Esc"]
["Select active cell only","ShiftBackspace","⇧Delete","Shift+Backspace","Shift+Delete"]
["Show the active cell on worksheet","CtrlBackspace","⌃Delete","Ctrl+Backspace","Ctrl+Delete"]
["Move active cell clockwise in selection","Ctrl.","⌃.","Ctrl+.","Ctrl+.","Does not work in Mac?"]
["Move active cell down in selection","Enter","Return","Enter","Return"]
["Move active cell up in selection","ShiftEnter","⇧Return","Shift+Enter","Shift+Return"]
["Move active cell right in a selection","Tab","Tab","Tab","Tab"]
["Move active cell left in a selection","ShiftTab","⇧Tab","Shift+Tab","Shift+Tab"]
["Extend selection by one cell right","Shift→","⇧→","Shift+→","Shift+→"]
["Extend selection by one cell left","Shift←","⇧←","Shift+←","Shift+←"]
["Extend selection by one cell up","Shift↑","⇧↑","Shift+↑","Shift+↑"]
["Extend selection by one cell down","Shift↓","⇧↓","Shift+↓","Shift+↓"]
["Extend the selection to the last cell right","CtrlShift→","⌘⇧→","Ctrl+Shift+→","Cmd+Shift+→"]
["Extend the selection to the last cell left","CtrlShift←","⌘⇧←","Ctrl+Shift+←","Cmd+Shift+←"]
["Extend the selection to the last cell up","CtrlShift↑","⌘⇧↑","Ctrl+Shift+↑","Cmd+Shift+↑"]
["Extend the selection to the last cell down","CtrlShift↓","⌘⇧↓","Ctrl+Shift+↓","Cmd+Shift+↓"]
["Extend selection up one screen","ShiftPgUp","Fn⇧↑","Shift+PgUp","Fn+Shift+↑"]
["Extend selection down one screen","ShiftPgDn","Fn⇧↓","Shift+PgDn","Fn+Shift+↓"]
["Extend selection right one screen","AltShiftPgDn","Fn⇧⌥↓","Alt+Shift+PgDn","Fn+Shift+Option+↓"]
["Extend selection left one screen","AltShiftPgUp","Fn⇧⌥↑","Alt+Shift+PgUp","Fn+Shift+Option+↑"]
["Extend selection to start of row","ShiftHome","Fn⇧←","Shift+Home","Fn+Shift+←"]
["Extend selection to first cell in worksheet","CtrlShiftHome","Fn⌃⇧←","Ctrl+Shift+Home","Fn+Ctrl+Shift+←"]
["Extend selection to last cell in worksheet","CtrlShiftEnd","Fn⌃⇧→","Ctrl+Shift+End","Fn+Ctrl+Shift+→"]
["Toggle extend selection mode","F8","FnF8","F8","Fn+F8"]
["Display 'Go To' dialog box","CtrlG","⌃G","Ctrl+G","Ctrl+G","F5"]
["Select cells with comments","CtrlShiftO","Fn⌃⇧O","Ctrl+Shift+O","Fn+Ctrl+Shift+O"]
["Select current region around active cell","CtrlShift*","⌃⇧Space","Ctrl+Shift+*","Ctrl+Shift+Space"]
["Select current region","CtrlA","⌘A","Ctrl+A","Cmd+A"]
["Select current array","Ctrl/","⌃/","Ctrl+/","Ctrl+/"]
["Select row differences","Ctrl\\","⌃\\","Ctrl+\\","Ctrl+\\"]
["Select column differences","CtrlShift|","⌃⇧|","Ctrl+Shift+|","Ctrl+Shift+|","Ctrl+Shift+\\"]
["Select direct precedents","Ctrl[","⌃[","Ctrl+[","Ctrl+["]
["Select all precedents","CtrlShift{","⌃⇧{","Ctrl+Shift+{","Ctrl+Shift+{","Ctrl+Shift+["]
["Select direct dependents","Ctrl]","⌃]","Ctrl+]","Ctrl+]"]
["Select all dependents","CtrlShift}","⌃⇧}","Ctrl+Shift+}","Ctrl+Shift+}","Ctrl+Shift+]"]
["Select visible cells only","Alt;","⌘⇧Z","Alt+;","Cmd+Shift+Z","Cmd+Shift+z"]
["Edit the active cell","F2","⌃U","F2","Ctrl+U"]
["Cancel entry","Esc","Esc","Esc","Esc"]
["Select one character right","Shift→","⇧→","Shift+→","Shift+→"]
["Select one character left","Shift←","⇧←","Shift+←","Shift+←"]
["Move one word right","Ctrl→","⌃→","Ctrl+→","Ctrl+→"]
["Move one word left","Ctrl←","⌃←","Ctrl+←","Ctrl+←"]
["Select one word right","CtrlShift→","⌃⇧→","Ctrl+Shift+→","Ctrl+Shift+→"]
["Select one word left","CtrlShift←","⌃⇧←","Ctrl+Shift+←","Ctrl+Shift+←"]
["Select to beginning of cell","ShiftHome","Fn⇧←","Shift+Home","Fn+Shift+←"]
["Select to end of cell","ShiftEnd","Fn⇧→","Shift+End","Fn+Shift+→"]
["Delete to end of line","CtrlDelete","Fn⌃Delete","Ctrl+Delete","Fn+Ctrl+Delete"]
["Delete character to the left of cursor","Backspace","Delete","Backspace","Delete"]
["Delete character to the right of cursor","Delete","FnDelete","Delete","Fn+Delete"]
["Insert line break in cell","AltEnter","⌃⌥Return","Alt+Enter","Ctrl+Option+Return"]
["Enter and move down","Enter","Return","Enter","Return"]
["Enter and move up","ShiftEnter","⇧Return","Shift+Enter","Shift+Return"]
["Enter and move right","Tab","Tab","Tab","Tab"]
["Enter and move left","ShiftTab","⇧Tab","Shift+Tab","Shift+Tab"]
["Complete entry and stay in same cell","CtrlEnter","⌃Return","Ctrl+Enter","Ctrl+Return"]
["Enter same data in multiple cells","CtrlEnter","⌃Return","Ctrl+Enter","Ctrl+Return"]
["Insert current date","Ctrl;","⌃;","Ctrl+;","Ctrl+;"]
["Insert current time","CtrlShift:","⌘;","Ctrl+Shift+:","Cmd+;"]
["Fill down from cell above","CtrlD","⌘D","Ctrl+D","Cmd+D"]
["Fill right from cell left","CtrlR","⌘R","Ctrl+R","Cmd+R"]
["Copy formula from cell above","Ctrl'","⌘'","Ctrl+'","Cmd+'"]
["Copy value from cell above","CtrlShift\"","⌃⇧\"","Ctrl+Shift+\"","Ctrl+Shift+\"","Ctrl+Shift+2"]
["Add hyperlink","CtrlK","⌘K","Ctrl+K","Cmd+K"]
["Display AutoComplete list","Alt↓","⌥↓","Alt+↓","Option+↓"]
["Flash fill","CtrlE","⌃E","Ctrl+E","Ctrl+E"]
["Format (almost) anything","Ctrl1","⌘1","Ctrl+1","Cmd+1"]
["Display Format Cells with Font tab selected","CtrlShiftF","⌃⇧F","Ctrl+Shift+F","Ctrl+Shift+F","Ctrl+Shift+f"]
["Toggle bold formatting","CtrlB","⌘B","Ctrl+B","Cmd+B"]
["Toggle italic formatting","CtrlI","⌘I","Ctrl+I","Cmd+I"]
["Toggle underline formatting","CtrlU","⌘U","Ctrl+U","Cmd+U"]
["Toggle strikethrough formatting","Ctrl5","⌘⇧X","Ctrl+5","Cmd+Shift+X","Cmd+Shift+x"]
["Align center","AltHAC","⌘E","Alt+HAC","Cmd+E"]
["Align left","AltHAL","⌘L","Alt+HAL","Cmd+L"]
["Align right","AltHAR","⌘R","Alt+HAR","Cmd+R"]
["Indent","AltH6","⌃⌥Tab","Alt+H6","Ctrl+Option+Tab"]
["Remove indent","AltH5","⌃⌥⇧Tab","Alt+H5","Ctrl+Option+Shift+Tab"]
["Increase font size one step","AltHFG","⌘⇧>","Alt+HFG","Cmd+Shift+>","Cmd+Shift+."]
["Decrease font size one step","AltHFK","⌘⇧<","Alt+HFK","Cmd+Shift+<","Cmd+Shift+,"]
["Apply general format","CtrlShift~","⌃⇧~","Ctrl+Shift+~","Ctrl+Shift+~","Ctrl+Shift+#"]
["Apply currency format","CtrlShift$","⌃⇧$","Ctrl+Shift+$","Ctrl+Shift+$","Ctrl+Shift+4"]
["Apply percentage format","CtrlShift%","⌃⇧%","Ctrl+Shift+%","Ctrl+Shift+%","Ctrl+Shift+5"]
["Apply scientific format","CtrlShift^","⌃⇧^","Ctrl+Shift+^","Ctrl+Shift+^","Ctrl+Shift+6"]
["Apply date format","CtrlShift#","⌃⇧#","Ctrl+Shift+#","Ctrl+Shift+#","Ctrl+Shift+7"]
["Apply time format","CtrlShift@","⌃⇧@","Ctrl+Shift+@","Ctrl+Shift+@","Ctrl+Shift+'"]
["Apply number format","CtrlShift!","⌃⇧!","Ctrl+Shift+!","Ctrl+Shift+!","Ctrl+Shift+1"]
["Add border outline","CtrlShift&","⌘⌥0","Ctrl+Shift+&","Cmd+Option+0"]
["Add or remove border right","AltR","⌘⌥→","Alt+R","Cmd+Option+→"]
["Add or remove border left","AltL","⌘⌥←","Alt+L","Cmd+Option+←"]
["Add or remove border top","AltT","⌘⌥↑","Alt+T","Cmd+Option+↑"]
["Add or remove border bottom","AltB","⌘⌥↓","Alt+B","Cmd+Option+↓"]
["Add or remove border upward diagonal","AltD","","Alt+D",""]
["Add or remove border horizontal interior","AltH","","Alt+H",""]
["Add or remove border vertical interior","AltV","","Alt+V",""]
["Remove borders","CtrlShift_","⌘⌥_","Ctrl+Shift+_","Cmd+Option+_"]
["Toggle absolute and relative references","F4","⌘T","F4","Cmd+T"]
["Open the Insert Function Dialog Box","ShiftF3","Fn⇧F3","Shift+F3","Fn+Shift+F3"]
["Autosum selected cells","Alt=","⌘⇧T","Alt+=","Cmd+Shift+T","Cmd+Shift+t"]
["Toggle formulas on and off","Ctrl`","⌃`","Ctrl+`","Ctrl+`"]
["Insert function arguments","CtrlShiftA","⌃⇧A","Ctrl+Shift+A","Ctrl+Shift+A","Ctrl+Shift+a"]
["Enter array formula","CtrlShiftEnter","⌃⇧Return","Ctrl+Shift+Enter","Ctrl+Shift+Return"]
["Calculate worksheets","F9","FnF9","F9","Fn+F9"]
["Calculate active worksheet","ShiftF9","Fn⇧F9","Shift+F9","Fn+Shift+F9"]
["Force calculate all worksheets","CtrlAltF9","","Ctrl+Alt+F9",""]
["Evaluate part of a formula","F9","FnF9","F9","Fn+F9"]
["Expand or collapse the formula bar","CtrlShiftU","⌃⇧U","Ctrl+Shift+U","Ctrl+Shift+U","Ctrl+Shift+u"]
["Display function arguments dialog box","CtrlA","⌃A","Ctrl+A","Ctrl+A"]
["Open the Name Manager","CtrlF3","Fn⌃F3","Ctrl+F3","Fn+Ctrl+F3"]
["Define name using row and column labels","CtrlShiftF3","Fn⌃⇧F3","Ctrl+Shift+F3","Fn+Ctrl+Shift+F3"]
["Select name box","AltF3","","Alt+F3",""]
["Paste name into formula","F3","F3","F3","F3"]
["Accept function with autocomplete","Tab","Tab","Tab","Tab"]
["Display Insert Dialog box","CtrlShift+","⌘⇧+","Ctrl+Shift++","Cmd+Shift++","Cmd+Shift+="]
["Insert rows","CtrlShift+","⌘⇧+","Ctrl+Shift++","Cmd+Shift++","Cmd+Shift+="]
["Insert columns","CtrlShift+","⌘⇧+","Ctrl+Shift++","Cmd+Shift++","Cmd+Shift+="]
["Display Delete dialog box","Ctrl-","⌘-","Ctrl+-","Cmd+-"]
["Delete rows","Ctrl-","⌘-","Ctrl+-","Cmd+-"]
["Delete columns","Ctrl-","⌘-","Ctrl+-","Cmd+-"]
["Delete cells","Ctrl-","⌘-","Ctrl+-","Cmd+-"]
["Delete contents of selected cells","Delete","FnDelete","Delete","Fn+Delete"]
["Hide columns","Ctrl0","⌃0","Ctrl+0","Ctrl+0"]
["Hide rows","Ctrl9","⌃9","Ctrl+9","Ctrl+9"]
["Unhide rows","CtrlShift(","⌃⇧(","Ctrl+Shift+(","Ctrl+Shift+(","Ctrl+Shift+9"]
["Unhide columns","CtrlShift)","⌃⇧)","Ctrl+Shift+)","Ctrl+Shift+)","Ctrl+Shift+0"]
["Group rows or columns","AltShift→","⌘⇧K","Alt+Shift+→","Cmd+Shift+K","Cmd+Shift+k"]
["Ungroup rows or columns","AltShift←","⌘⇧J","Alt+Shift+←","Cmd+Shift+J","Cmd+Shift+j"]
["Open Group Dialog Box","AltShift→","⌘⇧K","Alt+Shift+→","Cmd+Shift+K","Cmd+Shift+k"]
["Open Ungroup Dialog Box","AltShift←","⌘⇧J","Alt+Shift+←","Cmd+Shift+J","Cmd+Shift+j"]
["Hide or show outline symbols","Ctrl8","⌃8","Ctrl+8","Ctrl+8"]
["Zoom in","CtrlAlt+","⌥⌘+","Ctrl+Alt++","Option+Cmd++"]
["Zoom out","CtrlAlt-","⌥⌘-","Ctrl+Alt+-","Option+Cmd+-"]
["Zoom scroll","Ctrlscroll","^scroll","Ctrl+scroll","^scroll"]
["Select entire pivot table","CtrlA","⌘A","Ctrl+A","Cmd+A"]
["Toggle pivot table field checkbox","Space","Space","Space","Space"]
["Group pivot table items","AltShift→","⌘⇧K","Alt+Shift+→","Cmd+Shift+K","Cmd+Shift+k"]
["Ungroup pivot table items","AltShift←","⌘⇧J","Alt+Shift+←","Cmd+Shift+J","Cmd+Shift+j"]
["Hide pivot table item","Ctrl-","Ctrl-","Ctrl+-","Ctrl-"]
["Create pivot chart on same worksheet","AltF1","","Alt+F1",""]
["Create pivot chart on new worksheet","F11","FnF11","F11","Fn+F11"]
["Open pivot table wizard","AltDP","⌘⌥P","Alt+DP","Cmd+Option+P"]
["Insert new worksheet","ShiftF11","Fn⇧F11","Shift+F11","Fn+Shift+F11"]
["Go to next worksheet","CtrlPgDn","Fn⌃↓","Ctrl+PgDn","Fn+Ctrl+↓"]
["Go to previous worksheet","CtrlPgUp","Fn⌃↑","Ctrl+PgUp","Fn+Ctrl+↑"]
["Move to next pane","F6","FnF6","F6","Fn+F6"]
["Move to previous pane","ShiftF6","Fn⇧F6","Shift+F6","Fn+Shift+F6"]
["Go to next workbook","CtrlTab","⌘`","Ctrl+Tab","Cmd+`"]
["Go to previous workbook","CtrlShiftTab","⌘⇧`","Ctrl+Shift+Tab","Cmd+Shift+`"]
["Minimize current workbook window","CtrlF9","⌘M","Ctrl+F9","Cmd+M"]
["Maximize current workbook window","CtrlF10","Fn⌃F10","Ctrl+F10","Fn+Ctrl+F10"]
["Select adjacent worksheets","ShiftClick","⇧Click","Shift+Click","Shift+Click"]
["Select non-adjacent worksheets","CtrlClick","⌘Click","Ctrl+Click","Cmd+Click"]
["Toggle scroll lock","ScrLk","Fn⇧F14","ScrLk","Fn+Shift+F14"]
["Toggle full screen","CtrlShiftF1","⌃⌘F","Ctrl+Shift+F1","Ctrl+Cmd+F"]
["Move to next control","Tab","Tab","Tab","Tab"]
["Move to previous control","ShiftTab","⇧Tab","Shift+Tab","Shift+Tab"]
["Move to next tab","CtrlTab","⌃Tab","Ctrl+Tab","Ctrl+Tab"]
["Move to previous tab","CtrlShiftTab","⌃⇧Tab","Ctrl+Shift+Tab","Ctrl+Shift+Tab"]
["Accept and apply","Enter","Return","Enter","Return"]
["Check and uncheck box","Space","Space","Space","Space"]
["Cancel and close the dialog box","Esc","Esc","Esc","Esc"]
["Check spelling","F7","FnF7","F7","Fn+F7"]
["Open Thesaurus dialog box","ShiftF7","Fn⇧F7","Shift+F7","Fn+Shift+F7"]
["Open Macro dialog box","AltF8","Fn⌥F8","Alt+F8","Fn+Option+F8"]
["Open VBA Editor","AltF11","Fn⌥F11","Alt+F11","Fn+Option+F11"]
["Duplicate object","CtrlD","⌘D","Ctrl+D","Cmd+D"]
["Snap to grid","Alt","⌘","Alt+","Cmd+"]
["Hide or show objects","Ctrl6","⌃6","Ctrl+6","Ctrl+6"]
["Display Modify Cell Style dialog box","Alt'","⌘⇧L","Alt+'","Cmd+Shift+L","Cmd+Shift+l"]
["Display right-click menu","ShiftF10","Fn⇧F10","Shift+F10","Fn+Shift+F10"]
["Insert or edit note","ShiftF2","Fn⇧F2","Shift+F2","Fn+Shift+F2"]
["Insert threaded comment","CtrlShiftF2","Fn⌘⇧F2","Ctrl+Shift+F2","Fn+Cmd+Shift+F2"]
["Delete comment","ShiftF10D","Fn⇧F10","Shift+F10D","Fn+Shift+F10"]
["Display control menu","AltSpace","","Alt+Space",""]
["New Name","CtrlAltF3","⌃L","Ctrl+Alt+F3","Ctrl+L"]

{"sheet":"Excel Shortcuts","index":3,"n_rows":524,"n_cols":6,"rows_kept":524,"cut":false,"hidden":false,"merged":[]}
["Key","Attribute","Value","Shortcut","Gridlines","Check"]
["F1","Alone","Help",{"$f":"IF(ExcelShortcuts[[#This Row],[Attribute]]=\"Alone\",\"\",ExcelShortcuts[[#This Row],[Attribute]]&\"+\")&ExcelShortcuts[[#This Row],[Key]]","v":"F1"},{"$f":"_xlfn.XLOOKUP(SUBSTITUTE(ExcelShortcuts[[#This Row],[Shortcut]],\"+\",\" + \"),'Custom Shortcuts'!$D$15:$D$103,'Custom Shortcuts'!$C$15:$C$103,\"\",0)","v":""},{"$f":"COUNTIF(ExcelShortcuts[Key],\"=\"&ExcelShortcuts[[#This Row],[Key]])","v":8}]
["F1","Shift","What Is… (Help)",{"$f":"IF(ExcelShortcuts[[#This Row],[Attribute]]=\"Alone\",\"\",ExcelShortcuts[[#This Row],[Attribute]]&\"+\")&ExcelShortcuts[[#This Row],[Key]]","v":"Shift+F1"},{"$f":"_xlfn.XLOOKUP(SUBSTITUTE(ExcelShortcuts[[#This Row],[Shortcut]],\"+\",\" + \"),'Custom Shortcuts'!$D$15:$D$103,'Custom Shortcuts'!$C$15:$C$103,\"\",0)","v":""},{"$f":"COUNTIF(ExcelShortcuts[Key],\"=\"&ExcelShortcuts[[#This Row],[Key]])","v":8}]
["F1","Ctrl","Excel 2007: Show / Hide Ribbon; Excel 2003: Show / Hide Task Pane",{"$f":"IF(ExcelShortcuts[[#This Row],[Attribute]]=\"Alone\",\"\",ExcelShortcuts[[#This Row],[Attribute]]&\"+\")&ExcelShortcuts[[#This Row],[Key]]","v":"Ctrl+F1"},{"$f":"_xlfn.XLOOKUP(SUBSTITUTE(ExcelShortcuts[[#This Row],[Shortcut]],\"+\",\" + \"),'Custom Shortcuts'!$D$15:$D$103,'Custom Shortcuts'!$C$15:$C$103,\"\",0)","v":""},{"$f":"COUNTIF(ExcelShortcuts[Key],\"=\"&ExcelShortcuts[[#This Row],[Key]])","v":8}]
["F1","Alt","Excel 2007: Insert Chart as Object; Excel 2003: Insert Chart as Sheet",{"$f":"IF(ExcelShortcuts[[#This Row],[Attribute]]=\"Alone\",\"\",ExcelShortcuts[[#This Row],[Attribute]]&\"+\")&ExcelShortcuts[[#This Row],[Key]]","v":"Alt+F1"},{"$f":"_xlfn.XLOOKUP(SUBSTITUTE(ExcelShortcuts[[#This Row],[Shortcut]],\"+\",\" + \"),'Custom Shortcuts'!$D$15:$D$103,'Custom Shortcuts'!$C$15:$C$103,\"\",0)","v":""},{"$f":"COUNTIF(ExcelShortcuts[Key],\"=\"&ExcelShortcuts[[#This Row],[Key]])","v":8}]
["F1","Ctrl+Shift","",{"$f":"IF(ExcelShortcuts[[#This Row],[Attribute]]=\"Alone\",\"\",ExcelShortcuts[[#This Row],[Attribute]]&\"+\")&ExcelShortcuts[[#This Row],[Key]]","v":"Ctrl+Shift+F1"},{"$f":"_xlfn.XLOOKUP(SUBSTITUTE(ExcelShortcuts[[#This Row],[Shortcut]],\"+\",\" + \"),'Custom Shortcuts'!$D$15:$D$103,'Custom Shortcuts'!$C$15:$C$103,\"\",0)","v":""},{"$f":"COUNTIF(ExcelShortcuts[Key],\"=\"&ExcelShortcuts[[#This Row],[Key]])","v":8}]
["F1","Shift+Alt","Insert New Sheet",{"$f":"IF(ExcelShortcuts[[#This Row],[Attribute]]=\"Alone\",\"\",ExcelShortcuts[[#This Row],[Attribute]]&\"+\")&ExcelShortcuts[[#This Row],[Key]]","v":"Shift+Alt+F1"},{"$f":"_xlfn.XLOOKUP(SUBSTITUTE(ExcelShortcuts[[#This Row],[Shortcut]],\"+\",\" + \"),'Custom Shortcuts'!$D$15:$D$103,'Custom Shortcuts'!$C$15:$C$103,\"\",0)","v":""},{"$f":"COUNTIF(ExcelShortcuts[Key],\"=\"&ExcelShortcuts[[#This Row],[Key]])","v":8}]
["F1","Ctrl+Alt","New Macro sheet",{"$f":"IF(ExcelShortcuts[[#This Row],[Attribute]]=\"Alone\",\"\",ExcelShortcuts[[#This Row],[Attribute]]&\"+\")&ExcelShortcuts[[#This Row],[Key]]","v":"Ctrl+Alt+F1"},{"$f":"_xlfn.XLOOKUP(SUBSTITUTE(ExcelShortcuts[[#This Row],[Shortcut]],\"+\",\" + \"),'Custom Shortcuts'!$D$15:$D$103,'Custom Shortcuts'!$C$15:$C$103,\"\",0)","v":""},{"$f":"COUNTIF(ExcelShortcuts[Key],\"=\"&ExcelShortcuts[[#This Row],[Key]])","v":8}]
["F1","Ctrl+Shift+Alt","",{"$f":"IF(ExcelShortcuts[[#This Row],[Attribute]]=\"Alone\",\"\",ExcelShortcuts[[#This Row],[Attribute]]&\"+\")&ExcelShortcuts[[#This Row],[Key]]","v":"Ctrl+Shift+Alt+F1"},{"$f":"_xlfn.XLOOKUP(SUBSTITUTE(ExcelShortcuts[[#This Row],[Shortcut]],\"+\",\" + \"),'Custom Shortcuts'!$D$15:$D$103,'Custom Shortcuts'!$C$15:$C$103,\"\",0)","v":""},{"$f":"COUNTIF(ExcelShortcuts[Key],\"=\"&ExcelShortcuts[[#This Row],[Key]])","v":8}]
["F2","Alone","Toggle Select, Edit and Enter / Point modes",{"$f":"IF(ExcelShortcuts[[#This Row],[Attribute]]=\"Alone\",\"\",ExcelShortcuts[[#This Row],[Attribute]]&\"+\")&ExcelShortcuts[[#This Row],[Key]]","v":"F2"},{"$f":"_xlfn.XLOOKUP(SUBSTITUTE(ExcelShortcuts[[#This Row],[Shortcut]],\"+\",\" + \"),'Custom Shortcuts'!$D$15:$D$103,'Custom Shortcuts'!$C$15:$C$103,\"\",0)","v":""},{"$f":"COUNTIF(ExcelShortcuts[Key],\"=\"&ExcelShortcuts[[#This Row],[Key]])","v":8}]
["F2","Shift","Insert / Edit Comment",{"$f":"IF(ExcelShortcuts[[#This Row],[Attribute]]=\"Alone\",\"\",ExcelShortcuts[[#This Row],[Attribute]]&\"+\")&ExcelShortcuts[[#This Row],[Key]]","v":"Shift+F2"},{"$f":"_xlfn.XLOOKUP(SUBSTITUTE(ExcelShortcuts[[#This Row],[Shortcut]],\"+\",\" + \"),'Custom Shortcuts'!$D$15:$D$103,'Custom Shortcuts'!$C$15:$C$103,\"\",0)","v":""},{"$f":"COUNTIF(ExcelShortcuts[Key],\"=\"&ExcelShortcuts[[#This Row],[Key]])","v":8}]
["F2","Ctrl","Excel 2007: Print; Excel 2003: SHOW.INFO()",{"$f":"IF(ExcelShortcuts[[#This Row],[Attribute]]=\"Alone\",\"\",ExcelShortcuts[[#This Row],[Attribute]]&\"+\")&ExcelShortcuts[[#This Row],[Key]]","v":"Ctrl+F2"},{"$f":"_xlfn.XLOOKUP(SUBSTITUTE(ExcelShortcuts[[#This Row],[Shortcut]],\"+\",\" + \"),'Custom Shortcuts'!$D$15:$D$103,'Custom Shortcuts'!$C$15:$C$103,\"\",0)","v":""},{"$f":"COUNTIF(ExcelShortcuts[Key],\"=\"&ExcelShortcuts[[#This Row],[Key]])","v":8}]
["F2","Alt","Save As",{"$f":"IF(ExcelShortcuts[[#This Row],[Attribute]]=\"Alone\",\"\",ExcelShortcuts[[#This Row],[Attribute]]&\"+\")&ExcelShortcuts[[#This Row],[Key]]","v":"Alt+F2"},{"$f":"_xlfn.XLOOKUP(SUBSTITUTE(ExcelShortcuts[[#This Row],[Shortcut]],\"+\",\" + \"),'Custom Shortcuts'!$D$15:$D$103,'Custom Shortcuts'!$C$15:$C$103,\"\",0)","v":""},{"$f":"COUNTIF(ExcelShortcuts[Key],\"=\"&ExcelShortcuts[[#This Row],[Key]])","v":8}]
["F2","Ctrl+Shift","",{"$f":"IF(ExcelShortcuts[[#This Row],[Attribute]]=\"Alone\",\"\",ExcelShortcuts[[#This Row],[Attribute]]&\"+\")&ExcelShortcuts[[#This Row],[Key]]","v":"Ctrl+Shift+F2"},{"$f":"_xlfn.XLOOKUP(SUBSTITUTE(ExcelShortcuts[[#This Row],[Shortcut]],\"+\",\" + \"),'Custom Shortcuts'!$D$15:$D$103,'Custom Shortcuts'!$C$15:$C$103,\"\",0)","v":""},{"$f":"COUNTIF(ExcelShortcuts[Key],\"=\"&ExcelShortcuts[[#This Row],[Key]])","v":8}]
["F2","Shift+Alt","Save",{"$f":"IF(ExcelShortcuts[[#This Row],[Attribute]]=\"Alone\",\"\",ExcelShortcuts[[#This Row],[Attribute]]&\"+\")&ExcelShortcuts[[#This Row],[Key]]","v":"Shift+Alt+F2"},{"$f":"_xlfn.XLOOKUP(SUBSTITUTE(ExcelShortcuts[[#This Row],[Shortcut]],\"+\",\" + \"),'Custom Shortcuts'!$D$15:$D$103,'Custom Shortcuts'!$C$15:$C$103,\"\",0)","v":""},{"$f":"COUNTIF(ExcelShortcuts[Key],\"=\"&ExcelShortcuts[[#This Row],[Key]])","v":8}]
["F2","Ctrl+Alt","Open",{"$f":"IF(ExcelShortcuts[[#This Row],[Attribute]]=\"Alone\",\"\",ExcelShortcuts[[#This Row],[Attribute]]&\"+\")&ExcelShortcuts[[#This Row],[Key]]","v":"Ctrl+Alt+F2"},{"$f":"_xlfn.XLOOKUP(SUBSTITUTE(ExcelShortcuts[[#This Row],[Shortcut]],\"+\",\" + \"),'Custom Shortcuts'!$D$15:$D$103,'Custom Shortcuts'!$C$15:$C$103,\"\",0)","v":""},{"$f":"COUNTIF(ExcelShortcuts[Key],\"=\"&ExcelShortcuts[[#This Row],[Key]])","v":8}]
["F2","Ctrl+Shift+Alt","Print",{"$f":"IF(ExcelShortcuts[[#This Row],[Attribute]]=\"Alone\",\"\",ExcelShortcuts[[#This Row],[Attribute]]&\"+\")&ExcelShortcuts[[#This Row],[Key]]","v":"Ctrl+Shift+Alt+F2"},{"$f":"_xlfn.XLOOKUP(SUBSTITUTE(ExcelShortcuts[[#This Row],[Shortcut]],\"+\",\" + \"),'Custom Shortcuts'!$D$15:$D$103,'Custom Shortcuts'!$C$15:$C$103,\"\",0)","v":""},{"$f":"COUNTIF(ExcelShortcuts[Key],\"=\"&ExcelShortcuts[[#This Row],[Key]])","v":8}]
["F3","Alone","Paste Names",{"$f":"IF(ExcelShortcuts[[#This Row],[Attribute]]=\"Alone\",\"\",ExcelShortcuts[[#This Row],[Attribute]]&\"+\")&ExcelShortcuts[[#This Row],[Key]]","v":"F3"},{"$f":"_xlfn.XLOOKUP(SUBSTITUTE(ExcelShortcuts[[#This Row],[Shortcut]],\"+\",\" + \"),'Custom Shortcuts'!$D$15:$D$103,'Custom Shortcuts'!$C$15:$C$103,\"\",0)","v":""},{"$f":"COUNTIF(ExcelShortcuts[Key],\"=\"&ExcelShortcuts[[#This Row],[Key]])","v":8}]
["F3","Shift","Function Wizard",{"$f":"IF(ExcelShortcuts[[#This Row],[Attribute]]=\"Alone\",\"\",ExcelShortcuts[[#This Row],[Attribute]]&\"+\")&ExcelShortcuts[[#This Row],[Key]]","v":"Shift+F3"},{"$f":"_xlfn.XLOOKUP(SUBSTITUTE(ExcelShortcuts[[#This Row],[Shortcut]],\"+\",\" + \"),'Custom Shortcuts'!$D$15:$D$103,'Custom Shortcuts'!$C$15:$C$103,\"\",0)","v":""},{"$f":"COUNTIF(ExcelShortcuts[Key],\"=\"&ExcelShortcuts[[#This Row],[Key]])","v":8}]
["F3","Ctrl","Excel 2007: Open Name Manager; Excel 2003: Open Define Names Dialog Box",{"$f":"IF(ExcelShortcuts[[#This Row],[Attribute]]=\"Alone\",\"\",ExcelShortcuts[[#This Row],[Attribute]]&\"+\")&ExcelShortcuts[[#This Row],[Key]]","v":"Ctrl+F3"},{"$f":"_xlfn.XLOOKUP(SUBSTITUTE(ExcelShortcuts[[#This Row],[Shortcut]],\"+\",\" + \"),'Custom Shortcuts'!$D$15:$D$103,'Custom Shortcuts'!$C$15:$C$103,\"\",0)","v":""},{"$f":"COUNTIF(ExcelShortcuts[Key],\"=\"&ExcelShortcuts[[#This Row],[Key]])","v":8}]
["F3","Alt","Select Name Box",{"$f":"IF(ExcelShortcuts[[#This Row],[Attribute]]=\"Alone\",\"\",ExcelShortcuts[[#This Row],[Attribute]]&\"+\")&ExcelShortcuts[[#This Row],[Key]]","v":"Alt+F3"},{"$f":"_xlfn.XLOOKUP(SUBSTITUTE(ExcelShortcuts[[#This Row],[Shortcut]],\"+\",\" + \"),'Custom Shortcuts'!$D$15:$D$103,'Custom Shortcuts'!$C$15:$C$103,\"\",0)","v":""},{"$f":"COUNTIF(ExcelShortcuts[Key],\"=\"&ExcelShortcuts[[#This Row],[Key]])","v":8}]
["F3","Ctrl+Shift","Create Names",{"$f":"IF(ExcelShortcuts[[#This Row],[Attribute]]=\"Alone\",\"\",ExcelShortcuts[[#This Row],[Attribute]]&\"+\")&ExcelShortcuts[[#This Row],[Key]]","v":"Ctrl+Shift+F3"},{"$f":"_xlfn.XLOOKUP(SUBSTITUTE(ExcelShortcuts[[#This Row],[Shortcut]],\"+\",\" + \"),'Custom Shortcuts'!$D$15:$D$103,'Custom Shortcuts'!$C$15:$C$103,\"\",0)","v":""},{"$f":"COUNTIF(ExcelShortcuts[Key],\"=\"&ExcelShortcuts[[#This Row],[Key]])","v":8}]
["F3","Shift+Alt","",{"$f":"IF(ExcelShortcuts[[#This Row],[Attribute]]=\"Alone\",\"\",ExcelShortcuts[[#This Row],[Attribute]]&\"+\")&ExcelShortcuts[[#This Row],[Key]]","v":"Shift+Alt+F3"},{"$f":"_xlfn.XLOOKUP(SUBSTITUTE(ExcelShortcuts[[#This Row],[Shortcut]],\"+\",\" + \"),'Custom Shortcuts'!$D$15:$D$103,'Custom Shortcuts'!$C$15:$C$103,\"\",0)","v":""},{"$f":"COUNTIF(ExcelShortcuts[Key],\"=\"&ExcelShortcuts[[#This Row],[Key]])","v":8}]
["F3","Ctrl+Alt","Excel 2007: New Name",{"$f":"IF(ExcelShortcuts[[#This Row],[Attribute]]=\"Alone\",\"\",ExcelShortcuts[[#This Row],[Attribute]]&\"+\")&ExcelShortcuts[[#This Row],[Key]]","v":"Ctrl+Alt+F3"},{"$f":"_xlfn.XLOOKUP(SUBSTITUTE(ExcelShortcuts[[#This Row],[Shortcut]],\"+\",\" + \"),'Custom Shortcuts'!$D$15:$D$103,'Custom Shortcuts'!$C$15:$C$103,\"\",0)","v":""},{"$f":"COUNTIF(ExcelShortcuts[Key],\"=\"&ExcelShortcuts[[#This Row],[Key]])","v":8}]
["F3","Ctrl+Shift+Alt","",{"$f":"IF(ExcelShortcuts[[#This Row],[Attribute]]=\"Alone\",\"\",ExcelShortcuts[[#This Row],[Attribute]]&\"+\")&ExcelShortcuts[[#This Row],[Key]]","v":"Ctrl+Shift+Alt+F3"},{"$f":"_xlfn.XLOOKUP(SUBSTITUTE(ExcelShortcuts[[#This Row],[Shortcut]],\"+\",\" + \"),'Custom Shortcuts'!$D$15:$D$103,'Custom Shortcuts'!$C$15:$C$103,\"\",0)","v":""},{"$f":"COUNTIF(ExcelShortcuts[Key],\"=\"&ExcelShortcuts[[#This Row],[Key]])","v":8}]
["F4","Alone","Redo / Edit (F2) Mode: Toggle $ references",{"$f":"IF(ExcelShortcuts[[#This Row],[Attribute]]=\"Alone\",\"\",ExcelShortcuts[[#This Row],[Attribute]]&\"+\")&ExcelShortcuts[[#This Row],[Key]]","v":"F4"},{"$f":"_xlfn.XLOOKUP(SUBSTITUTE(ExcelShortcuts[[#This Row],[Shortcut]],\"+\",\" + \"),'Custom Shortcuts'!$D$15:$D$103,'Custom Shortcuts'!$C$15:$C$103,\"\",0)","v":""},{"$f":"COUNTIF(ExcelShortcuts[Key],\"=\"&ExcelShortcuts[[#This Row],[Key]])","v":8}]
["F4","Shift","Find Next (from most recent search)",{"$f":"IF(ExcelShortcuts[[#This Row],[Attribute]]=\"Alone\",\"\",ExcelShortcuts[[#This Row],[Attribute]]&\"+\")&ExcelShortcuts[[#This Row],[Key]]","v":"Shift+F4"},{"$f":"_xlfn.XLOOKUP(SUBSTITUTE(ExcelShortcuts[[#This Row],[Shortcut]],\"+\",\" + \"),'Custom Shortcuts'!$D$15:$D$103,'Custom Shortcuts'!$C$15:$C$103,\"\",0)","v":""},{"$f":"COUNTIF(ExcelShortcuts[Key],\"=\"&ExcelShortcuts[[#This Row],[Key]])","v":8}]
["F4","Ctrl","Close Window",{"$f":"IF(ExcelShortcuts[[#This Row],[Attribute]]=\"Alone\",\"\",ExcelShortcuts[[#This Row],[Attribute]]&\"+\")&ExcelShortcuts[[#This Row],[Key]]","v":"Ctrl+F4"},{"$f":"_xlfn.XLOOKUP(SUBSTITUTE(ExcelShortcuts[[#This Row],[Shortcut]],\"+\",\" + \"),'Custom Shortcuts'!$D$15:$D$103,'Custom Shortcuts'!$C$15:$C$103,\"\",0)","v":""},{"$f":"COUNTIF(ExcelShortcuts[Key],\"=\"&ExcelShortcuts[[#This Row],[Key]])","v":8}]
["F4","Alt","Close Application",{"$f":"IF(ExcelShortcuts[[#This Row],[Attribute]]=\"Alone\",\"\",ExcelShortcuts[[#This Row],[Attribute]]&\"+\")&ExcelShortcuts[[#This Row],[Key]]","v":"Alt+F4"},{"$f":"_xlfn.XLOOKUP(SUBSTITUTE(ExcelShortcuts[[#This Row],[Shortcut]],\"+\",\" + \"),'Custom Shortcuts'!$D$15:$D$103,'Custom Shortcuts'!$C$15:$C$103,\"\",0)","v":""},{"$f":"COUNTIF(ExcelShortcuts[Key],\"=\"&ExcelShortcuts[[#This Row],[Key]])","v":8}]
["F4","Ctrl+Shift","Find Previous (from most recent search)",{"$f":"IF(ExcelShortcuts[[#This Row],[Attribute]]=\"Alone\",\"\",ExcelShortcuts[[#This Row],[Attribute]]&\"+\")&ExcelShortcuts[[#This Row],[Key]]","v":"Ctrl+Shift+F4"},{"$f":"_xlfn.XLOOKUP(SUBSTITUTE(ExcelShortcuts[[#This Row],[Shortcut]],\"+\",\" + \"),'Custom Shortcuts'!$D$15:$D$103,'Custom Shortcuts'!$C$15:$C$103,\"\",0)","v":""},{"$f":"COUNTIF(ExcelShortcuts[Key],\"=\"&ExcelShortcuts[[#This Row],[Key]])","v":8}]
["F4","Shift+Alt","Close Application",{"$f":"IF(ExcelShortcuts[[#This Row],[Attribute]]=\"Alone\",\"\",ExcelShortcuts[[#This Row],[Attribute]]&\"+\")&ExcelShortcuts[[#This Row],[Key]]","v":"Shift+Alt+F4"},{"$f":"_xlfn.XLOOKUP(SUBSTITUTE(ExcelShortcuts[[#This Row],[Shortcut]],\"+\",\" + \"),'Custom Shortcuts'!$D$15:$D$103,'Custom Shortcuts'!$C$15:$C$103,\"\",0)","v":""},{"$f":"COUNTIF(ExcelShortcuts[Key],\"=\"&ExcelShortcuts[[#This Row],[Key]])","v":8}]
["F4","Ctrl+Alt","Close Application",{"$f":"IF(ExcelShortcuts[[#This Row],[Attribute]]=\"Alone\",\"\",ExcelShortcuts[[#This Row],[Attribute]]&\"+\")&ExcelShortcuts[[#This Row],[Key]]","v":"Ctrl+Alt+F4"},{"$f":"_xlfn.XLOOKUP(SUBSTITUTE(ExcelShortcuts[[#This Row],[Shortcut]],\"+\",\" + \"),'Custom Shortcuts'!$D$15:$D$103,'Custom Shortcuts'!$C$15:$C$103,\"\",0)","v":""},{"$f":"COUNTIF(ExcelShortcuts[Key],\"=\"&ExcelShortcuts[[#This Row],[Key]])","v":8}]
["F4","Ctrl+Shift+Alt","Close Application",{"$f":"IF(ExcelShortcuts[[#This Row],[Attribute]]=\"Alone\",\"\",ExcelShortcuts[[#This Row],[Attribute]]&\"+\")&ExcelShortcuts[[#This Row],[Key]]","v":"Ctrl+Shift+Alt+F4"},{"$f":"_xlfn.XLOOKUP(SUBSTITUTE(ExcelShortcuts[[#This Row],[Shortcut]],\"+\",\" + \"),'Custom Shortcuts'!$D$15:$D$103,'Custom Shortcuts'!$C$15:$C$103,\"\",0)","v":""},{"$f":"COUNTIF(ExcelShortcuts[Key],\"=\"&ExcelShortcuts[[#This Row],[Key]])","v":8}]
["F5","Alone","GoTo / Refresh File List",{"$f":"IF(ExcelShortcuts[[#This Row],[Attribute]]=\"Alone\",\"\",ExcelShortcuts[[#This Row],[Attribute]]&\"+\")&ExcelShortcuts[[#This Row],[Key]]","v":"F5"},{"$f":"_xlfn.XLOOKUP(SUBSTITUTE(ExcelShortcuts[[#This Row],[Shortcut]],\"+\",\" + \"),'Custom Shortcuts'!$D$15:$D$103,'Custom Shortcuts'!$C$15:$C$103,\"\",0)","v":""},{"$f":"COUNTIF(ExcelShortcuts[Key],\"=\"&ExcelShortcuts[[#This Row],[Key]])","v":8}]
["F5","Shift","Find Dialog",{"$f":"IF(ExcelShortcuts[[#This Row],[Attribute]]=\"Alone\",\"\",ExcelShortcuts[[#This Row],[Attribute]]&\"+\")&ExcelShortcuts[[#This Row],[Key]]","v":"Shift+F5"},{"$f":"_xlfn.XLOOKUP(SUBSTITUTE(ExcelShortcuts[[#This Row],[Shortcut]],\"+\",\" + \"),'Custom Shortcuts'!$D$15:$D$103,'Custom Shortcuts'!$C$15:$C$103,\"\",0)","v":""},{"$f":"COUNTIF(ExcelShortcuts[Key],\"=\"&ExcelShortcuts[[#This Row],[Key]])","v":8}]
["F5","Ctrl","Restore Window",{"$f":"IF(ExcelShortcuts[[#This Row],[Attribute]]=\"Alone\",\"\",ExcelShortcuts[[#This Row],[Attribute]]&\"+\")&ExcelShortcuts[[#This Row],[Key]]","v":"Ctrl+F5"},{"$f":"_xlfn.XLOOKUP(SUBSTITUTE(ExcelShortcuts[[#This Row],[Shortcut]],\"+\",\" + \"),'Custom Shortcuts'!$D$15:$D$103,'Custom Shortcuts'!$C$15:$C$103,\"\",0)","v":""},{"$f":"COUNTIF(ExcelShortcuts[Key],\"=\"&ExcelShortcuts[[#This Row],[Key]])","v":8}]
["F5","Alt","Refresh",{"$f":"IF(ExcelShortcuts[[#This Row],[Attribute]]=\"Alone\",\"\",ExcelShortcuts[[#This Row],[Attribute]]&\"+\")&ExcelShortcuts[[#This Row],[Key]]","v":"Alt+F5"},{"$f":"_xlfn.XLOOKUP(SUBSTITUTE(ExcelShortcuts[[#This Row],[Shortcut]],\"+\",\" + \"),'Custom Shortcuts'!$D$15:$D$103,'Custom Shortcuts'!$C$15:$C$103,\"\",0)","v":""},{"$f":"COUNTIF(ExcelShortcuts[Key],\"=\"&ExcelShortcuts[[#This Row],[Key]])","v":8}]
["F5","Ctrl+Shift","",{"$f":"IF(ExcelShortcuts[[#This Row],[Attribute]]=\"Alone\",\"\",ExcelShortcuts[[#This Row],[Attribute]]&\"+\")&ExcelShortcuts[[#This Row],[Key]]","v":"Ctrl+Shift+F5"},{"$f":"_xlfn.XLOOKUP(SUBSTITUTE(ExcelShortcuts[[#This Row],[Shortcut]],\"+\",\" + \"),'Custom Shortcuts'!$D$15:$D$103,'Custom Shortcuts'!$C$15:$C$103,\"\",0)","v":""},{"$f":"COUNTIF(ExcelShortcuts[Key],\"=\"&ExcelShortcuts[[#This Row],[Key]])","v":8}]
["F5","Shift+Alt","",{"$f":"IF(ExcelShortcuts[[#This Row],[Attribute]]=\"Alone\",\"\",ExcelShortcuts[[#This Row],[Attribute]]&\"+\")&ExcelShortcuts[[#This Row],[Key]]","v":"Shift+Alt+F5"},{"$f":"_xlfn.XLOOKUP(SUBSTITUTE(ExcelShortcuts[[#This Row],[Shortcut]],\"+\",\" + \"),'Custom Shortcuts'!$D$15:$D$103,'Custom Shortcuts'!$C$15:$C$103,\"\",0)","v":""},{"$f":"COUNTIF(ExcelShortcuts[Key],\"=\"&ExcelShortcuts[[#This Row],[Key]])","v":8}]
["F5","Ctrl+Alt","Refresh All",{"$f":"IF(ExcelShortcuts[[#This Row],[Attribute]]=\"Alone\",\"\",ExcelShortcuts[[#This Row],[Attribute]]&\"+\")&ExcelShortcuts[[#This Row],[Key]]","v":"Ctrl+Alt+F5"},{"$f":"_xlfn.XLOOKUP(SUBSTITUTE(ExcelShortcuts[[#This Row],[Shortcut]],\"+\",\" + \"),'Custom Shortcuts'!$D$15:$D$103,'Custom Shortcuts'!$C$15:$C$103,\"\",0)","v":""},{"$f":"COUNTIF(ExcelShortcuts[Key],\"=\"&ExcelShortcuts[[#This Row],[Key]])","v":8}]
["F5","Ctrl+Shift+Alt","",{"$f":"IF(ExcelShortcuts[[#This Row],[Attribute]]=\"Alone\",\"\",ExcelShortcuts[[#This Row],[Attribute]]&\"+\")&ExcelShortcuts[[#This Row],[Key]]","v":"Ctrl+Shift+Alt+F5"},{"$f":"_xlfn.XLOOKUP(SUBSTITUTE(ExcelShortcuts[[#This Row],[Shortcut]],\"+\",\" + \"),'Custom Shortcuts'!$D$15:$D$103,'Custom Shortcuts'!$C$15:$C$103,\"\",0)","v":""},{"$f":"COUNTIF(ExcelShortcuts[Key],\"=\"&ExcelShortcuts[[#This Row],[Key]])","v":8}]
["F6","Alone","Next Pane",{"$f":"IF(ExcelShortcuts[[#This Row],[Attribute]]=\"Alone\",\"\",ExcelShortcuts[[#This Row],[Attribute]]&\"+\")&ExcelShortcuts[[#This Row],[Key]]","v":"F6"},{"$f":"_xlfn.XLOOKUP(SUBSTITUTE(ExcelShortcuts[[#This Row],[Shortcut]],\"+\",\" + \"),'Custom Shortcuts'!$D$15:$D$103,'Custom Shortcuts'!$C$15:$C$103,\"\",0)","v":""},{"$f":"COUNTIF(ExcelShortcuts[Key],\"=\"&ExcelShortcuts[[#This Row],[Key]])","v":8}]
["F6","Shift","Previous Pane",{"$f":"IF(ExcelShortcuts[[#This Row],[Attribute]]=\"Alone\",\"\",ExcelShortcuts[[#This Row],[Attribute]]&\"+\")&ExcelShortcuts[[#This Row],[Key]]","v":"Shift+F6"},{"$f":"_xlfn.XLOOKUP(SUBSTITUTE(ExcelShortcuts[[#This Row],[Shortcut]],\"+\",\" + \"),'Custom Shortcuts'!$D$15:$D$103,'Custom Shortcuts'!$C$15:$C$103,\"\",0)","v":""},{"$f":"COUNTIF(ExcelShortcuts[Key],\"=\"&ExcelShortcuts[[#This Row],[Key]])","v":8}]
["F6","Ctrl","Next Window / Workbook",{"$f":"IF(ExcelShortcuts[[#This Row],[Attribute]]=\"Alone\",\"\",ExcelShortcuts[[#This Row],[Attribute]]&\"+\")&ExcelShortcuts[[#This Row],[Key]]","v":"Ctrl+F6"},{"$f":"_xlfn.XLOOKUP(SUBSTITUTE(ExcelShortcuts[[#This Row],[Shortcut]],\"+\",\" + \"),'Custom Shortcuts'!$D$15:$D$103,'Custom Shortcuts'!$C$15:$C$103,\"\",0)","v":""},{"$f":"COUNTIF(ExcelShortcuts[Key],\"=\"&ExcelShortcuts[[#This Row],[Key]])","v":8}]
["F6","Alt","Switch to VBA Integrated Development Environment (IDE) (if open already)",{"$f":"IF(ExcelShortcuts[[#This Row],[Attribute]]=\"Alone\",\"\",ExcelShortcuts[[#This Row],[Attribute]]&\"+\")&ExcelShortcuts[[#This Row],[Key]]","v":"Alt+F6"},{"$f":"_xlfn.XLOOKUP(SUBSTITUTE(ExcelShortcuts[[#This Row],[Shortcut]],\"+\",\" + \"),'Custom Shortcuts'!$D$15:$D$103,'Custom Shortcuts'!$C$15:$C$103,\"\",0)","v":""},{"$f":"COUNTIF(ExcelShortcuts[Key],\"=\"&ExcelShortcuts[[#This Row],[Key]])","v":8}]
["F6","Ctrl+Shift","Previous Window / Workbook",{"$f":"IF(ExcelShortcuts[[#This Row],[Attribute]]=\"Alone\",\"\",ExcelShortcuts[[#This Row],[Attribute]]&\"+\")&ExcelShortcuts[[#This Row],[Key]]","v":"Ctrl+Shift+F6"},{"$f":"_xlfn.XLOOKUP(SUBSTITUTE(ExcelShortcuts[[#This Row],[Shortcut]],\"+\",\" + \"),'Custom Shortcuts'!$D$15:$D$103,'Custom Shortcuts'!$C$15:$C$103,\"\",0)","v":""},{"$f":"COUNTIF(ExcelShortcuts[Key],\"=\"&ExcelShortcuts[[#This Row],[Key]])","v":8}]
["F6","Shift+Alt","",{"$f":"IF(ExcelShortcuts[[#This Row],[Attribute]]=\"Alone\",\"\",ExcelShortcuts[[#This Row],[Attribute]]&\"+\")&ExcelShortcuts[[#This Row],[Key]]","v":"Shift+Alt+F6"},{"$f":"_xlfn.XLOOKUP(SUBSTITUTE(ExcelShortcuts[[#This Row],[Shortcut]],\"+\",\" + \"),'Custom Shortcuts'!$D$15:$D$103,'Custom Shortcuts'!$C$15:$C$103,\"\",0)","v":""},{"$f":"COUNTIF(ExcelShortcuts[Key],\"=\"&ExcelShortcuts[[#This Row],[Key]])","v":8}]
["F6","Ctrl+Alt","",{"$f":"IF(ExcelShortcuts[[#This Row],[Attribute]]=\"Alone\",\"\",ExcelShortcuts[[#This Row],[Attribute]]&\"+\")&ExcelShortcuts[[#This Row],[Key]]","v":"Ctrl+Alt+F6"},{"$f":"_xlfn.XLOOKUP(SUBSTITUTE(ExcelShortcuts[[#This Row],[Shortcut]],\"+\",\" + \"),'Custom Shortcuts'!$D$15:$D$103,'Custom Shortcuts'!$C$15:$C$103,\"\",0)","v":""},{"$f":"COUNTIF(ExcelShortcuts[Key],\"=\"&ExcelShortcuts[[#This Row],[Key]])","v":8}]
["F6","Ctrl+Shift+Alt","",{"$f":"IF(ExcelShortcuts[[#This Row],[Attribute]]=\"Alone\",\"\",ExcelShortcuts[[#This Row],[Attribute]]&\"+\")&ExcelShortcuts[[#This Row],[Key]]","v":"Ctrl+Shift+Alt+F6"},{"$f":"_xlfn.XLOOKUP(SUBSTITUTE(ExcelShortcuts[[#This Row],[Shortcut]],\"+\",\" + \"),'Custom Shortcuts'!$D$15:$D$103,'Custom Shortcuts'!$C$15:$C$103,\"\",0)","v":""},{"$f":"COUNTIF(ExcelShortcuts[Key],\"=\"&ExcelShortcuts[[#This Row],[Key]])","v":8}]
["F7","Alone","Check Spelling",{"$f":"IF(ExcelShortcuts[[#This Row],[Attribute]]=\"Alone\",\"\",ExcelShortcuts[[#This Row],[Attribute]]&\"+\")&ExcelShortcuts[[#This Row],[Key]]","v":"F7"},{"$f":"_xlfn.XLOOKUP(SUBSTITUTE(ExcelShortcuts[[#This Row],[Shortcut]],\"+\",\" + \"),'Custom Shortcuts'!$D$15:$D$103,'Custom Shortcuts'!$C$15:$C$103,\"\",0)","v":""},{"$f":"COUNTIF(ExcelShortcuts[Key],\"=\"&ExcelShortcuts[[#This Row],[Key]])","v":8}]
["F7","Shift","",{"$f":"IF(ExcelShortcuts[[#This Row],[Attribute]]=\"Alone\",\"\",ExcelShortcuts[[#This Row],[Attribute]]&\"+\")&ExcelShortcuts[[#This Row],[Key]]","v":"Shift+F7"},{"$f":"_xlfn.XLOOKUP(SUBSTITUTE(ExcelShortcuts[[#This Row],[Shortcut]],\"+\",\" + \"),'Custom Shortcuts'!$D$15:$D$103,'Custom Shortcuts'!$C$15:$C$103,\"\",0)","v":""},{"$f":"COUNTIF(ExcelShortcuts[Key],\"=\"&ExcelShortcuts[[#This Row],[Key]])","v":8}]
["F7","Ctrl","Move Window",{"$f":"IF(ExcelShortcuts[[#This Row],[Attribute]]=\"Alone\",\"\",ExcelShortcuts[[#This Row],[Attribute]]&\"+\")&ExcelShortcuts[[#This Row],[Key]]","v":"Ctrl+F7"},{"$f":"_xlfn.XLOOKUP(SUBSTITUTE(ExcelShortcuts[[#This Row],[Shortcut]],\"+\",\" + \"),'Custom Shortcuts'!$D$15:$D$103,'Custom Shortcuts'!$C$15:$C$103,\"\",0)","v":""},{"$f":"COUNTIF(ExcelShortcuts[Key],\"=\"&ExcelShortcuts[[#This Row],[Key]])","v":8}]
["F7","Alt","",{"$f":"IF(ExcelShortcuts[[#This Row],[Attribute]]=\"Alone\",\"\",ExcelShortcuts[[#This Row],[Attribute]]&\"+\")&ExcelShortcuts[[#This Row],[Key]]","v":"Alt+F7"},{"$f":"_xlfn.XLOOKUP(SUBSTITUTE(ExcelShortcuts[[#This Row],[Shortcut]],\"+\",\" + \"),'Custom Shortcuts'!$D$15:$D$103,'Custom Shortcuts'!$C$15:$C$103,\"\",0)","v":""},{"$f":"COUNTIF(ExcelShortcuts[Key],\"=\"&ExcelShortcuts[[#This Row],[Key]])","v":8}]
["F7","Ctrl+Shift","",{"$f":"IF(ExcelShortcuts[[#This Row],[Attribute]]=\"Alone\",\"\",ExcelShortcuts[[#This Row],[Attribute]]&\"+\")&ExcelShortcuts[[#This Row],[Key]]","v":"Ctrl+Shift+F7"},{"$f":"_xlfn.XLOOKUP(SUBSTITUTE(ExcelShortcuts[[#This Row],[Shortcut]],\"+\",\" + \"),'Custom Shortcuts'!$D$15:$D$103,'Custom Shortcuts'!$C$15:$C$103,\"\",0)","v":""},{"$f":"COUNTIF(ExcelShortcuts[Key],\"=\"&ExcelShortcuts[[#This Row],[Key]])","v":8}]
["F7","Shift+Alt","",{"$f":"IF(ExcelShortcuts[[#This Row],[Attribute]]=\"Alone\",\"\",ExcelShortcuts[[#This Row],[Attribute]]&\"+\")&ExcelShortcuts[[#This Row],[Key]]","v":"Shift+Alt+F7"},{"$f":"_xlfn.XLOOKUP(SUBSTITUTE(ExcelShortcuts[[#This Row],[Shortcut]],\"+\",\" + \"),'Custom Shortcuts'!$D$15:$D$103,'Custom Shortcuts'!$C$15:$C$103,\"\",0)","v":""},{"$f":"COUNTIF(ExcelShortcuts[Key],\"=\"&ExcelShortcuts[[#This Row],[Key]])","v":8}]
["F7","Ctrl+Alt",null,{"$f":"IF(ExcelShortcuts[[#This Row],[Attribute]]=\"Alone\",\"\",ExcelShortcuts[[#This Row],[Attribute]]&\"+\")&ExcelShortcuts[[#This Row],[Key]]","v":"Ctrl+Alt+F7"},{"$f":"_xlfn.XLOOKUP(SUBSTITUTE(ExcelShortcuts[[#This Row],[Shortcut]],\"+\",\" + \"),'Custom Shortcuts'!$D$15:$D$103,'Custom Shortcuts'!$C$15:$C$103,\"\",0)","v":""},{"$f":"COUNTIF(ExcelShortcuts[Key],\"=\"&ExcelShortcuts[[#This Row],[Key]])","v":8}]
["F7","Ctrl+Shift+Alt","",{"$f":"IF(ExcelShortcuts[[#This Row],[Attribute]]=\"Alone\",\"\",ExcelShortcuts[[#This Row],[Attribute]]&\"+\")&ExcelShortcuts[[#This Row],[Key]]","v":"Ctrl+Shift+Alt+F7"},{"$f":"_xlfn.XLOOKUP(SUBSTITUTE(ExcelShortcuts[[#This Row],[Shortcut]],\"+\",\" + \"),'Custom Shortcuts'!$D$15:$D$103,'Custom Shortcuts'!$C$15:$C$103,\"\",0)","v":""},{"$f":"COUNTIF(ExcelShortcuts[Key],\"=\"&ExcelShortcuts[[#This Row],[Key]])","v":8}]
["F8","Alone","Extend Selection Mode",{"$f":"IF(ExcelShortcuts[[#This Row],[Attribute]]=\"Alone\",\"\",ExcelShortcuts[[#This Row],[Attribute]]&\"+\")&ExcelShortcuts[[#This Row],[Key]]","v":"F8"},{"$f":"_xlfn.XLOOKUP(SUBSTITUTE(ExcelShortcuts[[#This Row],[Shortcut]],\"+\",\" + \"),'Custom Shortcuts'!$D$15:$D$103,'Custom Shortcuts'!$C$15:$C$103,\"\",0)","v":""},{"$f":"COUNTIF(ExcelShortcuts[Key],\"=\"&ExcelShortcuts[[#This Row],[Key]])","v":8}]
["F8","Shift","Add to Selection Mode",{"$f":"IF(ExcelShortcuts[[#This Row],[Attribute]]=\"Alone\",\"\",ExcelShortcuts[[#This Row],[Attribute]]&\"+\")&ExcelShortcuts[[#This Row],[Key]]","v":"Shift+F8"},{"$f":"_xlfn.XLOOKUP(SUBSTITUTE(ExcelShortcuts[[#This Row],[Shortcut]],\"+\",\" + \"),'Custom Shortcuts'!$D$15:$D$103,'Custom Shortcuts'!$C$15:$C$103,\"\",0)","v":""},{"$f":"COUNTIF(ExcelShortcuts[Key],\"=\"&ExcelShortcuts[[#This Row],[Key]])","v":8}]
["F8","Ctrl","Size Window",{"$f":"IF(ExcelShortcuts[[#This Row],[Attribute]]=\"Alone\",\"\",ExcelShortcuts[[#This Row],[Attribute]]&\"+\")&ExcelShortcuts[[#This Row],[Key]]","v":"Ctrl+F8"},{"$f":"_xlfn.XLOOKUP(SUBSTITUTE(ExcelShortcuts[[#This Row],[Shortcut]],\"+\",\" + \"),'Custom Shortcuts'!$D$15:$D$103,'Custom Shortcuts'!$C$15:$C$103,\"\",0)","v":""},{"$f":"COUNTIF(ExcelShortcuts[Key],\"=\"&ExcelShortcuts[[#This Row],[Key]])","v":8}]
["F8","Alt","Run Macro",{"$f":"IF(ExcelShortcuts[[#This Row],[Attribute]]=\"Alone\",\"\",ExcelShortcuts[[#This Row],[Attribute]]&\"+\")&ExcelShortcuts[[#This Row],[Key]]","v":"Alt+F8"},{"$f":"_xlfn.XLOOKUP(SUBSTITUTE(ExcelShortcuts[[#This Row],[Shortcut]],\"+\",\" + \"),'Custom Shortcuts'!$D$15:$D$103,'Custom Shortcuts'!$C$15:$C$103,\"\",0)","v":""},{"$f":"COUNTIF(ExcelShortcuts[Key],\"=\"&ExcelShortcuts[[#This Row],[Key]])","v":8}]
["F8","Ctrl+Shift","",{"$f":"IF(ExcelShortcuts[[#This Row],[Attribute]]=\"Alone\",\"\",ExcelShortcuts[[#This Row],[Attribute]]&\"+\")&ExcelShortcuts[[#This Row],[Key]]","v":"Ctrl+Shift+F8"},{"$f":"_xlfn.XLOOKUP(SUBSTITUTE(ExcelShortcuts[[#This Row],[Shortcut]],\"+\",\" + \"),'Custom Shortcuts'!$D$15:$D$103,'Custom Shortcuts'!$C$15:$C$103,\"\",0)","v":""},{"$f":"COUNTIF(ExcelShortcuts[Key],\"=\"&ExcelShortcuts[[#This Row],[Key]])","v":8}]
["F8","Shift+Alt","",{"$f":"IF(ExcelShortcuts[[#This Row],[Attribute]]=\"Alone\",\"\",ExcelShortcuts[[#This Row],[Attribute]]&\"+\")&ExcelShortcuts[[#This Row],[Key]]","v":"Shift+Alt+F8"},{"$f":"_xlfn.XLOOKUP(SUBSTITUTE(ExcelShortcuts[[#This Row],[Shortcut]],\"+\",\" + \"),'Custom Shortcuts'!$D$15:$D$103,'Custom Shortcuts'!$C$15:$C$103,\"\",0)","v":""},{"$f":"COUNTIF(ExcelShortcuts[Key],\"=\"&ExcelShortcuts[[#This Row],[Key]])","v":8}]
["F8","Ctrl+Alt","",{"$f":"IF(ExcelShortcuts[[#This Row],[Attribute]]=\"Alone\",\"\",ExcelShortcuts[[#This Row],[Attribute]]&\"+\")&ExcelShortcuts[[#This Row],[Key]]","v":"Ctrl+Alt+F8"},{"$f":"_xlfn.XLOOKUP(SUBSTITUTE(ExcelShortcuts[[#This Row],[Shortcut]],\"+\",\" + \"),'Custom Shortcuts'!$D$15:$D$103,'Custom Shortcuts'!$C$15:$C$103,\"\",0)","v":""},{"$f":"COUNTIF(ExcelShortcuts[Key],\"=\"&ExcelShortcuts[[#This Row],[Key]])","v":8}]
["F8","Ctrl+Shift+Alt","",{"$f":"IF(ExcelShortcuts[[#This Row],[Attribute]]=\"Alone\",\"\",ExcelShortcuts[[#This Row],[Attribute]]&\"+\")&ExcelShortcuts[[#This Row],[Key]]","v":"Ctrl+Shift+Alt+F8"},{"$f":"_xlfn.XLOOKUP(SUBSTITUTE(ExcelShortcuts[[#This Row],[Shortcut]],\"+\",\" + \"),'Custom Shortcuts'!$D$15:$D$103,'Custom Shortcuts'!$C$15:$C$103,\"\",0)","v":""},{"$f":"COUNTIF(ExcelShortcuts[Key],\"=\"&ExcelShortcuts[[#This Row],[Key]])","v":8}]
["F9","Alone","Calculate Now",{"$f":"IF(ExcelShortcuts[[#This Row],[Attribute]]=\"Alone\",\"\",ExcelShortcuts[[#This Row],[Attribute]]&\"+\")&ExcelShortcuts[[#This Row],[Key]]","v":"F9"},{"$f":"_xlfn.XLOOKUP(SUBSTITUTE(ExcelShortcuts[[#This Row],[Shortcut]],\"+\",\" + \"),'Custom Shortcuts'!$D$15:$D$103,'Custom Shortcuts'!$C$15:$C$103,\"\",0)","v":""},{"$f":"COUNTIF(ExcelShortcuts[Key],\"=\"&ExcelShortcuts[[#This Row],[Key]])","v":8}]
["F9","Shift","Calc Sheet",{"$f":"IF(ExcelShortcuts[[#This Row],[Attribute]]=\"Alone\",\"\",ExcelShortcuts[[#This Row],[Attribute]]&\"+\")&ExcelShortcuts[[#This Row],[Key]]","v":"Shift+F9"},{"$f":"_xlfn.XLOOKUP(SUBSTITUTE(ExcelShortcuts[[#This Row],[Shortcut]],\"+\",\" + \"),'Custom Shortcuts'!$D$15:$D$103,'Custom Shortcuts'!$C$15:$C$103,\"\",0)","v":""},{"$f":"COUNTIF(ExcelShortcuts[Key],\"=\"&ExcelShortcuts[[#This Row],[Key]])","v":8}]
["F9","Ctrl","Minimize Window",{"$f":"IF(ExcelShortcuts[[#This Row],[Attribute]]=\"Alone\",\"\",ExcelShortcuts[[#This Row],[Attribute]]&\"+\")&ExcelShortcuts[[#This Row],[Key]]","v":"Ctrl+F9"},{"$f":"_xlfn.XLOOKUP(SUBSTITUTE(ExcelShortcuts[[#This Row],[Shortcut]],\"+\",\" + \"),'Custom Shortcuts'!$D$15:$D$103,'Custom Shortcuts'!$C$15:$C$103,\"\",0)","v":""},{"$f":"COUNTIF(ExcelShortcuts[Key],\"=\"&ExcelShortcuts[[#This Row],[Key]])","v":8}]
["F9","Alt","",{"$f":"IF(ExcelShortcuts[[#This Row],[Attribute]]=\"Alone\",\"\",ExcelShortcuts[[#This Row],[Attribute]]&\"+\")&ExcelShortcuts[[#This Row],[Key]]","v":"Alt+F9"},{"$f":"_xlfn.XLOOKUP(SUBSTITUTE(ExcelShortcuts[[#This Row],[Shortcut]],\"+\",\" + \"),'Custom Shortcuts'!$D$15:$D$103,'Custom Shortcuts'!$C$15:$C$103,\"\",0)","v":""},{"$f":"COUNTIF(ExcelShortcuts[Key],\"=\"&ExcelShortcuts[[#This Row],[Key]])","v":8}]
["F9","Ctrl+Shift","",{"$f":"IF(ExcelShortcuts[[#This Row],[Attribute]]=\"Alone\",\"\",ExcelShortcuts[[#This Row],[Attribute]]&\"+\")&ExcelShortcuts[[#This Row],[Key]]","v":"Ctrl+Shift+F9"},{"$f":"_xlfn.XLOOKUP(SUBSTITUTE(ExcelShortcuts[[#This Row],[Shortcut]],\"+\",\" + \"),'Custom Shortcuts'!$D$15:$D$103,'Custom Shortcuts'!$C$15:$C$103,\"\",0)","v":""},{"$f":"COUNTIF(ExcelShortcuts[Key],\"=\"&ExcelShortcuts[[#This Row],[Key]])","v":8}]
["F9","Shift+Alt","",{"$f":"IF(ExcelShortcuts[[#This Row],[Attribute]]=\"Alone\",\"\",ExcelShortcuts[[#This Row],[Attribute]]&\"+\")&ExcelShortcuts[[#This Row],[Key]]","v":"Shift+Alt+F9"},{"$f":"_xlfn.XLOOKUP(SUBSTITUTE(ExcelShortcuts[[#This Row],[Shortcut]],\"+\",\" + \"),'Custom Shortcuts'!$D$15:$D$103,'Custom Shortcuts'!$C$15:$C$103,\"\",0)","v":""},{"$f":"COUNTIF(ExcelShortcuts[Key],\"=\"&ExcelShortcuts[[#This Row],[Key]])","v":8}]
["F9","Ctrl+Alt","Recalc Full",{"$f":"IF(ExcelShortcuts[[#This Row],[Attribute]]=\"Alone\",\"\",ExcelShortcuts[[#This Row],[Attribute]]&\"+\")&ExcelShortcuts[[#This Row],[Key]]","v":"Ctrl+Alt+F9"},{"$f":"_xlfn.XLOOKUP(SUBSTITUTE(ExcelShortcuts[[#This Row],[Shortcut]],\"+\",\" + \"),'Custom Shortcuts'!$D$15:$D$103,'Custom Shortcuts'!$C$15:$C$103,\"\",0)","v":""},{"$f":"COUNTIF(ExcelShortcuts[Key],\"=\"&ExcelShortcuts[[#This Row],[Key]])","v":8}]
["F9","Ctrl+Shift+Alt","Recalc Full Rebuild",{"$f":"IF(ExcelShortcuts[[#This Row],[Attribute]]=\"Alone\",\"\",ExcelShortcuts[[#This Row],[Attribute]]&\"+\")&ExcelShortcuts[[#This Row],[Key]]","v":"Ctrl+Shift+Alt+F9"},{"$f":"_xlfn.XLOOKUP(SUBSTITUTE(ExcelShortcuts[[#This Row],[Shortcut]],\"+\",\" + \"),'Custom Shortcuts'!$D$15:$D$103,'Custom Shortcuts'!$C$15:$C$103,\"\",0)","v":""},{"$f":"COUNTIF(ExcelShortcuts[Key],\"=\"&ExcelShortcuts[[#This Row],[Key]])","v":8}]
["F10","Alone","Activate Menus",{"$f":"IF(ExcelShortcuts[[#This Row],[Attribute]]=\"Alone\",\"\",ExcelShortcuts[[#This Row],[Attribute]]&\"+\")&ExcelShortcuts[[#This Row],[Key]]","v":"F10"},{"$f":"_xlfn.XLOOKUP(SUBSTITUTE(ExcelShortcuts[[#This Row],[Shortcut]],\"+\",\" + \"),'Custom Shortcuts'!$D$15:$D$103,'Custom Shortcuts'!$C$15:$C$103,\"\",0)","v":""},{"$f":"COUNTIF(ExcelShortcuts[Key],\"=\"&ExcelShortcuts[[#This Row],[Key]])","v":8}]
["F10","Shift","Activate Context Menus (Right Click)",{"$f":"IF(ExcelShortcuts[[#This Row],[Attribute]]=\"Alone\",\"\",ExcelShortcuts[[#This Row],[Attribute]]&\"+\")&ExcelShortcuts[[#This Row],[Key]]","v":"Shift+F10"},{"$f":"_xlfn.XLOOKUP(SUBSTITUTE(ExcelShortcuts[[#This Row],[Shortcut]],\"+\",\" + \"),'Custom Shortcuts'!$D$15:$D$103,'Custom Shortcuts'!$C$15:$C$103,\"\",0)","v":""},{"$f":"COUNTIF(ExcelShortcuts[Key],\"=\"&ExcelShortcuts[[#This Row],[Key]])","v":8}]
["F10","Ctrl","Toggle Maximised / Restored",{"$f":"IF(ExcelShortcuts[[#This Row],[Attribute]]=\"Alone\",\"\",ExcelShortcuts[[#This Row],[Attribute]]&\"+\")&ExcelShortcuts[[#This Row],[Key]]","v":"Ctrl+F10"},{"$f":"_xlfn.XLOOKUP(SUBSTITUTE(ExcelShortcuts[[#This Row],[Shortcut]],\"+\",\" + \"),'Custom Shortcuts'!$D$15:$D$103,'Custom Shortcuts'!$C$15:$C$103,\"\",0)","v":""},{"$f":"COUNTIF(ExcelShortcuts[Key],\"=\"&ExcelShortcuts[[#This Row],[Key]])","v":8}]
["F10","Alt","",{"$f":"IF(ExcelShortcuts[[#This Row],[Attribute]]=\"Alone\",\"\",ExcelShortcuts[[#This Row],[Attribute]]&\"+\")&ExcelShortcuts[[#This Row],[Key]]","v":"Alt+F10"},{"$f":"_xlfn.XLOOKUP(SUBSTITUTE(ExcelShortcuts[[#This Row],[Shortcut]],\"+\",\" + \"),'Custom Shortcuts'!$D$15:$D$103,'Custom Shortcuts'!$C$15:$C$103,\"\",0)","v":""},{"$f":"COUNTIF(ExcelShortcuts[Key],\"=\"&ExcelShortcuts[[#This Row],[Key]])","v":8}]
["F10","Ctrl+Shift","",{"$f":"IF(ExcelShortcuts[[#This Row],[Attribute]]=\"Alone\",\"\",ExcelShortcuts[[#This Row],[Attribute]]&\"+\")&ExcelShortcuts[[#This Row],[Key]]","v":"Ctrl+Shift+F10"},{"$f":"_xlfn.XLOOKUP(SUBSTITUTE(ExcelShortcuts[[#This Row],[Shortcut]],\"+\",\" + \"),'Custom Shortcuts'!$D$15:$D$103,'Custom Shortcuts'!$C$15:$C$103,\"\",0)","v":""},{"$f":"COUNTIF(ExcelShortcuts[Key],\"=\"&ExcelShortcuts[[#This Row],[Key]])","v":8}]
["F10","Shift+Alt","Show On-Object User Interface (OOUI)",{"$f":"IF(ExcelShortcuts[[#This Row],[Attribute]]=\"Alone\",\"\",ExcelShortcuts[[#This Row],[Attribute]]&\"+\")&ExcelShortcuts[[#This Row],[Key]]","v":"Shift+Alt+F10"},{"$f":"_xlfn.XLOOKUP(SUBSTITUTE(ExcelShortcuts[[#This Row],[Shortcut]],\"+\",\" + \"),'Custom Shortcuts'!$D$15:$D$103,'Custom Shortcuts'!$C$15:$C$103,\"\",0)","v":""},{"$f":"COUNTIF(ExcelShortcuts[Key],\"=\"&ExcelShortcuts[[#This Row],[Key]])","v":8}]
["F10","Ctrl+Alt","",{"$f":"IF(ExcelShortcuts[[#This Row],[Attribute]]=\"Alone\",\"\",ExcelShortcuts[[#This Row],[Attribute]]&\"+\")&ExcelShortcuts[[#This Row],[Key]]","v":"Ctrl+Alt+F10"},{"$f":"_xlfn.XLOOKUP(SUBSTITUTE(ExcelShortcuts[[#This Row],[Shortcut]],\"+\",\" + \"),'Custom Shortcuts'!$D$15:$D$103,'Custom Shortcuts'!$C$15:$C$103,\"\",0)","v":""},{"$f":"COUNTIF(ExcelShortcuts[Key],\"=\"&ExcelShortcuts[[#This Row],[Key]])","v":8}]
["F10","Ctrl+Shift+Alt","",{"$f":"IF(ExcelShortcuts[[#This Row],[Attribute]]=\"Alone\",\"\",ExcelShortcuts[[#This Row],[Attribute]]&\"+\")&ExcelShortcuts[[#This Row],[Key]]","v":"Ctrl+Shift+Alt+F10"},{"$f":"_xlfn.XLOOKUP(SUBSTITUTE(ExcelShortcuts[[#This Row],[Shortcut]],\"+\",\" + \"),'Custom Shortcuts'!$D$15:$D$103,'Custom Shortcuts'!$C$15:$C$103,\"\",0)","v":""},{"$f":"COUNTIF(ExcelShortcuts[Key],\"=\"&ExcelShortcuts[[#This Row],[Key]])","v":8}]
["F11","Alone","Insert Chart on New Sheet",{"$f":"IF(ExcelShortcuts[[#This Row],[Attribute]]=\"Alone\",\"\",ExcelShortcuts[[#This Row],[Attribute]]&\"+\")&ExcelShortcuts[[#This Row],[Key]]","v":"F11"},{"$f":"_xlfn.XLOOKUP(SUBSTITUTE(ExcelShortcuts[[#This Row],[Shortcut]],\"+\",\" + \"),'Custom Shortcuts'!$D$15:$D$103,'Custom Shortcuts'!$C$15:$C$103,\"\",0)","v":""},{"$f":"COUNTIF(ExcelShortcuts[Key],\"=\"&ExcelShortcuts[[#This Row],[Key]])","v":8}]
["F11","Shift","Insert New Worksheet",{"$f":"IF(ExcelShortcuts[[#This Row],[Attribute]]=\"Alone\",\"\",ExcelShortcuts[[#This Row],[Attribute]]&\"+\")&ExcelShortcuts[[#This Row],[Key]]","v":"Shift+F11"},{"$f":"_xlfn.XLOOKUP(SUBSTITUTE(ExcelShortcuts[[#This Row],[Shortcut]],\"+\",\" + \"),'Custom Shortcuts'!$D$15:$D$103,'Custom Shortcuts'!$C$15:$C$103,\"\",0)","v":""},{"$f":"COUNTIF(ExcelShortcuts[Key],\"=\"&ExcelShortcuts[[#This Row],[Key]])","v":8}]
["F11","Ctrl","Insert New Macro Sheet",{"$f":"IF(ExcelShortcuts[[#This Row],[Attribute]]=\"Alone\",\"\",ExcelShortcuts[[#This Row],[Attribute]]&\"+\")&ExcelShortcuts[[#This Row],[Key]]","v":"Ctrl+F11"},{"$f":"_xlfn.XLOOKUP(SUBSTITUTE(ExcelShortcuts[[#This Row],[Shortcut]],\"+\",\" + \"),'Custom Shortcuts'!$D$15:$D$103,'Custom Shortcuts'!$C$15:$C$103,\"\",0)","v":""},{"$f":"COUNTIF(ExcelShortcuts[Key],\"=\"&ExcelShortcuts[[#This Row],[Key]])","v":8}]
["F11","Alt","Show VBA IDE",{"$f":"IF(ExcelShortcuts[[#This Row],[Attribute]]=\"Alone\",\"\",ExcelShortcuts[[#This Row],[Attribute]]&\"+\")&ExcelShortcuts[[#This Row],[Key]]","v":"Alt+F11"},{"$f":"_xlfn.XLOOKUP(SUBSTITUTE(ExcelShortcuts[[#This Row],[Shortcut]],\"+\",\" + \"),'Custom Shortcuts'!$D$15:$D$103,'Custom Shortcuts'!$C$15:$C$103,\"\",0)","v":""},{"$f":"COUNTIF(ExcelShortcuts[Key],\"=\"&ExcelShortcuts[[#This Row],[Key]])","v":8}]
["F11","Ctrl+Shift","",{"$f":"IF(ExcelShortcuts[[#This Row],[Attribute]]=\"Alone\",\"\",ExcelShortcuts[[#This Row],[Attribute]]&\"+\")&ExcelShortcuts[[#This Row],[Key]]","v":"Ctrl+Shift+F11"},{"$f":"_xlfn.XLOOKUP(SUBSTITUTE(ExcelShortcuts[[#This Row],[Shortcut]],\"+\",\" + \"),'Custom Shortcuts'!$D$15:$D$103,'Custom Shortcuts'!$C$15:$C$103,\"\",0)","v":""},{"$f":"COUNTIF(ExcelShortcuts[Key],\"=\"&ExcelShortcuts[[#This Row],[Key]])","v":8}]
["F11","Shift+Alt","Show Script Editor",{"$f":"IF(ExcelShortcuts[[#This Row],[Attribute]]=\"Alone\",\"\",ExcelShortcuts[[#This Row],[Attribute]]&\"+\")&ExcelShortcuts[[#This Row],[Key]]","v":"Shift+Alt+F11"},{"$f":"_xlfn.XLOOKUP(SUBSTITUTE(ExcelShortcuts[[#This Row],[Shortcut]],\"+\",\" + \"),'Custom Shortcuts'!$D$15:$D$103,'Custom Shortcuts'!$C$15:$C$103,\"\",0)","v":""},{"$f":"COUNTIF(ExcelShortcuts[Key],\"=\"&ExcelShortcuts[[#This Row],[Key]])","v":8}]
["F11","Ctrl+Alt","",{"$f":"IF(ExcelShortcuts[[#This Row],[Attribute]]=\"Alone\",\"\",ExcelShortcuts[[#This Row],[Attribute]]&\"+\")&ExcelShortcuts[[#This Row],[Key]]","v":"Ctrl+Alt+F11"},{"$f":"_xlfn.XLOOKUP(SUBSTITUTE(ExcelShortcuts[[#This Row],[Shortcut]],\"+\",\" + \"),'Custom Shortcuts'!$D$15:$D$103,'Custom Shortcuts'!$C$15:$C$103,\"\",0)","v":""},{"$f":"COUNTIF(ExcelShortcuts[Key],\"=\"&ExcelShortcuts[[#This Row],[Key]])","v":8}]
["F11","Ctrl+Shift+Alt","",{"$f":"IF(ExcelShortcuts[[#This Row],[Attribute]]=\"Alone\",\"\",ExcelShortcuts[[#This Row],[Attribute]]&\"+\")&ExcelShortcuts[[#This Row],[Key]]","v":"Ctrl+Shift+Alt+F11"},{"$f":"_xlfn.XLOOKUP(SUBSTITUTE(ExcelShortcuts[[#This Row],[Shortcut]],\"+\",\" + \"),'Custom Shortcuts'!$D$15:$D$103,'Custom Shortcuts'!$C$15:$C$103,\"\",0)","v":""},{"$f":"COUNTIF(ExcelShortcuts[Key],\"=\"&ExcelShortcuts[[#This Row],[Key]])","v":8}]
["F12","Alone","Save As",{"$f":"IF(ExcelShortcuts[[#This Row],[Attribute]]=\"Alone\",\"\",ExcelShortcuts[[#This Row],[Attribute]]&\"+\")&ExcelShortcuts[[#This Row],[Key]]","v":"F12"},{"$f":"_xlfn.XLOOKUP(SUBSTITUTE(ExcelShortcuts[[#This Row],[Shortcut]],\"+\",\" + \"),'Custom Shortcuts'!$D$15:$D$103,'Custom Shortcuts'!$C$15:$C$103,\"\",0)","v":""},{"$f":"COUNTIF(ExcelShortcuts[Key],\"=\"&ExcelShortcuts[[#This Row],[Key]])","v":8}]
["F12","Shift","Save",{"$f":"IF(ExcelShortcuts[[#This Row],[Attribute]]=\"Alone\",\"\",ExcelShortcuts[[#This Row],[Attribute]]&\"+\")&ExcelShortcuts[[#This Row],[Key]]","v":"Shift+F12"},{"$f":"_xlfn.XLOOKUP(SUBSTITUTE(ExcelShortcuts[[#This Row],[Shortcut]],\"+\",\" + \"),'Custom Shortcuts'!$D$15:$D$103,'Custom Shortcuts'!$C$15:$C$103,\"\",0)","v":""},{"$f":"COUNTIF(ExcelShortcuts[Key],\"=\"&ExcelShortcuts[[#This Row],[Key]])","v":8}]
["F12","Ctrl","Open",{"$f":"IF(ExcelShortcuts[[#This Row],[Attribute]]=\"Alone\",\"\",ExcelShortcuts[[#This Row],[Attribute]]&\"+\")&ExcelShortcuts[[#This Row],[Key]]","v":"Ctrl+F12"},{"$f":"_xlfn.XLOOKUP(SUBSTITUTE(ExcelShortcuts[[#This Row],[Shortcut]],\"+\",\" + \"),'Custom Shortcuts'!$D$15:$D$103,'Custom Shortcuts'!$C$15:$C$103,\"\",0)","v":""},{"$f":"COUNTIF(ExcelShortcuts[Key],\"=\"&ExcelShortcuts[[#This Row],[Key]])","v":8}]
["F12","Alt","",{"$f":"IF(ExcelShortcuts[[#This Row],[Attribute]]=\"Alone\",\"\",ExcelShortcuts[[#This Row],[Attribute]]&\"+\")&ExcelShortcuts[[#This Row],[Key]]","v":"Alt+F12"},{"$f":"_xlfn.XLOOKUP(SUBSTITUTE(ExcelShortcuts[[#This Row],[Shortcut]],\"+\",\" + \"),'Custom Shortcuts'!$D$15:$D$103,'Custom Shortcuts'!$C$15:$C$103,\"\",0)","v":""},{"$f":"COUNTIF(ExcelShortcuts[Key],\"=\"&ExcelShortcuts[[#This Row],[Key]])","v":8}]
["F12","Ctrl+Shift","Print",{"$f":"IF(ExcelShortcuts[[#This Row],[Attribute]]=\"Alone\",\"\",ExcelShortcuts[[#This Row],[Attribute]]&\"+\")&ExcelShortcuts[[#This Row],[Key]]","v":"Ctrl+Shift+F12"},{"$f":"_xlfn.XLOOKUP(SUBSTITUTE(ExcelShortcuts[[#This Row],[Shortcut]],\"+\",\" + \"),'Custom Shortcuts'!$D$15:$D$103,'Custom Shortcuts'!$C$15:$C$103,\"\",0)","v":""},{"$f":"COUNTIF(ExcelShortcuts[Key],\"=\"&ExcelShortcuts[[#This Row],[Key]])","v":8}]
["F12","Shift+Alt","",{"$f":"IF(ExcelShortcuts[[#This Row],[Attribute]]=\"Alone\",\"\",ExcelShortcuts[[#This Row],[Attribute]]&\"+\")&ExcelShortcuts[[#This Row],[Key]]","v":"Shift+Alt+F12"},{"$f":"_xlfn.XLOOKUP(SUBSTITUTE(ExcelShortcuts[[#This Row],[Shortcut]],\"+\",\" + \"),'Custom Shortcuts'!$D$15:$D$103,'Custom Shortcuts'!$C$15:$C$103,\"\",0)","v":""},{"$f":"COUNTIF(ExcelShortcuts[Key],\"=\"&ExcelShortcuts[[#This Row],[Key]])","v":8}]
["F12","Ctrl+Alt","Thai Dictionary",{"$f":"IF(ExcelShortcuts[[#This Row],[Attribute]]=\"Alone\",\"\",ExcelShortcuts[[#This Row],[Attribute]]&\"+\")&ExcelShortcuts[[#This Row],[Key]]","v":"Ctrl+Alt+F12"},{"$f":"_xlfn.XLOOKUP(SUBSTITUTE(ExcelShortcuts[[#This Row],[Shortcut]],\"+\",\" + \"),'Custom Shortcuts'!$D$15:$D$103,'Custom Shortcuts'!$C$15:$C$103,\"\",0)","v":""},{"$f":"COUNTIF(ExcelShortcuts[Key],\"=\"&ExcelShortcuts[[#This Row],[Key]])","v":8}]
["F12","Ctrl+Shift+Alt","",{"$f":"IF(ExcelShortcuts[[#This Row],[Attribute]]=\"Alone\",\"\",ExcelShortcuts[[#This Row],[Attribute]]&\"+\")&ExcelShortcuts[[#This Row],[Key]]","v":"Ctrl+Shift+Alt+F12"},{"$f":"_xlfn.XLOOKUP(SUBSTITUTE(ExcelShortcuts[[#This Row],[Shortcut]],\"+\",\" + \"),'Custom Shortcuts'!$D$15:$D$103,'Custom Shortcuts'!$C$15:$C$103,\"\",0)","v":""},{"$f":"COUNTIF(ExcelShortcuts[Key],\"=\"&ExcelShortcuts[[#This Row],[Key]])","v":8}]
["+","Alone","",{"$f":"IF(ExcelShortcuts[[#This Row],[Attribute]]=\"Alone\",\"\",ExcelShortcuts[[#This Row],[Attribute]]&\"+\")&ExcelShortcuts[[#This Row],[Key]]","v":"+"},{"$f":"_xlfn.XLOOKUP(SUBSTITUTE(ExcelShortcuts[[#This Row],[Shortcut]],\"+\",\" + \"),'Custom Shortcuts'!$D$15:$D$103,'Custom Shortcuts'!$C$15:$C$103,\"\",0)","v":""},{"$f":"COUNTIF(ExcelShortcuts[Key],\"=\"&ExcelShortcuts[[#This Row],[Key]])","v":8}]
["+","Shift","",{"$f":"IF(ExcelShortcuts[[#This Row],[Attribute]]=\"Alone\",\"\",ExcelShortcuts[[#This Row],[Attribute]]&\"+\")&ExcelShortcuts[[#This Row],[Key]]","v":"Shift++"},{"$f":"_xlfn.XLOOKUP(SUBSTITUTE(ExcelShortcuts[[#This Row],[Shortcut]],\"+\",\" + \"),'Custom Shortcuts'!$D$15:$D$103,'Custom Shortcuts'!$C$15:$C$103,\"\",0)","v":""},{"$f":"COUNTIF(ExcelShortcuts[Key],\"=\"&ExcelShortcuts[[#This Row],[Key]])","v":8}]
["+","Ctrl","Open Insert Dialog Dialog Box",{"$f":"IF(ExcelShortcuts[[#This Row],[Attribute]]=\"Alone\",\"\",ExcelShortcuts[[#This Row],[Attribute]]&\"+\")&ExcelShortcuts[[#This Row],[Key]]","v":"Ctrl++"},{"$f":"_xlfn.XLOOKUP(SUBSTITUTE(ExcelShortcuts[[#This Row],[Shortcut]],\"+\",\" + \"),'Custom Shortcuts'!$D$15:$D$103,'Custom Shortcuts'!$C$15:$C$103,\"\",0)","v":""},{"$f":"COUNTIF(ExcelShortcuts[Key],\"=\"&ExcelShortcuts[[#This Row],[Key]])","v":8}]
["+","Alt","",{"$f":"IF(ExcelShortcuts[[#This Row],[Attribute]]=\"Alone\",\"\",ExcelShortcuts[[#This Row],[Attribute]]&\"+\")&ExcelShortcuts[[#This Row],[Key]]","v":"Alt++"},{"$f":"_xlfn.XLOOKUP(SUBSTITUTE(ExcelShortcuts[[#This Row],[Shortcut]],\"+\",\" + \"),'Custom Shortcuts'!$D$15:$D$103,'Custom Shortcuts'!$C$15:$C$103,\"\",0)","v":""},{"$f":"COUNTIF(ExcelShortcuts[Key],\"=\"&ExcelShortcuts[[#This Row],[Key]])","v":8}]
["+","Ctrl+Shift","",{"$f":"IF(ExcelShortcuts[[#This Row],[Attribute]]=\"Alone\",\"\",ExcelShortcuts[[#This Row],[Attribute]]&\"+\")&ExcelShortcuts[[#This Row],[Key]]","v":"Ctrl+Shift++"},{"$f":"_xlfn.XLOOKUP(SUBSTITUTE(ExcelShortcuts[[#This Row],[Shortcut]],\"+\",\" + \"),'Custom Shortcuts'!$D$15:$D$103,'Custom Shortcuts'!$C$15:$C$103,\"\",0)","v":""},{"$f":"COUNTIF(ExcelShortcuts[Key],\"=\"&ExcelShortcuts[[#This Row],[Key]])","v":8}]
["+","Shift+Alt","",{"$f":"IF(ExcelShortcuts[[#This Row],[Attribute]]=\"Alone\",\"\",ExcelShortcuts[[#This Row],[Attribute]]&\"+\")&ExcelShortcuts[[#This Row],[Key]]","v":"Shift+Alt++"},{"$f":"_xlfn.XLOOKUP(SUBSTITUTE(ExcelShortcuts[[#This Row],[Shortcut]],\"+\",\" + \"),'Custom Shortcuts'!$D$15:$D$103,'Custom Shortcuts'!$C$15:$C$103,\"\",0)","v":""},{"$f":"COUNTIF(ExcelShortcuts[Key],\"=\"&ExcelShortcuts[[#This Row],[Key]])","v":8}]
["+","Ctrl+Alt","",{"$f":"IF(ExcelShortcuts[[#This Row],[Attribute]]=\"Alone\",\"\",ExcelShortcuts[[#This Row],[Attribute]]&\"+\")&ExcelShortcuts[[#This Row],[Key]]","v":"Ctrl+Alt++"},{"$f":"_xlfn.XLOOKUP(SUBSTITUTE(ExcelShortcuts[[#This Row],[Shortcut]],\"+\",\" + \"),'Custom Shortcuts'!$D$15:$D$103,'Custom Shortcuts'!$C$15:$C$103,\"\",0)","v":""},{"$f":"COUNTIF(ExcelShortcuts[Key],\"=\"&ExcelShortcuts[[#This Row],[Key]])","v":8}]
["+","Ctrl+Shift+Alt","",{"$f":"IF(ExcelShortcuts[[#This Row],[Attribute]]=\"Alone\",\"\",ExcelShortcuts[[#This Row],[Attribute]]&\"+\")&ExcelShortcuts[[#This Row],[Key]]","v":"Ctrl+Shift+Alt++"},{"$f":"_xlfn.XLOOKUP(SUBSTITUTE(ExcelShortcuts[[#This Row],[Shortcut]],\"+\",\" + \"),'Custom Shortcuts'!$D$15:$D$103,'Custom Shortcuts'!$C$15:$C$103,\"\",0)","v":""},{"$f":"COUNTIF(ExcelShortcuts[Key],\"=\"&ExcelShortcuts[[#This Row],[Key]])","v":8}]
["Backspace","Alone","Edit and Clear",{"$f":"IF(ExcelShortcuts[[#This Row],[Attribute]]=\"Alone\",\"\",ExcelShortcuts[[#This Row],[Attribute]]&\"+\")&ExcelShortcuts[[#This Row],[Key]]","v":"Backspace"},{"$f":"_xlfn.XLOOKUP(SUBSTITUTE(ExcelShortcuts[[#This Row],[Shortcut]],\"+\",\" + \"),'Custom Shortcuts'!$D$15:$D$103,'Custom Shortcuts'!$C$15:$C$103,\"\",0)","v":""},{"$f":"COUNTIF(ExcelShortcuts[Key],\"=\"&ExcelShortcuts[[#This Row],[Key]])","v":8}]
["Backspace","Shift","Collapse selection to the active cell",{"$f":"IF(ExcelShortcuts[[#This Row],[Attribute]]=\"Alone\",\"\",ExcelShortcuts[[#This Row],[Attribute]]&\"+\")&ExcelShortcuts[[#This Row],[Key]]","v":"Shift+Backspace"},{"$f":"_xlfn.XLOOKUP(SUBSTITUTE(ExcelShortcuts[[#This Row],[Shortcut]],\"+\",\" + \"),'Custom Shortcuts'!$D$15:$D$103,'Custom Shortcuts'!$C$15:$C$103,\"\",0)","v":""},{"$f":"COUNTIF(ExcelShortcuts[Key],\"=\"&ExcelShortcuts[[#This Row],[Key]])","v":8}]
["Backspace","Ctrl","Scroll to show active cell",{"$f":"IF(ExcelShortcuts[[#This Row],[Attribute]]=\"Alone\",\"\",ExcelShortcuts[[#This Row],[Attribute]]&\"+\")&ExcelShortcuts[[#This Row],[Key]]","v":"Ctrl+Backspace"},{"$f":"_xlfn.XLOOKUP(SUBSTITUTE(ExcelShortcuts[[#This Row],[Shortcut]],\"+\",\" + \"),'Custom Shortcuts'!$D$15:$D$103,'Custom Shortcuts'!$C$15:$C$103,\"\",0)","v":""},{"$f":"COUNTIF(ExcelShortcuts[Key],\"=\"&ExcelShortcuts[[#This Row],[Key]])","v":8}]
["Backspace","Alt","Undo",{"$f":"IF(ExcelShortcuts[[#This Row],[Attribute]]=\"Alone\",\"\",ExcelShortcuts[[#This Row],[Attribute]]&\"+\")&ExcelShortcuts[[#This Row],[Key]]","v":"Alt+Backspace"},{"$f":"_xlfn.XLOOKUP(SUBSTITUTE(ExcelShortcuts[[#This Row],[Shortcut]],\"+\",\" + \"),'Custom Shortcuts'!$D$15:$D$103,'Custom Shortcuts'!$C$15:$C$103,\"\",0)","v":""},{"$f":"COUNTIF(ExcelShortcuts[Key],\"=\"&ExcelShortcuts[[#This Row],[Key]])","v":8}]
["Backspace","Ctrl+Shift","",{"$f":"IF(ExcelShortcuts[[#This Row],[Attribute]]=\"Alone\",\"\",ExcelShortcuts[[#This Row],[Attribute]]&\"+\")&ExcelShortcuts[[#This Row],[Key]]","v":"Ctrl+Shift+Backspace"},{"$f":"_xlfn.XLOOKUP(SUBSTITUTE(ExcelShortcuts[[#This Row],[Shortcut]],\"+\",\" + \"),'Custom Shortcuts'!$D$15:$D$103,'Custom Shortcuts'!$C$15:$C$103,\"\",0)","v":""},{"$f":"COUNTIF(ExcelShortcuts[Key],\"=\"&ExcelShortcuts[[#This Row],[Key]])","v":8}]
["Backspace","Shift+Alt","",{"$f":"IF(ExcelShortcuts[[#This Row],[Attribute]]=\"Alone\",\"\",ExcelShortcuts[[#This Row],[Attribute]]&\"+\")&ExcelShortcuts[[#This Row],[Key]]","v":"Shift+Alt+Backspace"},{"$f":"_xlfn.XLOOKUP(SUBSTITUTE(ExcelShortcuts[[#This Row],[Shortcut]],\"+\",\" + \"),'Custom Shortcuts'!$D$15:$D$103,'Custom Shortcuts'!$C$15:$C$103,\"\",0)","v":""},{"$f":"COUNTIF(ExcelShortcuts[Key],\"=\"&ExcelShortcuts[[#This Row],[Key]])","v":8}]
["Backspace","Ctrl+Alt","",{"$f":"IF(ExcelShortcuts[[#This Row],[Attribute]]=\"Alone\",\"\",ExcelShortcuts[[#This Row],[Attribute]]&\"+\")&ExcelShortcuts[[#This Row],[Key]]","v":"Ctrl+Alt+Backspace"},{"$f":"_xlfn.XLOOKUP(SUBSTITUTE(ExcelShortcuts[[#This Row],[Shortcut]],\"+\",\" + \"),'Custom Shortcuts'!$D$15:$D$103,'Custom Shortcuts'!$C$15:$C$103,\"\",0)","v":""},{"$f":"COUNTIF(ExcelShortcuts[Key],\"=\"&ExcelShortcuts[[#This Row],[Key]])","v":8}]
["Backspace","Ctrl+Shift+Alt","",{"$f":"IF(ExcelShortcuts[[#This Row],[Attribute]]=\"Alone\",\"\",ExcelShortcuts[[#This Row],[Attribute]]&\"+\")&ExcelShortcuts[[#This Row],[Key]]","v":"Ctrl+Shift+Alt+Backspace"},{"$f":"_xlfn.XLOOKUP(SUBSTITUTE(ExcelShortcuts[[#This Row],[Shortcut]],\"+\",\" + \"),'Custom Shortcuts'!$D$15:$D$103,'Custom Shortcuts'!$C$15:$C$103,\"\",0)","v":""},{"$f":"COUNTIF(ExcelShortcuts[Key],\"=\"&ExcelShortcuts[[#This Row],[Key]])","v":8}]
["Click","Alt","Open Research Pane",{"$f":"IF(ExcelShortcuts[[#This Row],[Attribute]]=\"Alone\",\"\",ExcelShortcuts[[#This Row],[Attribute]]&\"+\")&ExcelShortcuts[[#This Row],[Key]]","v":"Alt+Click"},{"$f":"_xlfn.XLOOKUP(SUBSTITUTE(ExcelShortcuts[[#This Row],[Shortcut]],\"+\",\" + \"),'Custom Shortcuts'!$D$15:$D$103,'Custom Shortcuts'!$C$15:$C$103,\"\",0)","v":""},{"$f":"COUNTIF(ExcelShortcuts[Key],\"=\"&ExcelShortcuts[[#This Row],[Key]])","v":1}]
["Delete","Alone","Clear",{"$f":"IF(ExcelShortcuts[[#This Row],[Attribute]]=\"Alone\",\"\",ExcelShortcuts[[#This Row],[Attribute]]&\"+\")&ExcelShortcuts[[#This Row],[Key]]","v":"Delete"},{"$f":"_xlfn.XLOOKUP(SUBSTITUTE(ExcelShortcuts[[#This Row],[Shortcut]],\"+\",\" + \"),'Custom Shortcuts'!$D$15:$D$103,'Custom Shortcuts'!$C$15:$C$103,\"\",0)","v":""},{"$f":"COUNTIF(ExcelShortcuts[Key],\"=\"&ExcelShortcuts[[#This Row],[Key]])","v":8}]
["Delete","Shift","Cut",{"$f":"IF(ExcelShortcuts[[#This Row],[Attribute]]=\"Alone\",\"\",ExcelShortcuts[[#This Row],[Attribute]]&\"+\")&ExcelShortcuts[[#This Row],[Key]]","v":"Shift+Delete"},{"$f":"_xlfn.XLOOKUP(SUBSTITUTE(ExcelShortcuts[[#This Row],[Shortcut]],\"+\",\" + \"),'Custom Shortcuts'!$D$15:$D$103,'Custom Shortcuts'!$C$15:$C$103,\"\",0)","v":""},{"$f":"COUNTIF(ExcelShortcuts[Key],\"=\"&ExcelShortcuts[[#This Row],[Key]])","v":8}]
["Delete","Ctrl","Clear",{"$f":"IF(ExcelShortcuts[[#This Row],[Attribute]]=\"Alone\",\"\",ExcelShortcuts[[#This Row],[Attribute]]&\"+\")&ExcelShortcuts[[#This Row],[Key]]","v":"Ctrl+Delete"},{"$f":"_xlfn.XLOOKUP(SUBSTITUTE(ExcelShortcuts[[#This Row],[Shortcut]],\"+\",\" + \"),'Custom Shortcuts'!$D$15:$D$103,'Custom Shortcuts'!$C$15:$C$103,\"\",0)","v":""},{"$f":"COUNTIF(ExcelShortcuts[Key],\"=\"&ExcelShortcuts[[#This Row],[Key]])","v":8}]
["Delete","Alt","",{"$f":"IF(ExcelShortcuts[[#This Row],[Attribute]]=\"Alone\",\"\",ExcelShortcuts[[#This Row],[Attribute]]&\"+\")&ExcelShortcuts[[#This Row],[Key]]","v":"Alt+Delete"},{"$f":"_xlfn.XLOOKUP(SUBSTITUTE(ExcelShortcuts[[#This Row],[Shortcut]],\"+\",\" + \"),'Custom Shortcuts'!$D$15:$D$103,'Custom Shortcuts'!$C$15:$C$103,\"\",0)","v":""},{"$f":"COUNTIF(ExcelShortcuts[Key],\"=\"&ExcelShortcuts[[#This Row],[Key]])","v":8}]
["Delete","Ctrl+Shift","",{"$f":"IF(ExcelShortcuts[[#This Row],[Attribute]]=\"Alone\",\"\",ExcelShortcuts[[#This Row],[Attribute]]&\"+\")&ExcelShortcuts[[#This Row],[Key]]","v":"Ctrl+Shift+Delete"},{"$f":"_xlfn.XLOOKUP(SUBSTITUTE(ExcelShortcuts[[#This Row],[Shortcut]],\"+\",\" + \"),'Custom Shortcuts'!$D$15:$D$103,'Custom Shortcuts'!$C$15:$C$103,\"\",0)","v":""},{"$f":"COUNTIF(ExcelShortcuts[Key],\"=\"&ExcelShortcuts[[#This Row],[Key]])","v":8}]
["Delete","Shift+Alt","",{"$f":"IF(ExcelShortcuts[[#This Row],[Attribute]]=\"Alone\",\"\",ExcelShortcuts[[#This Row],[Attribute]]&\"+\")&ExcelShortcuts[[#This Row],[Key]]","v":"Shift+Alt+Delete"},{"$f":"_xlfn.XLOOKUP(SUBSTITUTE(ExcelShortcuts[[#This Row],[Shortcut]],\"+\",\" + \"),'Custom Shortcuts'!$D$15:$D$103,'Custom Shortcuts'!$C$15:$C$103,\"\",0)","v":""},{"$f":"COUNTIF(ExcelShortcuts[Key],\"=\"&ExcelShortcuts[[#This Row],[Key]])","v":8}]
["Delete","Ctrl+Alt","",{"$f":"IF(ExcelShortcuts[[#This Row],[Attribute]]=\"Alone\",\"\",ExcelShortcuts[[#This Row],[Attribute]]&\"+\")&ExcelShortcuts[[#This Row],[Key]]","v":"Ctrl+Alt+Delete"},{"$f":"_xlfn.XLOOKUP(SUBSTITUTE(ExcelShortcuts[[#This Row],[Shortcut]],\"+\",\" + \"),'Custom Shortcuts'!$D$15:$D$103,'Custom Shortcuts'!$C$15:$C$103,\"\",0)","v":""},{"$f":"COUNTIF(ExcelShortcuts[Key],\"=\"&ExcelShortcuts[[#This Row],[Key]])","v":8}]
["Delete","Ctrl+Shift+Alt","",{"$f":"IF(ExcelShortcuts[[#This Row],[Attribute]]=\"Alone\",\"\",ExcelShortcuts[[#This Row],[Attribute]]&\"+\")&ExcelShortcuts[[#This Row],[Key]]","v":"Ctrl+Shift+Alt+Delete"},{"$f":"_xlfn.XLOOKUP(SUBSTITUTE(ExcelShortcuts[[#This Row],[Shortcut]],\"+\",\" + \"),'Custom Shortcuts'!$D$15:$D$103,'Custom Shortcuts'!$C$15:$C$103,\"\",0)","v":""},{"$f":"COUNTIF(ExcelShortcuts[Key],\"=\"&ExcelShortcuts[[#This Row],[Key]])","v":8}]
["Down","Alone","Move down one cell",{"$f":"IF(ExcelShortcuts[[#This Row],[Attribute]]=\"Alone\",\"\",ExcelShortcuts[[#This Row],[Attribute]]&\"+\")&ExcelShortcuts[[#This Row],[Key]]","v":"Down"},{"$f":"_xlfn.XLOOKUP(SUBSTITUTE(ExcelShortcuts[[#This Row],[Shortcut]],\"+\",\" + \"),'Custom Shortcuts'!$D$15:$D$103,'Custom Shortcuts'!$C$15:$C$103,\"\",0)","v":""},{"$f":"COUNTIF(ExcelShortcuts[Key],\"=\"&ExcelShortcuts[[#This Row],[Key]])","v":8}]
["Down","Shift","Extend selection down one cell",{"$f":"IF(ExcelShortcuts[[#This Row],[Attribute]]=\"Alone\",\"\",ExcelShortcuts[[#This Row],[Attribute]]&\"+\")&ExcelShortcuts[[#This Row],[Key]]","v":"Shift+Down"},{"$f":"_xlfn.XLOOKUP(SUBSTITUTE(ExcelShortcuts[[#This Row],[Shortcut]],\"+\",\" + \"),'Custom Shortcuts'!$D$15:$D$103,'Custom Shortcuts'!$C$15:$C$103,\"\",0)","v":""},{"$f":"COUNTIF(ExcelShortcuts[Key],\"=\"&ExcelShortcuts[[#This Row],[Key]])","v":8}]
["Down","Ctrl","Select the last cell in the area down",{"$f":"IF(ExcelShortcuts[[#This Row],[Attribute]]=\"Alone\",\"\",ExcelShortcuts[[#This Row],[Attribute]]&\"+\")&ExcelShortcuts[[#This Row],[Key]]","v":"Ctrl+Down"},{"$f":"_xlfn.XLOOKUP(SUBSTITUTE(ExcelShortcuts[[#This Row],[Shortcut]],\"+\",\" + \"),'Custom Shortcuts'!$D$15:$D$103,'Custom Shortcuts'!$C$15:$C$103,\"\",0)","v":""},{"$f":"COUNTIF(ExcelShortcuts[Key],\"=\"&ExcelShortcuts[[#This Row],[Key]])","v":8}]
["Down","Alt","Open drop-down (auto-complete, filter, or validation)",{"$f":"IF(ExcelShortcuts[[#This Row],[Attribute]]=\"Alone\",\"\",ExcelShortcuts[[#This Row],[Attribute]]&\"+\")&ExcelShortcuts[[#This Row],[Key]]","v":"Alt+Down"},{"$f":"_xlfn.XLOOKUP(SUBSTITUTE(ExcelShortcuts[[#This Row],[Shortcut]],\"+\",\" + \"),'Custom Shortcuts'!$D$15:$D$103,'Custom Shortcuts'!$C$15:$C$103,\"\",0)","v":""},{"$f":"COUNTIF(ExcelShortcuts[Key],\"=\"&ExcelShortcuts[[#This Row],[Key]])","v":8}]
["Down","Ctrl+Shift","Extend selection down to last cell in area down",{"$f":"IF(ExcelShortcuts[[#This Row],[Attribute]]=\"Alone\",\"\",ExcelShortcuts[[#This Row],[Attribute]]&\"+\")&ExcelShortcuts[[#This Row],[Key]]","v":"Ctrl+Shift+Down"},{"$f":"_xlfn.XLOOKUP(SUBSTITUTE(ExcelShortcuts[[#This Row],[Shortcut]],\"+\",\" + \"),'Custom Shortcuts'!$D$15:$D$103,'Custom Shortcuts'!$C$15:$C$103,\"\",0)","v":""},{"$f":"COUNTIF(ExcelShortcuts[Key],\"=\"&ExcelShortcuts[[#This Row],[Key]])","v":8}]
["Down","Shift+Alt","",{"$f":"IF(ExcelShortcuts[[#This Row],[Attribute]]=\"Alone\",\"\",ExcelShortcuts[[#This Row],[Attribute]]&\"+\")&ExcelShortcuts[[#This Row],[Key]]","v":"Shift+Alt+Down"},{"$f":"_xlfn.XLOOKUP(SUBSTITUTE(ExcelShortcuts[[#This Row],[Shortcut]],\"+\",\" + \"),'Custom Shortcuts'!$D$15:$D$103,'Custom Shortcuts'!$C$15:$C$103,\"\",0)","v":""},{"$f":"COUNTIF(ExcelShortcuts[Key],\"=\"&ExcelShortcuts[[#This Row],[Key]])","v":8}]
["Down","Ctrl+Alt","Intel Chipset: Invert screen (turn 180 degrees)",{"$f":"IF(ExcelShortcuts[[#This Row],[Attribute]]=\"Alone\",\"\",ExcelShortcuts[[#This Row],[Attribute]]&\"+\")&ExcelShortcuts[[#This Row],[Key]]","v":"Ctrl+Alt+Down"},{"$f":"_xlfn.XLOOKUP(SUBSTITUTE(ExcelShortcuts[[#This Row],[Shortcut]],\"+\",\" + \"),'Custom Shortcuts'!$D$15:$D$103,'Custom Shortcuts'!$C$15:$C$103,\"\",0)","v":""},{"$f":"COUNTIF(ExcelShortcuts[Key],\"=\"&ExcelShortcuts[[#This Row],[Key]])","v":8}]
["Down","Ctrl+Shift+Alt","",{"$f":"IF(ExcelShortcuts[[#This Row],[Attribute]]=\"Alone\",\"\",ExcelShortcuts[[#This Row],[Attribute]]&\"+\")&ExcelShortcuts[[#This Row],[Key]]","v":"Ctrl+Shift+Alt+Down"},{"$f":"_xlfn.XLOOKUP(SUBSTITUTE(ExcelShortcuts[[#This Row],[Shortcut]],\"+\",\" + \"),'Custom Shortcuts'!$D$15:$D$103,'Custom Shortcuts'!$C$15:$C$103,\"\",0)","v":""},{"$f":"COUNTIF(ExcelShortcuts[Key],\"=\"&ExcelShortcuts[[#This Row],[Key]])","v":8}]
["End","Alone","Toggle End Mode",{"$f":"IF(ExcelShortcuts[[#This Row],[Attribute]]=\"Alone\",\"\",ExcelShortcuts[[#This Row],[Attribute]]&\"+\")&ExcelShortcuts[[#This Row],[Key]]","v":"End"},{"$f":"_xlfn.XLOOKUP(SUBSTITUTE(ExcelShortcuts[[#This Row],[Shortcut]],\"+\",\" + \"),'Custom Shortcuts'!$D$15:$D$103,'Custom Shortcuts'!$C$15:$C$103,\"\",0)","v":""},{"$f":"COUNTIF(ExcelShortcuts[Key],\"=\"&ExcelShortcuts[[#This Row],[Key]])","v":8}]
["End","Shift","Toggle End Mode (and extend when you press SHIFT + Arrow key)",{"$f":"IF(ExcelShortcuts[[#This Row],[Attribute]]=\"Alone\",\"\",ExcelShortcuts[[#This Row],[Attribute]]&\"+\")&ExcelShortcuts[[#This Row],[Key]]","v":"Shift+End"},{"$f":"_xlfn.XLOOKUP(SUBSTITUTE(ExcelShortcuts[[#This Row],[Shortcut]],\"+\",\" + \"),'Custom Shortcuts'!$D$15:$D$103,'Custom Shortcuts'!$C$15:$C$103,\"\",0)","v":""},{"$f":"COUNTIF(ExcelShortcuts[Key],\"=\"&ExcelShortcuts[[#This Row],[Key]])","v":8}]
["End","Ctrl","Selects the last cell in the sheet",{"$f":"IF(ExcelShortcuts[[#This Row],[Attribute]]=\"Alone\",\"\",ExcelShortcuts[[#This Row],[Attribute]]&\"+\")&ExcelShortcuts[[#This Row],[Key]]","v":"Ctrl+End"},{"$f":"_xlfn.XLOOKUP(SUBSTITUTE(ExcelShortcuts[[#This Row],[Shortcut]],\"+\",\" + \"),'Custom Shortcuts'!$D$15:$D$103,'Custom Shortcuts'!$C$15:$C$103,\"\",0)","v":""},{"$f":"COUNTIF(ExcelShortcuts[Key],\"=\"&ExcelShortcuts[[#This Row],[Key]])","v":8}]
["End","Alt","",{"$f":"IF(ExcelShortcuts[[#This Row],[Attribute]]=\"Alone\",\"\",ExcelShortcuts[[#This Row],[Attribute]]&\"+\")&ExcelShortcuts[[#This Row],[Key]]","v":"Alt+End"},{"$f":"_xlfn.XLOOKUP(SUBSTITUTE(ExcelShortcuts[[#This Row],[Shortcut]],\"+\",\" + \"),'Custom Shortcuts'!$D$15:$D$103,'Custom Shortcuts'!$C$15:$C$103,\"\",0)","v":""},{"$f":"COUNTIF(ExcelShortcuts[Key],\"=\"&ExcelShortcuts[[#This Row],[Key]])","v":8}]
["End","Ctrl+Shift","Extends the selection to the last cell in the sheet",{"$f":"IF(ExcelShortcuts[[#This Row],[Attribute]]=\"Alone\",\"\",ExcelShortcuts[[#This Row],[Attribute]]&\"+\")&ExcelShortcuts[[#This Row],[Key]]","v":"Ctrl+Shift+End"},{"$f":"_xlfn.XLOOKUP(SUBSTITUTE(ExcelShortcuts[[#This Row],[Shortcut]],\"+\",\" + \"),'Custom Shortcuts'!$D$15:$D$103,'Custom Shortcuts'!$C$15:$C$103,\"\",0)","v":""},{"$f":"COUNTIF(ExcelShortcuts[Key],\"=\"&ExcelShortcuts[[#This Row],[Key]])","v":8}]
["End","Shift+Alt","",{"$f":"IF(ExcelShortcuts[[#This Row],[Attribute]]=\"Alone\",\"\",ExcelShortcuts[[#This Row],[Attribute]]&\"+\")&ExcelShortcuts[[#This Row],[Key]]","v":"Shift+Alt+End"},{"$f":"_xlfn.XLOOKUP(SUBSTITUTE(ExcelShortcuts[[#This Row],[Shortcut]],\"+\",\" + \"),'Custom Shortcuts'!$D$15:$D$103,'Custom Shortcuts'!$C$15:$C$103,\"\",0)","v":""},{"$f":"COUNTIF(ExcelShortcuts[Key],\"=\"&ExcelShortcuts[[#This Row],[Key]])","v":8}]
["End","Ctrl+Alt","",{"$f":"IF(ExcelShortcuts[[#This Row],[Attribute]]=\"Alone\",\"\",ExcelShortcuts[[#This Row],[Attribute]]&\"+\")&ExcelShortcuts[[#This Row],[Key]]","v":"Ctrl+Alt+End"},{"$f":"_xlfn.XLOOKUP(SUBSTITUTE(ExcelShortcuts[[#This Row],[Shortcut]],\"+\",\" + \"),'Custom Shortcuts'!$D$15:$D$103,'Custom Shortcuts'!$C$15:$C$103,\"\",0)","v":""},{"$f":"COUNTIF(ExcelShortcuts[Key],\"=\"&ExcelShortcuts[[#This Row],[Key]])","v":8}]
["End","Ctrl+Shift+Alt","",{"$f":"IF(ExcelShortcuts[[#This Row],[Attribute]]=\"Alone\",\"\",ExcelShortcuts[[#This Row],[Attribute]]&\"+\")&ExcelShortcuts[[#This Row],[Key]]","v":"Ctrl+Shift+Alt+End"},{"$f":"_xlfn.XLOOKUP(SUBSTITUTE(ExcelShortcuts[[#This Row],[Shortcut]],\"+\",\" + \"),'Custom Shortcuts'!$D$15:$D$103,'Custom Shortcuts'!$C$15:$C$103,\"\",0)","v":""},{"$f":"COUNTIF(ExcelShortcuts[Key],\"=\"&ExcelShortcuts[[#This Row],[Key]])","v":8}]
["Enter","Alone","Enter value and move down",{"$f":"IF(ExcelShortcuts[[#This Row],[Attribute]]=\"Alone\",\"\",ExcelShortcuts[[#This Row],[Attribute]]&\"+\")&ExcelShortcuts[[#This Row],[Key]]","v":"Enter"},{"$f":"_xlfn.XLOOKUP(SUBSTITUTE(ExcelShortcuts[[#This Row],[Shortcut]],\"+\",\" + \"),'Custom Shortcuts'!$D$15:$D$103,'Custom Shortcuts'!$C$15:$C$103,\"\",0)","v":""},{"$f":"COUNTIF(ExcelShortcuts[Key],\"=\"&ExcelShortcuts[[#This Row],[Key]])","v":8}]
["Enter","Shift","Enter value and move up",{"$f":"IF(ExcelShortcuts[[#This Row],[Attribute]]=\"Alone\",\"\",ExcelShortcuts[[#This Row],[Attribute]]&\"+\")&ExcelShortcuts[[#This Row],[Key]]","v":"Shift+Enter"},{"$f":"_xlfn.XLOOKUP(SUBSTITUTE(ExcelShortcuts[[#This Row],[Shortcut]],\"+\",\" + \"),'Custom Shortcuts'!$D$15:$D$103,'Custom Shortcuts'!$C$15:$C$103,\"\",0)","v":""},{"$f":"COUNTIF(ExcelShortcuts[Key],\"=\"&ExcelShortcuts[[#This Row],[Key]])","v":8}]
["Enter","Ctrl","Fill value in edited cell into all cell and do not move",{"$f":"IF(ExcelShortcuts[[#This Row],[Attribute]]=\"Alone\",\"\",ExcelShortcuts[[#This Row],[Attribute]]&\"+\")&ExcelShortcuts[[#This Row],[Key]]","v":"Ctrl+Enter"},{"$f":"_xlfn.XLOOKUP(SUBSTITUTE(ExcelShortcuts[[#This Row],[Shortcut]],\"+\",\" + \"),'Custom Shortcuts'!$D$15:$D$103,'Custom Shortcuts'!$C$15:$C$103,\"\",0)","v":""},{"$f":"COUNTIF(ExcelShortcuts[Key],\"=\"&ExcelShortcuts[[#This Row],[Key]])","v":8}]
["Enter","Alt","Redo; In Edit (F2) Mode: insert line break",{"$f":"IF(ExcelShortcuts[[#This Row],[Attribute]]=\"Alone\",\"\",ExcelShortcuts[[#This Row],[Attribute]]&\"+\")&ExcelShortcuts[[#This Row],[Key]]","v":"Alt+Enter"},{"$f":"_xlfn.XLOOKUP(SUBSTITUTE(ExcelShortcuts[[#This Row],[Shortcut]],\"+\",\" + \"),'Custom Shortcuts'!$D$15:$D$103,'Custom Shortcuts'!$C$15:$C$103,\"\",0)","v":""},{"$f":"COUNTIF(ExcelShortcuts[Key],\"=\"&ExcelShortcuts[[#This Row],[Key]])","v":8}]
["Enter","Ctrl+Shift","Fill value in edited cell into all cells and do not move",{"$f":"IF(ExcelShortcuts[[#This Row],[Attribute]]=\"Alone\",\"\",ExcelShortcuts[[#This Row],[Attribute]]&\"+\")&ExcelShortcuts[[#This Row],[Key]]","v":"Ctrl+Shift+Enter"},{"$f":"_xlfn.XLOOKUP(SUBSTITUTE(ExcelShortcuts[[#This Row],[Shortcut]],\"+\",\" + \"),'Custom Shortcuts'!$D$15:$D$103,'Custom Shortcuts'!$C$15:$C$103,\"\",0)","v":""},{"$f":"COUNTIF(ExcelShortcuts[Key],\"=\"&ExcelShortcuts[[#This Row],[Key]])","v":8}]
["Enter","Shift+Alt","",{"$f":"IF(ExcelShortcuts[[#This Row],[Attribute]]=\"Alone\",\"\",ExcelShortcuts[[#This Row],[Attribute]]&\"+\")&ExcelShortcuts[[#This Row],[Key]]","v":"Shift+Alt+Enter"},{"$f":"_xlfn.XLOOKUP(SUBSTITUTE(ExcelShortcuts[[#This Row],[Shortcut]],\"+\",\" + \"),'Custom Shortcuts'!$D$15:$D$103,'Custom Shortcuts'!$C$15:$C$103,\"\",0)","v":""},{"$f":"COUNTIF(ExcelShortcuts[Key],\"=\"&ExcelShortcuts[[#This Row],[Key]])","v":8}]
["Enter","Ctrl+Alt","",{"$f":"IF(ExcelShortcuts[[#This Row],[Attribute]]=\"Alone\",\"\",ExcelShortcuts[[#This Row],[Attribute]]&\"+\")&ExcelShortcuts[[#This Row],[Key]]","v":"Ctrl+Alt+Enter"},{"$f":"_xlfn.XLOOKUP(SUBSTITUTE(ExcelShortcuts[[#This Row],[Shortcut]],\"+\",\" + \"),'Custom Shortcuts'!$D$15:$D$103,'Custom Shortcuts'!$C$15:$C$103,\"\",0)","v":""},{"$f":"COUNTIF(ExcelShortcuts[Key],\"=\"&ExcelShortcuts[[#This Row],[Key]])","v":8}]
["Enter","Ctrl+Shift+Alt","",{"$f":"IF(ExcelShortcuts[[#This Row],[Attribute]]=\"Alone\",\"\",ExcelShortcuts[[#This Row],[Attribute]]&\"+\")&ExcelShortcuts[[#This Row],[Key]]","v":"Ctrl+Shift+Alt+Enter"},{"$f":"_xlfn.XLOOKUP(SUBSTITUTE(ExcelShortcuts[[#This Row],[Shortcut]],\"+\",\" + \"),'Custom Shortcuts'!$D$15:$D$103,'Custom Shortcuts'!$C$15:$C$103,\"\",0)","v":""},{"$f":"COUNTIF(ExcelShortcuts[Key],\"=\"&ExcelShortcuts[[#This Row],[Key]])","v":8}]
["Escape","Alone","Cancel (edit, copy, cut, dialog, etc.)",{"$f":"IF(ExcelShortcuts[[#This Row],[Attribute]]=\"Alone\",\"\",ExcelShortcuts[[#This Row],[Attribute]]&\"+\")&ExcelShortcuts[[#This Row],[Key]]","v":"Escape"},{"$f":"_xlfn.XLOOKUP(SUBSTITUTE(ExcelShortcuts[[#This Row],[Shortcut]],\"+\",\" + \"),'Custom Shortcuts'!$D$15:$D$103,'Custom Shortcuts'!$C$15:$C$103,\"\",0)","v":""},{"$f":"COUNTIF(ExcelShortcuts[Key],\"=\"&ExcelShortcuts[[#This Row],[Key]])","v":8}]
["Escape","Shift","Cancel (edit, copy, cut, dialog, etc.)",{"$f":"IF(ExcelShortcuts[[#This Row],[Attribute]]=\"Alone\",\"\",ExcelShortcuts[[#This Row],[Attribute]]&\"+\")&ExcelShortcuts[[#This Row],[Key]]","v":"Shift+Escape"},{"$f":"_xlfn.XLOOKUP(SUBSTITUTE(ExcelShortcuts[[#This Row],[Shortcut]],\"+\",\" + \"),'Custom Shortcuts'!$D$15:$D$103,'Custom Shortcuts'!$C$15:$C$103,\"\",0)","v":""},{"$f":"COUNTIF(ExcelShortcuts[Key],\"=\"&ExcelShortcuts[[#This Row],[Key]])","v":8}]
["Escape","Ctrl","Bring up Start Menu (overriding an Excel command)",{"$f":"IF(ExcelShortcuts[[#This Row],[Attribute]]=\"Alone\",\"\",ExcelShortcuts[[#This Row],[Attribute]]&\"+\")&ExcelShortcuts[[#This Row],[Key]]","v":"Ctrl+Escape"},{"$f":"_xlfn.XLOOKUP(SUBSTITUTE(ExcelShortcuts[[#This Row],[Shortcut]],\"+\",\" + \"),'Custom Shortcuts'!$D$15:$D$103,'Custom Shortcuts'!$C$15:$C$103,\"\",0)","v":""},{"$f":"COUNTIF(ExcelShortcuts[Key],\"=\"&ExcelShortcuts[[#This Row],[Key]])","v":8}]
["Escape","Alt","",{"$f":"IF(ExcelShortcuts[[#This Row],[Attribute]]=\"Alone\",\"\",ExcelShortcuts[[#This Row],[Attribute]]&\"+\")&ExcelShortcuts[[#This Row],[Key]]","v":"Alt+Escape"},{"$f":"_xlfn.XLOOKUP(SUBSTITUTE(ExcelShortcuts[[#This Row],[Shortcut]],\"+\",\" + \"),'Custom Shortcuts'!$D$15:$D$103,'Custom Shortcuts'!$C$15:$C$103,\"\",0)","v":""},{"$f":"COUNTIF(ExcelShortcuts[Key],\"=\"&ExcelShortcuts[[#This Row],[Key]])","v":8}]
["Escape","Ctrl+Shift","Task Manager (Windows - overriding an XL command)",{"$f":"IF(ExcelShortcuts[[#This Row],[Attribute]]=\"Alone\",\"\",ExcelShortcuts[[#This Row],[Attribute]]&\"+\")&ExcelShortcuts[[#This Row],[Key]]","v":"Ctrl+Shift+Escape"},{"$f":"_xlfn.XLOOKUP(SUBSTITUTE(ExcelShortcuts[[#This Row],[Shortcut]],\"+\",\" + \"),'Custom Shortcuts'!$D$15:$D$103,'Custom Shortcuts'!$C$15:$C$103,\"\",0)","v":""},{"$f":"COUNTIF(ExcelShortcuts[Key],\"=\"&ExcelShortcuts[[#This Row],[Key]])","v":8}]
["Escape","Shift+Alt","",{"$f":"IF(ExcelShortcuts[[#This Row],[Attribute]]=\"Alone\",\"\",ExcelShortcuts[[#This Row],[Attribute]]&\"+\")&ExcelShortcuts[[#This Row],[Key]]","v":"Shift+Alt+Escape"},{"$f":"_xlfn.XLOOKUP(SUBSTITUTE(ExcelShortcuts[[#This Row],[Shortcut]],\"+\",\" + \"),'Custom Shortcuts'!$D$15:$D$103,'Custom Shortcuts'!$C$15:$C$103,\"\",0)","v":""},{"$f":"COUNTIF(ExcelShortcuts[Key],\"=\"&ExcelShortcuts[[#This Row],[Key]])","v":8}]
["Escape","Ctrl+Alt","",{"$f":"IF(ExcelShortcuts[[#This Row],[Attribute]]=\"Alone\",\"\",ExcelShortcuts[[#This Row],[Attribute]]&\"+\")&ExcelShortcuts[[#This Row],[Key]]","v":"Ctrl+Alt+Escape"},{"$f":"_xlfn.XLOOKUP(SUBSTITUTE(ExcelShortcuts[[#This Row],[Shortcut]],\"+\",\" + \"),'Custom Shortcuts'!$D$15:$D$103,'Custom Shortcuts'!$C$15:$C$103,\"\",0)","v":""},{"$f":"COUNTIF(ExcelShortcuts[Key],\"=\"&ExcelShortcuts[[#This Row],[Key]])","v":8}]
["Escape","Ctrl+Shift+Alt","",{"$f":"IF(ExcelShortcuts[[#This Row],[Attribute]]=\"Alone\",\"\",ExcelShortcuts[[#This Row],[Attribute]]&\"+\")&ExcelShortcuts[[#This Row],[Key]]","v":"Ctrl+Shift+Alt+Escape"},{"$f":"_xlfn.XLOOKUP(SUBSTITUTE(ExcelShortcuts[[#This Row],[Shortcut]],\"+\",\" + \"),'Custom Shortcuts'!$D$15:$D$103,'Custom Shortcuts'!$C$15:$C$103,\"\",0)","v":""},{"$f":"COUNTIF(ExcelShortcuts[Key],\"=\"&ExcelShortcuts[[#This Row],[Key]])","v":8}]
["Home","Alone","Select the first cell in the row",{"$f":"IF(ExcelShortcuts[[#This Row],[Attribute]]=\"Alone\",\"\",ExcelShortcuts[[#This Row],[Attribute]]&\"+\")&ExcelShortcuts[[#This Row],[Key]]","v":"Home"},{"$f":"_xlfn.XLOOKUP(SUBSTITUTE(ExcelShortcuts[[#This Row],[Shortcut]],\"+\",\" + \"),'Custom Shortcuts'!$D$15:$D$103,'Custom Shortcuts'!$C$15:$C$103,\"\",0)","v":""},{"$f":"COUNTIF(ExcelShortcuts[Key],\"=\"&ExcelShortcuts[[#This Row],[Key]])","v":8}]
["Home","Shift","Extend selection to the first cell in the row",{"$f":"IF(ExcelShortcuts[[#This Row],[Attribute]]=\"Alone\",\"\",ExcelShortcuts[[#This Row],[Attribute]]&\"+\")&ExcelShortcuts[[#This Row],[Key]]","v":"Shift+Home"},{"$f":"_xlfn.XLOOKUP(SUBSTITUTE(ExcelShortcuts[[#This Row],[Shortcut]],\"+\",\" + \"),'Custom Shortcuts'!$D$15:$D$103,'Custom Shortcuts'!$C$15:$C$103,\"\",0)","v":""},{"$f":"COUNTIF(ExcelShortcuts[Key],\"=\"&ExcelShortcuts[[#This Row],[Key]])","v":8}]
["Home","Ctrl","Select cell to reset window (or pane)",{"$f":"IF(ExcelShortcuts[[#This Row],[Attribute]]=\"Alone\",\"\",ExcelShortcuts[[#This Row],[Attribute]]&\"+\")&ExcelShortcuts[[#This Row],[Key]]","v":"Ctrl+Home"},{"$f":"_xlfn.XLOOKUP(SUBSTITUTE(ExcelShortcuts[[#This Row],[Shortcut]],\"+\",\" + \"),'Custom Shortcuts'!$D$15:$D$103,'Custom Shortcuts'!$C$15:$C$103,\"\",0)","v":""},{"$f":"COUNTIF(ExcelShortcuts[Key],\"=\"&ExcelShortcuts[[#This Row],[Key]])","v":8}]
["Home","Alt","",{"$f":"IF(ExcelShortcuts[[#This Row],[Attribute]]=\"Alone\",\"\",ExcelShortcuts[[#This Row],[Attribute]]&\"+\")&ExcelShortcuts[[#This Row],[Key]]","v":"Alt+Home"},{"$f":"_xlfn.XLOOKUP(SUBSTITUTE(ExcelShortcuts[[#This Row],[Shortcut]],\"+\",\" + \"),'Custom Shortcuts'!$D$15:$D$103,'Custom Shortcuts'!$C$15:$C$103,\"\",0)","v":""},{"$f":"COUNTIF(ExcelShortcuts[Key],\"=\"&ExcelShortcuts[[#This Row],[Key]])","v":8}]
["Home","Ctrl+Shift","Extend selection to the cell that resets the window or pane",{"$f":"IF(ExcelShortcuts[[#This Row],[Attribute]]=\"Alone\",\"\",ExcelShortcuts[[#This Row],[Attribute]]&\"+\")&ExcelShortcuts[[#This Row],[Key]]","v":"Ctrl+Shift+Home"},{"$f":"_xlfn.XLOOKUP(SUBSTITUTE(ExcelShortcuts[[#This Row],[Shortcut]],\"+\",\" + \"),'Custom Shortcuts'!$D$15:$D$103,'Custom Shortcuts'!$C$15:$C$103,\"\",0)","v":""},{"$f":"COUNTIF(ExcelShortcuts[Key],\"=\"&ExcelShortcuts[[#This Row],[Key]])","v":8}]
["Home","Shift+Alt","",{"$f":"IF(ExcelShortcuts[[#This Row],[Attribute]]=\"Alone\",\"\",ExcelShortcuts[[#This Row],[Attribute]]&\"+\")&ExcelShortcuts[[#This Row],[Key]]","v":"Shift+Alt+Home"},{"$f":"_xlfn.XLOOKUP(SUBSTITUTE(ExcelShortcuts[[#This Row],[Shortcut]],\"+\",\" + \"),'Custom Shortcuts'!$D$15:$D$103,'Custom Shortcuts'!$C$15:$C$103,\"\",0)","v":""},{"$f":"COUNTIF(ExcelShortcuts[Key],\"=\"&ExcelShortcuts[[#This Row],[Key]])","v":8}]
["Home","Ctrl+Alt","",{"$f":"IF(ExcelShortcuts[[#This Row],[Attribute]]=\"Alone\",\"\",ExcelShortcuts[[#This Row],[Attribute]]&\"+\")&ExcelShortcuts[[#This Row],[Key]]","v":"Ctrl+Alt+Home"},{"$f":"_xlfn.XLOOKUP(SUBSTITUTE(ExcelShortcuts[[#This Row],[Shortcut]],\"+\",\" + \"),'Custom Shortcuts'!$D$15:$D$103,'Custom Shortcuts'!$C$15:$C$103,\"\",0)","v":""},{"$f":"COUNTIF(ExcelShortcuts[Key],\"=\"&ExcelShortcuts[[#This Row],[Key]])","v":8}]
["Home","Ctrl+Shift+Alt","",{"$f":"IF(ExcelShortcuts[[#This Row],[Attribute]]=\"Alone\",\"\",ExcelShortcuts[[#This Row],[Attribute]]&\"+\")&ExcelShortcuts[[#This Row],[Key]]","v":"Ctrl+Shift+Alt+Home"},{"$f":"_xlfn.XLOOKUP(SUBSTITUTE(ExcelShortcuts[[#This Row],[Shortcut]],\"+\",\" + \"),'Custom Shortcuts'!$D$15:$D$103,'Custom Shortcuts'!$C$15:$C$103,\"\",0)","v":""},{"$f":"COUNTIF(ExcelShortcuts[Key],\"=\"&ExcelShortcuts[[#This Row],[Key]])","v":8}]
["Insert","Alone","Toggle Overwrite mode in edit mode",{"$f":"IF(ExcelShortcuts[[#This Row],[Attribute]]=\"Alone\",\"\",ExcelShortcuts[[#This Row],[Attribute]]&\"+\")&ExcelShortcuts[[#This Row],[Key]]","v":"Insert"},{"$f":"_xlfn.XLOOKUP(SUBSTITUTE(ExcelShortcuts[[#This Row],[Shortcut]],\"+\",\" + \"),'Custom Shortcuts'!$D$15:$D$103,'Custom Shortcuts'!$C$15:$C$103,\"\",0)","v":""},{"$f":"COUNTIF(ExcelShortcuts[Key],\"=\"&ExcelShortcuts[[#This Row],[Key]])","v":8}]
["Insert","Shift","Paste",{"$f":"IF(ExcelShortcuts[[#This Row],[Attribute]]=\"Alone\",\"\",ExcelShortcuts[[#This Row],[Attribute]]&\"+\")&ExcelShortcuts[[#This Row],[Key]]","v":"Shift+Insert"},{"$f":"_xlfn.XLOOKUP(SUBSTITUTE(ExcelShortcuts[[#This Row],[Shortcut]],\"+\",\" + \"),'Custom Shortcuts'!$D$15:$D$103,'Custom Shortcuts'!$C$15:$C$103,\"\",0)","v":""},{"$f":"COUNTIF(ExcelShortcuts[Key],\"=\"&ExcelShortcuts[[#This Row],[Key]])","v":8}]
["Insert","Ctrl","Copy",{"$f":"IF(ExcelShortcuts[[#This Row],[Attribute]]=\"Alone\",\"\",ExcelShortcuts[[#This Row],[Attribute]]&\"+\")&ExcelShortcuts[[#This Row],[Key]]","v":"Ctrl+Insert"},{"$f":"_xlfn.XLOOKUP(SUBSTITUTE(ExcelShortcuts[[#This Row],[Shortcut]],\"+\",\" + \"),'Custom Shortcuts'!$D$15:$D$103,'Custom Shortcuts'!$C$15:$C$103,\"\",0)","v":""},{"$f":"COUNTIF(ExcelShortcuts[Key],\"=\"&ExcelShortcuts[[#This Row],[Key]])","v":8}]
["Insert","Alt","",{"$f":"IF(ExcelShortcuts[[#This Row],[Attribute]]=\"Alone\",\"\",ExcelShortcuts[[#This Row],[Attribute]]&\"+\")&ExcelShortcuts[[#This Row],[Key]]","v":"Alt+Insert"},{"$f":"_xlfn.XLOOKUP(SUBSTITUTE(ExcelShortcuts[[#This Row],[Shortcut]],\"+\",\" + \"),'Custom Shortcuts'!$D$15:$D$103,'Custom Shortcuts'!$C$15:$C$103,\"\",0)","v":""},{"$f":"COUNTIF(ExcelShortcuts[Key],\"=\"&ExcelShortcuts[[#This Row],[Key]])","v":8}]
["Insert","Ctrl+Shift","",{"$f":"IF(ExcelShortcuts[[#This Row],[Attribute]]=\"Alone\",\"\",ExcelShortcuts[[#This Row],[Attribute]]&\"+\")&ExcelShortcuts[[#This Row],[Key]]","v":"Ctrl+Shift+Insert"},{"$f":"_xlfn.XLOOKUP(SUBSTITUTE(ExcelShortcuts[[#This Row],[Shortcut]],\"+\",\" + \"),'Custom Shortcuts'!$D$15:$D$103,'Custom Shortcuts'!$C$15:$C$103,\"\",0)","v":""},{"$f":"COUNTIF(ExcelShortcuts[Key],\"=\"&ExcelShortcuts[[#This Row],[Key]])","v":8}]
["Insert","Shift+Alt","",{"$f":"IF(ExcelShortcuts[[#This Row],[Attribute]]=\"Alone\",\"\",ExcelShortcuts[[#This Row],[Attribute]]&\"+\")&ExcelShortcuts[[#This Row],[Key]]","v":"Shift+Alt+Insert"},{"$f":"_xlfn.XLOOKUP(SUBSTITUTE(ExcelShortcuts[[#This Row],[Shortcut]],\"+\",\" + \"),'Custom Shortcuts'!$D$15:$D$103,'Custom Shortcuts'!$C$15:$C$103,\"\",0)","v":""},{"$f":"COUNTIF(ExcelShortcuts[Key],\"=\"&ExcelShortcuts[[#This Row],[Key]])","v":8}]
["Insert","Ctrl+Alt","",{"$f":"IF(ExcelShortcuts[[#This Row],[Attribute]]=\"Alone\",\"\",ExcelShortcuts[[#This Row],[Attribute]]&\"+\")&ExcelShortcuts[[#This Row],[Key]]","v":"Ctrl+Alt+Insert"},{"$f":"_xlfn.XLOOKUP(SUBSTITUTE(ExcelShortcuts[[#This Row],[Shortcut]],\"+\",\" + \"),'Custom Shortcuts'!$D$15:$D$103,'Custom Shortcuts'!$C$15:$C$103,\"\",0)","v":""},{"$f":"COUNTIF(ExcelShortcuts[Key],\"=\"&ExcelShortcuts[[#This Row],[Key]])","v":8}]
["Insert","Ctrl+Shift+Alt","",{"$f":"IF(ExcelShortcuts[[#This Row],[Attribute]]=\"Alone\",\"\",ExcelShortcuts[[#This Row],[Attribute]]&\"+\")&ExcelShortcuts[[#This Row],[Key]]","v":"Ctrl+Shift+Alt+Insert"},{"$f":"_xlfn.XLOOKUP(SUBSTITUTE(ExcelShortcuts[[#This Row],[Shortcut]],\"+\",\" + \"),'Custom Shortcuts'!$D$15:$D$103,'Custom Shortcuts'!$C$15:$C$103,\"\",0)","v":""},{"$f":"COUNTIF(ExcelShortcuts[Key],\"=\"&ExcelShortcuts[[#This Row],[Key]])","v":8}]
["Left","Alone","Move left one cell",{"$f":"IF(ExcelShortcuts[[#This Row],[Attribute]]=\"Alone\",\"\",ExcelShortcuts[[#This Row],[Attribute]]&\"+\")&ExcelShortcuts[[#This Row],[Key]]","v":"Left"},{"$f":"_xlfn.XLOOKUP(SUBSTITUTE(ExcelShortcuts[[#This Row],[Shortcut]],\"+\",\" + \"),'Custom Shortcuts'!$D$15:$D$103,'Custom Shortcuts'!$C$15:$C$103,\"\",0)","v":""},{"$f":"COUNTIF(ExcelShortcuts[Key],\"=\"&ExcelShortcuts[[#This Row],[Key]])","v":8}]
["Left","Shift","Extend selection left one cell",{"$f":"IF(ExcelShortcuts[[#This Row],[Attribute]]=\"Alone\",\"\",ExcelShortcuts[[#This Row],[Attribute]]&\"+\")&ExcelShortcuts[[#This Row],[Key]]","v":"Shift+Left"},{"$f":"_xlfn.XLOOKUP(SUBSTITUTE(ExcelShortcuts[[#This Row],[Shortcut]],\"+\",\" + \"),'Custom Shortcuts'!$D$15:$D$103,'Custom Shortcuts'!$C$15:$C$103,\"\",0)","v":""},{"$f":"COUNTIF(ExcelShortcuts[Key],\"=\"&ExcelShortcuts[[#This Row],[Key]])","v":8}]
["Left","Ctrl","Select the last cell in the area left",{"$f":"IF(ExcelShortcuts[[#This Row],[Attribute]]=\"Alone\",\"\",ExcelShortcuts[[#This Row],[Attribute]]&\"+\")&ExcelShortcuts[[#This Row],[Key]]","v":"Ctrl+Left"},{"$f":"_xlfn.XLOOKUP(SUBSTITUTE(ExcelShortcuts[[#This Row],[Shortcut]],\"+\",\" + \"),'Custom Shortcuts'!$D$15:$D$103,'Custom Shortcuts'!$C$15:$C$103,\"\",0)","v":""},{"$f":"COUNTIF(ExcelShortcuts[Key],\"=\"&ExcelShortcuts[[#This Row],[Key]])","v":8}]
["Left","Alt","Back (hyperlink navigation)",{"$f":"IF(ExcelShortcuts[[#This Row],[Attribute]]=\"Alone\",\"\",ExcelShortcuts[[#This Row],[Attribute]]&\"+\")&ExcelShortcuts[[#This Row],[Key]]","v":"Alt+Left"},{"$f":"_xlfn.XLOOKUP(SUBSTITUTE(ExcelShortcuts[[#This Row],[Shortcut]],\"+\",\" + \"),'Custom Shortcuts'!$D$15:$D$103,'Custom Shortcuts'!$C$15:$C$103,\"\",0)","v":""},{"$f":"COUNTIF(ExcelShortcuts[Key],\"=\"&ExcelShortcuts[[#This Row],[Key]])","v":8}]
["Left","Ctrl+Shift","Extend selection down to last cell in area left",{"$f":"IF(ExcelShortcuts[[#This Row],[Attribute]]=\"Alone\",\"\",ExcelShortcuts[[#This Row],[Attribute]]&\"+\")&ExcelShortcuts[[#This Row],[Key]]","v":"Ctrl+Shift+Left"},{"$f":"_xlfn.XLOOKUP(SUBSTITUTE(ExcelShortcuts[[#This Row],[Shortcut]],\"+\",\" + \"),'Custom Shortcuts'!$D$15:$D$103,'Custom Shortcuts'!$C$15:$C$103,\"\",0)","v":""},{"$f":"COUNTIF(ExcelShortcuts[Key],\"=\"&ExcelShortcuts[[#This Row],[Key]])","v":8}]
["Left","Shift+Alt","Ungroup",{"$f":"IF(ExcelShortcuts[[#This Row],[Attribute]]=\"Alone\",\"\",ExcelShortcuts[[#This Row],[Attribute]]&\"+\")&ExcelShortcuts[[#This Row],[Key]]","v":"Shift+Alt+Left"},{"$f":"_xlfn.XLOOKUP(SUBSTITUTE(ExcelShortcuts[[#This Row],[Shortcut]],\"+\",\" + \"),'Custom Shortcuts'!$D$15:$D$103,'Custom Shortcuts'!$C$15:$C$103,\"\",0)","v":""},{"$f":"COUNTIF(ExcelShortcuts[Key],\"=\"&ExcelShortcuts[[#This Row],[Key]])","v":8}]
["Left","Ctrl+Alt","Intel Chipset: Turn screen +90 degrees; else: move active cell to previous non-adjacent area within selection",{"$f":"IF(ExcelShortcuts[[#This Row],[Attribute]]=\"Alone\",\"\",ExcelShortcuts[[#This Row],[Attribute]]&\"+\")&ExcelShortcuts[[#This Row],[Key]]","v":"Ctrl+Alt+Left"},{"$f":"_xlfn.XLOOKUP(SUBSTITUTE(ExcelShortcuts[[#This Row],[Shortcut]],\"+\",\" + \"),'Custom Shortcuts'!$D$15:$D$103,'Custom Shortcuts'!$C$15:$C$103,\"\",0)","v":""},{"$f":"COUNTIF(ExcelShortcuts[Key],\"=\"&ExcelShortcuts[[#This Row],[Key]])","v":8}]
["Left","Ctrl+Shift+Alt","",{"$f":"IF(ExcelShortcuts[[#This Row],[Attribute]]=\"Alone\",\"\",ExcelShortcuts[[#This Row],[Attribute]]&\"+\")&ExcelShortcuts[[#This Row],[Key]]","v":"Ctrl+Shift+Alt+Left"},{"$f":"_xlfn.XLOOKUP(SUBSTITUTE(ExcelShortcuts[[#This Row],[Shortcut]],\"+\",\" + \"),'Custom Shortcuts'!$D$15:$D$103,'Custom Shortcuts'!$C$15:$C$103,\"\",0)","v":""},{"$f":"COUNTIF(ExcelShortcuts[Key],\"=\"&ExcelShortcuts[[#This Row],[Key]])","v":8}]
["*","Alone","",{"$f":"IF(ExcelShortcuts[[#This Row],[Attribute]]=\"Alone\",\"\",ExcelShortcuts[[#This Row],[Attribute]]&\"+\")&ExcelShortcuts[[#This Row],[Key]]","v":"*"},{"$f":"_xlfn.XLOOKUP(SUBSTITUTE(ExcelShortcuts[[#This Row],[Shortcut]],\"+\",\" + \"),'Custom Shortcuts'!$D$15:$D$103,'Custom Shortcuts'!$C$15:$C$103,\"\",0)","v":""},{"$f":"COUNTIF(ExcelShortcuts[Key],\"=\"&ExcelShortcuts[[#This Row],[Key]])","v":463}]
["*","Shift","",{"$f":"IF(ExcelShortcuts[[#This Row],[Attribute]]=\"Alone\",\"\",ExcelShortcuts[[#This Row],[Attribute]]&\"+\")&ExcelShortcuts[[#This Row],[Key]]","v":"Shift+*"},{"$f":"_xlfn.XLOOKUP(SUBSTITUTE(ExcelShortcuts[[#This Row],[Shortcut]],\"+\",\" + \"),'Custom Shortcuts'!$D$15:$D$103,'Custom Shortcuts'!$C$15:$C$103,\"\",0)","v":""},{"$f":"COUNTIF(ExcelShortcuts[Key],\"=\"&ExcelShortcuts[[#This Row],[Key]])","v":463}]
["*","Ctrl","Select current region",{"$f":"IF(ExcelShortcuts[[#This Row],[Attribute]]=\"Alone\",\"\",ExcelShortcuts[[#This Row],[Attribute]]&\"+\")&ExcelShortcuts[[#This Row],[Key]]","v":"Ctrl+*"},{"$f":"_xlfn.XLOOKUP(SUBSTITUTE(ExcelShortcuts[[#This Row],[Shortcut]],\"+\",\" + \"),'Custom Shortcuts'!$D$15:$D$103,'Custom Shortcuts'!$C$15:$C$103,\"\",0)","v":""},{"$f":"COUNTIF(ExcelShortcuts[Key],\"=\"&ExcelShortcuts[[#This Row],[Key]])","v":463}]
["*","Alt","",{"$f":"IF(ExcelShortcuts[[#This Row],[Attribute]]=\"Alone\",\"\",ExcelShortcuts[[#This Row],[Attribute]]&\"+\")&ExcelShortcuts[[#This Row],[Key]]","v":"Alt+*"},{"$f":"_xlfn.XLOOKUP(SUBSTITUTE(ExcelShortcuts[[#This Row],[Shortcut]],\"+\",\" + \"),'Custom Shortcuts'!$D$15:$D$103,'Custom Shortcuts'!$C$15:$C$103,\"\",0)","v":""},{"$f":"COUNTIF(ExcelShortcuts[Key],\"=\"&ExcelShortcuts[[#This Row],[Key]])","v":463}]
["*","Ctrl+Shift","",{"$f":"IF(ExcelShortcuts[[#This Row],[Attribute]]=\"Alone\",\"\",ExcelShortcuts[[#This Row],[Attribute]]&\"+\")&ExcelShortcuts[[#This Row],[Key]]","v":"Ctrl+Shift+*"},{"$f":"_xlfn.XLOOKUP(SUBSTITUTE(ExcelShortcuts[[#This Row],[Shortcut]],\"+\",\" + \"),'Custom Shortcuts'!$D$15:$D$103,'Custom Shortcuts'!$C$15:$C$103,\"\",0)","v":""},{"$f":"COUNTIF(ExcelShortcuts[Key],\"=\"&ExcelShortcuts[[#This Row],[Key]])","v":463}]
["*","Shift+Alt","",{"$f":"IF(ExcelShortcuts[[#This Row],[Attribute]]=\"Alone\",\"\",ExcelShortcuts[[#This Row],[Attribute]]&\"+\")&ExcelShortcuts[[#This Row],[Key]]","v":"Shift+Alt+*"},{"$f":"_xlfn.XLOOKUP(SUBSTITUTE(ExcelShortcuts[[#This Row],[Shortcut]],\"+\",\" + \"),'Custom Shortcuts'!$D$15:$D$103,'Custom Shortcuts'!$C$15:$C$103,\"\",0)","v":""},{"$f":"COUNTIF(ExcelShortcuts[Key],\"=\"&ExcelShortcuts[[#This Row],[Key]])","v":463}]
["*","Ctrl+Alt","",{"$f":"IF(ExcelShortcuts[[#This Row],[Attribute]]=\"Alone\",\"\",ExcelShortcuts[[#This Row],[Attribute]]&\"+\")&ExcelShortcuts[[#This Row],[Key]]","v":"Ctrl+Alt+*"},{"$f":"_xlfn.XLOOKUP(SUBSTITUTE(ExcelShortcuts[[#This Row],[Shortcut]],\"+\",\" + \"),'Custom Shortcuts'!$D$15:$D$103,'Custom Shortcuts'!$C$15:$C$103,\"\",0)","v":""},{"$f":"COUNTIF(ExcelShortcuts[Key],\"=\"&ExcelShortcuts[[#This Row],[Key]])","v":463}]
["*","Ctrl+Shift+Alt","",{"$f":"IF(ExcelShortcuts[[#This Row],[Attribute]]=\"Alone\",\"\",ExcelShortcuts[[#This Row],[Attribute]]&\"+\")&ExcelShortcuts[[#This Row],[Key]]","v":"Ctrl+Shift+Alt+*"},{"$f":"_xlfn.XLOOKUP(SUBSTITUTE(ExcelShortcuts[[#This Row],[Shortcut]],\"+\",\" + \"),'Custom Shortcuts'!$D$15:$D$103,'Custom Shortcuts'!$C$15:$C$103,\"\",0)","v":""},{"$f":"COUNTIF(ExcelShortcuts[Key],\"=\"&ExcelShortcuts[[#This Row],[Key]])","v":463}]
["PageDown","Alone","Page Down",{"$f":"IF(ExcelShortcuts[[#This Row],[Attribute]]=\"Alone\",\"\",ExcelShortcuts[[#This Row],[Attribute]]&\"+\")&ExcelShortcuts[[#This Row],[Key]]","v":"PageDown"},{"$f":"_xlfn.XLOOKUP(SUBSTITUTE(ExcelShortcuts[[#This Row],[Shortcut]],\"+\",\" + \"),'Custom Shortcuts'!$D$15:$D$103,'Custom Shortcuts'!$C$15:$C$103,\"\",0)","v":""},{"$f":"COUNTIF(ExcelShortcuts[Key],\"=\"&ExcelShortcuts[[#This Row],[Key]])","v":8}]
["PageDown","Shift","Extend selection page down",{"$f":"IF(ExcelShortcuts[[#This Row],[Attribute]]=\"Alone\",\"\",ExcelShortcuts[[#This Row],[Attribute]]&\"+\")&ExcelShortcuts[[#This Row],[Key]]","v":"Shift+PageDown"},{"$f":"_xlfn.XLOOKUP(SUBSTITUTE(ExcelShortcuts[[#This Row],[Shortcut]],\"+\",\" + \"),'Custom Shortcuts'!$D$15:$D$103,'Custom Shortcuts'!$C$15:$C$103,\"\",0)","v":""},{"$f":"COUNTIF(ExcelShortcuts[Key],\"=\"&ExcelShortcuts[[#This Row],[Key]])","v":8}]
["PageDown","Ctrl","Next Sheet",{"$f":"IF(ExcelShortcuts[[#This Row],[Attribute]]=\"Alone\",\"\",ExcelShortcuts[[#This Row],[Attribute]]&\"+\")&ExcelShortcuts[[#This Row],[Key]]","v":"Ctrl+PageDown"},{"$f":"_xlfn.XLOOKUP(SUBSTITUTE(ExcelShortcuts[[#This Row],[Shortcut]],\"+\",\" + \"),'Custom Shortcuts'!$D$15:$D$103,'Custom Shortcuts'!$C$15:$C$103,\"\",0)","v":""},{"$f":"COUNTIF(ExcelShortcuts[Key],\"=\"&ExcelShortcuts[[#This Row],[Key]])","v":8}]
["PageDown","Alt","Page Right",{"$f":"IF(ExcelShortcuts[[#This Row],[Attribute]]=\"Alone\",\"\",ExcelShortcuts[[#This Row],[Attribute]]&\"+\")&ExcelShortcuts[[#This Row],[Key]]","v":"Alt+PageDown"},{"$f":"_xlfn.XLOOKUP(SUBSTITUTE(ExcelShortcuts[[#This Row],[Shortcut]],\"+\",\" + \"),'Custom Shortcuts'!$D$15:$D$103,'Custom Shortcuts'!$C$15:$C$103,\"\",0)","v":""},{"$f":"COUNTIF(ExcelShortcuts[Key],\"=\"&ExcelShortcuts[[#This Row],[Key]])","v":8}]
["PageDown","Ctrl+Shift","Extend selection one sheet down",{"$f":"IF(ExcelShortcuts[[#This Row],[Attribute]]=\"Alone\",\"\",ExcelShortcuts[[#This Row],[Attribute]]&\"+\")&ExcelShortcuts[[#This Row],[Key]]","v":"Ctrl+Shift+PageDown"},{"$f":"_xlfn.XLOOKUP(SUBSTITUTE(ExcelShortcuts[[#This Row],[Shortcut]],\"+\",\" + \"),'Custom Shortcuts'!$D$15:$D$103,'Custom Shortcuts'!$C$15:$C$103,\"\",0)","v":""},{"$f":"COUNTIF(ExcelShortcuts[Key],\"=\"&ExcelShortcuts[[#This Row],[Key]])","v":8}]
["PageDown","Shift+Alt","Extend selection Page Right",{"$f":"IF(ExcelShortcuts[[#This Row],[Attribute]]=\"Alone\",\"\",ExcelShortcuts[[#This Row],[Attribute]]&\"+\")&ExcelShortcuts[[#This Row],[Key]]","v":"Shift+Alt+PageDown"},{"$f":"_xlfn.XLOOKUP(SUBSTITUTE(ExcelShortcuts[[#This Row],[Shortcut]],\"+\",\" + \"),'Custom Shortcuts'!$D$15:$D$103,'Custom Shortcuts'!$C$15:$C$103,\"\",0)","v":""},{"$f":"COUNTIF(ExcelShortcuts[Key],\"=\"&ExcelShortcuts[[#This Row],[Key]])","v":8}]
["PageDown","Ctrl+Alt","",{"$f":"IF(ExcelShortcuts[[#This Row],[Attribute]]=\"Alone\",\"\",ExcelShortcuts[[#This Row],[Attribute]]&\"+\")&ExcelShortcuts[[#This Row],[Key]]","v":"Ctrl+Alt+PageDown"},{"$f":"_xlfn.XLOOKUP(SUBSTITUTE(ExcelShortcuts[[#This Row],[Shortcut]],\"+\",\" + \"),'Custom Shortcuts'!$D$15:$D$103,'Custom Shortcuts'!$C$15:$C$103,\"\",0)","v":""},{"$f":"COUNTIF(ExcelShortcuts[Key],\"=\"&ExcelShortcuts[[#This Row],[Key]])","v":8}]
["PageDown","Ctrl+Shift+Alt","",{"$f":"IF(ExcelShortcuts[[#This Row],[Attribute]]=\"Alone\",\"\",ExcelShortcuts[[#This Row],[Attribute]]&\"+\")&ExcelShortcuts[[#This Row],[Key]]","v":"Ctrl+Shift+Alt+PageDown"},{"$f":"_xlfn.XLOOKUP(SUBSTITUTE(ExcelShortcuts[[#This Row],[Shortcut]],\"+\",\" + \"),'Custom Shortcuts'!$D$15:$D$103,'Custom Shortcuts'!$C$15:$C$103,\"\",0)","v":""},{"$f":"COUNTIF(ExcelShortcuts[Key],\"=\"&ExcelShortcuts[[#This Row],[Key]])","v":8}]
["PageUp","Alone","Page Up",{"$f":"IF(ExcelShortcuts[[#This Row],[Attribute]]=\"Alone\",\"\",ExcelShortcuts[[#This Row],[Attribute]]&\"+\")&ExcelShortcuts[[#This Row],[Key]]","v":"PageUp"},{"$f":"_xlfn.XLOOKUP(SUBSTITUTE(ExcelShortcuts[[#This Row],[Shortcut]],\"+\",\" + \"),'Custom Shortcuts'!$D$15:$D$103,'Custom Shortcuts'!$C$15:$C$103,\"\",0)","v":""},{"$f":"COUNTIF(ExcelShortcuts[Key],\"=\"&ExcelShortcuts[[#This Row],[Key]])","v":8}]
["PageUp","Shift","Extend selection page up",{"$f":"IF(ExcelShortcuts[[#This Row],[Attribute]]=\"Alone\",\"\",ExcelShortcuts[[#This Row],[Attribute]]&\"+\")&ExcelShortcuts[[#This Row],[Key]]","v":"Shift+PageUp"},{"$f":"_xlfn.XLOOKUP(SUBSTITUTE(ExcelShortcuts[[#This Row],[Shortcut]],\"+\",\" + \"),'Custom Shortcuts'!$D$15:$D$103,'Custom Shortcuts'!$C$15:$C$103,\"\",0)","v":""},{"$f":"COUNTIF(ExcelShortcuts[Key],\"=\"&ExcelShortcuts[[#This Row],[Key]])","v":8}]
["PageUp","Ctrl","Previous Sheet",{"$f":"IF(ExcelShortcuts[[#This Row],[Attribute]]=\"Alone\",\"\",ExcelShortcuts[[#This Row],[Attribute]]&\"+\")&ExcelShortcuts[[#This Row],[Key]]","v":"Ctrl+PageUp"},{"$f":"_xlfn.XLOOKUP(SUBSTITUTE(ExcelShortcuts[[#This Row],[Shortcut]],\"+\",\" + \"),'Custom Shortcuts'!$D$15:$D$103,'Custom Shortcuts'!$C$15:$C$103,\"\",0)","v":""},{"$f":"COUNTIF(ExcelShortcuts[Key],\"=\"&ExcelShortcuts[[#This Row],[Key]])","v":8}]
["PageUp","Alt","Page Left",{"$f":"IF(ExcelShortcuts[[#This Row],[Attribute]]=\"Alone\",\"\",ExcelShortcuts[[#This Row],[Attribute]]&\"+\")&ExcelShortcuts[[#This Row],[Key]]","v":"Alt+PageUp"},{"$f":"_xlfn.XLOOKUP(SUBSTITUTE(ExcelShortcuts[[#This Row],[Shortcut]],\"+\",\" + \"),'Custom Shortcuts'!$D$15:$D$103,'Custom Shortcuts'!$C$15:$C$103,\"\",0)","v":""},{"$f":"COUNTIF(ExcelShortcuts[Key],\"=\"&ExcelShortcuts[[#This Row],[Key]])","v":8}]
["PageUp","Ctrl+Shift","Extend selection one sheet up",{"$f":"IF(ExcelShortcuts[[#This Row],[Attribute]]=\"Alone\",\"\",ExcelShortcuts[[#This Row],[Attribute]]&\"+\")&ExcelShortcuts[[#This Row],[Key]]","v":"Ctrl+Shift+PageUp"},{"$f":"_xlfn.XLOOKUP(SUBSTITUTE(ExcelShortcuts[[#This Row],[Shortcut]],\"+\",\" + \"),'Custom Shortcuts'!$D$15:$D$103,'Custom Shortcuts'!$C$15:$C$103,\"\",0)","v":""},{"$f":"COUNTIF(ExcelShortcuts[Key],\"=\"&ExcelShortcuts[[#This Row],[Key]])","v":8}]
["PageUp","Shift+Alt","Extend selection Page Left",{"$f":"IF(ExcelShortcuts[[#This Row],[Attribute]]=\"Alone\",\"\",ExcelShortcuts[[#This Row],[Attribute]]&\"+\")&ExcelShortcuts[[#This Row],[Key]]","v":"Shift+Alt+PageUp"},{"$f":"_xlfn.XLOOKUP(SUBSTITUTE(ExcelShortcuts[[#This Row],[Shortcut]],\"+\",\" + \"),'Custom Shortcuts'!$D$15:$D$103,'Custom Shortcuts'!$C$15:$C$103,\"\",0)","v":""},{"$f":"COUNTIF(ExcelShortcuts[Key],\"=\"&ExcelShortcuts[[#This Row],[Key]])","v":8}]
["PageUp","Ctrl+Alt","",{"$f":"IF(ExcelShortcuts[[#This Row],[Attribute]]=\"Alone\",\"\",ExcelShortcuts[[#This Row],[Attribute]]&\"+\")&ExcelShortcuts[[#This Row],[Key]]","v":"Ctrl+Alt+PageUp"},{"$f":"_xlfn.XLOOKUP(SUBSTITUTE(ExcelShortcuts[[#This Row],[Shortcut]],\"+\",\" + \"),'Custom Shortcuts'!$D$15:$D$103,'Custom Shortcuts'!$C$15:$C$103,\"\",0)","v":""},{"$f":"COUNTIF(ExcelShortcuts[Key],\"=\"&ExcelShortcuts[[#This Row],[Key]])","v":8}]
["PageUp","Ctrl+Shift+Alt","",{"$f":"IF(ExcelShortcuts[[#This Row],[Attribute]]=\"Alone\",\"\",ExcelShortcuts[[#This Row],[Attribute]]&\"+\")&ExcelShortcuts[[#This Row],[Key]]","v":"Ctrl+Shift+Alt+PageUp"},{"$f":"_xlfn.XLOOKUP(SUBSTITUTE(ExcelShortcuts[[#This Row],[Shortcut]],\"+\",\" + \"),'Custom Shortcuts'!$D$15:$D$103,'Custom Shortcuts'!$C$15:$C$103,\"\",0)","v":""},{"$f":"COUNTIF(ExcelShortcuts[Key],\"=\"&ExcelShortcuts[[#This Row],[Key]])","v":8}]
["Return","Alone","Enter value and move down",{"$f":"IF(ExcelShortcuts[[#This Row],[Attribute]]=\"Alone\",\"\",ExcelShortcuts[[#This Row],[Attribute]]&\"+\")&ExcelShortcuts[[#This Row],[Key]]","v":"Return"},{"$f":"_xlfn.XLOOKUP(SUBSTITUTE(ExcelShortcuts[[#This Row],[Shortcut]],\"+\",\" + \"),'Custom Shortcuts'!$D$15:$D$103,'Custom Shortcuts'!$C$15:$C$103,\"\",0)","v":""},{"$f":"COUNTIF(ExcelShortcuts[Key],\"=\"&ExcelShortcuts[[#This Row],[Key]])","v":8}]
["Return","Shift","Enter value and move up",{"$f":"IF(ExcelShortcuts[[#This Row],[Attribute]]=\"Alone\",\"\",ExcelShortcuts[[#This Row],[Attribute]]&\"+\")&ExcelShortcuts[[#This Row],[Key]]","v":"Shift+Return"},{"$f":"_xlfn.XLOOKUP(SUBSTITUTE(ExcelShortcuts[[#This Row],[Shortcut]],\"+\",\" + \"),'Custom Shortcuts'!$D$15:$D$103,'Custom Shortcuts'!$C$15:$C$103,\"\",0)","v":""},{"$f":"COUNTIF(ExcelShortcuts[Key],\"=\"&ExcelShortcuts[[#This Row],[Key]])","v":8}]
["Return","Ctrl","Fill value in edited cell into all cell and do not move",{"$f":"IF(ExcelShortcuts[[#This Row],[Attribute]]=\"Alone\",\"\",ExcelShortcuts[[#This Row],[Attribute]]&\"+\")&ExcelShortcuts[[#This Row],[Key]]","v":"Ctrl+Return"},{"$f":"_xlfn.XLOOKUP(SUBSTITUTE(ExcelShortcuts[[#This Row],[Shortcut]],\"+\",\" + \"),'Custom Shortcuts'!$D$15:$D$103,'Custom Shortcuts'!$C$15:$C$103,\"\",0)","v":""},{"$f":"COUNTIF(ExcelShortcuts[Key],\"=\"&ExcelShortcuts[[#This Row],[Key]])","v":8}]
["Return","Alt","Redo",{"$f":"IF(ExcelShortcuts[[#This Row],[Attribute]]=\"Alone\",\"\",ExcelShortcuts[[#This Row],[Attribute]]&\"+\")&ExcelShortcuts[[#This Row],[Key]]","v":"Alt+Return"},{"$f":"_xlfn.XLOOKUP(SUBSTITUTE(ExcelShortcuts[[#This Row],[Shortcut]],\"+\",\" + \"),'Custom Shortcuts'!$D$15:$D$103,'Custom Shortcuts'!$C$15:$C$103,\"\",0)","v":""},{"$f":"COUNTIF(ExcelShortcuts[Key],\"=\"&ExcelShortcuts[[#This Row],[Key]])","v":8}]
["Return","Ctrl+Shift","Fill value in edited cell into all cells and do not move",{"$f":"IF(ExcelShortcuts[[#This Row],[Attribute]]=\"Alone\",\"\",ExcelShortcuts[[#This Row],[Attribute]]&\"+\")&ExcelShortcuts[[#This Row],[Key]]","v":"Ctrl+Shift+Return"},{"$f":"_xlfn.XLOOKUP(SUBSTITUTE(ExcelShortcuts[[#This Row],[Shortcut]],\"+\",\" + \"),'Custom Shortcuts'!$D$15:$D$103,'Custom Shortcuts'!$C$15:$C$103,\"\",0)","v":""},{"$f":"COUNTIF(ExcelShortcuts[Key],\"=\"&ExcelShortcuts[[#This Row],[Key]])","v":8}]
["Return","Shift+Alt","",{"$f":"IF(ExcelShortcuts[[#This Row],[Attribute]]=\"Alone\",\"\",ExcelShortcuts[[#This Row],[Attribute]]&\"+\")&ExcelShortcuts[[#This Row],[Key]]","v":"Shift+Alt+Return"},{"$f":"_xlfn.XLOOKUP(SUBSTITUTE(ExcelShortcuts[[#This Row],[Shortcut]],\"+\",\" + \"),'Custom Shortcuts'!$D$15:$D$103,'Custom Shortcuts'!$C$15:$C$103,\"\",0)","v":""},{"$f":"COUNTIF(ExcelShortcuts[Key],\"=\"&ExcelShortcuts[[#This Row],[Key]])","v":8}]
["Return","Ctrl+Alt","",{"$f":"IF(ExcelShortcuts[[#This Row],[Attribute]]=\"Alone\",\"\",ExcelShortcuts[[#This Row],[Attribute]]&\"+\")&ExcelShortcuts[[#This Row],[Key]]","v":"Ctrl+Alt+Return"},{"$f":"_xlfn.XLOOKUP(SUBSTITUTE(ExcelShortcuts[[#This Row],[Shortcut]],\"+\",\" + \"),'Custom Shortcuts'!$D$15:$D$103,'Custom Shortcuts'!$C$15:$C$103,\"\",0)","v":""},{"$f":"COUNTIF(ExcelShortcuts[Key],\"=\"&ExcelShortcuts[[#This Row],[Key]])","v":8}]
["Return","Ctrl+Shift+Alt","",{"$f":"IF(ExcelShortcuts[[#This Row],[Attribute]]=\"Alone\",\"\",ExcelShortcuts[[#This Row],[Attribute]]&\"+\")&ExcelShortcuts[[#This Row],[Key]]","v":"Ctrl+Shift+Alt+Return"},{"$f":"_xlfn.XLOOKUP(SUBSTITUTE(ExcelShortcuts[[#This Row],[Shortcut]],\"+\",\" + \"),'Custom Shortcuts'!$D$15:$D$103,'Custom Shortcuts'!$C$15:$C$103,\"\",0)","v":""},{"$f":"COUNTIF(ExcelShortcuts[Key],\"=\"&ExcelShortcuts[[#This Row],[Key]])","v":8}]
["Right","Alone","Move right one cell",{"$f":"IF(ExcelShortcuts[[#This Row],[Attribute]]=\"Alone\",\"\",ExcelShortcuts[[#This Row],[Attribute]]&\"+\")&ExcelShortcuts[[#This Row],[Key]]","v":"Right"},{"$f":"_xlfn.XLOOKUP(SUBSTITUTE(ExcelShortcuts[[#This Row],[Shortcut]],\"+\",\" + \"),'Custom Shortcuts'!$D$15:$D$103,'Custom Shortcuts'!$C$15:$C$103,\"\",0)","v":""},{"$f":"COUNTIF(ExcelShortcuts[Key],\"=\"&ExcelShortcuts[[#This Row],[Key]])","v":8}]
["Right","Shift","Extend selection right one cell",{"$f":"IF(ExcelShortcuts[[#This Row],[Attribute]]=\"Alone\",\"\",ExcelShortcuts[[#This Row],[Attribute]]&\"+\")&ExcelShortcuts[[#This Row],[Key]]","v":"Shift+Right"},{"$f":"_xlfn.XLOOKUP(SUBSTITUTE(ExcelShortcuts[[#This Row],[Shortcut]],\"+\",\" + \"),'Custom Shortcuts'!$D$15:$D$103,'Custom Shortcuts'!$C$15:$C$103,\"\",0)","v":""},{"$f":"COUNTIF(ExcelShortcuts[Key],\"=\"&ExcelShortcuts[[#This Row],[Key]])","v":8}]
["Right","Ctrl","Select the last cell in the area right",{"$f":"IF(ExcelShortcuts[[#This Row],[Attribute]]=\"Alone\",\"\",ExcelShortcuts[[#This Row],[Attribute]]&\"+\")&ExcelShortcuts[[#This Row],[Key]]","v":"Ctrl+Right"},{"$f":"_xlfn.XLOOKUP(SUBSTITUTE(ExcelShortcuts[[#This Row],[Shortcut]],\"+\",\" + \"),'Custom Shortcuts'!$D$15:$D$103,'Custom Shortcuts'!$C$15:$C$103,\"\",0)","v":""},{"$f":"COUNTIF(ExcelShortcuts[Key],\"=\"&ExcelShortcuts[[#This Row],[Key]])","v":8}]
["Right","Alt","Forward (hyperlink navigation)",{"$f":"IF(ExcelShortcuts[[#This Row],[Attribute]]=\"Alone\",\"\",ExcelShortcuts[[#This Row],[Attribute]]&\"+\")&ExcelShortcuts[[#This Row],[Key]]","v":"Alt+Right"},{"$f":"_xlfn.XLOOKUP(SUBSTITUTE(ExcelShortcuts[[#This Row],[Shortcut]],\"+\",\" + \"),'Custom Shortcuts'!$D$15:$D$103,'Custom Shortcuts'!$C$15:$C$103,\"\",0)","v":""},{"$f":"COUNTIF(ExcelShortcuts[Key],\"=\"&ExcelShortcuts[[#This Row],[Key]])","v":8}]
["Right","Ctrl+Shift","Extend selection down to last cell in area right",{"$f":"IF(ExcelShortcuts[[#This Row],[Attribute]]=\"Alone\",\"\",ExcelShortcuts[[#This Row],[Attribute]]&\"+\")&ExcelShortcuts[[#This Row],[Key]]","v":"Ctrl+Shift+Right"},{"$f":"_xlfn.XLOOKUP(SUBSTITUTE(ExcelShortcuts[[#This Row],[Shortcut]],\"+\",\" + \"),'Custom Shortcuts'!$D$15:$D$103,'Custom Shortcuts'!$C$15:$C$103,\"\",0)","v":""},{"$f":"COUNTIF(ExcelShortcuts[Key],\"=\"&ExcelShortcuts[[#This Row],[Key]])","v":8}]
["Right","Shift+Alt","Group",{"$f":"IF(ExcelShortcuts[[#This Row],[Attribute]]=\"Alone\",\"\",ExcelShortcuts[[#This Row],[Attribute]]&\"+\")&ExcelShortcuts[[#This Row],[Key]]","v":"Shift+Alt+Right"},{"$f":"_xlfn.XLOOKUP(SUBSTITUTE(ExcelShortcuts[[#This Row],[Shortcut]],\"+\",\" + \"),'Custom Shortcuts'!$D$15:$D$103,'Custom Shortcuts'!$C$15:$C$103,\"\",0)","v":""},{"$f":"COUNTIF(ExcelShortcuts[Key],\"=\"&ExcelShortcuts[[#This Row],[Key]])","v":8}]
["Right","Ctrl+Alt","Intel Chipset: Turn screen -90 degrees; else: move active cell to next non-adjacent area within selection",{"$f":"IF(ExcelShortcuts[[#This Row],[Attribute]]=\"Alone\",\"\",ExcelShortcuts[[#This Row],[Attribute]]&\"+\")&ExcelShortcuts[[#This Row],[Key]]","v":"Ctrl+Alt+Right"},{"$f":"_xlfn.XLOOKUP(SUBSTITUTE(ExcelShortcuts[[#This Row],[Shortcut]],\"+\",\" + \"),'Custom Shortcuts'!$D$15:$D$103,'Custom Shortcuts'!$C$15:$C$103,\"\",0)","v":""},{"$f":"COUNTIF(ExcelShortcuts[Key],\"=\"&ExcelShortcuts[[#This Row],[Key]])","v":8}]
["Right","Ctrl+Shift+Alt","",{"$f":"IF(ExcelShortcuts[[#This Row],[Attribute]]=\"Alone\",\"\",ExcelShortcuts[[#This Row],[Attribute]]&\"+\")&ExcelShortcuts[[#This Row],[Key]]","v":"Ctrl+Shift+Alt+Right"},{"$f":"_xlfn.XLOOKUP(SUBSTITUTE(ExcelShortcuts[[#This Row],[Shortcut]],\"+\",\" + \"),'Custom Shortcuts'!$D$15:$D$103,'Custom Shortcuts'!$C$15:$C$103,\"\",0)","v":""},{"$f":"COUNTIF(ExcelShortcuts[Key],\"=\"&ExcelShortcuts[[#This Row],[Key]])","v":8}]
["Space","Alone","",{"$f":"IF(ExcelShortcuts[[#This Row],[Attribute]]=\"Alone\",\"\",ExcelShortcuts[[#This Row],[Attribute]]&\"+\")&ExcelShortcuts[[#This Row],[Key]]","v":"Space"},{"$f":"_xlfn.XLOOKUP(SUBSTITUTE(ExcelShortcuts[[#This Row],[Shortcut]],\"+\",\" + \"),'Custom Shortcuts'!$D$15:$D$103,'Custom Shortcuts'!$C$15:$C$103,\"\",0)","v":""},{"$f":"COUNTIF(ExcelShortcuts[Key],\"=\"&ExcelShortcuts[[#This Row],[Key]])","v":8}]
["Space","Shift","Select Row",{"$f":"IF(ExcelShortcuts[[#This Row],[Attribute]]=\"Alone\",\"\",ExcelShortcuts[[#This Row],[Attribute]]&\"+\")&ExcelShortcuts[[#This Row],[Key]]","v":"Shift+Space"},{"$f":"_xlfn.XLOOKUP(SUBSTITUTE(ExcelShortcuts[[#This Row],[Shortcut]],\"+\",\" + \"),'Custom Shortcuts'!$D$15:$D$103,'Custom Shortcuts'!$C$15:$C$103,\"\",0)","v":""},{"$f":"COUNTIF(ExcelShortcuts[Key],\"=\"&ExcelShortcuts[[#This Row],[Key]])","v":8}]
["Space","Ctrl","Select Column",{"$f":"IF(ExcelShortcuts[[#This Row],[Attribute]]=\"Alone\",\"\",ExcelShortcuts[[#This Row],[Attribute]]&\"+\")&ExcelShortcuts[[#This Row],[Key]]","v":"Ctrl+Space"},{"$f":"_xlfn.XLOOKUP(SUBSTITUTE(ExcelShortcuts[[#This Row],[Shortcut]],\"+\",\" + \"),'Custom Shortcuts'!$D$15:$D$103,'Custom Shortcuts'!$C$15:$C$103,\"\",0)","v":""},{"$f":"COUNTIF(ExcelShortcuts[Key],\"=\"&ExcelShortcuts[[#This Row],[Key]])","v":8}]
["Space","Alt","Displays control menu",{"$f":"IF(ExcelShortcuts[[#This Row],[Attribute]]=\"Alone\",\"\",ExcelShortcuts[[#This Row],[Attribute]]&\"+\")&ExcelShortcuts[[#This Row],[Key]]","v":"Alt+Space"},{"$f":"_xlfn.XLOOKUP(SUBSTITUTE(ExcelShortcuts[[#This Row],[Shortcut]],\"+\",\" + \"),'Custom Shortcuts'!$D$15:$D$103,'Custom Shortcuts'!$C$15:$C$103,\"\",0)","v":""},{"$f":"COUNTIF(ExcelShortcuts[Key],\"=\"&ExcelShortcuts[[#This Row],[Key]])","v":8}]
["Space","Ctrl+Shift","Select contiguous area",{"$f":"IF(ExcelShortcuts[[#This Row],[Attribute]]=\"Alone\",\"\",ExcelShortcuts[[#This Row],[Attribute]]&\"+\")&ExcelShortcuts[[#This Row],[Key]]","v":"Ctrl+Shift+Space"},{"$f":"_xlfn.XLOOKUP(SUBSTITUTE(ExcelShortcuts[[#This Row],[Shortcut]],\"+\",\" + \"),'Custom Shortcuts'!$D$15:$D$103,'Custom Shortcuts'!$C$15:$C$103,\"\",0)","v":""},{"$f":"COUNTIF(ExcelShortcuts[Key],\"=\"&ExcelShortcuts[[#This Row],[Key]])","v":8}]
["Space","Shift+Alt","",{"$f":"IF(ExcelShortcuts[[#This Row],[Attribute]]=\"Alone\",\"\",ExcelShortcuts[[#This Row],[Attribute]]&\"+\")&ExcelShortcuts[[#This Row],[Key]]","v":"Shift+Alt+Space"},{"$f":"_xlfn.XLOOKUP(SUBSTITUTE(ExcelShortcuts[[#This Row],[Shortcut]],\"+\",\" + \"),'Custom Shortcuts'!$D$15:$D$103,'Custom Shortcuts'!$C$15:$C$103,\"\",0)","v":""},{"$f":"COUNTIF(ExcelShortcuts[Key],\"=\"&ExcelShortcuts[[#This Row],[Key]])","v":8}]
["Space","Ctrl+Alt","",{"$f":"IF(ExcelShortcuts[[#This Row],[Attribute]]=\"Alone\",\"\",ExcelShortcuts[[#This Row],[Attribute]]&\"+\")&ExcelShortcuts[[#This Row],[Key]]","v":"Ctrl+Alt+Space"},{"$f":"_xlfn.XLOOKUP(SUBSTITUTE(ExcelShortcuts[[#This Row],[Shortcut]],\"+\",\" + \"),'Custom Shortcuts'!$D$15:$D$103,'Custom Shortcuts'!$C$15:$C$103,\"\",0)","v":""},{"$f":"COUNTIF(ExcelShortcuts[Key],\"=\"&ExcelShortcuts[[#This Row],[Key]])","v":8}]
["Space","Ctrl+Shift+Alt","",{"$f":"IF(ExcelShortcuts[[#This Row],[Attribute]]=\"Alone\",\"\",ExcelShortcuts[[#This Row],[Attribute]]&\"+\")&ExcelShortcuts[[#This Row],[Key]]","v":"Ctrl+Shift+Alt+Space"},{"$f":"_xlfn.XLOOKUP(SUBSTITUTE(ExcelShortcuts[[#This Row],[Shortcut]],\"+\",\" + \"),'Custom Shortcuts'!$D$15:$D$103,'Custom Shortcuts'!$C$15:$C$103,\"\",0)","v":""},{"$f":"COUNTIF(ExcelShortcuts[Key],\"=\"&ExcelShortcuts[[#This Row],[Key]])","v":8}]
["Tab","Alone","Tab forwards (next cell to edit)",{"$f":"IF(ExcelShortcuts[[#This Row],[Attribute]]=\"Alone\",\"\",ExcelShortcuts[[#This Row],[Attribute]]&\"+\")&ExcelShortcuts[[#This Row],[Key]]","v":"Tab"},{"$f":"_xlfn.XLOOKUP(SUBSTITUTE(ExcelShortcuts[[#This Row],[Shortcut]],\"+\",\" + \"),'Custom Shortcuts'!$D$15:$D$103,'Custom Shortcuts'!$C$15:$C$103,\"\",0)","v":""},{"$f":"COUNTIF(ExcelShortcuts[Key],\"=\"&ExcelShortcuts[[#This Row],[Key]])","v":8}]
["Tab","Shift","Tab backwards (previous cell to edit)",{"$f":"IF(ExcelShortcuts[[#This Row],[Attribute]]=\"Alone\",\"\",ExcelShortcuts[[#This Row],[Attribute]]&\"+\")&ExcelShortcuts[[#This Row],[Key]]","v":"Shift+Tab"},{"$f":"_xlfn.XLOOKUP(SUBSTITUTE(ExcelShortcuts[[#This Row],[Shortcut]],\"+\",\" + \"),'Custom Shortcuts'!$D$15:$D$103,'Custom Shortcuts'!$C$15:$C$103,\"\",0)","v":""},{"$f":"COUNTIF(ExcelShortcuts[Key],\"=\"&ExcelShortcuts[[#This Row],[Key]])","v":8}]
["Tab","Ctrl","Next Window",{"$f":"IF(ExcelShortcuts[[#This Row],[Attribute]]=\"Alone\",\"\",ExcelShortcuts[[#This Row],[Attribute]]&\"+\")&ExcelShortcuts[[#This Row],[Key]]","v":"Ctrl+Tab"},{"$f":"_xlfn.XLOOKUP(SUBSTITUTE(ExcelShortcuts[[#This Row],[Shortcut]],\"+\",\" + \"),'Custom Shortcuts'!$D$15:$D$103,'Custom Shortcuts'!$C$15:$C$103,\"\",0)","v":""},{"$f":"COUNTIF(ExcelShortcuts[Key],\"=\"&ExcelShortcuts[[#This Row],[Key]])","v":8}]
["Tab","Alt","Next Application",{"$f":"IF(ExcelShortcuts[[#This Row],[Attribute]]=\"Alone\",\"\",ExcelShortcuts[[#This Row],[Attribute]]&\"+\")&ExcelShortcuts[[#This Row],[Key]]","v":"Alt+Tab"},{"$f":"_xlfn.XLOOKUP(SUBSTITUTE(ExcelShortcuts[[#This Row],[Shortcut]],\"+\",\" + \"),'Custom Shortcuts'!$D$15:$D$103,'Custom Shortcuts'!$C$15:$C$103,\"\",0)","v":""},{"$f":"COUNTIF(ExcelShortcuts[Key],\"=\"&ExcelShortcuts[[#This Row],[Key]])","v":8}]
["Tab","Ctrl+Shift","Previous Window",{"$f":"IF(ExcelShortcuts[[#This Row],[Attribute]]=\"Alone\",\"\",ExcelShortcuts[[#This Row],[Attribute]]&\"+\")&ExcelShortcuts[[#This Row],[Key]]","v":"Ctrl+Shift+Tab"},{"$f":"_xlfn.XLOOKUP(SUBSTITUTE(ExcelShortcuts[[#This Row],[Shortcut]],\"+\",\" + \"),'Custom Shortcuts'!$D$15:$D$103,'Custom Shortcuts'!$C$15:$C$103,\"\",0)","v":""},{"$f":"COUNTIF(ExcelShortcuts[Key],\"=\"&ExcelShortcuts[[#This Row],[Key]])","v":8}]
["Tab","Shift+Alt","",{"$f":"IF(ExcelShortcuts[[#This Row],[Attribute]]=\"Alone\",\"\",ExcelShortcuts[[#This Row],[Attribute]]&\"+\")&ExcelShortcuts[[#This Row],[Key]]","v":"Shift+Alt+Tab"},{"$f":"_xlfn.XLOOKUP(SUBSTITUTE(ExcelShortcuts[[#This Row],[Shortcut]],\"+\",\" + \"),'Custom Shortcuts'!$D$15:$D$103,'Custom Shortcuts'!$C$15:$C$103,\"\",0)","v":""},{"$f":"COUNTIF(ExcelShortcuts[Key],\"=\"&ExcelShortcuts[[#This Row],[Key]])","v":8}]
["Tab","Ctrl+Alt","Indent",{"$f":"IF(ExcelShortcuts[[#This Row],[Attribute]]=\"Alone\",\"\",ExcelShortcuts[[#This Row],[Attribute]]&\"+\")&ExcelShortcuts[[#This Row],[Key]]","v":"Ctrl+Alt+Tab"},{"$f":"_xlfn.XLOOKUP(SUBSTITUTE(ExcelShortcuts[[#This Row],[Shortcut]],\"+\",\" + \"),'Custom Shortcuts'!$D$15:$D$103,'Custom Shortcuts'!$C$15:$C$103,\"\",0)","v":""},{"$f":"COUNTIF(ExcelShortcuts[Key],\"=\"&ExcelShortcuts[[#This Row],[Key]])","v":8}]
["Tab","Ctrl+Shift+Alt","Outdent",{"$f":"IF(ExcelShortcuts[[#This Row],[Attribute]]=\"Alone\",\"\",ExcelShortcuts[[#This Row],[Attribute]]&\"+\")&ExcelShortcuts[[#This Row],[Key]]","v":"Ctrl+Shift+Alt+Tab"},{"$f":"_xlfn.XLOOKUP(SUBSTITUTE(ExcelShortcuts[[#This Row],[Shortcut]],\"+\",\" + \"),'Custom Shortcuts'!$D$15:$D$103,'Custom Shortcuts'!$C$15:$C$103,\"\",0)","v":""},{"$f":"COUNTIF(ExcelShortcuts[Key],\"=\"&ExcelShortcuts[[#This Row],[Key]])","v":8}]
["Up","Alone","Move up one cell",{"$f":"IF(ExcelShortcuts[[#This Row],[Attribute]]=\"Alone\",\"\",ExcelShortcuts[[#This Row],[Attribute]]&\"+\")&ExcelShortcuts[[#This Row],[Key]]","v":"Up"},{"$f":"_xlfn.XLOOKUP(SUBSTITUTE(ExcelShortcuts[[#This Row],[Shortcut]],\"+\",\" + \"),'Custom Shortcuts'!$D$15:$D$103,'Custom Shortcuts'!$C$15:$C$103,\"\",0)","v":""},{"$f":"COUNTIF(ExcelShortcuts[Key],\"=\"&ExcelShortcuts[[#This Row],[Key]])","v":8}]
["Up","Shift","Extend selection up one cell",{"$f":"IF(ExcelShortcuts[[#This Row],[Attribute]]=\"Alone\",\"\",ExcelShortcuts[[#This Row],[Attribute]]&\"+\")&ExcelShortcuts[[#This Row],[Key]]","v":"Shift+Up"},{"$f":"_xlfn.XLOOKUP(SUBSTITUTE(ExcelShortcuts[[#This Row],[Shortcut]],\"+\",\" + \"),'Custom Shortcuts'!$D$15:$D$103,'Custom Shortcuts'!$C$15:$C$103,\"\",0)","v":""},{"$f":"COUNTIF(ExcelShortcuts[Key],\"=\"&ExcelShortcuts[[#This Row],[Key]])","v":8}]
["Up","Ctrl","Select the cell at top of region",{"$f":"IF(ExcelShortcuts[[#This Row],[Attribute]]=\"Alone\",\"\",ExcelShortcuts[[#This Row],[Attribute]]&\"+\")&ExcelShortcuts[[#This Row],[Key]]","v":"Ctrl+Up"},{"$f":"_xlfn.XLOOKUP(SUBSTITUTE(ExcelShortcuts[[#This Row],[Shortcut]],\"+\",\" + \"),'Custom Shortcuts'!$D$15:$D$103,'Custom Shortcuts'!$C$15:$C$103,\"\",0)","v":""},{"$f":"COUNTIF(ExcelShortcuts[Key],\"=\"&ExcelShortcuts[[#This Row],[Key]])","v":8}]
["Up","Alt","Close drop-down (auto-complete, filter, or validation)",{"$f":"IF(ExcelShortcuts[[#This Row],[Attribute]]=\"Alone\",\"\",ExcelShortcuts[[#This Row],[Attribute]]&\"+\")&ExcelShortcuts[[#This Row],[Key]]","v":"Alt+Up"},{"$f":"_xlfn.XLOOKUP(SUBSTITUTE(ExcelShortcuts[[#This Row],[Shortcut]],\"+\",\" + \"),'Custom Shortcuts'!$D$15:$D$103,'Custom Shortcuts'!$C$15:$C$103,\"\",0)","v":""},{"$f":"COUNTIF(ExcelShortcuts[Key],\"=\"&ExcelShortcuts[[#This Row],[Key]])","v":8}]
["Up","Ctrl+Shift","Extend selection up to end of region",{"$f":"IF(ExcelShortcuts[[#This Row],[Attribute]]=\"Alone\",\"\",ExcelShortcuts[[#This Row],[Attribute]]&\"+\")&ExcelShortcuts[[#This Row],[Key]]","v":"Ctrl+Shift+Up"},{"$f":"_xlfn.XLOOKUP(SUBSTITUTE(ExcelShortcuts[[#This Row],[Shortcut]],\"+\",\" + \"),'Custom Shortcuts'!$D$15:$D$103,'Custom Shortcuts'!$C$15:$C$103,\"\",0)","v":""},{"$f":"COUNTIF(ExcelShortcuts[Key],\"=\"&ExcelShortcuts[[#This Row],[Key]])","v":8}]
["Up","Shift+Alt",null,{"$f":"IF(ExcelShortcuts[[#This Row],[Attribute]]=\"Alone\",\"\",ExcelShortcuts[[#This Row],[Attribute]]&\"+\")&ExcelShortcuts[[#This Row],[Key]]","v":"Shift+Alt+Up"},{"$f":"_xlfn.XLOOKUP(SUBSTITUTE(ExcelShortcuts[[#This Row],[Shortcut]],\"+\",\" + \"),'Custom Shortcuts'!$D$15:$D$103,'Custom Shortcuts'!$C$15:$C$103,\"\",0)","v":""},{"$f":"COUNTIF(ExcelShortcuts[Key],\"=\"&ExcelShortcuts[[#This Row],[Key]])","v":8}]
["Up","Ctrl+Alt","Intel Chipset: Display screen normally (0 degrees)",{"$f":"IF(ExcelShortcuts[[#This Row],[Attribute]]=\"Alone\",\"\",ExcelShortcuts[[#This Row],[Attribute]]&\"+\")&ExcelShortcuts[[#This Row],[Key]]","v":"Ctrl+Alt+Up"},{"$f":"_xlfn.XLOOKUP(SUBSTITUTE(ExcelShortcuts[[#This Row],[Shortcut]],\"+\",\" + \"),'Custom Shortcuts'!$D$15:$D$103,'Custom Shortcuts'!$C$15:$C$103,\"\",0)","v":""},{"$f":"COUNTIF(ExcelShortcuts[Key],\"=\"&ExcelShortcuts[[#This Row],[Key]])","v":8}]
["Up","Ctrl+Shift+Alt","",{"$f":"IF(ExcelShortcuts[[#This Row],[Attribute]]=\"Alone\",\"\",ExcelShortcuts[[#This Row],[Attribute]]&\"+\")&ExcelShortcuts[[#This Row],[Key]]","v":"Ctrl+Shift+Alt+Up"},{"$f":"_xlfn.XLOOKUP(SUBSTITUTE(ExcelShortcuts[[#This Row],[Shortcut]],\"+\",\" + \"),'Custom Shortcuts'!$D$15:$D$103,'Custom Shortcuts'!$C$15:$C$103,\"\",0)","v":""},{"$f":"COUNTIF(ExcelShortcuts[Key],\"=\"&ExcelShortcuts[[#This Row],[Key]])","v":8}]
[0,"Ctrl","Hide Column",{"$f":"IF(ExcelShortcuts[[#This Row],[Attribute]]=\"Alone\",\"\",ExcelShortcuts[[#This Row],[Attribute]]&\"+\")&ExcelShortcuts[[#This Row],[Key]]","v":"Ctrl+0"},{"$f":"_xlfn.XLOOKUP(SUBSTITUTE(ExcelShortcuts[[#This Row],[Shortcut]],\"+\",\" + \"),'Custom Shortcuts'!$D$15:$D$103,'Custom Shortcuts'!$C$15:$C$103,\"\",0)","v":""},{"$f":"COUNTIF(ExcelShortcuts[Key],\"=\"&ExcelShortcuts[[#This Row],[Key]])","v":6}]
[0,"Alt","",{"$f":"IF(ExcelShortcuts[[#This Row],[Attribute]]=\"Alone\",\"\",ExcelShortcuts[[#This Row],[Attribute]]&\"+\")&ExcelShortcuts[[#This Row],[Key]]","v":"Alt+0"},{"$f":"_xlfn.XLOOKUP(SUBSTITUTE(ExcelShortcuts[[#This Row],[Shortcut]],\"+\",\" + \"),'Custom Shortcuts'!$D$15:$D$103,'Custom Shortcuts'!$C$15:$C$103,\"\",0)","v":""},{"$f":"COUNTIF(ExcelShortcuts[Key],\"=\"&ExcelShortcuts[[#This Row],[Key]])","v":6}]
[0,"Ctrl+Shift","Show Column",{"$f":"IF(ExcelShortcuts[[#This Row],[Attribute]]=\"Alone\",\"\",ExcelShortcuts[[#This Row],[Attribute]]&\"+\")&ExcelShortcuts[[#This Row],[Key]]","v":"Ctrl+Shift+0"},{"$f":"_xlfn.XLOOKUP(SUBSTITUTE(ExcelShortcuts[[#This Row],[Shortcut]],\"+\",\" + \"),'Custom Shortcuts'!$D$15:$D$103,'Custom Shortcuts'!$C$15:$C$103,\"\",0)","v":""},{"$f":"COUNTIF(ExcelShortcuts[Key],\"=\"&ExcelShortcuts[[#This Row],[Key]])","v":6}]
[0,"Shift+Alt","",{"$f":"IF(ExcelShortcuts[[#This Row],[Attribute]]=\"Alone\",\"\",ExcelShortcuts[[#This Row],[Attribute]]&\"+\")&ExcelShortcuts[[#This Row],[Key]]","v":"Shift+Alt+0"},{"$f":"_xlfn.XLOOKUP(SUBSTITUTE(ExcelShortcuts[[#This Row],[Shortcut]],\"+\",\" + \"),'Custom Shortcuts'!$D$15:$D$103,'Custom Shortcuts'!$C$15:$C$103,\"\",0)","v":""},{"$f":"COUNTIF(ExcelShortcuts[Key],\"=\"&ExcelShortcuts[[#This Row],[Key]])","v":6}]
[0,"Ctrl+Alt","",{"$f":"IF(ExcelShortcuts[[#This Row],[Attribute]]=\"Alone\",\"\",ExcelShortcuts[[#This Row],[Attribute]]&\"+\")&ExcelShortcuts[[#This Row],[Key]]","v":"Ctrl+Alt+0"},{"$f":"_xlfn.XLOOKUP(SUBSTITUTE(ExcelShortcuts[[#This Row],[Shortcut]],\"+\",\" + \"),'Custom Shortcuts'!$D$15:$D$103,'Custom Shortcuts'!$C$15:$C$103,\"\",0)","v":""},{"$f":"COUNTIF(ExcelShortcuts[Key],\"=\"&ExcelShortcuts[[#This Row],[Key]])","v":6}]
[0,"Ctrl+Shift+Alt","",{"$f":"IF(ExcelShortcuts[[#This Row],[Attribute]]=\"Alone\",\"\",ExcelShortcuts[[#This Row],[Attribute]]&\"+\")&ExcelShortcuts[[#This Row],[Key]]","v":"Ctrl+Shift+Alt+0"},{"$f":"_xlfn.XLOOKUP(SUBSTITUTE(ExcelShortcuts[[#This Row],[Shortcut]],\"+\",\" + \"),'Custom Shortcuts'!$D$15:$D$103,'Custom Shortcuts'!$C$15:$C$103,\"\",0)","v":""},{"$f":"COUNTIF(ExcelShortcuts[Key],\"=\"&ExcelShortcuts[[#This Row],[Key]])","v":6}]
[1,"Ctrl","Format Cells",{"$f":"IF(ExcelShortcuts[[#This Row],[Attribute]]=\"Alone\",\"\",ExcelShortcuts[[#This Row],[Attribute]]&\"+\")&ExcelShortcuts[[#This Row],[Key]]","v":"Ctrl+1"},{"$f":"_xlfn.XLOOKUP(SUBSTITUTE(ExcelShortcuts[[#This Row],[Shortcut]],\"+\",\" + \"),'Custom Shortcuts'!$D$15:$D$103,'Custom Shortcuts'!$C$15:$C$103,\"\",0)","v":""},{"$f":"COUNTIF(ExcelShortcuts[Key],\"=\"&ExcelShortcuts[[#This Row],[Key]])","v":6}]
[1,"Alt","",{"$f":"IF(ExcelShortcuts[[#This Row],[Attribute]]=\"Alone\",\"\",ExcelShortcuts[[#This Row],[Attribute]]&\"+\")&ExcelShortcuts[[#This Row],[Key]]","v":"Alt+1"},{"$f":"_xlfn.XLOOKUP(SUBSTITUTE(ExcelShortcuts[[#This Row],[Shortcut]],\"+\",\" + \"),'Custom Shortcuts'!$D$15:$D$103,'Custom Shortcuts'!$C$15:$C$103,\"\",0)","v":""},{"$f":"COUNTIF(ExcelShortcuts[Key],\"=\"&ExcelShortcuts[[#This Row],[Key]])","v":6}]
[1,"Ctrl+Shift","Fixed decimal & comma format",{"$f":"IF(ExcelShortcuts[[#This Row],[Attribute]]=\"Alone\",\"\",ExcelShortcuts[[#This Row],[Attribute]]&\"+\")&ExcelShortcuts[[#This Row],[Key]]","v":"Ctrl+Shift+1"},{"$f":"_xlfn.XLOOKUP(SUBSTITUTE(ExcelShortcuts[[#This Row],[Shortcut]],\"+\",\" + \"),'Custom Shortcuts'!$D$15:$D$103,'Custom Shortcuts'!$C$15:$C$103,\"\",0)","v":"Add To Change Log"},{"$f":"COUNTIF(ExcelShortcuts[Key],\"=\"&ExcelShortcuts[[#This Row],[Key]])","v":6}]
[1,"Shift+Alt","",{"$f":"IF(ExcelShortcuts[[#This Row],[Attribute]]=\"Alone\",\"\",ExcelShortcuts[[#This Row],[Attribute]]&\"+\")&ExcelShortcuts[[#This Row],[Key]]","v":"Shift+Alt+1"},{"$f":"_xlfn.XLOOKUP(SUBSTITUTE(ExcelShortcuts[[#This Row],[Shortcut]],\"+\",\" + \"),'Custom Shortcuts'!$D$15:$D$103,'Custom Shortcuts'!$C$15:$C$103,\"\",0)","v":""},{"$f":"COUNTIF(ExcelShortcuts[Key],\"=\"&ExcelShortcuts[[#This Row],[Key]])","v":6}]
[1,"Ctrl+Alt","",{"$f":"IF(ExcelShortcuts[[#This Row],[Attribute]]=\"Alone\",\"\",ExcelShortcuts[[#This Row],[Attribute]]&\"+\")&ExcelShortcuts[[#This Row],[Key]]","v":"Ctrl+Alt+1"},{"$f":"_xlfn.XLOOKUP(SUBSTITUTE(ExcelShortcuts[[#This Row],[Shortcut]],\"+\",\" + \"),'Custom Shortcuts'!$D$15:$D$103,'Custom Shortcuts'!$C$15:$C$103,\"\",0)","v":""},{"$f":"COUNTIF(ExcelShortcuts[Key],\"=\"&ExcelShortcuts[[#This Row],[Key]])","v":6}]
[1,"Ctrl+Shift+Alt","",{"$f":"IF(ExcelShortcuts[[#This Row],[Attribute]]=\"Alone\",\"\",ExcelShortcuts[[#This Row],[Attribute]]&\"+\")&ExcelShortcuts[[#This Row],[Key]]","v":"Ctrl+Shift+Alt+1"},{"$f":"_xlfn.XLOOKUP(SUBSTITUTE(ExcelShortcuts[[#This Row],[Shortcut]],\"+\",\" + \"),'Custom Shortcuts'!$D$15:$D$103,'Custom Shortcuts'!$C$15:$C$103,\"\",0)","v":""},{"$f":"COUNTIF(ExcelShortcuts[Key],\"=\"&ExcelShortcuts[[#This Row],[Key]])","v":6}]
[2,"Ctrl","Bold (toggle)",{"$f":"IF(ExcelShortcuts[[#This Row],[Attribute]]=\"Alone\",\"\",ExcelShortcuts[[#This Row],[Attribute]]&\"+\")&ExcelShortcuts[[#This Row],[Key]]","v":"Ctrl+2"},{"$f":"_xlfn.XLOOKUP(SUBSTITUTE(ExcelShortcuts[[#This Row],[Shortcut]],\"+\",\" + \"),'Custom Shortcuts'!$D$15:$D$103,'Custom Shortcuts'!$C$15:$C$103,\"\",0)","v":""},{"$f":"COUNTIF(ExcelShortcuts[Key],\"=\"&ExcelShortcuts[[#This Row],[Key]])","v":6}]
[2,"Alt","",{"$f":"IF(ExcelShortcuts[[#This Row],[Attribute]]=\"Alone\",\"\",ExcelShortcuts[[#This Row],[Attribute]]&\"+\")&ExcelShortcuts[[#This Row],[Key]]","v":"Alt+2"},{"$f":"_xlfn.XLOOKUP(SUBSTITUTE(ExcelShortcuts[[#This Row],[Shortcut]],\"+\",\" + \"),'Custom Shortcuts'!$D$15:$D$103,'Custom Shortcuts'!$C$15:$C$103,\"\",0)","v":""},{"$f":"COUNTIF(ExcelShortcuts[Key],\"=\"&ExcelShortcuts[[#This Row],[Key]])","v":6}]
[2,"Ctrl+Shift","Time (AM/PM) format",{"$f":"IF(ExcelShortcuts[[#This Row],[Attribute]]=\"Alone\",\"\",ExcelShortcuts[[#This Row],[Attribute]]&\"+\")&ExcelShortcuts[[#This Row],[Key]]","v":"Ctrl+Shift+2"},{"$f":"_xlfn.XLOOKUP(SUBSTITUTE(ExcelShortcuts[[#This Row],[Shortcut]],\"+\",\" + \"),'Custom Shortcuts'!$D$15:$D$103,'Custom Shortcuts'!$C$15:$C$103,\"\",0)","v":"Save Change Log Values"},{"$f":"COUNTIF(ExcelShortcuts[Key],\"=\"&ExcelShortcuts[[#This Row],[Key]])","v":6}]
[2,"Shift+Alt","",{"$f":"IF(ExcelShortcuts[[#This Row],[Attribute]]=\"Alone\",\"\",ExcelShortcuts[[#This Row],[Attribute]]&\"+\")&ExcelShortcuts[[#This Row],[Key]]","v":"Shift+Alt+2"},{"$f":"_xlfn.XLOOKUP(SUBSTITUTE(ExcelShortcuts[[#This Row],[Shortcut]],\"+\",\" + \"),'Custom Shortcuts'!$D$15:$D$103,'Custom Shortcuts'!$C$15:$C$103,\"\",0)","v":""},{"$f":"COUNTIF(ExcelShortcuts[Key],\"=\"&ExcelShortcuts[[#This Row],[Key]])","v":6}]
[2,"Ctrl+Alt","",{"$f":"IF(ExcelShortcuts[[#This Row],[Attribute]]=\"Alone\",\"\",ExcelShortcuts[[#This Row],[Attribute]]&\"+\")&ExcelShortcuts[[#This Row],[Key]]","v":"Ctrl+Alt+2"},{"$f":"_xlfn.XLOOKUP(SUBSTITUTE(ExcelShortcuts[[#This Row],[Shortcut]],\"+\",\" + \"),'Custom Shortcuts'!$D$15:$D$103,'Custom Shortcuts'!$C$15:$C$103,\"\",0)","v":""},{"$f":"COUNTIF(ExcelShortcuts[Key],\"=\"&ExcelShortcuts[[#This Row],[Key]])","v":6}]
[2,"Ctrl+Shift+Alt","",{"$f":"IF(ExcelShortcuts[[#This Row],[Attribute]]=\"Alone\",\"\",ExcelShortcuts[[#This Row],[Attribute]]&\"+\")&ExcelShortcuts[[#This Row],[Key]]","v":"Ctrl+Shift+Alt+2"},{"$f":"_xlfn.XLOOKUP(SUBSTITUTE(ExcelShortcuts[[#This Row],[Shortcut]],\"+\",\" + \"),'Custom Shortcuts'!$D$15:$D$103,'Custom Shortcuts'!$C$15:$C$103,\"\",0)","v":""},{"$f":"COUNTIF(ExcelShortcuts[Key],\"=\"&ExcelShortcuts[[#This Row],[Key]])","v":6}]
[3,"Ctrl","Italic (toggle)",{"$f":"IF(ExcelShortcuts[[#This Row],[Attribute]]=\"Alone\",\"\",ExcelShortcuts[[#This Row],[Attribute]]&\"+\")&ExcelShortcuts[[#This Row],[Key]]","v":"Ctrl+3"},{"$f":"_xlfn.XLOOKUP(SUBSTITUTE(ExcelShortcuts[[#This Row],[Shortcut]],\"+\",\" + \"),'Custom Shortcuts'!$D$15:$D$103,'Custom Shortcuts'!$C$15:$C$103,\"\",0)","v":""},{"$f":"COUNTIF(ExcelShortcuts[Key],\"=\"&ExcelShortcuts[[#This Row],[Key]])","v":6}]
[3,"Alt","",{"$f":"IF(ExcelShortcuts[[#This Row],[Attribute]]=\"Alone\",\"\",ExcelShortcuts[[#This Row],[Attribute]]&\"+\")&ExcelShortcuts[[#This Row],[Key]]","v":"Alt+3"},{"$f":"_xlfn.XLOOKUP(SUBSTITUTE(ExcelShortcuts[[#This Row],[Shortcut]],\"+\",\" + \"),'Custom Shortcuts'!$D$15:$D$103,'Custom Shortcuts'!$C$15:$C$103,\"\",0)","v":""},{"$f":"COUNTIF(ExcelShortcuts[Key],\"=\"&ExcelShortcuts[[#This Row],[Key]])","v":6}]
[3,"Ctrl+Shift","Date format",{"$f":"IF(ExcelShortcuts[[#This Row],[Attribute]]=\"Alone\",\"\",ExcelShortcuts[[#This Row],[Attribute]]&\"+\")&ExcelShortcuts[[#This Row],[Key]]","v":"Ctrl+Shift+3"},{"$f":"_xlfn.XLOOKUP(SUBSTITUTE(ExcelShortcuts[[#This Row],[Shortcut]],\"+\",\" + \"),'Custom Shortcuts'!$D$15:$D$103,'Custom Shortcuts'!$C$15:$C$103,\"\",0)","v":""},{"$f":"COUNTIF(ExcelShortcuts[Key],\"=\"&ExcelShortcuts[[#This Row],[Key]])","v":6}]
[3,"Shift+Alt","",{"$f":"IF(ExcelShortcuts[[#This Row],[Attribute]]=\"Alone\",\"\",ExcelShortcuts[[#This Row],[Attribute]]&\"+\")&ExcelShortcuts[[#This Row],[Key]]","v":"Shift+Alt+3"},{"$f":"_xlfn.XLOOKUP(SUBSTITUTE(ExcelShortcuts[[#This Row],[Shortcut]],\"+\",\" + \"),'Custom Shortcuts'!$D$15:$D$103,'Custom Shortcuts'!$C$15:$C$103,\"\",0)","v":""},{"$f":"COUNTIF(ExcelShortcuts[Key],\"=\"&ExcelShortcuts[[#This Row],[Key]])","v":6}]
[3,"Ctrl+Alt","",{"$f":"IF(ExcelShortcuts[[#This Row],[Attribute]]=\"Alone\",\"\",ExcelShortcuts[[#This Row],[Attribute]]&\"+\")&ExcelShortcuts[[#This Row],[Key]]","v":"Ctrl+Alt+3"},{"$f":"_xlfn.XLOOKUP(SUBSTITUTE(ExcelShortcuts[[#This Row],[Shortcut]],\"+\",\" + \"),'Custom Shortcuts'!$D$15:$D$103,'Custom Shortcuts'!$C$15:$C$103,\"\",0)","v":""},{"$f":"COUNTIF(ExcelShortcuts[Key],\"=\"&ExcelShortcuts[[#This Row],[Key]])","v":6}]
[3,"Ctrl+Shift+Alt","",{"$f":"IF(ExcelShortcuts[[#This Row],[Attribute]]=\"Alone\",\"\",ExcelShortcuts[[#This Row],[Attribute]]&\"+\")&ExcelShortcuts[[#This Row],[Key]]","v":"Ctrl+Shift+Alt+3"},{"$f":"_xlfn.XLOOKUP(SUBSTITUTE(ExcelShortcuts[[#This Row],[Shortcut]],\"+\",\" + \"),'Custom Shortcuts'!$D$15:$D$103,'Custom Shortcuts'!$C$15:$C$103,\"\",0)","v":""},{"$f":"COUNTIF(ExcelShortcuts[Key],\"=\"&ExcelShortcuts[[#This Row],[Key]])","v":6}]
[4,"Ctrl","Underline (toggle)",{"$f":"IF(ExcelShortcuts[[#This Row],[Attribute]]=\"Alone\",\"\",ExcelShortcuts[[#This Row],[Attribute]]&\"+\")&ExcelShortcuts[[#This Row],[Key]]","v":"Ctrl+4"},{"$f":"_xlfn.XLOOKUP(SUBSTITUTE(ExcelShortcuts[[#This Row],[Shortcut]],\"+\",\" + \"),'Custom Shortcuts'!$D$15:$D$103,'Custom Shortcuts'!$C$15:$C$103,\"\",0)","v":""},{"$f":"COUNTIF(ExcelShortcuts[Key],\"=\"&ExcelShortcuts[[#This Row],[Key]])","v":6}]
[4,"Alt","",{"$f":"IF(ExcelShortcuts[[#This Row],[Attribute]]=\"Alone\",\"\",ExcelShortcuts[[#This Row],[Attribute]]&\"+\")&ExcelShortcuts[[#This Row],[Key]]","v":"Alt+4"},{"$f":"_xlfn.XLOOKUP(SUBSTITUTE(ExcelShortcuts[[#This Row],[Shortcut]],\"+\",\" + \"),'Custom Shortcuts'!$D$15:$D$103,'Custom Shortcuts'!$C$15:$C$103,\"\",0)","v":""},{"$f":"COUNTIF(ExcelShortcuts[Key],\"=\"&ExcelShortcuts[[#This Row],[Key]])","v":6}]
[4,"Ctrl+Shift","Currency format",{"$f":"IF(ExcelShortcuts[[#This Row],[Attribute]]=\"Alone\",\"\",ExcelShortcuts[[#This Row],[Attribute]]&\"+\")&ExcelShortcuts[[#This Row],[Key]]","v":"Ctrl+Shift+4"},{"$f":"_xlfn.XLOOKUP(SUBSTITUTE(ExcelShortcuts[[#This Row],[Shortcut]],\"+\",\" + \"),'Custom Shortcuts'!$D$15:$D$103,'Custom Shortcuts'!$C$15:$C$103,\"\",0)","v":"Change Colours"},{"$f":"COUNTIF(ExcelShortcuts[Key],\"=\"&ExcelShortcuts[[#This Row],[Key]])","v":6}]
[4,"Shift+Alt","",{"$f":"IF(ExcelShortcuts[[#This Row],[Attribute]]=\"Alone\",\"\",ExcelShortcuts[[#This Row],[Attribute]]&\"+\")&ExcelShortcuts[[#This Row],[Key]]","v":"Shift+Alt+4"},{"$f":"_xlfn.XLOOKUP(SUBSTITUTE(ExcelShortcuts[[#This Row],[Shortcut]],\"+\",\" + \"),'Custom Shortcuts'!$D$15:$D$103,'Custom Shortcuts'!$C$15:$C$103,\"\",0)","v":""},{"$f":"COUNTIF(ExcelShortcuts[Key],\"=\"&ExcelShortcuts[[#This Row],[Key]])","v":6}]
[4,"Ctrl+Alt","",{"$f":"IF(ExcelShortcuts[[#This Row],[Attribute]]=\"Alone\",\"\",ExcelShortcuts[[#This Row],[Attribute]]&\"+\")&ExcelShortcuts[[#This Row],[Key]]","v":"Ctrl+Alt+4"},{"$f":"_xlfn.XLOOKUP(SUBSTITUTE(ExcelShortcuts[[#This Row],[Shortcut]],\"+\",\" + \"),'Custom Shortcuts'!$D$15:$D$103,'Custom Shortcuts'!$C$15:$C$103,\"\",0)","v":""},{"$f":"COUNTIF(ExcelShortcuts[Key],\"=\"&ExcelShortcuts[[#This Row],[Key]])","v":6}]
[4,"Ctrl+Shift+Alt","",{"$f":"IF(ExcelShortcuts[[#This Row],[Attribute]]=\"Alone\",\"\",ExcelShortcuts[[#This Row],[Attribute]]&\"+\")&ExcelShortcuts[[#This Row],[Key]]","v":"Ctrl+Shift+Alt+4"},{"$f":"_xlfn.XLOOKUP(SUBSTITUTE(ExcelShortcuts[[#This Row],[Shortcut]],\"+\",\" + \"),'Custom Shortcuts'!$D$15:$D$103,'Custom Shortcuts'!$C$15:$C$103,\"\",0)","v":""},{"$f":"COUNTIF(ExcelShortcuts[Key],\"=\"&ExcelShortcuts[[#This Row],[Key]])","v":6}]
[5,"Ctrl","Strikethrough (toggle)",{"$f":"IF(ExcelShortcuts[[#This Row],[Attribute]]=\"Alone\",\"\",ExcelShortcuts[[#This Row],[Attribute]]&\"+\")&ExcelShortcuts[[#This Row],[Key]]","v":"Ctrl+5"},{"$f":"_xlfn.XLOOKUP(SUBSTITUTE(ExcelShortcuts[[#This Row],[Shortcut]],\"+\",\" + \"),'Custom Shortcuts'!$D$15:$D$103,'Custom Shortcuts'!$C$15:$C$103,\"\",0)","v":""},{"$f":"COUNTIF(ExcelShortcuts[Key],\"=\"&ExcelShortcuts[[#This Row],[Key]])","v":6}]
[5,"Alt","",{"$f":"IF(ExcelShortcuts[[#This Row],[Attribute]]=\"Alone\",\"\",ExcelShortcuts[[#This Row],[Attribute]]&\"+\")&ExcelShortcuts[[#This Row],[Key]]","v":"Alt+5"},{"$f":"_xlfn.XLOOKUP(SUBSTITUTE(ExcelShortcuts[[#This Row],[Shortcut]],\"+\",\" + \"),'Custom Shortcuts'!$D$15:$D$103,'Custom Shortcuts'!$C$15:$C$103,\"\",0)","v":""},{"$f":"COUNTIF(ExcelShortcuts[Key],\"=\"&ExcelShortcuts[[#This Row],[Key]])","v":6}]
[5,"Ctrl+Shift","Percentage format",{"$f":"IF(ExcelShortcuts[[#This Row],[Attribute]]=\"Alone\",\"\",ExcelShortcuts[[#This Row],[Attribute]]&\"+\")&ExcelShortcuts[[#This Row],[Key]]","v":"Ctrl+Shift+5"},{"$f":"_xlfn.XLOOKUP(SUBSTITUTE(ExcelShortcuts[[#This Row],[Shortcut]],\"+\",\" + \"),'Custom Shortcuts'!$D$15:$D$103,'Custom Shortcuts'!$C$15:$C$103,\"\",0)","v":"Create Output Track"},{"$f":"COUNTIF(ExcelShortcuts[Key],\"=\"&ExcelShortcuts[[#This Row],[Key]])","v":6}]
[5,"Shift+Alt","",{"$f":"IF(ExcelShortcuts[[#This Row],[Attribute]]=\"Alone\",\"\",ExcelShortcuts[[#This Row],[Attribute]]&\"+\")&ExcelShortcuts[[#This Row],[Key]]","v":"Shift+Alt+5"},{"$f":"_xlfn.XLOOKUP(SUBSTITUTE(ExcelShortcuts[[#This Row],[Shortcut]],\"+\",\" + \"),'Custom Shortcuts'!$D$15:$D$103,'Custom Shortcuts'!$C$15:$C$103,\"\",0)","v":""},{"$f":"COUNTIF(ExcelShortcuts[Key],\"=\"&ExcelShortcuts[[#This Row],[Key]])","v":6}]
[5,"Ctrl+Alt","",{"$f":"IF(ExcelShortcuts[[#This Row],[Attribute]]=\"Alone\",\"\",ExcelShortcuts[[#This Row],[Attribute]]&\"+\")&ExcelShortcuts[[#This Row],[Key]]","v":"Ctrl+Alt+5"},{"$f":"_xlfn.XLOOKUP(SUBSTITUTE(ExcelShortcuts[[#This Row],[Shortcut]],\"+\",\" + \"),'Custom Shortcuts'!$D$15:$D$103,'Custom Shortcuts'!$C$15:$C$103,\"\",0)","v":""},{"$f":"COUNTIF(ExcelShortcuts[Key],\"=\"&ExcelShortcuts[[#This Row],[Key]])","v":6}]
[5,"Ctrl+Shift+Alt","",{"$f":"IF(ExcelShortcuts[[#This Row],[Attribute]]=\"Alone\",\"\",ExcelShortcuts[[#This Row],[Attribute]]&\"+\")&ExcelShortcuts[[#This Row],[Key]]","v":"Ctrl+Shift+Alt+5"},{"$f":"_xlfn.XLOOKUP(SUBSTITUTE(ExcelShortcuts[[#This Row],[Shortcut]],\"+\",\" + \"),'Custom Shortcuts'!$D$15:$D$103,'Custom Shortcuts'!$C$15:$C$103,\"\",0)","v":""},{"$f":"COUNTIF(ExcelShortcuts[Key],\"=\"&ExcelShortcuts[[#This Row],[Key]])","v":6}]
[6,"Ctrl","Toggle Show, Hide, and Show Placeholders for Objects",{"$f":"IF(ExcelShortcuts[[#This Row],[Attribute]]=\"Alone\",\"\",ExcelShortcuts[[#This Row],[Attribute]]&\"+\")&ExcelShortcuts[[#This Row],[Key]]","v":"Ctrl+6"},{"$f":"_xlfn.XLOOKUP(SUBSTITUTE(ExcelShortcuts[[#This Row],[Shortcut]],\"+\",\" + \"),'Custom Shortcuts'!$D$15:$D$103,'Custom Shortcuts'!$C$15:$C$103,\"\",0)","v":""},{"$f":"COUNTIF(ExcelShortcuts[Key],\"=\"&ExcelShortcuts[[#This Row],[Key]])","v":6}]
[6,"Alt","",{"$f":"IF(ExcelShortcuts[[#This Row],[Attribute]]=\"Alone\",\"\",ExcelShortcuts[[#This Row],[Attribute]]&\"+\")&ExcelShortcuts[[#This Row],[Key]]","v":"Alt+6"},{"$f":"_xlfn.XLOOKUP(SUBSTITUTE(ExcelShortcuts[[#This Row],[Shortcut]],\"+\",\" + \"),'Custom Shortcuts'!$D$15:$D$103,'Custom Shortcuts'!$C$15:$C$103,\"\",0)","v":""},{"$f":"COUNTIF(ExcelShortcuts[Key],\"=\"&ExcelShortcuts[[#This Row],[Key]])","v":6}]
[6,"Ctrl+Shift","Exponential format",{"$f":"IF(ExcelShortcuts[[#This Row],[Attribute]]=\"Alone\",\"\",ExcelShortcuts[[#This Row],[Attribute]]&\"+\")&ExcelShortcuts[[#This Row],[Key]]","v":"Ctrl+Shift+6"},{"$f":"_xlfn.XLOOKUP(SUBSTITUTE(ExcelShortcuts[[#This Row],[Shortcut]],\"+\",\" + \"),'Custom Shortcuts'!$D$15:$D$103,'Custom Shortcuts'!$C$15:$C$103,\"\",0)","v":"Bring up selection userform"},{"$f":"COUNTIF(ExcelShortcuts[Key],\"=\"&ExcelShortcuts[[#This Row],[Key]])","v":6}]
[6,"Shift+Alt","",{"$f":"IF(ExcelShortcuts[[#This Row],[Attribute]]=\"Alone\",\"\",ExcelShortcuts[[#This Row],[Attribute]]&\"+\")&ExcelShortcuts[[#This Row],[Key]]","v":"Shift+Alt+6"},{"$f":"_xlfn.XLOOKUP(SUBSTITUTE(ExcelShortcuts[[#This Row],[Shortcut]],\"+\",\" + \"),'Custom Shortcuts'!$D$15:$D$103,'Custom Shortcuts'!$C$15:$C$103,\"\",0)","v":""},{"$f":"COUNTIF(ExcelShortcuts[Key],\"=\"&ExcelShortcuts[[#This Row],[Key]])","v":6}]
[6,"Ctrl+Alt","",{"$f":"IF(ExcelShortcuts[[#This Row],[Attribute]]=\"Alone\",\"\",ExcelShortcuts[[#This Row],[Attribute]]&\"+\")&ExcelShortcuts[[#This Row],[Key]]","v":"Ctrl+Alt+6"},{"$f":"_xlfn.XLOOKUP(SUBSTITUTE(ExcelShortcuts[[#This Row],[Shortcut]],\"+\",\" + \"),'Custom Shortcuts'!$D$15:$D$103,'Custom Shortcuts'!$C$15:$C$103,\"\",0)","v":""},{"$f":"COUNTIF(ExcelShortcuts[Key],\"=\"&ExcelShortcuts[[#This Row],[Key]])","v":6}]
[6,"Ctrl+Shift+Alt","",{"$f":"IF(ExcelShortcuts[[#This Row],[Attribute]]=\"Alone\",\"\",ExcelShortcuts[[#This Row],[Attribute]]&\"+\")&ExcelShortcuts[[#This Row],[Key]]","v":"Ctrl+Shift+Alt+6"},{"$f":"_xlfn.XLOOKUP(SUBSTITUTE(ExcelShortcuts[[#This Row],[Shortcut]],\"+\",\" + \"),'Custom Shortcuts'!$D$15:$D$103,'Custom Shortcuts'!$C$15:$C$103,\"\",0)","v":""},{"$f":"COUNTIF(ExcelShortcuts[Key],\"=\"&ExcelShortcuts[[#This Row],[Key]])","v":6}]
[7,"Ctrl","Excel 2003: Toggle Standard toolbar visibility",{"$f":"IF(ExcelShortcuts[[#This Row],[Attribute]]=\"Alone\",\"\",ExcelShortcuts[[#This Row],[Attribute]]&\"+\")&ExcelShortcuts[[#This Row],[Key]]","v":"Ctrl+7"},{"$f":"_xlfn.XLOOKUP(SUBSTITUTE(ExcelShortcuts[[#This Row],[Shortcut]],\"+\",\" + \"),'Custom Shortcuts'!$D$15:$D$103,'Custom Shortcuts'!$C$15:$C$103,\"\",0)","v":""},{"$f":"COUNTIF(ExcelShortcuts[Key],\"=\"&ExcelShortcuts[[#This Row],[Key]])","v":6}]
[7,"Alt","",{"$f":"IF(ExcelShortcuts[[#This Row],[Attribute]]=\"Alone\",\"\",ExcelShortcuts[[#This Row],[Attribute]]&\"+\")&ExcelShortcuts[[#This Row],[Key]]","v":"Alt+7"},{"$f":"_xlfn.XLOOKUP(SUBSTITUTE(ExcelShortcuts[[#This Row],[Shortcut]],\"+\",\" + \"),'Custom Shortcuts'!$D$15:$D$103,'Custom Shortcuts'!$C$15:$C$103,\"\",0)","v":""},{"$f":"COUNTIF(ExcelShortcuts[Key],\"=\"&ExcelShortcuts[[#This Row],[Key]])","v":6}]
[7,"Ctrl+Shift","Outline border",{"$f":"IF(ExcelShortcuts[[#This Row],[Attribute]]=\"Alone\",\"\",ExcelShortcuts[[#This Row],[Attribute]]&\"+\")&ExcelShortcuts[[#This Row],[Key]]","v":"Ctrl+Shift+7"},{"$f":"_xlfn.XLOOKUP(SUBSTITUTE(ExcelShortcuts[[#This Row],[Shortcut]],\"+\",\" + \"),'Custom Shortcuts'!$D$15:$D$103,'Custom Shortcuts'!$C$15:$C$103,\"\",0)","v":"Unhide / Rehide Macro File"},{"$f":"COUNTIF(ExcelShortcuts[Key],\"=\"&ExcelShortcuts[[#This Row],[Key]])","v":6}]
[7,"Shift+Alt","",{"$f":"IF(ExcelShortcuts[[#This Row],[Attribute]]=\"Alone\",\"\",ExcelShortcuts[[#This Row],[Attribute]]&\"+\")&ExcelShortcuts[[#This Row],[Key]]","v":"Shift+Alt+7"},{"$f":"_xlfn.XLOOKUP(SUBSTITUTE(ExcelShortcuts[[#This Row],[Shortcut]],\"+\",\" + \"),'Custom Shortcuts'!$D$15:$D$103,'Custom Shortcuts'!$C$15:$C$103,\"\",0)","v":""},{"$f":"COUNTIF(ExcelShortcuts[Key],\"=\"&ExcelShortcuts[[#This Row],[Key]])","v":6}]
[7,"Ctrl+Alt","",{"$f":"IF(ExcelShortcuts[[#This Row],[Attribute]]=\"Alone\",\"\",ExcelShortcuts[[#This Row],[Attribute]]&\"+\")&ExcelShortcuts[[#This Row],[Key]]","v":"Ctrl+Alt+7"},{"$f":"_xlfn.XLOOKUP(SUBSTITUTE(ExcelShortcuts[[#This Row],[Shortcut]],\"+\",\" + \"),'Custom Shortcuts'!$D$15:$D$103,'Custom Shortcuts'!$C$15:$C$103,\"\",0)","v":""},{"$f":"COUNTIF(ExcelShortcuts[Key],\"=\"&ExcelShortcuts[[#This Row],[Key]])","v":6}]
[7,"Ctrl+Shift+Alt","",{"$f":"IF(ExcelShortcuts[[#This Row],[Attribute]]=\"Alone\",\"\",ExcelShortcuts[[#This Row],[Attribute]]&\"+\")&ExcelShortcuts[[#This Row],[Key]]","v":"Ctrl+Shift+Alt+7"},{"$f":"_xlfn.XLOOKUP(SUBSTITUTE(ExcelShortcuts[[#This Row],[Shortcut]],\"+\",\" + \"),'Custom Shortcuts'!$D$15:$D$103,'Custom Shortcuts'!$C$15:$C$103,\"\",0)","v":""},{"$f":"COUNTIF(ExcelShortcuts[Key],\"=\"&ExcelShortcuts[[#This Row],[Key]])","v":6}]
[8,"Ctrl","Toggle showing outline symbols",{"$f":"IF(ExcelShortcuts[[#This Row],[Attribute]]=\"Alone\",\"\",ExcelShortcuts[[#This Row],[Attribute]]&\"+\")&ExcelShortcuts[[#This Row],[Key]]","v":"Ctrl+8"},{"$f":"_xlfn.XLOOKUP(SUBSTITUTE(ExcelShortcuts[[#This Row],[Shortcut]],\"+\",\" + \"),'Custom Shortcuts'!$D$15:$D$103,'Custom Shortcuts'!$C$15:$C$103,\"\",0)","v":""},{"$f":"COUNTIF(ExcelShortcuts[Key],\"=\"&ExcelShortcuts[[#This Row],[Key]])","v":6}]
[8,"Alt","",{"$f":"IF(ExcelShortcuts[[#This Row],[Attribute]]=\"Alone\",\"\",ExcelShortcuts[[#This Row],[Attribute]]&\"+\")&ExcelShortcuts[[#This Row],[Key]]","v":"Alt+8"},{"$f":"_xlfn.XLOOKUP(SUBSTITUTE(ExcelShortcuts[[#This Row],[Shortcut]],\"+\",\" + \"),'Custom Shortcuts'!$D$15:$D$103,'Custom Shortcuts'!$C$15:$C$103,\"\",0)","v":""},{"$f":"COUNTIF(ExcelShortcuts[Key],\"=\"&ExcelShortcuts[[#This Row],[Key]])","v":6}]
[8,"Ctrl+Shift","Select current region",{"$f":"IF(ExcelShortcuts[[#This Row],[Attribute]]=\"Alone\",\"\",ExcelShortcuts[[#This Row],[Attribute]]&\"+\")&ExcelShortcuts[[#This Row],[Key]]","v":"Ctrl+Shift+8"},{"$f":"_xlfn.XLOOKUP(SUBSTITUTE(ExcelShortcuts[[#This Row],[Shortcut]],\"+\",\" + \"),'Custom Shortcuts'!$D$15:$D$103,'Custom Shortcuts'!$C$15:$C$103,\"\",0)","v":"Delete selected Conditional Format(s)"},{"$f":"COUNTIF(ExcelShortcuts[Key],\"=\"&ExcelShortcuts[[#This Row],[Key]])","v":6}]
[8,"Shift+Alt","",{"$f":"IF(ExcelShortcuts[[#This Row],[Attribute]]=\"Alone\",\"\",ExcelShortcuts[[#This Row],[Attribute]]&\"+\")&ExcelShortcuts[[#This Row],[Key]]","v":"Shift+Alt+8"},{"$f":"_xlfn.XLOOKUP(SUBSTITUTE(ExcelShortcuts[[#This Row],[Shortcut]],\"+\",\" + \"),'Custom Shortcuts'!$D$15:$D$103,'Custom Shortcuts'!$C$15:$C$103,\"\",0)","v":""},{"$f":"COUNTIF(ExcelShortcuts[Key],\"=\"&ExcelShortcuts[[#This Row],[Key]])","v":6}]
[8,"Ctrl+Alt","",{"$f":"IF(ExcelShortcuts[[#This Row],[Attribute]]=\"Alone\",\"\",ExcelShortcuts[[#This Row],[Attribute]]&\"+\")&ExcelShortcuts[[#This Row],[Key]]","v":"Ctrl+Alt+8"},{"$f":"_xlfn.XLOOKUP(SUBSTITUTE(ExcelShortcuts[[#This Row],[Shortcut]],\"+\",\" + \"),'Custom Shortcuts'!$D$15:$D$103,'Custom Shortcuts'!$C$15:$C$103,\"\",0)","v":""},{"$f":"COUNTIF(ExcelShortcuts[Key],\"=\"&ExcelShortcuts[[#This Row],[Key]])","v":6}]
[8,"Ctrl+Shift+Alt","",{"$f":"IF(ExcelShortcuts[[#This Row],[Attribute]]=\"Alone\",\"\",ExcelShortcuts[[#This Row],[Attribute]]&\"+\")&ExcelShortcuts[[#This Row],[Key]]","v":"Ctrl+Shift+Alt+8"},{"$f":"_xlfn.XLOOKUP(SUBSTITUTE(ExcelShortcuts[[#This Row],[Shortcut]],\"+\",\" + \"),'Custom Shortcuts'!$D$15:$D$103,'Custom Shortcuts'!$C$15:$C$103,\"\",0)","v":""},{"$f":"COUNTIF(ExcelShortcuts[Key],\"=\"&ExcelShortcuts[[#This Row],[Key]])","v":6}]
[9,"Ctrl","Hide Row",{"$f":"IF(ExcelShortcuts[[#This Row],[Attribute]]=\"Alone\",\"\",ExcelShortcuts[[#This Row],[Attribute]]&\"+\")&ExcelShortcuts[[#This Row],[Key]]","v":"Ctrl+9"},{"$f":"_xlfn.XLOOKUP(SUBSTITUTE(ExcelShortcuts[[#This Row],[Shortcut]],\"+\",\" + \"),'Custom Shortcuts'!$D$15:$D$103,'Custom Shortcuts'!$C$15:$C$103,\"\",0)","v":""},{"$f":"COUNTIF(ExcelShortcuts[Key],\"=\"&ExcelShortcuts[[#This Row],[Key]])","v":6}]
[9,"Alt","",{"$f":"IF(ExcelShortcuts[[#This Row],[Attribute]]=\"Alone\",\"\",ExcelShortcuts[[#This Row],[Attribute]]&\"+\")&ExcelShortcuts[[#This Row],[Key]]","v":"Alt+9"},{"$f":"_xlfn.XLOOKUP(SUBSTITUTE(ExcelShortcuts[[#This Row],[Shortcut]],\"+\",\" + \"),'Custom Shortcuts'!$D$15:$D$103,'Custom Shortcuts'!$C$15:$C$103,\"\",0)","v":""},{"$f":"COUNTIF(ExcelShortcuts[Key],\"=\"&ExcelShortcuts[[#This Row],[Key]])","v":6}]
[9,"Ctrl+Shift","Unhide Row",{"$f":"IF(ExcelShortcuts[[#This Row],[Attribute]]=\"Alone\",\"\",ExcelShortcuts[[#This Row],[Attribute]]&\"+\")&ExcelShortcuts[[#This Row],[Key]]","v":"Ctrl+Shift+9"},{"$f":"_xlfn.XLOOKUP(SUBSTITUTE(ExcelShortcuts[[#This Row],[Shortcut]],\"+\",\" + \"),'Custom Shortcuts'!$D$15:$D$103,'Custom Shortcuts'!$C$15:$C$103,\"\",0)","v":"Create Variance tabs"},{"$f":"COUNTIF(ExcelShortcuts[Key],\"=\"&ExcelShortcuts[[#This Row],[Key]])","v":6}]
[9,"Shift+Alt","",{"$f":"IF(ExcelShortcuts[[#This Row],[Attribute]]=\"Alone\",\"\",ExcelShortcuts[[#This Row],[Attribute]]&\"+\")&ExcelShortcuts[[#This Row],[Key]]","v":"Shift+Alt+9"},{"$f":"_xlfn.XLOOKUP(SUBSTITUTE(ExcelShortcuts[[#This Row],[Shortcut]],\"+\",\" + \"),'Custom Shortcuts'!$D$15:$D$103,'Custom Shortcuts'!$C$15:$C$103,\"\",0)","v":""},{"$f":"COUNTIF(ExcelShortcuts[Key],\"=\"&ExcelShortcuts[[#This Row],[Key]])","v":6}]
[9,"Ctrl+Alt","",{"$f":"IF(ExcelShortcuts[[#This Row],[Attribute]]=\"Alone\",\"\",ExcelShortcuts[[#This Row],[Attribute]]&\"+\")&ExcelShortcuts[[#This Row],[Key]]","v":"Ctrl+Alt+9"},{"$f":"_xlfn.XLOOKUP(SUBSTITUTE(ExcelShortcuts[[#This Row],[Shortcut]],\"+\",\" + \"),'Custom Shortcuts'!$D$15:$D$103,'Custom Shortcuts'!$C$15:$C$103,\"\",0)","v":""},{"$f":"COUNTIF(ExcelShortcuts[Key],\"=\"&ExcelShortcuts[[#This Row],[Key]])","v":6}]
[9,"Ctrl+Shift+Alt","",{"$f":"IF(ExcelShortcuts[[#This Row],[Attribute]]=\"Alone\",\"\",ExcelShortcuts[[#This Row],[Attribute]]&\"+\")&ExcelShortcuts[[#This Row],[Key]]","v":"Ctrl+Shift+Alt+9"},{"$f":"_xlfn.XLOOKUP(SUBSTITUTE(ExcelShortcuts[[#This Row],[Shortcut]],\"+\",\" + \"),'Custom Shortcuts'!$D$15:$D$103,'Custom Shortcuts'!$C$15:$C$103,\"\",0)","v":""},{"$f":"COUNTIF(ExcelShortcuts[Key],\"=\"&ExcelShortcuts[[#This Row],[Key]])","v":6}]
["'","Ctrl","Excel 2003: Copy above cell and edit",{"$f":"IF(ExcelShortcuts[[#This Row],[Attribute]]=\"Alone\",\"\",ExcelShortcuts[[#This Row],[Attribute]]&\"+\")&ExcelShortcuts[[#This Row],[Key]]","v":"Ctrl+'"},{"$f":"_xlfn.XLOOKUP(SUBSTITUTE(ExcelShortcuts[[#This Row],[Shortcut]],\"+\",\" + \"),'Custom Shortcuts'!$D$15:$D$103,'Custom Shortcuts'!$C$15:$C$103,\"\",0)","v":""},{"$f":"COUNTIF(ExcelShortcuts[Key],\"=\"&ExcelShortcuts[[#This Row],[Key]])","v":6}]
["'","Alt","Excel 2003: Activates the cell style drop-down or dialog",{"$f":"IF(ExcelShortcuts[[#This Row],[Attribute]]=\"Alone\",\"\",ExcelShortcuts[[#This Row],[Attribute]]&\"+\")&ExcelShortcuts[[#This Row],[Key]]","v":"Alt+'"},{"$f":"_xlfn.XLOOKUP(SUBSTITUTE(ExcelShortcuts[[#This Row],[Shortcut]],\"+\",\" + \"),'Custom Shortcuts'!$D$15:$D$103,'Custom Shortcuts'!$C$15:$C$103,\"\",0)","v":""},{"$f":"COUNTIF(ExcelShortcuts[Key],\"=\"&ExcelShortcuts[[#This Row],[Key]])","v":6}]
["'","Ctrl+Shift",null,{"$f":"IF(ExcelShortcuts[[#This Row],[Attribute]]=\"Alone\",\"\",ExcelShortcuts[[#This Row],[Attribute]]&\"+\")&ExcelShortcuts[[#This Row],[Key]]","v":"Ctrl+Shift+'"},{"$f":"_xlfn.XLOOKUP(SUBSTITUTE(ExcelShortcuts[[#This Row],[Shortcut]],\"+\",\" + \"),'Custom Shortcuts'!$D$15:$D$103,'Custom Shortcuts'!$C$15:$C$103,\"\",0)","v":""},{"$f":"COUNTIF(ExcelShortcuts[Key],\"=\"&ExcelShortcuts[[#This Row],[Key]])","v":6}]
["'","Shift+Alt","",{"$f":"IF(ExcelShortcuts[[#This Row],[Attribute]]=\"Alone\",\"\",ExcelShortcuts[[#This Row],[Attribute]]&\"+\")&ExcelShortcuts[[#This Row],[Key]]","v":"Shift+Alt+'"},{"$f":"_xlfn.XLOOKUP(SUBSTITUTE(ExcelShortcuts[[#This Row],[Shortcut]],\"+\",\" + \"),'Custom Shortcuts'!$D$15:$D$103,'Custom Shortcuts'!$C$15:$C$103,\"\",0)","v":""},{"$f":"COUNTIF(ExcelShortcuts[Key],\"=\"&ExcelShortcuts[[#This Row],[Key]])","v":6}]
["'","Ctrl+Alt","",{"$f":"IF(ExcelShortcuts[[#This Row],[Attribute]]=\"Alone\",\"\",ExcelShortcuts[[#This Row],[Attribute]]&\"+\")&ExcelShortcuts[[#This Row],[Key]]","v":"Ctrl+Alt+'"},{"$f":"_xlfn.XLOOKUP(SUBSTITUTE(ExcelShortcuts[[#This Row],[Shortcut]],\"+\",\" + \"),'Custom Shortcuts'!$D$15:$D$103,'Custom Shortcuts'!$C$15:$C$103,\"\",0)","v":""},{"$f":"COUNTIF(ExcelShortcuts[Key],\"=\"&ExcelShortcuts[[#This Row],[Key]])","v":6}]
["'","Ctrl+Shift+Alt","",{"$f":"IF(ExcelShortcuts[[#This Row],[Attribute]]=\"Alone\",\"\",ExcelShortcuts[[#This Row],[Attribute]]&\"+\")&ExcelShortcuts[[#This Row],[Key]]","v":"Ctrl+Shift+Alt+'"},{"$f":"_xlfn.XLOOKUP(SUBSTITUTE(ExcelShortcuts[[#This Row],[Shortcut]],\"+\",\" + \"),'Custom Shortcuts'!$D$15:$D$103,'Custom Shortcuts'!$C$15:$C$103,\"\",0)","v":""},{"$f":"COUNTIF(ExcelShortcuts[Key],\"=\"&ExcelShortcuts[[#This Row],[Key]])","v":6}]
["-","Ctrl","Delete Cells",{"$f":"IF(ExcelShortcuts[[#This Row],[Attribute]]=\"Alone\",\"\",ExcelShortcuts[[#This Row],[Attribute]]&\"+\")&ExcelShortcuts[[#This Row],[Key]]","v":"Ctrl+-"},{"$f":"_xlfn.XLOOKUP(SUBSTITUTE(ExcelShortcuts[[#This Row],[Shortcut]],\"+\",\" + \"),'Custom Shortcuts'!$D$15:$D$103,'Custom Shortcuts'!$C$15:$C$103,\"\",0)","v":""},{"$f":"COUNTIF(ExcelShortcuts[Key],\"=\"&ExcelShortcuts[[#This Row],[Key]])","v":6}]
["-","Alt","",{"$f":"IF(ExcelShortcuts[[#This Row],[Attribute]]=\"Alone\",\"\",ExcelShortcuts[[#This Row],[Attribute]]&\"+\")&ExcelShortcuts[[#This Row],[Key]]","v":"Alt+-"},{"$f":"_xlfn.XLOOKUP(SUBSTITUTE(ExcelShortcuts[[#This Row],[Shortcut]],\"+\",\" + \"),'Custom Shortcuts'!$D$15:$D$103,'Custom Shortcuts'!$C$15:$C$103,\"\",0)","v":""},{"$f":"COUNTIF(ExcelShortcuts[Key],\"=\"&ExcelShortcuts[[#This Row],[Key]])","v":6}]
["-","Ctrl+Shift","Remove all borders",{"$f":"IF(ExcelShortcuts[[#This Row],[Attribute]]=\"Alone\",\"\",ExcelShortcuts[[#This Row],[Attribute]]&\"+\")&ExcelShortcuts[[#This Row],[Key]]","v":"Ctrl+Shift+-"},{"$f":"_xlfn.XLOOKUP(SUBSTITUTE(ExcelShortcuts[[#This Row],[Shortcut]],\"+\",\" + \"),'Custom Shortcuts'!$D$15:$D$103,'Custom Shortcuts'!$C$15:$C$103,\"\",0)","v":""},{"$f":"COUNTIF(ExcelShortcuts[Key],\"=\"&ExcelShortcuts[[#This Row],[Key]])","v":6}]
["-","Shift+Alt","",{"$f":"IF(ExcelShortcuts[[#This Row],[Attribute]]=\"Alone\",\"\",ExcelShortcuts[[#This Row],[Attribute]]&\"+\")&ExcelShortcuts[[#This Row],[Key]]","v":"Shift+Alt+-"},{"$f":"_xlfn.XLOOKUP(SUBSTITUTE(ExcelShortcuts[[#This Row],[Shortcut]],\"+\",\" + \"),'Custom Shortcuts'!$D$15:$D$103,'Custom Shortcuts'!$C$15:$C$103,\"\",0)","v":""},{"$f":"COUNTIF(ExcelShortcuts[Key],\"=\"&ExcelShortcuts[[#This Row],[Key]])","v":6}]
["-","Ctrl+Alt","",{"$f":"IF(ExcelShortcuts[[#This Row],[Attribute]]=\"Alone\",\"\",ExcelShortcuts[[#This Row],[Attribute]]&\"+\")&ExcelShortcuts[[#This Row],[Key]]","v":"Ctrl+Alt+-"},{"$f":"_xlfn.XLOOKUP(SUBSTITUTE(ExcelShortcuts[[#This Row],[Shortcut]],\"+\",\" + \"),'Custom Shortcuts'!$D$15:$D$103,'Custom Shortcuts'!$C$15:$C$103,\"\",0)","v":"Delete Worksheet"},{"$f":"COUNTIF(ExcelShortcuts[Key],\"=\"&ExcelShortcuts[[#This Row],[Key]])","v":6}]
["-","Ctrl+Shift+Alt","",{"$f":"IF(ExcelShortcuts[[#This Row],[Attribute]]=\"Alone\",\"\",ExcelShortcuts[[#This Row],[Attribute]]&\"+\")&ExcelShortcuts[[#This Row],[Key]]","v":"Ctrl+Shift+Alt+-"},{"$f":"_xlfn.XLOOKUP(SUBSTITUTE(ExcelShortcuts[[#This Row],[Shortcut]],\"+\",\" + \"),'Custom Shortcuts'!$D$15:$D$103,'Custom Shortcuts'!$C$15:$C$103,\"\",0)","v":""},{"$f":"COUNTIF(ExcelShortcuts[Key],\"=\"&ExcelShortcuts[[#This Row],[Key]])","v":6}]
[",","Ctrl",null,{"$f":"IF(ExcelShortcuts[[#This Row],[Attribute]]=\"Alone\",\"\",ExcelShortcuts[[#This Row],[Attribute]]&\"+\")&ExcelShortcuts[[#This Row],[Key]]","v":"Ctrl+,"},{"$f":"_xlfn.XLOOKUP(SUBSTITUTE(ExcelShortcuts[[#This Row],[Shortcut]],\"+\",\" + \"),'Custom Shortcuts'!$D$15:$D$103,'Custom Shortcuts'!$C$15:$C$103,\"\",0)","v":"Decrease 0s"},{"$f":"COUNTIF(ExcelShortcuts[Key],\"=\"&ExcelShortcuts[[#This Row],[Key]])","v":6}]
[",","Alt","Excel 2003: Edit Style drop down menu (if visible)",{"$f":"IF(ExcelShortcuts[[#This Row],[Attribute]]=\"Alone\",\"\",ExcelShortcuts[[#This Row],[Attribute]]&\"+\")&ExcelShortcuts[[#This Row],[Key]]","v":"Alt+,"},{"$f":"_xlfn.XLOOKUP(SUBSTITUTE(ExcelShortcuts[[#This Row],[Shortcut]],\"+\",\" + \"),'Custom Shortcuts'!$D$15:$D$103,'Custom Shortcuts'!$C$15:$C$103,\"\",0)","v":""},{"$f":"COUNTIF(ExcelShortcuts[Key],\"=\"&ExcelShortcuts[[#This Row],[Key]])","v":6}]
[",","Ctrl+Shift","Fill down",{"$f":"IF(ExcelShortcuts[[#This Row],[Attribute]]=\"Alone\",\"\",ExcelShortcuts[[#This Row],[Attribute]]&\"+\")&ExcelShortcuts[[#This Row],[Key]]","v":"Ctrl+Shift+,"},{"$f":"_xlfn.XLOOKUP(SUBSTITUTE(ExcelShortcuts[[#This Row],[Shortcut]],\"+\",\" + \"),'Custom Shortcuts'!$D$15:$D$103,'Custom Shortcuts'!$C$15:$C$103,\"\",0)","v":"Normal Style Toggle"},{"$f":"COUNTIF(ExcelShortcuts[Key],\"=\"&ExcelShortcuts[[#This Row],[Key]])","v":6}]
[",","Shift+Alt",null,{"$f":"IF(ExcelShortcuts[[#This Row],[Attribute]]=\"Alone\",\"\",ExcelShortcuts[[#This Row],[Attribute]]&\"+\")&ExcelShortcuts[[#This Row],[Key]]","v":"Shift+Alt+,"},{"$f":"_xlfn.XLOOKUP(SUBSTITUTE(ExcelShortcuts[[#This Row],[Shortcut]],\"+\",\" + \"),'Custom Shortcuts'!$D$15:$D$103,'Custom Shortcuts'!$C$15:$C$103,\"\",0)","v":""},{"$f":"COUNTIF(ExcelShortcuts[Key],\"=\"&ExcelShortcuts[[#This Row],[Key]])","v":6}]
[",","Ctrl+Alt",null,{"$f":"IF(ExcelShortcuts[[#This Row],[Attribute]]=\"Alone\",\"\",ExcelShortcuts[[#This Row],[Attribute]]&\"+\")&ExcelShortcuts[[#This Row],[Key]]","v":"Ctrl+Alt+,"},{"$f":"_xlfn.XLOOKUP(SUBSTITUTE(ExcelShortcuts[[#This Row],[Shortcut]],\"+\",\" + \"),'Custom Shortcuts'!$D$15:$D$103,'Custom Shortcuts'!$C$15:$C$103,\"\",0)","v":""},{"$f":"COUNTIF(ExcelShortcuts[Key],\"=\"&ExcelShortcuts[[#This Row],[Key]])","v":6}]
[",","Ctrl+Shift+Alt",null,{"$f":"IF(ExcelShortcuts[[#This Row],[Attribute]]=\"Alone\",\"\",ExcelShortcuts[[#This Row],[Attribute]]&\"+\")&ExcelShortcuts[[#This Row],[Key]]","v":"Ctrl+Shift+Alt+,"},{"$f":"_xlfn.XLOOKUP(SUBSTITUTE(ExcelShortcuts[[#This Row],[Shortcut]],\"+\",\" + \"),'Custom Shortcuts'!$D$15:$D$103,'Custom Shortcuts'!$C$15:$C$103,\"\",0)","v":""},{"$f":"COUNTIF(ExcelShortcuts[Key],\"=\"&ExcelShortcuts[[#This Row],[Key]])","v":6}]
[".","Ctrl","Rotates the Active Cell through the corners of the selection",{"$f":"IF(ExcelShortcuts[[#This Row],[Attribute]]=\"Alone\",\"\",ExcelShortcuts[[#This Row],[Attribute]]&\"+\")&ExcelShortcuts[[#This Row],[Key]]","v":"Ctrl+."},{"$f":"_xlfn.XLOOKUP(SUBSTITUTE(ExcelShortcuts[[#This Row],[Shortcut]],\"+\",\" + \"),'Custom Shortcuts'!$D$15:$D$103,'Custom Shortcuts'!$C$15:$C$103,\"\",0)","v":"Increase 0s"},{"$f":"COUNTIF(ExcelShortcuts[Key],\"=\"&ExcelShortcuts[[#This Row],[Key]])","v":6}]
[".","Alt","",{"$f":"IF(ExcelShortcuts[[#This Row],[Attribute]]=\"Alone\",\"\",ExcelShortcuts[[#This Row],[Attribute]]&\"+\")&ExcelShortcuts[[#This Row],[Key]]","v":"Alt+."},{"$f":"_xlfn.XLOOKUP(SUBSTITUTE(ExcelShortcuts[[#This Row],[Shortcut]],\"+\",\" + \"),'Custom Shortcuts'!$D$15:$D$103,'Custom Shortcuts'!$C$15:$C$103,\"\",0)","v":""},{"$f":"COUNTIF(ExcelShortcuts[Key],\"=\"&ExcelShortcuts[[#This Row],[Key]])","v":6}]
[".","Ctrl+Shift","Fill right",{"$f":"IF(ExcelShortcuts[[#This Row],[Attribute]]=\"Alone\",\"\",ExcelShortcuts[[#This Row],[Attribute]]&\"+\")&ExcelShortcuts[[#This Row],[Key]]","v":"Ctrl+Shift+."},{"$f":"_xlfn.XLOOKUP(SUBSTITUTE(ExcelShortcuts[[#This Row],[Shortcut]],\"+\",\" + \"),'Custom Shortcuts'!$D$15:$D$103,'Custom Shortcuts'!$C$15:$C$103,\"\",0)","v":"Factor Style"},{"$f":"COUNTIF(ExcelShortcuts[Key],\"=\"&ExcelShortcuts[[#This Row],[Key]])","v":6}]
[".","Shift+Alt","",{"$f":"IF(ExcelShortcuts[[#This Row],[Attribute]]=\"Alone\",\"\",ExcelShortcuts[[#This Row],[Attribute]]&\"+\")&ExcelShortcuts[[#This Row],[Key]]","v":"Shift+Alt+."},{"$f":"_xlfn.XLOOKUP(SUBSTITUTE(ExcelShortcuts[[#This Row],[Shortcut]],\"+\",\" + \"),'Custom Shortcuts'!$D$15:$D$103,'Custom Shortcuts'!$C$15:$C$103,\"\",0)","v":""},{"$f":"COUNTIF(ExcelShortcuts[Key],\"=\"&ExcelShortcuts[[#This Row],[Key]])","v":6}]
[".","Ctrl+Alt","",{"$f":"IF(ExcelShortcuts[[#This Row],[Attribute]]=\"Alone\",\"\",ExcelShortcuts[[#This Row],[Attribute]]&\"+\")&ExcelShortcuts[[#This Row],[Key]]","v":"Ctrl+Alt+."},{"$f":"_xlfn.XLOOKUP(SUBSTITUTE(ExcelShortcuts[[#This Row],[Shortcut]],\"+\",\" + \"),'Custom Shortcuts'!$D$15:$D$103,'Custom Shortcuts'!$C$15:$C$103,\"\",0)","v":""},{"$f":"COUNTIF(ExcelShortcuts[Key],\"=\"&ExcelShortcuts[[#This Row],[Key]])","v":6}]
[".","Ctrl+Shift+Alt","",{"$f":"IF(ExcelShortcuts[[#This Row],[Attribute]]=\"Alone\",\"\",ExcelShortcuts[[#This Row],[Attribute]]&\"+\")&ExcelShortcuts[[#This Row],[Key]]","v":"Ctrl+Shift+Alt+."},{"$f":"_xlfn.XLOOKUP(SUBSTITUTE(ExcelShortcuts[[#This Row],[Shortcut]],\"+\",\" + \"),'Custom Shortcuts'!$D$15:$D$103,'Custom Shortcuts'!$C$15:$C$103,\"\",0)","v":""},{"$f":"COUNTIF(ExcelShortcuts[Key],\"=\"&ExcelShortcuts[[#This Row],[Key]])","v":6}]
["/","Ctrl","Select Array",{"$f":"IF(ExcelShortcuts[[#This Row],[Attribute]]=\"Alone\",\"\",ExcelShortcuts[[#This Row],[Attribute]]&\"+\")&ExcelShortcuts[[#This Row],[Key]]","v":"Ctrl+/"},{"$f":"_xlfn.XLOOKUP(SUBSTITUTE(ExcelShortcuts[[#This Row],[Shortcut]],\"+\",\" + \"),'Custom Shortcuts'!$D$15:$D$103,'Custom Shortcuts'!$C$15:$C$103,\"\",0)","v":""},{"$f":"COUNTIF(ExcelShortcuts[Key],\"=\"&ExcelShortcuts[[#This Row],[Key]])","v":6}]
["/","Alt","",{"$f":"IF(ExcelShortcuts[[#This Row],[Attribute]]=\"Alone\",\"\",ExcelShortcuts[[#This Row],[Attribute]]&\"+\")&ExcelShortcuts[[#This Row],[Key]]","v":"Alt+/"},{"$f":"_xlfn.XLOOKUP(SUBSTITUTE(ExcelShortcuts[[#This Row],[Shortcut]],\"+\",\" + \"),'Custom Shortcuts'!$D$15:$D$103,'Custom Shortcuts'!$C$15:$C$103,\"\",0)","v":""},{"$f":"COUNTIF(ExcelShortcuts[Key],\"=\"&ExcelShortcuts[[#This Row],[Key]])","v":6}]
["/","Ctrl+Shift","",{"$f":"IF(ExcelShortcuts[[#This Row],[Attribute]]=\"Alone\",\"\",ExcelShortcuts[[#This Row],[Attribute]]&\"+\")&ExcelShortcuts[[#This Row],[Key]]","v":"Ctrl+Shift+/"},{"$f":"_xlfn.XLOOKUP(SUBSTITUTE(ExcelShortcuts[[#This Row],[Shortcut]],\"+\",\" + \"),'Custom Shortcuts'!$D$15:$D$103,'Custom Shortcuts'!$C$15:$C$103,\"\",0)","v":""},{"$f":"COUNTIF(ExcelShortcuts[Key],\"=\"&ExcelShortcuts[[#This Row],[Key]])","v":6}]
["/","Shift+Alt","",{"$f":"IF(ExcelShortcuts[[#This Row],[Attribute]]=\"Alone\",\"\",ExcelShortcuts[[#This Row],[Attribute]]&\"+\")&ExcelShortcuts[[#This Row],[Key]]","v":"Shift+Alt+/"},{"$f":"_xlfn.XLOOKUP(SUBSTITUTE(ExcelShortcuts[[#This Row],[Shortcut]],\"+\",\" + \"),'Custom Shortcuts'!$D$15:$D$103,'Custom Shortcuts'!$C$15:$C$103,\"\",0)","v":""},{"$f":"COUNTIF(ExcelShortcuts[Key],\"=\"&ExcelShortcuts[[#This Row],[Key]])","v":6}]
["/","Ctrl+Alt","",{"$f":"IF(ExcelShortcuts[[#This Row],[Attribute]]=\"Alone\",\"\",ExcelShortcuts[[#This Row],[Attribute]]&\"+\")&ExcelShortcuts[[#This Row],[Key]]","v":"Ctrl+Alt+/"},{"$f":"_xlfn.XLOOKUP(SUBSTITUTE(ExcelShortcuts[[#This Row],[Shortcut]],\"+\",\" + \"),'Custom Shortcuts'!$D$15:$D$103,'Custom Shortcuts'!$C$15:$C$103,\"\",0)","v":""},{"$f":"COUNTIF(ExcelShortcuts[Key],\"=\"&ExcelShortcuts[[#This Row],[Key]])","v":6}]
["/","Ctrl+Shift+Alt","",{"$f":"IF(ExcelShortcuts[[#This Row],[Attribute]]=\"Alone\",\"\",ExcelShortcuts[[#This Row],[Attribute]]&\"+\")&ExcelShortcuts[[#This Row],[Key]]","v":"Ctrl+Shift+Alt+/"},{"$f":"_xlfn.XLOOKUP(SUBSTITUTE(ExcelShortcuts[[#This Row],[Shortcut]],\"+\",\" + \"),'Custom Shortcuts'!$D$15:$D$103,'Custom Shortcuts'!$C$15:$C$103,\"\",0)","v":""},{"$f":"COUNTIF(ExcelShortcuts[Key],\"=\"&ExcelShortcuts[[#This Row],[Key]])","v":6}]
[";","Ctrl","Insert current date (in Edit (F2) mode)",{"$f":"IF(ExcelShortcuts[[#This Row],[Attribute]]=\"Alone\",\"\",ExcelShortcuts[[#This Row],[Attribute]]&\"+\")&ExcelShortcuts[[#This Row],[Key]]","v":"Ctrl+;"},{"$f":"_xlfn.XLOOKUP(SUBSTITUTE(ExcelShortcuts[[#This Row],[Shortcut]],\"+\",\" + \"),'Custom Shortcuts'!$D$15:$D$103,'Custom Shortcuts'!$C$15:$C$103,\"\",0)","v":""},{"$f":"COUNTIF(ExcelShortcuts[Key],\"=\"&ExcelShortcuts[[#This Row],[Key]])","v":6}]
[";","Alt","Select Visible",{"$f":"IF(ExcelShortcuts[[#This Row],[Attribute]]=\"Alone\",\"\",ExcelShortcuts[[#This Row],[Attribute]]&\"+\")&ExcelShortcuts[[#This Row],[Key]]","v":"Alt+;"},{"$f":"_xlfn.XLOOKUP(SUBSTITUTE(ExcelShortcuts[[#This Row],[Shortcut]],\"+\",\" + \"),'Custom Shortcuts'!$D$15:$D$103,'Custom Shortcuts'!$C$15:$C$103,\"\",0)","v":""},{"$f":"COUNTIF(ExcelShortcuts[Key],\"=\"&ExcelShortcuts[[#This Row],[Key]])","v":6}]
[";","Ctrl+Shift","Insert current time (in edit mode)",{"$f":"IF(ExcelShortcuts[[#This Row],[Attribute]]=\"Alone\",\"\",ExcelShortcuts[[#This Row],[Attribute]]&\"+\")&ExcelShortcuts[[#This Row],[Key]]","v":"Ctrl+Shift+;"},{"$f":"_xlfn.XLOOKUP(SUBSTITUTE(ExcelShortcuts[[#This Row],[Shortcut]],\"+\",\" + \"),'Custom Shortcuts'!$D$15:$D$103,'Custom Shortcuts'!$C$15:$C$103,\"\",0)","v":""},{"$f":"COUNTIF(ExcelShortcuts[Key],\"=\"&ExcelShortcuts[[#This Row],[Key]])","v":6}]
[";","Shift+Alt","",{"$f":"IF(ExcelShortcuts[[#This Row],[Attribute]]=\"Alone\",\"\",ExcelShortcuts[[#This Row],[Attribute]]&\"+\")&ExcelShortcuts[[#This Row],[Key]]","v":"Shift+Alt+;"},{"$f":"_xlfn.XLOOKUP(SUBSTITUTE(ExcelShortcuts[[#This Row],[Shortcut]],\"+\",\" + \"),'Custom Shortcuts'!$D$15:$D$103,'Custom Shortcuts'!$C$15:$C$103,\"\",0)","v":""},{"$f":"COUNTIF(ExcelShortcuts[Key],\"=\"&ExcelShortcuts[[#This Row],[Key]])","v":6}]
[";","Ctrl+Alt","",{"$f":"IF(ExcelShortcuts[[#This Row],[Attribute]]=\"Alone\",\"\",ExcelShortcuts[[#This Row],[Attribute]]&\"+\")&ExcelShortcuts[[#This Row],[Key]]","v":"Ctrl+Alt+;"},{"$f":"_xlfn.XLOOKUP(SUBSTITUTE(ExcelShortcuts[[#This Row],[Shortcut]],\"+\",\" + \"),'Custom Shortcuts'!$D$15:$D$103,'Custom Shortcuts'!$C$15:$C$103,\"\",0)","v":""},{"$f":"COUNTIF(ExcelShortcuts[Key],\"=\"&ExcelShortcuts[[#This Row],[Key]])","v":6}]
[";","Ctrl+Shift+Alt","",{"$f":"IF(ExcelShortcuts[[#This Row],[Attribute]]=\"Alone\",\"\",ExcelShortcuts[[#This Row],[Attribute]]&\"+\")&ExcelShortcuts[[#This Row],[Key]]","v":"Ctrl+Shift+Alt+;"},{"$f":"_xlfn.XLOOKUP(SUBSTITUTE(ExcelShortcuts[[#This Row],[Shortcut]],\"+\",\" + \"),'Custom Shortcuts'!$D$15:$D$103,'Custom Shortcuts'!$C$15:$C$103,\"\",0)","v":""},{"$f":"COUNTIF(ExcelShortcuts[Key],\"=\"&ExcelShortcuts[[#This Row],[Key]])","v":6}]
["[","Ctrl","Select direct precedent cells",{"$f":"IF(ExcelShortcuts[[#This Row],[Attribute]]=\"Alone\",\"\",ExcelShortcuts[[#This Row],[Attribute]]&\"+\")&ExcelShortcuts[[#This Row],[Key]]","v":"Ctrl+["},{"$f":"_xlfn.XLOOKUP(SUBSTITUTE(ExcelShortcuts[[#This Row],[Shortcut]],\"+\",\" + \"),'Custom Shortcuts'!$D$15:$D$103,'Custom Shortcuts'!$C$15:$C$103,\"\",0)","v":""},{"$f":"COUNTIF(ExcelShortcuts[Key],\"=\"&ExcelShortcuts[[#This Row],[Key]])","v":6}]
["[","Alt","",{"$f":"IF(ExcelShortcuts[[#This Row],[Attribute]]=\"Alone\",\"\",ExcelShortcuts[[#This Row],[Attribute]]&\"+\")&ExcelShortcuts[[#This Row],[Key]]","v":"Alt+["},{"$f":"_xlfn.XLOOKUP(SUBSTITUTE(ExcelShortcuts[[#This Row],[Shortcut]],\"+\",\" + \"),'Custom Shortcuts'!$D$15:$D$103,'Custom Shortcuts'!$C$15:$C$103,\"\",0)","v":""},{"$f":"COUNTIF(ExcelShortcuts[Key],\"=\"&ExcelShortcuts[[#This Row],[Key]])","v":6}]
["[","Ctrl+Shift","Select all precedent cells",{"$f":"IF(ExcelShortcuts[[#This Row],[Attribute]]=\"Alone\",\"\",ExcelShortcuts[[#This Row],[Attribute]]&\"+\")&ExcelShortcuts[[#This Row],[Key]]","v":"Ctrl+Shift+["},{"$f":"_xlfn.XLOOKUP(SUBSTITUTE(ExcelShortcuts[[#This Row],[Shortcut]],\"+\",\" + \"),'Custom Shortcuts'!$D$15:$D$103,'Custom Shortcuts'!$C$15:$C$103,\"\",0)","v":""},{"$f":"COUNTIF(ExcelShortcuts[Key],\"=\"&ExcelShortcuts[[#This Row],[Key]])","v":6}]
["[","Shift+Alt","",{"$f":"IF(ExcelShortcuts[[#This Row],[Attribute]]=\"Alone\",\"\",ExcelShortcuts[[#This Row],[Attribute]]&\"+\")&ExcelShortcuts[[#This Row],[Key]]","v":"Shift+Alt+["},{"$f":"_xlfn.XLOOKUP(SUBSTITUTE(ExcelShortcuts[[#This Row],[Shortcut]],\"+\",\" + \"),'Custom Shortcuts'!$D$15:$D$103,'Custom Shortcuts'!$C$15:$C$103,\"\",0)","v":""},{"$f":"COUNTIF(ExcelShortcuts[Key],\"=\"&ExcelShortcuts[[#This Row],[Key]])","v":6}]
["[","Ctrl+Alt","",{"$f":"IF(ExcelShortcuts[[#This Row],[Attribute]]=\"Alone\",\"\",ExcelShortcuts[[#This Row],[Attribute]]&\"+\")&ExcelShortcuts[[#This Row],[Key]]","v":"Ctrl+Alt+["},{"$f":"_xlfn.XLOOKUP(SUBSTITUTE(ExcelShortcuts[[#This Row],[Shortcut]],\"+\",\" + \"),'Custom Shortcuts'!$D$15:$D$103,'Custom Shortcuts'!$C$15:$C$103,\"\",0)","v":""},{"$f":"COUNTIF(ExcelShortcuts[Key],\"=\"&ExcelShortcuts[[#This Row],[Key]])","v":6}]
["[","Ctrl+Shift+Alt","",{"$f":"IF(ExcelShortcuts[[#This Row],[Attribute]]=\"Alone\",\"\",ExcelShortcuts[[#This Row],[Attribute]]&\"+\")&ExcelShortcuts[[#This Row],[Key]]","v":"Ctrl+Shift+Alt+["},{"$f":"_xlfn.XLOOKUP(SUBSTITUTE(ExcelShortcuts[[#This Row],[Shortcut]],\"+\",\" + \"),'Custom Shortcuts'!$D$15:$D$103,'Custom Shortcuts'!$C$15:$C$103,\"\",0)","v":""},{"$f":"COUNTIF(ExcelShortcuts[Key],\"=\"&ExcelShortcuts[[#This Row],[Key]])","v":6}]
["\\","Ctrl","Select unequal cells in row / column of selection",{"$f":"IF(ExcelShortcuts[[#This Row],[Attribute]]=\"Alone\",\"\",ExcelShortcuts[[#This Row],[Attribute]]&\"+\")&ExcelShortcuts[[#This Row],[Key]]","v":"Ctrl+\\"},{"$f":"_xlfn.XLOOKUP(SUBSTITUTE(ExcelShortcuts[[#This Row],[Shortcut]],\"+\",\" + \"),'Custom Shortcuts'!$D$15:$D$103,'Custom Shortcuts'!$C$15:$C$103,\"\",0)","v":""},{"$f":"COUNTIF(ExcelShortcuts[Key],\"=\"&ExcelShortcuts[[#This Row],[Key]])","v":6}]
["\\","Alt","",{"$f":"IF(ExcelShortcuts[[#This Row],[Attribute]]=\"Alone\",\"\",ExcelShortcuts[[#This Row],[Attribute]]&\"+\")&ExcelShortcuts[[#This Row],[Key]]","v":"Alt+\\"},{"$f":"_xlfn.XLOOKUP(SUBSTITUTE(ExcelShortcuts[[#This Row],[Shortcut]],\"+\",\" + \"),'Custom Shortcuts'!$D$15:$D$103,'Custom Shortcuts'!$C$15:$C$103,\"\",0)","v":""},{"$f":"COUNTIF(ExcelShortcuts[Key],\"=\"&ExcelShortcuts[[#This Row],[Key]])","v":6}]
["\\","Ctrl+Shift","Select cells unequal to active cell",{"$f":"IF(ExcelShortcuts[[#This Row],[Attribute]]=\"Alone\",\"\",ExcelShortcuts[[#This Row],[Attribute]]&\"+\")&ExcelShortcuts[[#This Row],[Key]]","v":"Ctrl+Shift+\\"},{"$f":"_xlfn.XLOOKUP(SUBSTITUTE(ExcelShortcuts[[#This Row],[Shortcut]],\"+\",\" + \"),'Custom Shortcuts'!$D$15:$D$103,'Custom Shortcuts'!$C$15:$C$103,\"\",0)","v":""},{"$f":"COUNTIF(ExcelShortcuts[Key],\"=\"&ExcelShortcuts[[#This Row],[Key]])","v":6}]
["\\","Shift+Alt","",{"$f":"IF(ExcelShortcuts[[#This Row],[Attribute]]=\"Alone\",\"\",ExcelShortcuts[[#This Row],[Attribute]]&\"+\")&ExcelShortcuts[[#This Row],[Key]]","v":"Shift+Alt+\\"},{"$f":"_xlfn.XLOOKUP(SUBSTITUTE(ExcelShortcuts[[#This Row],[Shortcut]],\"+\",\" + \"),'Custom Shortcuts'!$D$15:$D$103,'Custom Shortcuts'!$C$15:$C$103,\"\",0)","v":""},{"$f":"COUNTIF(ExcelShortcuts[Key],\"=\"&ExcelShortcuts[[#This Row],[Key]])","v":6}]
["\\","Ctrl+Alt","",{"$f":"IF(ExcelShortcuts[[#This Row],[Attribute]]=\"Alone\",\"\",ExcelShortcuts[[#This Row],[Attribute]]&\"+\")&ExcelShortcuts[[#This Row],[Key]]","v":"Ctrl+Alt+\\"},{"$f":"_xlfn.XLOOKUP(SUBSTITUTE(ExcelShortcuts[[#This Row],[Shortcut]],\"+\",\" + \"),'Custom Shortcuts'!$D$15:$D$103,'Custom Shortcuts'!$C$15:$C$103,\"\",0)","v":""},{"$f":"COUNTIF(ExcelShortcuts[Key],\"=\"&ExcelShortcuts[[#This Row],[Key]])","v":6}]
["\\","Ctrl+Shift+Alt","",{"$f":"IF(ExcelShortcuts[[#This Row],[Attribute]]=\"Alone\",\"\",ExcelShortcuts[[#This Row],[Attribute]]&\"+\")&ExcelShortcuts[[#This Row],[Key]]","v":"Ctrl+Shift+Alt+\\"},{"$f":"_xlfn.XLOOKUP(SUBSTITUTE(ExcelShortcuts[[#This Row],[Shortcut]],\"+\",\" + \"),'Custom Shortcuts'!$D$15:$D$103,'Custom Shortcuts'!$C$15:$C$103,\"\",0)","v":""},{"$f":"COUNTIF(ExcelShortcuts[Key],\"=\"&ExcelShortcuts[[#This Row],[Key]])","v":6}]
["]","Ctrl","Select directly dependent cells",{"$f":"IF(ExcelShortcuts[[#This Row],[Attribute]]=\"Alone\",\"\",ExcelShortcuts[[#This Row],[Attribute]]&\"+\")&ExcelShortcuts[[#This Row],[Key]]","v":"Ctrl+]"},{"$f":"_xlfn.XLOOKUP(SUBSTITUTE(ExcelShortcuts[[#This Row],[Shortcut]],\"+\",\" + \"),'Custom Shortcuts'!$D$15:$D$103,'Custom Shortcuts'!$C$15:$C$103,\"\",0)","v":""},{"$f":"COUNTIF(ExcelShortcuts[Key],\"=\"&ExcelShortcuts[[#This Row],[Key]])","v":6}]
["]","Alt","",{"$f":"IF(ExcelShortcuts[[#This Row],[Attribute]]=\"Alone\",\"\",ExcelShortcuts[[#This Row],[Attribute]]&\"+\")&ExcelShortcuts[[#This Row],[Key]]","v":"Alt+]"},{"$f":"_xlfn.XLOOKUP(SUBSTITUTE(ExcelShortcuts[[#This Row],[Shortcut]],\"+\",\" + \"),'Custom Shortcuts'!$D$15:$D$103,'Custom Shortcuts'!$C$15:$C$103,\"\",0)","v":""},{"$f":"COUNTIF(ExcelShortcuts[Key],\"=\"&ExcelShortcuts[[#This Row],[Key]])","v":6}]
["]","Ctrl+Shift","Select all dependent cells",{"$f":"IF(ExcelShortcuts[[#This Row],[Attribute]]=\"Alone\",\"\",ExcelShortcuts[[#This Row],[Attribute]]&\"+\")&ExcelShortcuts[[#This Row],[Key]]","v":"Ctrl+Shift+]"},{"$f":"_xlfn.XLOOKUP(SUBSTITUTE(ExcelShortcuts[[#This Row],[Shortcut]],\"+\",\" + \"),'Custom Shortcuts'!$D$15:$D$103,'Custom Shortcuts'!$C$15:$C$103,\"\",0)","v":""},{"$f":"COUNTIF(ExcelShortcuts[Key],\"=\"&ExcelShortcuts[[#This Row],[Key]])","v":6}]
["]","Shift+Alt","",{"$f":"IF(ExcelShortcuts[[#This Row],[Attribute]]=\"Alone\",\"\",ExcelShortcuts[[#This Row],[Attribute]]&\"+\")&ExcelShortcuts[[#This Row],[Key]]","v":"Shift+Alt+]"},{"$f":"_xlfn.XLOOKUP(SUBSTITUTE(ExcelShortcuts[[#This Row],[Shortcut]],\"+\",\" + \"),'Custom Shortcuts'!$D$15:$D$103,'Custom Shortcuts'!$C$15:$C$103,\"\",0)","v":""},{"$f":"COUNTIF(ExcelShortcuts[Key],\"=\"&ExcelShortcuts[[#This Row],[Key]])","v":6}]
["]","Ctrl+Alt","",{"$f":"IF(ExcelShortcuts[[#This Row],[Attribute]]=\"Alone\",\"\",ExcelShortcuts[[#This Row],[Attribute]]&\"+\")&ExcelShortcuts[[#This Row],[Key]]","v":"Ctrl+Alt+]"},{"$f":"_xlfn.XLOOKUP(SUBSTITUTE(ExcelShortcuts[[#This Row],[Shortcut]],\"+\",\" + \"),'Custom Shortcuts'!$D$15:$D$103,'Custom Shortcuts'!$C$15:$C$103,\"\",0)","v":""},{"$f":"COUNTIF(ExcelShortcuts[Key],\"=\"&ExcelShortcuts[[#This Row],[Key]])","v":6}]
["]","Ctrl+Shift+Alt","",{"$f":"IF(ExcelShortcuts[[#This Row],[Attribute]]=\"Alone\",\"\",ExcelShortcuts[[#This Row],[Attribute]]&\"+\")&ExcelShortcuts[[#This Row],[Key]]","v":"Ctrl+Shift+Alt+]"},{"$f":"_xlfn.XLOOKUP(SUBSTITUTE(ExcelShortcuts[[#This Row],[Shortcut]],\"+\",\" + \"),'Custom Shortcuts'!$D$15:$D$103,'Custom Shortcuts'!$C$15:$C$103,\"\",0)","v":""},{"$f":"COUNTIF(ExcelShortcuts[Key],\"=\"&ExcelShortcuts[[#This Row],[Key]])","v":6}]
["`","Ctrl","Formula Auditing Mode",{"$f":"IF(ExcelShortcuts[[#This Row],[Attribute]]=\"Alone\",\"\",ExcelShortcuts[[#This Row],[Attribute]]&\"+\")&ExcelShortcuts[[#This Row],[Key]]","v":"Ctrl+`"},{"$f":"_xlfn.XLOOKUP(SUBSTITUTE(ExcelShortcuts[[#This Row],[Shortcut]],\"+\",\" + \"),'Custom Shortcuts'!$D$15:$D$103,'Custom Shortcuts'!$C$15:$C$103,\"\",0)","v":""},{"$f":"COUNTIF(ExcelShortcuts[Key],\"=\"&ExcelShortcuts[[#This Row],[Key]])","v":6}]
["`","Alt","",{"$f":"IF(ExcelShortcuts[[#This Row],[Attribute]]=\"Alone\",\"\",ExcelShortcuts[[#This Row],[Attribute]]&\"+\")&ExcelShortcuts[[#This Row],[Key]]","v":"Alt+`"},{"$f":"_xlfn.XLOOKUP(SUBSTITUTE(ExcelShortcuts[[#This Row],[Shortcut]],\"+\",\" + \"),'Custom Shortcuts'!$D$15:$D$103,'Custom Shortcuts'!$C$15:$C$103,\"\",0)","v":""},{"$f":"COUNTIF(ExcelShortcuts[Key],\"=\"&ExcelShortcuts[[#This Row],[Key]])","v":6}]
["`","Ctrl+Shift","General Number Format",{"$f":"IF(ExcelShortcuts[[#This Row],[Attribute]]=\"Alone\",\"\",ExcelShortcuts[[#This Row],[Attribute]]&\"+\")&ExcelShortcuts[[#This Row],[Key]]","v":"Ctrl+Shift+`"},{"$f":"_xlfn.XLOOKUP(SUBSTITUTE(ExcelShortcuts[[#This Row],[Shortcut]],\"+\",\" + \"),'Custom Shortcuts'!$D$15:$D$103,'Custom Shortcuts'!$C$15:$C$103,\"\",0)","v":""},{"$f":"COUNTIF(ExcelShortcuts[Key],\"=\"&ExcelShortcuts[[#This Row],[Key]])","v":6}]
["`","Shift+Alt","",{"$f":"IF(ExcelShortcuts[[#This Row],[Attribute]]=\"Alone\",\"\",ExcelShortcuts[[#This Row],[Attribute]]&\"+\")&ExcelShortcuts[[#This Row],[Key]]","v":"Shift+Alt+`"},{"$f":"_xlfn.XLOOKUP(SUBSTITUTE(ExcelShortcuts[[#This Row],[Shortcut]],\"+\",\" + \"),'Custom Shortcuts'!$D$15:$D$103,'Custom Shortcuts'!$C$15:$C$103,\"\",0)","v":""},{"$f":"COUNTIF(ExcelShortcuts[Key],\"=\"&ExcelShortcuts[[#This Row],[Key]])","v":6}]
["`","Ctrl+Alt","",{"$f":"IF(ExcelShortcuts[[#This Row],[Attribute]]=\"Alone\",\"\",ExcelShortcuts[[#This Row],[Attribute]]&\"+\")&ExcelShortcuts[[#This Row],[Key]]","v":"Ctrl+Alt+`"},{"$f":"_xlfn.XLOOKUP(SUBSTITUTE(ExcelShortcuts[[#This Row],[Shortcut]],\"+\",\" + \"),'Custom Shortcuts'!$D$15:$D$103,'Custom Shortcuts'!$C$15:$C$103,\"\",0)","v":""},{"$f":"COUNTIF(ExcelShortcuts[Key],\"=\"&ExcelShortcuts[[#This Row],[Key]])","v":6}]
["`","Ctrl+Shift+Alt","",{"$f":"IF(ExcelShortcuts[[#This Row],[Attribute]]=\"Alone\",\"\",ExcelShortcuts[[#This Row],[Attribute]]&\"+\")&ExcelShortcuts[[#This Row],[Key]]","v":"Ctrl+Shift+Alt+`"},{"$f":"_xlfn.XLOOKUP(SUBSTITUTE(ExcelShortcuts[[#This Row],[Shortcut]],\"+\",\" + \"),'Custom Shortcuts'!$D$15:$D$103,'Custom Shortcuts'!$C$15:$C$103,\"\",0)","v":""},{"$f":"COUNTIF(ExcelShortcuts[Key],\"=\"&ExcelShortcuts[[#This Row],[Key]])","v":6}]
["=","Ctrl","Calculate Now",{"$f":"IF(ExcelShortcuts[[#This Row],[Attribute]]=\"Alone\",\"\",ExcelShortcuts[[#This Row],[Attribute]]&\"+\")&ExcelShortcuts[[#This Row],[Key]]","v":"Ctrl+="},{"$f":"_xlfn.XLOOKUP(SUBSTITUTE(ExcelShortcuts[[#This Row],[Shortcut]],\"+\",\" + \"),'Custom Shortcuts'!$D$15:$D$103,'Custom Shortcuts'!$C$15:$C$103,\"\",0)","v":""},{"$f":"COUNTIF(ExcelShortcuts[Key],\"=\"&ExcelShortcuts[[#This Row],[Key]])","v":6}]
["=","Alt","Autosum",{"$f":"IF(ExcelShortcuts[[#This Row],[Attribute]]=\"Alone\",\"\",ExcelShortcuts[[#This Row],[Attribute]]&\"+\")&ExcelShortcuts[[#This Row],[Key]]","v":"Alt+="},{"$f":"_xlfn.XLOOKUP(SUBSTITUTE(ExcelShortcuts[[#This Row],[Shortcut]],\"+\",\" + \"),'Custom Shortcuts'!$D$15:$D$103,'Custom Shortcuts'!$C$15:$C$103,\"\",0)","v":""},{"$f":"COUNTIF(ExcelShortcuts[Key],\"=\"&ExcelShortcuts[[#This Row],[Key]])","v":6}]
["=","Ctrl+Shift","Insert cells",{"$f":"IF(ExcelShortcuts[[#This Row],[Attribute]]=\"Alone\",\"\",ExcelShortcuts[[#This Row],[Attribute]]&\"+\")&ExcelShortcuts[[#This Row],[Key]]","v":"Ctrl+Shift+="},{"$f":"_xlfn.XLOOKUP(SUBSTITUTE(ExcelShortcuts[[#This Row],[Shortcut]],\"+\",\" + \"),'Custom Shortcuts'!$D$15:$D$103,'Custom Shortcuts'!$C$15:$C$103,\"\",0)","v":""},{"$f":"COUNTIF(ExcelShortcuts[Key],\"=\"&ExcelShortcuts[[#This Row],[Key]])","v":6}]
["=","Shift+Alt","",{"$f":"IF(ExcelShortcuts[[#This Row],[Attribute]]=\"Alone\",\"\",ExcelShortcuts[[#This Row],[Attribute]]&\"+\")&ExcelShortcuts[[#This Row],[Key]]","v":"Shift+Alt+="},{"$f":"_xlfn.XLOOKUP(SUBSTITUTE(ExcelShortcuts[[#This Row],[Shortcut]],\"+\",\" + \"),'Custom Shortcuts'!$D$15:$D$103,'Custom Shortcuts'!$C$15:$C$103,\"\",0)","v":""},{"$f":"COUNTIF(ExcelShortcuts[Key],\"=\"&ExcelShortcuts[[#This Row],[Key]])","v":6}]
["=","Ctrl+Alt","",{"$f":"IF(ExcelShortcuts[[#This Row],[Attribute]]=\"Alone\",\"\",ExcelShortcuts[[#This Row],[Attribute]]&\"+\")&ExcelShortcuts[[#This Row],[Key]]","v":"Ctrl+Alt+="},{"$f":"_xlfn.XLOOKUP(SUBSTITUTE(ExcelShortcuts[[#This Row],[Shortcut]],\"+\",\" + \"),'Custom Shortcuts'!$D$15:$D$103,'Custom Shortcuts'!$C$15:$C$103,\"\",0)","v":""},{"$f":"COUNTIF(ExcelShortcuts[Key],\"=\"&ExcelShortcuts[[#This Row],[Key]])","v":6}]
["=","Ctrl+Shift+Alt","",{"$f":"IF(ExcelShortcuts[[#This Row],[Attribute]]=\"Alone\",\"\",ExcelShortcuts[[#This Row],[Attribute]]&\"+\")&ExcelShortcuts[[#This Row],[Key]]","v":"Ctrl+Shift+Alt+="},{"$f":"_xlfn.XLOOKUP(SUBSTITUTE(ExcelShortcuts[[#This Row],[Shortcut]],\"+\",\" + \"),'Custom Shortcuts'!$D$15:$D$103,'Custom Shortcuts'!$C$15:$C$103,\"\",0)","v":""},{"$f":"COUNTIF(ExcelShortcuts[Key],\"=\"&ExcelShortcuts[[#This Row],[Key]])","v":6}]
["A","Ctrl","Select current region, select all",{"$f":"IF(ExcelShortcuts[[#This Row],[Attribute]]=\"Alone\",\"\",ExcelShortcuts[[#This Row],[Attribute]]&\"+\")&ExcelShortcuts[[#This Row],[Key]]","v":"Ctrl+A"},{"$f":"_xlfn.XLOOKUP(SUBSTITUTE(ExcelShortcuts[[#This Row],[Shortcut]],\"+\",\" + \"),'Custom Shortcuts'!$D$15:$D$103,'Custom Shortcuts'!$C$15:$C$103,\"\",0)","v":""},{"$f":"COUNTIF(ExcelShortcuts[Key],\"=\"&ExcelShortcuts[[#This Row],[Key]])","v":6}]
["A","Alt","",{"$f":"IF(ExcelShortcuts[[#This Row],[Attribute]]=\"Alone\",\"\",ExcelShortcuts[[#This Row],[Attribute]]&\"+\")&ExcelShortcuts[[#This Row],[Key]]","v":"Alt+A"},{"$f":"_xlfn.XLOOKUP(SUBSTITUTE(ExcelShortcuts[[#This Row],[Shortcut]],\"+\",\" + \"),'Custom Shortcuts'!$D$15:$D$103,'Custom Shortcuts'!$C$15:$C$103,\"\",0)","v":""},{"$f":"COUNTIF(ExcelShortcuts[Key],\"=\"&ExcelShortcuts[[#This Row],[Key]])","v":6}]
["A","Ctrl+Shift","Insert arguments in formula",{"$f":"IF(ExcelShortcuts[[#This Row],[Attribute]]=\"Alone\",\"\",ExcelShortcuts[[#This Row],[Attribute]]&\"+\")&ExcelShortcuts[[#This Row],[Key]]","v":"Ctrl+Shift+A"},{"$f":"_xlfn.XLOOKUP(SUBSTITUTE(ExcelShortcuts[[#This Row],[Shortcut]],\"+\",\" + \"),'Custom Shortcuts'!$D$15:$D$103,'Custom Shortcuts'!$C$15:$C$103,\"\",0)","v":"Copy Across"},{"$f":"COUNTIF(ExcelShortcuts[Key],\"=\"&ExcelShortcuts[[#This Row],[Key]])","v":6}]
["A","Shift+Alt",null,{"$f":"IF(ExcelShortcuts[[#This Row],[Attribute]]=\"Alone\",\"\",ExcelShortcuts[[#This Row],[Attribute]]&\"+\")&ExcelShortcuts[[#This Row],[Key]]","v":"Shift+Alt+A"},{"$f":"_xlfn.XLOOKUP(SUBSTITUTE(ExcelShortcuts[[#This Row],[Shortcut]],\"+\",\" + \"),'Custom Shortcuts'!$D$15:$D$103,'Custom Shortcuts'!$C$15:$C$103,\"\",0)","v":""},{"$f":"COUNTIF(ExcelShortcuts[Key],\"=\"&ExcelShortcuts[[#This Row],[Key]])","v":6}]
["A","Ctrl+Alt","",{"$f":"IF(ExcelShortcuts[[#This Row],[Attribute]]=\"Alone\",\"\",ExcelShortcuts[[#This Row],[Attribute]]&\"+\")&ExcelShortcuts[[#This Row],[Key]]","v":"Ctrl+Alt+A"},{"$f":"_xlfn.XLOOKUP(SUBSTITUTE(ExcelShortcuts[[#This Row],[Shortcut]],\"+\",\" + \"),'Custom Shortcuts'!$D$15:$D$103,'Custom Shortcuts'!$C$15:$C$103,\"\",0)","v":"Anchoring"},{"$f":"COUNTIF(ExcelShortcuts[Key],\"=\"&ExcelShortcuts[[#This Row],[Key]])","v":6}]
["A","Ctrl+Shift+Alt","",{"$f":"IF(ExcelShortcuts[[#This Row],[Attribute]]=\"Alone\",\"\",ExcelShortcuts[[#This Row],[Attribute]]&\"+\")&ExcelShortcuts[[#This Row],[Key]]","v":"Ctrl+Shift+Alt+A"},{"$f":"_xlfn.XLOOKUP(SUBSTITUTE(ExcelShortcuts[[#This Row],[Shortcut]],\"+\",\" + \"),'Custom Shortcuts'!$D$15:$D$103,'Custom Shortcuts'!$C$15:$C$103,\"\",0)","v":""},{"$f":"COUNTIF(ExcelShortcuts[Key],\"=\"&ExcelShortcuts[[#This Row],[Key]])","v":6}]
["B","Ctrl","Bold (toggle)",{"$f":"IF(ExcelShortcuts[[#This Row],[Attribute]]=\"Alone\",\"\",ExcelShortcuts[[#This Row],[Attribute]]&\"+\")&ExcelShortcuts[[#This Row],[Key]]","v":"Ctrl+B"},{"$f":"_xlfn.XLOOKUP(SUBSTITUTE(ExcelShortcuts[[#This Row],[Shortcut]],\"+\",\" + \"),'Custom Shortcuts'!$D$15:$D$103,'Custom Shortcuts'!$C$15:$C$103,\"\",0)","v":""},{"$f":"COUNTIF(ExcelShortcuts[Key],\"=\"&ExcelShortcuts[[#This Row],[Key]])","v":6}]
["B","Alt","",{"$f":"IF(ExcelShortcuts[[#This Row],[Attribute]]=\"Alone\",\"\",ExcelShortcuts[[#This Row],[Attribute]]&\"+\")&ExcelShortcuts[[#This Row],[Key]]","v":"Alt+B"},{"$f":"_xlfn.XLOOKUP(SUBSTITUTE(ExcelShortcuts[[#This Row],[Shortcut]],\"+\",\" + \"),'Custom Shortcuts'!$D$15:$D$103,'Custom Shortcuts'!$C$15:$C$103,\"\",0)","v":""},{"$f":"COUNTIF(ExcelShortcuts[Key],\"=\"&ExcelShortcuts[[#This Row],[Key]])","v":6}]
["B","Ctrl+Shift","Address Book (only when emailing not as attachment)",{"$f":"IF(ExcelShortcuts[[#This Row],[Attribute]]=\"Alone\",\"\",ExcelShortcuts[[#This Row],[Attribute]]&\"+\")&ExcelShortcuts[[#This Row],[Key]]","v":"Ctrl+Shift+B"},{"$f":"_xlfn.XLOOKUP(SUBSTITUTE(ExcelShortcuts[[#This Row],[Shortcut]],\"+\",\" + \"),'Custom Shortcuts'!$D$15:$D$103,'Custom Shortcuts'!$C$15:$C$103,\"\",0)","v":"Black"},{"$f":"COUNTIF(ExcelShortcuts[Key],\"=\"&ExcelShortcuts[[#This Row],[Key]])","v":6}]
["B","Shift+Alt","",{"$f":"IF(ExcelShortcuts[[#This Row],[Attribute]]=\"Alone\",\"\",ExcelShortcuts[[#This Row],[Attribute]]&\"+\")&ExcelShortcuts[[#This Row],[Key]]","v":"Shift+Alt+B"},{"$f":"_xlfn.XLOOKUP(SUBSTITUTE(ExcelShortcuts[[#This Row],[Shortcut]],\"+\",\" + \"),'Custom Shortcuts'!$D$15:$D$103,'Custom Shortcuts'!$C$15:$C$103,\"\",0)","v":""},{"$f":"COUNTIF(ExcelShortcuts[Key],\"=\"&ExcelShortcuts[[#This Row],[Key]])","v":6}]
["B","Ctrl+Alt","",{"$f":"IF(ExcelShortcuts[[#This Row],[Attribute]]=\"Alone\",\"\",ExcelShortcuts[[#This Row],[Attribute]]&\"+\")&ExcelShortcuts[[#This Row],[Key]]","v":"Ctrl+Alt+B"},{"$f":"_xlfn.XLOOKUP(SUBSTITUTE(ExcelShortcuts[[#This Row],[Shortcut]],\"+\",\" + \"),'Custom Shortcuts'!$D$15:$D$103,'Custom Shortcuts'!$C$15:$C$103,\"\",0)","v":""},{"$f":"COUNTIF(ExcelShortcuts[Key],\"=\"&ExcelShortcuts[[#This Row],[Key]])","v":6}]
["B","Ctrl+Shift+Alt","",{"$f":"IF(ExcelShortcuts[[#This Row],[Attribute]]=\"Alone\",\"\",ExcelShortcuts[[#This Row],[Attribute]]&\"+\")&ExcelShortcuts[[#This Row],[Key]]","v":"Ctrl+Shift+Alt+B"},{"$f":"_xlfn.XLOOKUP(SUBSTITUTE(ExcelShortcuts[[#This Row],[Shortcut]],\"+\",\" + \"),'Custom Shortcuts'!$D$15:$D$103,'Custom Shortcuts'!$C$15:$C$103,\"\",0)","v":""},{"$f":"COUNTIF(ExcelShortcuts[Key],\"=\"&ExcelShortcuts[[#This Row],[Key]])","v":6}]
["C","Ctrl","Copy",{"$f":"IF(ExcelShortcuts[[#This Row],[Attribute]]=\"Alone\",\"\",ExcelShortcuts[[#This Row],[Attribute]]&\"+\")&ExcelShortcuts[[#This Row],[Key]]","v":"Ctrl+C"},{"$f":"_xlfn.XLOOKUP(SUBSTITUTE(ExcelShortcuts[[#This Row],[Shortcut]],\"+\",\" + \"),'Custom Shortcuts'!$D$15:$D$103,'Custom Shortcuts'!$C$15:$C$103,\"\",0)","v":""},{"$f":"COUNTIF(ExcelShortcuts[Key],\"=\"&ExcelShortcuts[[#This Row],[Key]])","v":6}]
["C","Alt","",{"$f":"IF(ExcelShortcuts[[#This Row],[Attribute]]=\"Alone\",\"\",ExcelShortcuts[[#This Row],[Attribute]]&\"+\")&ExcelShortcuts[[#This Row],[Key]]","v":"Alt+C"},{"$f":"_xlfn.XLOOKUP(SUBSTITUTE(ExcelShortcuts[[#This Row],[Shortcut]],\"+\",\" + \"),'Custom Shortcuts'!$D$15:$D$103,'Custom Shortcuts'!$C$15:$C$103,\"\",0)","v":""},{"$f":"COUNTIF(ExcelShortcuts[Key],\"=\"&ExcelShortcuts[[#This Row],[Key]])","v":6}]
["C","Ctrl+Shift","",{"$f":"IF(ExcelShortcuts[[#This Row],[Attribute]]=\"Alone\",\"\",ExcelShortcuts[[#This Row],[Attribute]]&\"+\")&ExcelShortcuts[[#This Row],[Key]]","v":"Ctrl+Shift+C"},{"$f":"_xlfn.XLOOKUP(SUBSTITUTE(ExcelShortcuts[[#This Row],[Shortcut]],\"+\",\" + \"),'Custom Shortcuts'!$D$15:$D$103,'Custom Shortcuts'!$C$15:$C$103,\"\",0)","v":"No shade"},{"$f":"COUNTIF(ExcelShortcuts[Key],\"=\"&ExcelShortcuts[[#This Row],[Key]])","v":6}]
["C","Shift+Alt","",{"$f":"IF(ExcelShortcuts[[#This Row],[Attribute]]=\"Alone\",\"\",ExcelShortcuts[[#This Row],[Attribute]]&\"+\")&ExcelShortcuts[[#This Row],[Key]]","v":"Shift+Alt+C"},{"$f":"_xlfn.XLOOKUP(SUBSTITUTE(ExcelShortcuts[[#This Row],[Shortcut]],\"+\",\" + \"),'Custom Shortcuts'!$D$15:$D$103,'Custom Shortcuts'!$C$15:$C$103,\"\",0)","v":""},{"$f":"COUNTIF(ExcelShortcuts[Key],\"=\"&ExcelShortcuts[[#This Row],[Key]])","v":6}]
["C","Ctrl+Alt","",{"$f":"IF(ExcelShortcuts[[#This Row],[Attribute]]=\"Alone\",\"\",ExcelShortcuts[[#This Row],[Attribute]]&\"+\")&ExcelShortcuts[[#This Row],[Key]]","v":"Ctrl+Alt+C"},{"$f":"_xlfn.XLOOKUP(SUBSTITUTE(ExcelShortcuts[[#This Row],[Shortcut]],\"+\",\" + \"),'Custom Shortcuts'!$D$15:$D$103,'Custom Shortcuts'!$C$15:$C$103,\"\",0)","v":"Reset end cell / clear unused range"},{"$f":"COUNTIF(ExcelShortcuts[Key],\"=\"&ExcelShortcuts[[#This Row],[Key]])","v":6}]
["C","Ctrl+Shift+Alt","",{"$f":"IF(ExcelShortcuts[[#This Row],[Attribute]]=\"Alone\",\"\",ExcelShortcuts[[#This Row],[Attribute]]&\"+\")&ExcelShortcuts[[#This Row],[Key]]","v":"Ctrl+Shift+Alt+C"},{"$f":"_xlfn.XLOOKUP(SUBSTITUTE(ExcelShortcuts[[#This Row],[Shortcut]],\"+\",\" + \"),'Custom Shortcuts'!$D$15:$D$103,'Custom Shortcuts'!$C$15:$C$103,\"\",0)","v":""},{"$f":"COUNTIF(ExcelShortcuts[Key],\"=\"&ExcelShortcuts[[#This Row],[Key]])","v":6}]
["D","Ctrl","Fill down",{"$f":"IF(ExcelShortcuts[[#This Row],[Attribute]]=\"Alone\",\"\",ExcelShortcuts[[#This Row],[Attribute]]&\"+\")&ExcelShortcuts[[#This Row],[Key]]","v":"Ctrl+D"},{"$f":"_xlfn.XLOOKUP(SUBSTITUTE(ExcelShortcuts[[#This Row],[Shortcut]],\"+\",\" + \"),'Custom Shortcuts'!$D$15:$D$103,'Custom Shortcuts'!$C$15:$C$103,\"\",0)","v":""},{"$f":"COUNTIF(ExcelShortcuts[Key],\"=\"&ExcelShortcuts[[#This Row],[Key]])","v":6}]
["D","Alt","Excel 2003: Activate Data menu",{"$f":"IF(ExcelShortcuts[[#This Row],[Attribute]]=\"Alone\",\"\",ExcelShortcuts[[#This Row],[Attribute]]&\"+\")&ExcelShortcuts[[#This Row],[Key]]","v":"Alt+D"},{"$f":"_xlfn.XLOOKUP(SUBSTITUTE(ExcelShortcuts[[#This Row],[Shortcut]],\"+\",\" + \"),'Custom Shortcuts'!$D$15:$D$103,'Custom Shortcuts'!$C$15:$C$103,\"\",0)","v":""},{"$f":"COUNTIF(ExcelShortcuts[Key],\"=\"&ExcelShortcuts[[#This Row],[Key]])","v":6}]
["D","Ctrl+Shift","",{"$f":"IF(ExcelShortcuts[[#This Row],[Attribute]]=\"Alone\",\"\",ExcelShortcuts[[#This Row],[Attribute]]&\"+\")&ExcelShortcuts[[#This Row],[Key]]","v":"Ctrl+Shift+D"},{"$f":"_xlfn.XLOOKUP(SUBSTITUTE(ExcelShortcuts[[#This Row],[Shortcut]],\"+\",\" + \"),'Custom Shortcuts'!$D$15:$D$103,'Custom Shortcuts'!$C$15:$C$103,\"\",0)","v":"Border"},{"$f":"COUNTIF(ExcelShortcuts[Key],\"=\"&ExcelShortcuts[[#This Row],[Key]])","v":6}]
["D","Shift+Alt","",{"$f":"IF(ExcelShortcuts[[#This Row],[Attribute]]=\"Alone\",\"\",ExcelShortcuts[[#This Row],[Attribute]]&\"+\")&ExcelShortcuts[[#This Row],[Key]]","v":"Shift+Alt+D"},{"$f":"_xlfn.XLOOKUP(SUBSTITUTE(ExcelShortcuts[[#This Row],[Shortcut]],\"+\",\" + \"),'Custom Shortcuts'!$D$15:$D$103,'Custom Shortcuts'!$C$15:$C$103,\"\",0)","v":""},{"$f":"COUNTIF(ExcelShortcuts[Key],\"=\"&ExcelShortcuts[[#This Row],[Key]])","v":6}]
["D","Ctrl+Alt","",{"$f":"IF(ExcelShortcuts[[#This Row],[Attribute]]=\"Alone\",\"\",ExcelShortcuts[[#This Row],[Attribute]]&\"+\")&ExcelShortcuts[[#This Row],[Key]]","v":"Ctrl+Alt+D"},{"$f":"_xlfn.XLOOKUP(SUBSTITUTE(ExcelShortcuts[[#This Row],[Shortcut]],\"+\",\" + \"),'Custom Shortcuts'!$D$15:$D$103,'Custom Shortcuts'!$C$15:$C$103,\"\",0)","v":"Paste As Value w/o Format"},{"$f":"COUNTIF(ExcelShortcuts[Key],\"=\"&ExcelShortcuts[[#This Row],[Key]])","v":6}]
["D","Ctrl+Shift+Alt","",{"$f":"IF(ExcelShortcuts[[#This Row],[Attribute]]=\"Alone\",\"\",ExcelShortcuts[[#This Row],[Attribute]]&\"+\")&ExcelShortcuts[[#This Row],[Key]]","v":"Ctrl+Shift+Alt+D"},{"$f":"_xlfn.XLOOKUP(SUBSTITUTE(ExcelShortcuts[[#This Row],[Shortcut]],\"+\",\" + \"),'Custom Shortcuts'!$D$15:$D$103,'Custom Shortcuts'!$C$15:$C$103,\"\",0)","v":""},{"$f":"COUNTIF(ExcelShortcuts[Key],\"=\"&ExcelShortcuts[[#This Row],[Key]])","v":6}]
["E","Ctrl","",{"$f":"IF(ExcelShortcuts[[#This Row],[Attribute]]=\"Alone\",\"\",ExcelShortcuts[[#This Row],[Attribute]]&\"+\")&ExcelShortcuts[[#This Row],[Key]]","v":"Ctrl+E"},{"$f":"_xlfn.XLOOKUP(SUBSTITUTE(ExcelShortcuts[[#This Row],[Shortcut]],\"+\",\" + \"),'Custom Shortcuts'!$D$15:$D$103,'Custom Shortcuts'!$C$15:$C$103,\"\",0)","v":"Expand Group"},{"$f":"COUNTIF(ExcelShortcuts[Key],\"=\"&ExcelShortcuts[[#This Row],[Key]])","v":6}]
["E","Alt","Excel 2003: Activate Edit menu",{"$f":"IF(ExcelShortcuts[[#This Row],[Attribute]]=\"Alone\",\"\",ExcelShortcuts[[#This Row],[Attribute]]&\"+\")&ExcelShortcuts[[#This Row],[Key]]","v":"Alt+E"},{"$f":"_xlfn.XLOOKUP(SUBSTITUTE(ExcelShortcuts[[#This Row],[Shortcut]],\"+\",\" + \"),'Custom Shortcuts'!$D$15:$D$103,'Custom Shortcuts'!$C$15:$C$103,\"\",0)","v":""},{"$f":"COUNTIF(ExcelShortcuts[Key],\"=\"&ExcelShortcuts[[#This Row],[Key]])","v":6}]
["E","Ctrl+Shift","",{"$f":"IF(ExcelShortcuts[[#This Row],[Attribute]]=\"Alone\",\"\",ExcelShortcuts[[#This Row],[Attribute]]&\"+\")&ExcelShortcuts[[#This Row],[Key]]","v":"Ctrl+Shift+E"},{"$f":"_xlfn.XLOOKUP(SUBSTITUTE(ExcelShortcuts[[#This Row],[Shortcut]],\"+\",\" + \"),'Custom Shortcuts'!$D$15:$D$103,'Custom Shortcuts'!$C$15:$C$103,\"\",0)","v":"Collapse Group"},{"$f":"COUNTIF(ExcelShortcuts[Key],\"=\"&ExcelShortcuts[[#This Row],[Key]])","v":6}]
["E","Shift+Alt","",{"$f":"IF(ExcelShortcuts[[#This Row],[Attribute]]=\"Alone\",\"\",ExcelShortcuts[[#This Row],[Attribute]]&\"+\")&ExcelShortcuts[[#This Row],[Key]]","v":"Shift+Alt+E"},{"$f":"_xlfn.XLOOKUP(SUBSTITUTE(ExcelShortcuts[[#This Row],[Shortcut]],\"+\",\" + \"),'Custom Shortcuts'!$D$15:$D$103,'Custom Shortcuts'!$C$15:$C$103,\"\",0)","v":""},{"$f":"COUNTIF(ExcelShortcuts[Key],\"=\"&ExcelShortcuts[[#This Row],[Key]])","v":6}]
["E","Ctrl+Alt","",{"$f":"IF(ExcelShortcuts[[#This Row],[Attribute]]=\"Alone\",\"\",ExcelShortcuts[[#This Row],[Attribute]]&\"+\")&ExcelShortcuts[[#This Row],[Key]]","v":"Ctrl+Alt+E"},{"$f":"_xlfn.XLOOKUP(SUBSTITUTE(ExcelShortcuts[[#This Row],[Shortcut]],\"+\",\" + \"),'Custom Shortcuts'!$D$15:$D$103,'Custom Shortcuts'!$C$15:$C$103,\"\",0)","v":"Exceptions"},{"$f":"COUNTIF(ExcelShortcuts[Key],\"=\"&ExcelShortcuts[[#This Row],[Key]])","v":6}]
["E","Ctrl+Shift+Alt","",{"$f":"IF(ExcelShortcuts[[#This Row],[Attribute]]=\"Alone\",\"\",ExcelShortcuts[[#This Row],[Attribute]]&\"+\")&ExcelShortcuts[[#This Row],[Key]]","v":"Ctrl+Shift+Alt+E"},{"$f":"_xlfn.XLOOKUP(SUBSTITUTE(ExcelShortcuts[[#This Row],[Shortcut]],\"+\",\" + \"),'Custom Shortcuts'!$D$15:$D$103,'Custom Shortcuts'!$C$15:$C$103,\"\",0)","v":""},{"$f":"COUNTIF(ExcelShortcuts[Key],\"=\"&ExcelShortcuts[[#This Row],[Key]])","v":6}]
["F","Ctrl","Find Dialog",{"$f":"IF(ExcelShortcuts[[#This Row],[Attribute]]=\"Alone\",\"\",ExcelShortcuts[[#This Row],[Attribute]]&\"+\")&ExcelShortcuts[[#This Row],[Key]]","v":"Ctrl+F"},{"$f":"_xlfn.XLOOKUP(SUBSTITUTE(ExcelShortcuts[[#This Row],[Shortcut]],\"+\",\" + \"),'Custom Shortcuts'!$D$15:$D$103,'Custom Shortcuts'!$C$15:$C$103,\"\",0)","v":""},{"$f":"COUNTIF(ExcelShortcuts[Key],\"=\"&ExcelShortcuts[[#This Row],[Key]])","v":6}]
["F","Alt","Excel 2007: Activate Office button; Excel 2003: Activate File menu",{"$f":"IF(ExcelShortcuts[[#This Row],[Attribute]]=\"Alone\",\"\",ExcelShortcuts[[#This Row],[Attribute]]&\"+\")&ExcelShortcuts[[#This Row],[Key]]","v":"Alt+F"},{"$f":"_xlfn.XLOOKUP(SUBSTITUTE(ExcelShortcuts[[#This Row],[Shortcut]],\"+\",\" + \"),'Custom Shortcuts'!$D$15:$D$103,'Custom Shortcuts'!$C$15:$C$103,\"\",0)","v":""},{"$f":"COUNTIF(ExcelShortcuts[Key],\"=\"&ExcelShortcuts[[#This Row],[Key]])","v":6}]
["F","Ctrl+Shift","Font face",{"$f":"IF(ExcelShortcuts[[#This Row],[Attribute]]=\"Alone\",\"\",ExcelShortcuts[[#This Row],[Attribute]]&\"+\")&ExcelShortcuts[[#This Row],[Key]]","v":"Ctrl+Shift+F"},{"$f":"_xlfn.XLOOKUP(SUBSTITUTE(ExcelShortcuts[[#This Row],[Shortcut]],\"+\",\" + \"),'Custom Shortcuts'!$D$15:$D$103,'Custom Shortcuts'!$C$15:$C$103,\"\",0)","v":""},{"$f":"COUNTIF(ExcelShortcuts[Key],\"=\"&ExcelShortcuts[[#This Row],[Key]])","v":6}]
["F","Shift+Alt","",{"$f":"IF(ExcelShortcuts[[#This Row],[Attribute]]=\"Alone\",\"\",ExcelShortcuts[[#This Row],[Attribute]]&\"+\")&ExcelShortcuts[[#This Row],[Key]]","v":"Shift+Alt+F"},{"$f":"_xlfn.XLOOKUP(SUBSTITUTE(ExcelShortcuts[[#This Row],[Shortcut]],\"+\",\" + \"),'Custom Shortcuts'!$D$15:$D$103,'Custom Shortcuts'!$C$15:$C$103,\"\",0)","v":""},{"$f":"COUNTIF(ExcelShortcuts[Key],\"=\"&ExcelShortcuts[[#This Row],[Key]])","v":6}]
["F","Ctrl+Alt","",{"$f":"IF(ExcelShortcuts[[#This Row],[Attribute]]=\"Alone\",\"\",ExcelShortcuts[[#This Row],[Attribute]]&\"+\")&ExcelShortcuts[[#This Row],[Key]]","v":"Ctrl+Alt+F"},{"$f":"_xlfn.XLOOKUP(SUBSTITUTE(ExcelShortcuts[[#This Row],[Shortcut]],\"+\",\" + \"),'Custom Shortcuts'!$D$15:$D$103,'Custom Shortcuts'!$C$15:$C$103,\"\",0)","v":""},{"$f":"COUNTIF(ExcelShortcuts[Key],\"=\"&ExcelShortcuts[[#This Row],[Key]])","v":6}]
["F","Ctrl+Shift+Alt","",{"$f":"IF(ExcelShortcuts[[#This Row],[Attribute]]=\"Alone\",\"\",ExcelShortcuts[[#This Row],[Attribute]]&\"+\")&ExcelShortcuts[[#This Row],[Key]]","v":"Ctrl+Shift+Alt+F"},{"$f":"_xlfn.XLOOKUP(SUBSTITUTE(ExcelShortcuts[[#This Row],[Shortcut]],\"+\",\" + \"),'Custom Shortcuts'!$D$15:$D$103,'Custom Shortcuts'!$C$15:$C$103,\"\",0)","v":""},{"$f":"COUNTIF(ExcelShortcuts[Key],\"=\"&ExcelShortcuts[[#This Row],[Key]])","v":6}]
["G","Ctrl","GoTo",{"$f":"IF(ExcelShortcuts[[#This Row],[Attribute]]=\"Alone\",\"\",ExcelShortcuts[[#This Row],[Attribute]]&\"+\")&ExcelShortcuts[[#This Row],[Key]]","v":"Ctrl+G"},{"$f":"_xlfn.XLOOKUP(SUBSTITUTE(ExcelShortcuts[[#This Row],[Shortcut]],\"+\",\" + \"),'Custom Shortcuts'!$D$15:$D$103,'Custom Shortcuts'!$C$15:$C$103,\"\",0)","v":""},{"$f":"COUNTIF(ExcelShortcuts[Key],\"=\"&ExcelShortcuts[[#This Row],[Key]])","v":6}]
["G","Alt","",{"$f":"IF(ExcelShortcuts[[#This Row],[Attribute]]=\"Alone\",\"\",ExcelShortcuts[[#This Row],[Attribute]]&\"+\")&ExcelShortcuts[[#This Row],[Key]]","v":"Alt+G"},{"$f":"_xlfn.XLOOKUP(SUBSTITUTE(ExcelShortcuts[[#This Row],[Shortcut]],\"+\",\" + \"),'Custom Shortcuts'!$D$15:$D$103,'Custom Shortcuts'!$C$15:$C$103,\"\",0)","v":""},{"$f":"COUNTIF(ExcelShortcuts[Key],\"=\"&ExcelShortcuts[[#This Row],[Key]])","v":6}]
["G","Ctrl+Shift","",{"$f":"IF(ExcelShortcuts[[#This Row],[Attribute]]=\"Alone\",\"\",ExcelShortcuts[[#This Row],[Attribute]]&\"+\")&ExcelShortcuts[[#This Row],[Key]]","v":"Ctrl+Shift+G"},{"$f":"_xlfn.XLOOKUP(SUBSTITUTE(ExcelShortcuts[[#This Row],[Shortcut]],\"+\",\" + \"),'Custom Shortcuts'!$D$15:$D$103,'Custom Shortcuts'!$C$15:$C$103,\"\",0)","v":"Green"},{"$f":"COUNTIF(ExcelShortcuts[Key],\"=\"&ExcelShortcuts[[#This Row],[Key]])","v":6}]
["G","Shift+Alt","",{"$f":"IF(ExcelShortcuts[[#This Row],[Attribute]]=\"Alone\",\"\",ExcelShortcuts[[#This Row],[Attribute]]&\"+\")&ExcelShortcuts[[#This Row],[Key]]","v":"Shift+Alt+G"},{"$f":"_xlfn.XLOOKUP(SUBSTITUTE(ExcelShortcuts[[#This Row],[Shortcut]],\"+\",\" + \"),'Custom Shortcuts'!$D$15:$D$103,'Custom Shortcuts'!$C$15:$C$103,\"\",0)","v":""},{"$f":"COUNTIF(ExcelShortcuts[Key],\"=\"&ExcelShortcuts[[#This Row],[Key]])","v":6}]
["G","Ctrl+Alt","",{"$f":"IF(ExcelShortcuts[[#This Row],[Attribute]]=\"Alone\",\"\",ExcelShortcuts[[#This Row],[Attribute]]&\"+\")&ExcelShortcuts[[#This Row],[Key]]","v":"Ctrl+Alt+G"},{"$f":"_xlfn.XLOOKUP(SUBSTITUTE(ExcelShortcuts[[#This Row],[Shortcut]],\"+\",\" + \"),'Custom Shortcuts'!$D$15:$D$103,'Custom Shortcuts'!$C$15:$C$103,\"\",0)","v":""},{"$f":"COUNTIF(ExcelShortcuts[Key],\"=\"&ExcelShortcuts[[#This Row],[Key]])","v":6}]
["G","Ctrl+Shift+Alt","",{"$f":"IF(ExcelShortcuts[[#This Row],[Attribute]]=\"Alone\",\"\",ExcelShortcuts[[#This Row],[Attribute]]&\"+\")&ExcelShortcuts[[#This Row],[Key]]","v":"Ctrl+Shift+Alt+G"},{"$f":"_xlfn.XLOOKUP(SUBSTITUTE(ExcelShortcuts[[#This Row],[Shortcut]],\"+\",\" + \"),'Custom Shortcuts'!$D$15:$D$103,'Custom Shortcuts'!$C$15:$C$103,\"\",0)","v":""},{"$f":"COUNTIF(ExcelShortcuts[Key],\"=\"&ExcelShortcuts[[#This Row],[Key]])","v":6}]
["H","Ctrl","Replace",{"$f":"IF(ExcelShortcuts[[#This Row],[Attribute]]=\"Alone\",\"\",ExcelShortcuts[[#This Row],[Attribute]]&\"+\")&ExcelShortcuts[[#This Row],[Key]]","v":"Ctrl+H"},{"$f":"_xlfn.XLOOKUP(SUBSTITUTE(ExcelShortcuts[[#This Row],[Shortcut]],\"+\",\" + \"),'Custom Shortcuts'!$D$15:$D$103,'Custom Shortcuts'!$C$15:$C$103,\"\",0)","v":""},{"$f":"COUNTIF(ExcelShortcuts[Key],\"=\"&ExcelShortcuts[[#This Row],[Key]])","v":6}]
["H","Alt","Excel 2003: Activate Help menu",{"$f":"IF(ExcelShortcuts[[#This Row],[Attribute]]=\"Alone\",\"\",ExcelShortcuts[[#This Row],[Attribute]]&\"+\")&ExcelShortcuts[[#This Row],[Key]]","v":"Alt+H"},{"$f":"_xlfn.XLOOKUP(SUBSTITUTE(ExcelShortcuts[[#This Row],[Shortcut]],\"+\",\" + \"),'Custom Shortcuts'!$D$15:$D$103,'Custom Shortcuts'!$C$15:$C$103,\"\",0)","v":""},{"$f":"COUNTIF(ExcelShortcuts[Key],\"=\"&ExcelShortcuts[[#This Row],[Key]])","v":6}]
["H","Ctrl+Shift","",{"$f":"IF(ExcelShortcuts[[#This Row],[Attribute]]=\"Alone\",\"\",ExcelShortcuts[[#This Row],[Attribute]]&\"+\")&ExcelShortcuts[[#This Row],[Key]]","v":"Ctrl+Shift+H"},{"$f":"_xlfn.XLOOKUP(SUBSTITUTE(ExcelShortcuts[[#This Row],[Shortcut]],\"+\",\" + \"),'Custom Shortcuts'!$D$15:$D$103,'Custom Shortcuts'!$C$15:$C$103,\"\",0)","v":""},{"$f":"COUNTIF(ExcelShortcuts[Key],\"=\"&ExcelShortcuts[[#This Row],[Key]])","v":6}]
["H","Shift+Alt","",{"$f":"IF(ExcelShortcuts[[#This Row],[Attribute]]=\"Alone\",\"\",ExcelShortcuts[[#This Row],[Attribute]]&\"+\")&ExcelShortcuts[[#This Row],[Key]]","v":"Shift+Alt+H"},{"$f":"_xlfn.XLOOKUP(SUBSTITUTE(ExcelShortcuts[[#This Row],[Shortcut]],\"+\",\" + \"),'Custom Shortcuts'!$D$15:$D$103,'Custom Shortcuts'!$C$15:$C$103,\"\",0)","v":""},{"$f":"COUNTIF(ExcelShortcuts[Key],\"=\"&ExcelShortcuts[[#This Row],[Key]])","v":6}]
["H","Ctrl+Alt","",{"$f":"IF(ExcelShortcuts[[#This Row],[Attribute]]=\"Alone\",\"\",ExcelShortcuts[[#This Row],[Attribute]]&\"+\")&ExcelShortcuts[[#This Row],[Key]]","v":"Ctrl+Alt+H"},{"$f":"_xlfn.XLOOKUP(SUBSTITUTE(ExcelShortcuts[[#This Row],[Shortcut]],\"+\",\" + \"),'Custom Shortcuts'!$D$15:$D$103,'Custom Shortcuts'!$C$15:$C$103,\"\",0)","v":""},{"$f":"COUNTIF(ExcelShortcuts[Key],\"=\"&ExcelShortcuts[[#This Row],[Key]])","v":6}]
["H","Ctrl+Shift+Alt","",{"$f":"IF(ExcelShortcuts[[#This Row],[Attribute]]=\"Alone\",\"\",ExcelShortcuts[[#This Row],[Attribute]]&\"+\")&ExcelShortcuts[[#This Row],[Key]]","v":"Ctrl+Shift+Alt+H"},{"$f":"_xlfn.XLOOKUP(SUBSTITUTE(ExcelShortcuts[[#This Row],[Shortcut]],\"+\",\" + \"),'Custom Shortcuts'!$D$15:$D$103,'Custom Shortcuts'!$C$15:$C$103,\"\",0)","v":""},{"$f":"COUNTIF(ExcelShortcuts[Key],\"=\"&ExcelShortcuts[[#This Row],[Key]])","v":6}]
["I","Ctrl","Italic (toggle)",{"$f":"IF(ExcelShortcuts[[#This Row],[Attribute]]=\"Alone\",\"\",ExcelShortcuts[[#This Row],[Attribute]]&\"+\")&ExcelShortcuts[[#This Row],[Key]]","v":"Ctrl+I"},{"$f":"_xlfn.XLOOKUP(SUBSTITUTE(ExcelShortcuts[[#This Row],[Shortcut]],\"+\",\" + \"),'Custom Shortcuts'!$D$15:$D$103,'Custom Shortcuts'!$C$15:$C$103,\"\",0)","v":""},{"$f":"COUNTIF(ExcelShortcuts[Key],\"=\"&ExcelShortcuts[[#This Row],[Key]])","v":6}]
["I","Alt","Excel 2003: Activate Insert menu",{"$f":"IF(ExcelShortcuts[[#This Row],[Attribute]]=\"Alone\",\"\",ExcelShortcuts[[#This Row],[Attribute]]&\"+\")&ExcelShortcuts[[#This Row],[Key]]","v":"Alt+I"},{"$f":"_xlfn.XLOOKUP(SUBSTITUTE(ExcelShortcuts[[#This Row],[Shortcut]],\"+\",\" + \"),'Custom Shortcuts'!$D$15:$D$103,'Custom Shortcuts'!$C$15:$C$103,\"\",0)","v":""},{"$f":"COUNTIF(ExcelShortcuts[Key],\"=\"&ExcelShortcuts[[#This Row],[Key]])","v":6}]
["I","Ctrl+Shift","",{"$f":"IF(ExcelShortcuts[[#This Row],[Attribute]]=\"Alone\",\"\",ExcelShortcuts[[#This Row],[Attribute]]&\"+\")&ExcelShortcuts[[#This Row],[Key]]","v":"Ctrl+Shift+I"},{"$f":"_xlfn.XLOOKUP(SUBSTITUTE(ExcelShortcuts[[#This Row],[Shortcut]],\"+\",\" + \"),'Custom Shortcuts'!$D$15:$D$103,'Custom Shortcuts'!$C$15:$C$103,\"\",0)","v":"Input"},{"$f":"COUNTIF(ExcelShortcuts[Key],\"=\"&ExcelShortcuts[[#This Row],[Key]])","v":6}]
["I","Shift+Alt","",{"$f":"IF(ExcelShortcuts[[#This Row],[Attribute]]=\"Alone\",\"\",ExcelShortcuts[[#This Row],[Attribute]]&\"+\")&ExcelShortcuts[[#This Row],[Key]]","v":"Shift+Alt+I"},{"$f":"_xlfn.XLOOKUP(SUBSTITUTE(ExcelShortcuts[[#This Row],[Shortcut]],\"+\",\" + \"),'Custom Shortcuts'!$D$15:$D$103,'Custom Shortcuts'!$C$15:$C$103,\"\",0)","v":""},{"$f":"COUNTIF(ExcelShortcuts[Key],\"=\"&ExcelShortcuts[[#This Row],[Key]])","v":6}]
["I","Ctrl+Alt","",{"$f":"IF(ExcelShortcuts[[#This Row],[Attribute]]=\"Alone\",\"\",ExcelShortcuts[[#This Row],[Attribute]]&\"+\")&ExcelShortcuts[[#This Row],[Key]]","v":"Ctrl+Alt+I"},{"$f":"_xlfn.XLOOKUP(SUBSTITUTE(ExcelShortcuts[[#This Row],[Shortcut]],\"+\",\" + \"),'Custom Shortcuts'!$D$15:$D$103,'Custom Shortcuts'!$C$15:$C$103,\"\",0)","v":""},{"$f":"COUNTIF(ExcelShortcuts[Key],\"=\"&ExcelShortcuts[[#This Row],[Key]])","v":6}]
["I","Ctrl+Shift+Alt","",{"$f":"IF(ExcelShortcuts[[#This Row],[Attribute]]=\"Alone\",\"\",ExcelShortcuts[[#This Row],[Attribute]]&\"+\")&ExcelShortcuts[[#This Row],[Key]]","v":"Ctrl+Shift+Alt+I"},{"$f":"_xlfn.XLOOKUP(SUBSTITUTE(ExcelShortcuts[[#This Row],[Shortcut]],\"+\",\" + \"),'Custom Shortcuts'!$D$15:$D$103,'Custom Shortcuts'!$C$15:$C$103,\"\",0)","v":""},{"$f":"COUNTIF(ExcelShortcuts[Key],\"=\"&ExcelShortcuts[[#This Row],[Key]])","v":6}]
["J","Ctrl","",{"$f":"IF(ExcelShortcuts[[#This Row],[Attribute]]=\"Alone\",\"\",ExcelShortcuts[[#This Row],[Attribute]]&\"+\")&ExcelShortcuts[[#This Row],[Key]]","v":"Ctrl+J"},{"$f":"_xlfn.XLOOKUP(SUBSTITUTE(ExcelShortcuts[[#This Row],[Shortcut]],\"+\",\" + \"),'Custom Shortcuts'!$D$15:$D$103,'Custom Shortcuts'!$C$15:$C$103,\"\",0)","v":""},{"$f":"COUNTIF(ExcelShortcuts[Key],\"=\"&ExcelShortcuts[[#This Row],[Key]])","v":6}]
["J","Alt","",{"$f":"IF(ExcelShortcuts[[#This Row],[Attribute]]=\"Alone\",\"\",ExcelShortcuts[[#This Row],[Attribute]]&\"+\")&ExcelShortcuts[[#This Row],[Key]]","v":"Alt+J"},{"$f":"_xlfn.XLOOKUP(SUBSTITUTE(ExcelShortcuts[[#This Row],[Shortcut]],\"+\",\" + \"),'Custom Shortcuts'!$D$15:$D$103,'Custom Shortcuts'!$C$15:$C$103,\"\",0)","v":""},{"$f":"COUNTIF(ExcelShortcuts[Key],\"=\"&ExcelShortcuts[[#This Row],[Key]])","v":6}]
["J","Ctrl+Shift","",{"$f":"IF(ExcelShortcuts[[#This Row],[Attribute]]=\"Alone\",\"\",ExcelShortcuts[[#This Row],[Attribute]]&\"+\")&ExcelShortcuts[[#This Row],[Key]]","v":"Ctrl+Shift+J"},{"$f":"_xlfn.XLOOKUP(SUBSTITUTE(ExcelShortcuts[[#This Row],[Shortcut]],\"+\",\" + \"),'Custom Shortcuts'!$D$15:$D$103,'Custom Shortcuts'!$C$15:$C$103,\"\",0)","v":"Jump to Precedent"},{"$f":"COUNTIF(ExcelShortcuts[Key],\"=\"&ExcelShortcuts[[#This Row],[Key]])","v":6}]
["J","Shift+Alt","",{"$f":"IF(ExcelShortcuts[[#This Row],[Attribute]]=\"Alone\",\"\",ExcelShortcuts[[#This Row],[Attribute]]&\"+\")&ExcelShortcuts[[#This Row],[Key]]","v":"Shift+Alt+J"},{"$f":"_xlfn.XLOOKUP(SUBSTITUTE(ExcelShortcuts[[#This Row],[Shortcut]],\"+\",\" + \"),'Custom Shortcuts'!$D$15:$D$103,'Custom Shortcuts'!$C$15:$C$103,\"\",0)","v":""},{"$f":"COUNTIF(ExcelShortcuts[Key],\"=\"&ExcelShortcuts[[#This Row],[Key]])","v":6}]
["J","Ctrl+Alt","",{"$f":"IF(ExcelShortcuts[[#This Row],[Attribute]]=\"Alone\",\"\",ExcelShortcuts[[#This Row],[Attribute]]&\"+\")&ExcelShortcuts[[#This Row],[Key]]","v":"Ctrl+Alt+J"},{"$f":"_xlfn.XLOOKUP(SUBSTITUTE(ExcelShortcuts[[#This Row],[Shortcut]],\"+\",\" + \"),'Custom Shortcuts'!$D$15:$D$103,'Custom Shortcuts'!$C$15:$C$103,\"\",0)","v":""},{"$f":"COUNTIF(ExcelShortcuts[Key],\"=\"&ExcelShortcuts[[#This Row],[Key]])","v":6}]
["J","Ctrl+Shift+Alt","",{"$f":"IF(ExcelShortcuts[[#This Row],[Attribute]]=\"Alone\",\"\",ExcelShortcuts[[#This Row],[Attribute]]&\"+\")&ExcelShortcuts[[#This Row],[Key]]","v":"Ctrl+Shift+Alt+J"},{"$f":"_xlfn.XLOOKUP(SUBSTITUTE(ExcelShortcuts[[#This Row],[Shortcut]],\"+\",\" + \"),'Custom Shortcuts'!$D$15:$D$103,'Custom Shortcuts'!$C$15:$C$103,\"\",0)","v":""},{"$f":"COUNTIF(ExcelShortcuts[Key],\"=\"&ExcelShortcuts[[#This Row],[Key]])","v":6}]
["K","Ctrl","Insert Hyperlink",{"$f":"IF(ExcelShortcuts[[#This Row],[Attribute]]=\"Alone\",\"\",ExcelShortcuts[[#This Row],[Attribute]]&\"+\")&ExcelShortcuts[[#This Row],[Key]]","v":"Ctrl+K"},{"$f":"_xlfn.XLOOKUP(SUBSTITUTE(ExcelShortcuts[[#This Row],[Shortcut]],\"+\",\" + \"),'Custom Shortcuts'!$D$15:$D$103,'Custom Shortcuts'!$C$15:$C$103,\"\",0)","v":""},{"$f":"COUNTIF(ExcelShortcuts[Key],\"=\"&ExcelShortcuts[[#This Row],[Key]])","v":6}]
["K","Alt","Check Names (only when emailing not as attachment)",{"$f":"IF(ExcelShortcuts[[#This Row],[Attribute]]=\"Alone\",\"\",ExcelShortcuts[[#This Row],[Attribute]]&\"+\")&ExcelShortcuts[[#This Row],[Key]]","v":"Alt+K"},{"$f":"_xlfn.XLOOKUP(SUBSTITUTE(ExcelShortcuts[[#This Row],[Shortcut]],\"+\",\" + \"),'Custom Shortcuts'!$D$15:$D$103,'Custom Shortcuts'!$C$15:$C$103,\"\",0)","v":""},{"$f":"COUNTIF(ExcelShortcuts[Key],\"=\"&ExcelShortcuts[[#This Row],[Key]])","v":6}]
["K","Ctrl+Shift","",{"$f":"IF(ExcelShortcuts[[#This Row],[Attribute]]=\"Alone\",\"\",ExcelShortcuts[[#This Row],[Attribute]]&\"+\")&ExcelShortcuts[[#This Row],[Key]]","v":"Ctrl+Shift+K"},{"$f":"_xlfn.XLOOKUP(SUBSTITUTE(ExcelShortcuts[[#This Row],[Shortcut]],\"+\",\" + \"),'Custom Shortcuts'!$D$15:$D$103,'Custom Shortcuts'!$C$15:$C$103,\"\",0)","v":"Return from Jump"},{"$f":"COUNTIF(ExcelShortcuts[Key],\"=\"&ExcelShortcuts[[#This Row],[Key]])","v":6}]
["K","Shift+Alt","",{"$f":"IF(ExcelShortcuts[[#This Row],[Attribute]]=\"Alone\",\"\",ExcelShortcuts[[#This Row],[Attribute]]&\"+\")&ExcelShortcuts[[#This Row],[Key]]","v":"Shift+Alt+K"},{"$f":"_xlfn.XLOOKUP(SUBSTITUTE(ExcelShortcuts[[#This Row],[Shortcut]],\"+\",\" + \"),'Custom Shortcuts'!$D$15:$D$103,'Custom Shortcuts'!$C$15:$C$103,\"\",0)","v":""},{"$f":"COUNTIF(ExcelShortcuts[Key],\"=\"&ExcelShortcuts[[#This Row],[Key]])","v":6}]
["K","Ctrl+Alt","",{"$f":"IF(ExcelShortcuts[[#This Row],[Attribute]]=\"Alone\",\"\",ExcelShortcuts[[#This Row],[Attribute]]&\"+\")&ExcelShortcuts[[#This Row],[Key]]","v":"Ctrl+Alt+K"},{"$f":"_xlfn.XLOOKUP(SUBSTITUTE(ExcelShortcuts[[#This Row],[Shortcut]],\"+\",\" + \"),'Custom Shortcuts'!$D$15:$D$103,'Custom Shortcuts'!$C$15:$C$103,\"\",0)","v":""},{"$f":"COUNTIF(ExcelShortcuts[Key],\"=\"&ExcelShortcuts[[#This Row],[Key]])","v":6}]
["K","Ctrl+Shift+Alt","",{"$f":"IF(ExcelShortcuts[[#This Row],[Attribute]]=\"Alone\",\"\",ExcelShortcuts[[#This Row],[Attribute]]&\"+\")&ExcelShortcuts[[#This Row],[Key]]","v":"Ctrl+Shift+Alt+K"},{"$f":"_xlfn.XLOOKUP(SUBSTITUTE(ExcelShortcuts[[#This Row],[Shortcut]],\"+\",\" + \"),'Custom Shortcuts'!$D$15:$D$103,'Custom Shortcuts'!$C$15:$C$103,\"\",0)","v":""},{"$f":"COUNTIF(ExcelShortcuts[Key],\"=\"&ExcelShortcuts[[#This Row],[Key]])","v":6}]
["L","Ctrl","Excel 2007: Create Table; Excel 2003: Create List",{"$f":"IF(ExcelShortcuts[[#This Row],[Attribute]]=\"Alone\",\"\",ExcelShortcuts[[#This Row],[Attribute]]&\"+\")&ExcelShortcuts[[#This Row],[Key]]","v":"Ctrl+L"},{"$f":"_xlfn.XLOOKUP(SUBSTITUTE(ExcelShortcuts[[#This Row],[Shortcut]],\"+\",\" + \"),'Custom Shortcuts'!$D$15:$D$103,'Custom Shortcuts'!$C$15:$C$103,\"\",0)","v":""},{"$f":"COUNTIF(ExcelShortcuts[Key],\"=\"&ExcelShortcuts[[#This Row],[Key]])","v":6}]
["L","Alt","",{"$f":"IF(ExcelShortcuts[[#This Row],[Attribute]]=\"Alone\",\"\",ExcelShortcuts[[#This Row],[Attribute]]&\"+\")&ExcelShortcuts[[#This Row],[Key]]","v":"Alt+L"},{"$f":"_xlfn.XLOOKUP(SUBSTITUTE(ExcelShortcuts[[#This Row],[Shortcut]],\"+\",\" + \"),'Custom Shortcuts'!$D$15:$D$103,'Custom Shortcuts'!$C$15:$C$103,\"\",0)","v":""},{"$f":"COUNTIF(ExcelShortcuts[Key],\"=\"&ExcelShortcuts[[#This Row],[Key]])","v":6}]
["L","Ctrl+Shift","Toggle AutoFilter",{"$f":"IF(ExcelShortcuts[[#This Row],[Attribute]]=\"Alone\",\"\",ExcelShortcuts[[#This Row],[Attribute]]&\"+\")&ExcelShortcuts[[#This Row],[Key]]","v":"Ctrl+Shift+L"},{"$f":"_xlfn.XLOOKUP(SUBSTITUTE(ExcelShortcuts[[#This Row],[Shortcut]],\"+\",\" + \"),'Custom Shortcuts'!$D$15:$D$103,'Custom Shortcuts'!$C$15:$C$103,\"\",0)","v":"Date Style Toggle"},{"$f":"COUNTIF(ExcelShortcuts[Key],\"=\"&ExcelShortcuts[[#This Row],[Key]])","v":6}]
["L","Shift+Alt","",{"$f":"IF(ExcelShortcuts[[#This Row],[Attribute]]=\"Alone\",\"\",ExcelShortcuts[[#This Row],[Attribute]]&\"+\")&ExcelShortcuts[[#This Row],[Key]]","v":"Shift+Alt+L"},{"$f":"_xlfn.XLOOKUP(SUBSTITUTE(ExcelShortcuts[[#This Row],[Shortcut]],\"+\",\" + \"),'Custom Shortcuts'!$D$15:$D$103,'Custom Shortcuts'!$C$15:$C$103,\"\",0)","v":""},{"$f":"COUNTIF(ExcelShortcuts[Key],\"=\"&ExcelShortcuts[[#This Row],[Key]])","v":6}]
["L","Ctrl+Alt","Reapply Sort / Filter",{"$f":"IF(ExcelShortcuts[[#This Row],[Attribute]]=\"Alone\",\"\",ExcelShortcuts[[#This Row],[Attribute]]&\"+\")&ExcelShortcuts[[#This Row],[Key]]","v":"Ctrl+Alt+L"},{"$f":"_xlfn.XLOOKUP(SUBSTITUTE(ExcelShortcuts[[#This Row],[Shortcut]],\"+\",\" + \"),'Custom Shortcuts'!$D$15:$D$103,'Custom Shortcuts'!$C$15:$C$103,\"\",0)","v":""},{"$f":"COUNTIF(ExcelShortcuts[Key],\"=\"&ExcelShortcuts[[#This Row],[Key]])","v":6}]
["L","Ctrl+Shift+Alt","",{"$f":"IF(ExcelShortcuts[[#This Row],[Attribute]]=\"Alone\",\"\",ExcelShortcuts[[#This Row],[Attribute]]&\"+\")&ExcelShortcuts[[#This Row],[Key]]","v":"Ctrl+Shift+Alt+L"},{"$f":"_xlfn.XLOOKUP(SUBSTITUTE(ExcelShortcuts[[#This Row],[Shortcut]],\"+\",\" + \"),'Custom Shortcuts'!$D$15:$D$103,'Custom Shortcuts'!$C$15:$C$103,\"\",0)","v":""},{"$f":"COUNTIF(ExcelShortcuts[Key],\"=\"&ExcelShortcuts[[#This Row],[Key]])","v":6}]
["M","Ctrl","",{"$f":"IF(ExcelShortcuts[[#This Row],[Attribute]]=\"Alone\",\"\",ExcelShortcuts[[#This Row],[Attribute]]&\"+\")&ExcelShortcuts[[#This Row],[Key]]","v":"Ctrl+M"},{"$f":"_xlfn.XLOOKUP(SUBSTITUTE(ExcelShortcuts[[#This Row],[Shortcut]],\"+\",\" + \"),'Custom Shortcuts'!$D$15:$D$103,'Custom Shortcuts'!$C$15:$C$103,\"\",0)","v":""},{"$f":"COUNTIF(ExcelShortcuts[Key],\"=\"&ExcelShortcuts[[#This Row],[Key]])","v":6}]
["M","Alt","",{"$f":"IF(ExcelShortcuts[[#This Row],[Attribute]]=\"Alone\",\"\",ExcelShortcuts[[#This Row],[Attribute]]&\"+\")&ExcelShortcuts[[#This Row],[Key]]","v":"Alt+M"},{"$f":"_xlfn.XLOOKUP(SUBSTITUTE(ExcelShortcuts[[#This Row],[Shortcut]],\"+\",\" + \"),'Custom Shortcuts'!$D$15:$D$103,'Custom Shortcuts'!$C$15:$C$103,\"\",0)","v":""},{"$f":"COUNTIF(ExcelShortcuts[Key],\"=\"&ExcelShortcuts[[#This Row],[Key]])","v":6}]
["M","Ctrl+Shift","",{"$f":"IF(ExcelShortcuts[[#This Row],[Attribute]]=\"Alone\",\"\",ExcelShortcuts[[#This Row],[Attribute]]&\"+\")&ExcelShortcuts[[#This Row],[Key]]","v":"Ctrl+Shift+M"},{"$f":"_xlfn.XLOOKUP(SUBSTITUTE(ExcelShortcuts[[#This Row],[Shortcut]],\"+\",\" + \"),'Custom Shortcuts'!$D$15:$D$103,'Custom Shortcuts'!$C$15:$C$103,\"\",0)","v":"Import"},{"$f":"COUNTIF(ExcelShortcuts[Key],\"=\"&ExcelShortcuts[[#This Row],[Key]])","v":6}]
["M","Shift+Alt","",{"$f":"IF(ExcelShortcuts[[#This Row],[Attribute]]=\"Alone\",\"\",ExcelShortcuts[[#This Row],[Attribute]]&\"+\")&ExcelShortcuts[[#This Row],[Key]]","v":"Shift+Alt+M"},{"$f":"_xlfn.XLOOKUP(SUBSTITUTE(ExcelShortcuts[[#This Row],[Shortcut]],\"+\",\" + \"),'Custom Shortcuts'!$D$15:$D$103,'Custom Shortcuts'!$C$15:$C$103,\"\",0)","v":""},{"$f":"COUNTIF(ExcelShortcuts[Key],\"=\"&ExcelShortcuts[[#This Row],[Key]])","v":6}]
["M","Ctrl+Alt","",{"$f":"IF(ExcelShortcuts[[#This Row],[Attribute]]=\"Alone\",\"\",ExcelShortcuts[[#This Row],[Attribute]]&\"+\")&ExcelShortcuts[[#This Row],[Key]]","v":"Ctrl+Alt+M"},{"$f":"_xlfn.XLOOKUP(SUBSTITUTE(ExcelShortcuts[[#This Row],[Shortcut]],\"+\",\" + \"),'Custom Shortcuts'!$D$15:$D$103,'Custom Shortcuts'!$C$15:$C$103,\"\",0)","v":""},{"$f":"COUNTIF(ExcelShortcuts[Key],\"=\"&ExcelShortcuts[[#This Row],[Key]])","v":6}]
["M","Ctrl+Shift+Alt","",{"$f":"IF(ExcelShortcuts[[#This Row],[Attribute]]=\"Alone\",\"\",ExcelShortcuts[[#This Row],[Attribute]]&\"+\")&ExcelShortcuts[[#This Row],[Key]]","v":"Ctrl+Shift+Alt+M"},{"$f":"_xlfn.XLOOKUP(SUBSTITUTE(ExcelShortcuts[[#This Row],[Shortcut]],\"+\",\" + \"),'Custom Shortcuts'!$D$15:$D$103,'Custom Shortcuts'!$C$15:$C$103,\"\",0)","v":""},{"$f":"COUNTIF(ExcelShortcuts[Key],\"=\"&ExcelShortcuts[[#This Row],[Key]])","v":6}]
["N","Ctrl","New Workbook",{"$f":"IF(ExcelShortcuts[[#This Row],[Attribute]]=\"Alone\",\"\",ExcelShortcuts[[#This Row],[Attribute]]&\"+\")&ExcelShortcuts[[#This Row],[Key]]","v":"Ctrl+N"},{"$f":"_xlfn.XLOOKUP(SUBSTITUTE(ExcelShortcuts[[#This Row],[Shortcut]],\"+\",\" + \"),'Custom Shortcuts'!$D$15:$D$103,'Custom Shortcuts'!$C$15:$C$103,\"\",0)","v":""},{"$f":"COUNTIF(ExcelShortcuts[Key],\"=\"&ExcelShortcuts[[#This Row],[Key]])","v":6}]
["N","Alt","",{"$f":"IF(ExcelShortcuts[[#This Row],[Attribute]]=\"Alone\",\"\",ExcelShortcuts[[#This Row],[Attribute]]&\"+\")&ExcelShortcuts[[#This Row],[Key]]","v":"Alt+N"},{"$f":"_xlfn.XLOOKUP(SUBSTITUTE(ExcelShortcuts[[#This Row],[Shortcut]],\"+\",\" + \"),'Custom Shortcuts'!$D$15:$D$103,'Custom Shortcuts'!$C$15:$C$103,\"\",0)","v":""},{"$f":"COUNTIF(ExcelShortcuts[Key],\"=\"&ExcelShortcuts[[#This Row],[Key]])","v":6}]
["N","Ctrl+Shift","",{"$f":"IF(ExcelShortcuts[[#This Row],[Attribute]]=\"Alone\",\"\",ExcelShortcuts[[#This Row],[Attribute]]&\"+\")&ExcelShortcuts[[#This Row],[Key]]","v":"Ctrl+Shift+N"},{"$f":"_xlfn.XLOOKUP(SUBSTITUTE(ExcelShortcuts[[#This Row],[Shortcut]],\"+\",\" + \"),'Custom Shortcuts'!$D$15:$D$103,'Custom Shortcuts'!$C$15:$C$103,\"\",0)","v":"Sum Across"},{"$f":"COUNTIF(ExcelShortcuts[Key],\"=\"&ExcelShortcuts[[#This Row],[Key]])","v":6}]
["N","Shift+Alt","",{"$f":"IF(ExcelShortcuts[[#This Row],[Attribute]]=\"Alone\",\"\",ExcelShortcuts[[#This Row],[Attribute]]&\"+\")&ExcelShortcuts[[#This Row],[Key]]","v":"Shift+Alt+N"},{"$f":"_xlfn.XLOOKUP(SUBSTITUTE(ExcelShortcuts[[#This Row],[Shortcut]],\"+\",\" + \"),'Custom Shortcuts'!$D$15:$D$103,'Custom Shortcuts'!$C$15:$C$103,\"\",0)","v":""},{"$f":"COUNTIF(ExcelShortcuts[Key],\"=\"&ExcelShortcuts[[#This Row],[Key]])","v":6}]
["N","Ctrl+Alt","",{"$f":"IF(ExcelShortcuts[[#This Row],[Attribute]]=\"Alone\",\"\",ExcelShortcuts[[#This Row],[Attribute]]&\"+\")&ExcelShortcuts[[#This Row],[Key]]","v":"Ctrl+Alt+N"},{"$f":"_xlfn.XLOOKUP(SUBSTITUTE(ExcelShortcuts[[#This Row],[Shortcut]],\"+\",\" + \"),'Custom Shortcuts'!$D$15:$D$103,'Custom Shortcuts'!$C$15:$C$103,\"\",0)","v":""},{"$f":"COUNTIF(ExcelShortcuts[Key],\"=\"&ExcelShortcuts[[#This Row],[Key]])","v":6}]
["N","Ctrl+Shift+Alt","",{"$f":"IF(ExcelShortcuts[[#This Row],[Attribute]]=\"Alone\",\"\",ExcelShortcuts[[#This Row],[Attribute]]&\"+\")&ExcelShortcuts[[#This Row],[Key]]","v":"Ctrl+Shift+Alt+N"},{"$f":"_xlfn.XLOOKUP(SUBSTITUTE(ExcelShortcuts[[#This Row],[Shortcut]],\"+\",\" + \"),'Custom Shortcuts'!$D$15:$D$103,'Custom Shortcuts'!$C$15:$C$103,\"\",0)","v":""},{"$f":"COUNTIF(ExcelShortcuts[Key],\"=\"&ExcelShortcuts[[#This Row],[Key]])","v":6}]
["O","Ctrl","Open Workbook",{"$f":"IF(ExcelShortcuts[[#This Row],[Attribute]]=\"Alone\",\"\",ExcelShortcuts[[#This Row],[Attribute]]&\"+\")&ExcelShortcuts[[#This Row],[Key]]","v":"Ctrl+O"},{"$f":"_xlfn.XLOOKUP(SUBSTITUTE(ExcelShortcuts[[#This Row],[Shortcut]],\"+\",\" + \"),'Custom Shortcuts'!$D$15:$D$103,'Custom Shortcuts'!$C$15:$C$103,\"\",0)","v":""},{"$f":"COUNTIF(ExcelShortcuts[Key],\"=\"&ExcelShortcuts[[#This Row],[Key]])","v":6}]
["O","Alt","Excel 2003: Activate Format menu",{"$f":"IF(ExcelShortcuts[[#This Row],[Attribute]]=\"Alone\",\"\",ExcelShortcuts[[#This Row],[Attribute]]&\"+\")&ExcelShortcuts[[#This Row],[Key]]","v":"Alt+O"},{"$f":"_xlfn.XLOOKUP(SUBSTITUTE(ExcelShortcuts[[#This Row],[Shortcut]],\"+\",\" + \"),'Custom Shortcuts'!$D$15:$D$103,'Custom Shortcuts'!$C$15:$C$103,\"\",0)","v":""},{"$f":"COUNTIF(ExcelShortcuts[Key],\"=\"&ExcelShortcuts[[#This Row],[Key]])","v":6}]
["O","Ctrl+Shift","Select Comments",{"$f":"IF(ExcelShortcuts[[#This Row],[Attribute]]=\"Alone\",\"\",ExcelShortcuts[[#This Row],[Attribute]]&\"+\")&ExcelShortcuts[[#This Row],[Key]]","v":"Ctrl+Shift+O"},{"$f":"_xlfn.XLOOKUP(SUBSTITUTE(ExcelShortcuts[[#This Row],[Shortcut]],\"+\",\" + \"),'Custom Shortcuts'!$D$15:$D$103,'Custom Shortcuts'!$C$15:$C$103,\"\",0)","v":"Counterflow"},{"$f":"COUNTIF(ExcelShortcuts[Key],\"=\"&ExcelShortcuts[[#This Row],[Key]])","v":6}]
["O","Shift+Alt","",{"$f":"IF(ExcelShortcuts[[#This Row],[Attribute]]=\"Alone\",\"\",ExcelShortcuts[[#This Row],[Attribute]]&\"+\")&ExcelShortcuts[[#This Row],[Key]]","v":"Shift+Alt+O"},{"$f":"_xlfn.XLOOKUP(SUBSTITUTE(ExcelShortcuts[[#This Row],[Shortcut]],\"+\",\" + \"),'Custom Shortcuts'!$D$15:$D$103,'Custom Shortcuts'!$C$15:$C$103,\"\",0)","v":""},{"$f":"COUNTIF(ExcelShortcuts[Key],\"=\"&ExcelShortcuts[[#This Row],[Key]])","v":6}]
["O","Ctrl+Alt","",{"$f":"IF(ExcelShortcuts[[#This Row],[Attribute]]=\"Alone\",\"\",ExcelShortcuts[[#This Row],[Attribute]]&\"+\")&ExcelShortcuts[[#This Row],[Key]]","v":"Ctrl+Alt+O"},{"$f":"_xlfn.XLOOKUP(SUBSTITUTE(ExcelShortcuts[[#This Row],[Shortcut]],\"+\",\" + \"),'Custom Shortcuts'!$D$15:$D$103,'Custom Shortcuts'!$C$15:$C$103,\"\",0)","v":"Relocate Outputs"},{"$f":"COUNTIF(ExcelShortcuts[Key],\"=\"&ExcelShortcuts[[#This Row],[Key]])","v":6}]
["O","Ctrl+Shift+Alt","",{"$f":"IF(ExcelShortcuts[[#This Row],[Attribute]]=\"Alone\",\"\",ExcelShortcuts[[#This Row],[Attribute]]&\"+\")&ExcelShortcuts[[#This Row],[Key]]","v":"Ctrl+Shift+Alt+O"},{"$f":"_xlfn.XLOOKUP(SUBSTITUTE(ExcelShortcuts[[#This Row],[Shortcut]],\"+\",\" + \"),'Custom Shortcuts'!$D$15:$D$103,'Custom Shortcuts'!$C$15:$C$103,\"\",0)","v":""},{"$f":"COUNTIF(ExcelShortcuts[Key],\"=\"&ExcelShortcuts[[#This Row],[Key]])","v":6}]
["P","Ctrl","Print",{"$f":"IF(ExcelShortcuts[[#This Row],[Attribute]]=\"Alone\",\"\",ExcelShortcuts[[#This Row],[Attribute]]&\"+\")&ExcelShortcuts[[#This Row],[Key]]","v":"Ctrl+P"},{"$f":"_xlfn.XLOOKUP(SUBSTITUTE(ExcelShortcuts[[#This Row],[Shortcut]],\"+\",\" + \"),'Custom Shortcuts'!$D$15:$D$103,'Custom Shortcuts'!$C$15:$C$103,\"\",0)","v":""},{"$f":"COUNTIF(ExcelShortcuts[Key],\"=\"&ExcelShortcuts[[#This Row],[Key]])","v":6}]
["P","Alt","",{"$f":"IF(ExcelShortcuts[[#This Row],[Attribute]]=\"Alone\",\"\",ExcelShortcuts[[#This Row],[Attribute]]&\"+\")&ExcelShortcuts[[#This Row],[Key]]","v":"Alt+P"},{"$f":"_xlfn.XLOOKUP(SUBSTITUTE(ExcelShortcuts[[#This Row],[Shortcut]],\"+\",\" + \"),'Custom Shortcuts'!$D$15:$D$103,'Custom Shortcuts'!$C$15:$C$103,\"\",0)","v":""},{"$f":"COUNTIF(ExcelShortcuts[Key],\"=\"&ExcelShortcuts[[#This Row],[Key]])","v":6}]
["P","Ctrl+Shift","Font size",{"$f":"IF(ExcelShortcuts[[#This Row],[Attribute]]=\"Alone\",\"\",ExcelShortcuts[[#This Row],[Attribute]]&\"+\")&ExcelShortcuts[[#This Row],[Key]]","v":"Ctrl+Shift+P"},{"$f":"_xlfn.XLOOKUP(SUBSTITUTE(ExcelShortcuts[[#This Row],[Shortcut]],\"+\",\" + \"),'Custom Shortcuts'!$D$15:$D$103,'Custom Shortcuts'!$C$15:$C$103,\"\",0)","v":"Percent Style"},{"$f":"COUNTIF(ExcelShortcuts[Key],\"=\"&ExcelShortcuts[[#This Row],[Key]])","v":6}]
["P","Shift+Alt","",{"$f":"IF(ExcelShortcuts[[#This Row],[Attribute]]=\"Alone\",\"\",ExcelShortcuts[[#This Row],[Attribute]]&\"+\")&ExcelShortcuts[[#This Row],[Key]]","v":"Shift+Alt+P"},{"$f":"_xlfn.XLOOKUP(SUBSTITUTE(ExcelShortcuts[[#This Row],[Shortcut]],\"+\",\" + \"),'Custom Shortcuts'!$D$15:$D$103,'Custom Shortcuts'!$C$15:$C$103,\"\",0)","v":""},{"$f":"COUNTIF(ExcelShortcuts[Key],\"=\"&ExcelShortcuts[[#This Row],[Key]])","v":6}]
["P","Ctrl+Alt","",{"$f":"IF(ExcelShortcuts[[#This Row],[Attribute]]=\"Alone\",\"\",ExcelShortcuts[[#This Row],[Attribute]]&\"+\")&ExcelShortcuts[[#This Row],[Key]]","v":"Ctrl+Alt+P"},{"$f":"_xlfn.XLOOKUP(SUBSTITUTE(ExcelShortcuts[[#This Row],[Shortcut]],\"+\",\" + \"),'Custom Shortcuts'!$D$15:$D$103,'Custom Shortcuts'!$C$15:$C$103,\"\",0)","v":"Placeholders List with comments"},{"$f":"COUNTIF(ExcelShortcuts[Key],\"=\"&ExcelShortcuts[[#This Row],[Key]])","v":6}]
["P","Ctrl+Shift+Alt","",{"$f":"IF(ExcelShortcuts[[#This Row],[Attribute]]=\"Alone\",\"\",ExcelShortcuts[[#This Row],[Attribute]]&\"+\")&ExcelShortcuts[[#This Row],[Key]]","v":"Ctrl+Shift+Alt+P"},{"$f":"_xlfn.XLOOKUP(SUBSTITUTE(ExcelShortcuts[[#This Row],[Shortcut]],\"+\",\" + \"),'Custom Shortcuts'!$D$15:$D$103,'Custom Shortcuts'!$C$15:$C$103,\"\",0)","v":""},{"$f":"COUNTIF(ExcelShortcuts[Key],\"=\"&ExcelShortcuts[[#This Row],[Key]])","v":6}]
["Q","Ctrl","Excel 2016:Quick Analysis tool ; earlier: Quit",{"$f":"IF(ExcelShortcuts[[#This Row],[Attribute]]=\"Alone\",\"\",ExcelShortcuts[[#This Row],[Attribute]]&\"+\")&ExcelShortcuts[[#This Row],[Key]]","v":"Ctrl+Q"},{"$f":"_xlfn.XLOOKUP(SUBSTITUTE(ExcelShortcuts[[#This Row],[Shortcut]],\"+\",\" + \"),'Custom Shortcuts'!$D$15:$D$103,'Custom Shortcuts'!$C$15:$C$103,\"\",0)","v":""},{"$f":"COUNTIF(ExcelShortcuts[Key],\"=\"&ExcelShortcuts[[#This Row],[Key]])","v":6}]
["Q","Alt",null,{"$f":"IF(ExcelShortcuts[[#This Row],[Attribute]]=\"Alone\",\"\",ExcelShortcuts[[#This Row],[Attribute]]&\"+\")&ExcelShortcuts[[#This Row],[Key]]","v":"Alt+Q"},{"$f":"_xlfn.XLOOKUP(SUBSTITUTE(ExcelShortcuts[[#This Row],[Shortcut]],\"+\",\" + \"),'Custom Shortcuts'!$D$15:$D$103,'Custom Shortcuts'!$C$15:$C$103,\"\",0)","v":""},{"$f":"COUNTIF(ExcelShortcuts[Key],\"=\"&ExcelShortcuts[[#This Row],[Key]])","v":6}]
["Q","Ctrl+Shift",null,{"$f":"IF(ExcelShortcuts[[#This Row],[Attribute]]=\"Alone\",\"\",ExcelShortcuts[[#This Row],[Attribute]]&\"+\")&ExcelShortcuts[[#This Row],[Key]]","v":"Ctrl+Shift+Q"},{"$f":"_xlfn.XLOOKUP(SUBSTITUTE(ExcelShortcuts[[#This Row],[Shortcut]],\"+\",\" + \"),'Custom Shortcuts'!$D$15:$D$103,'Custom Shortcuts'!$C$15:$C$103,\"\",0)","v":"Quick Link"},{"$f":"COUNTIF(ExcelShortcuts[Key],\"=\"&ExcelShortcuts[[#This Row],[Key]])","v":6}]
["Q","Shift+Alt",null,{"$f":"IF(ExcelShortcuts[[#This Row],[Attribute]]=\"Alone\",\"\",ExcelShortcuts[[#This Row],[Attribute]]&\"+\")&ExcelShortcuts[[#This Row],[Key]]","v":"Shift+Alt+Q"},{"$f":"_xlfn.XLOOKUP(SUBSTITUTE(ExcelShortcuts[[#This Row],[Shortcut]],\"+\",\" + \"),'Custom Shortcuts'!$D$15:$D$103,'Custom Shortcuts'!$C$15:$C$103,\"\",0)","v":""},{"$f":"COUNTIF(ExcelShortcuts[Key],\"=\"&ExcelShortcuts[[#This Row],[Key]])","v":6}]
["Q","Ctrl+Alt",null,{"$f":"IF(ExcelShortcuts[[#This Row],[Attribute]]=\"Alone\",\"\",ExcelShortcuts[[#This Row],[Attribute]]&\"+\")&ExcelShortcuts[[#This Row],[Key]]","v":"Ctrl+Alt+Q"},{"$f":"_xlfn.XLOOKUP(SUBSTITUTE(ExcelShortcuts[[#This Row],[Shortcut]],\"+\",\" + \"),'Custom Shortcuts'!$D$15:$D$103,'Custom Shortcuts'!$C$15:$C$103,\"\",0)","v":"Model Queries "},{"$f":"COUNTIF(ExcelShortcuts[Key],\"=\"&ExcelShortcuts[[#This Row],[Key]])","v":6}]
["Q","Ctrl+Shift+Alt",null,{"$f":"IF(ExcelShortcuts[[#This Row],[Attribute]]=\"Alone\",\"\",ExcelShortcuts[[#This Row],[Attribute]]&\"+\")&ExcelShortcuts[[#This Row],[Key]]","v":"Ctrl+Shift+Alt+Q"},{"$f":"_xlfn.XLOOKUP(SUBSTITUTE(ExcelShortcuts[[#This Row],[Shortcut]],\"+\",\" + \"),'Custom Shortcuts'!$D$15:$D$103,'Custom Shortcuts'!$C$15:$C$103,\"\",0)","v":""},{"$f":"COUNTIF(ExcelShortcuts[Key],\"=\"&ExcelShortcuts[[#This Row],[Key]])","v":6}]
["R","Ctrl","Fill right",{"$f":"IF(ExcelShortcuts[[#This Row],[Attribute]]=\"Alone\",\"\",ExcelShortcuts[[#This Row],[Attribute]]&\"+\")&ExcelShortcuts[[#This Row],[Key]]","v":"Ctrl+R"},{"$f":"_xlfn.XLOOKUP(SUBSTITUTE(ExcelShortcuts[[#This Row],[Shortcut]],\"+\",\" + \"),'Custom Shortcuts'!$D$15:$D$103,'Custom Shortcuts'!$C$15:$C$103,\"\",0)","v":""},{"$f":"COUNTIF(ExcelShortcuts[Key],\"=\"&ExcelShortcuts[[#This Row],[Key]])","v":6}]
["R","Alt","",{"$f":"IF(ExcelShortcuts[[#This Row],[Attribute]]=\"Alone\",\"\",ExcelShortcuts[[#This Row],[Attribute]]&\"+\")&ExcelShortcuts[[#This Row],[Key]]","v":"Alt+R"},{"$f":"_xlfn.XLOOKUP(SUBSTITUTE(ExcelShortcuts[[#This Row],[Shortcut]],\"+\",\" + \"),'Custom Shortcuts'!$D$15:$D$103,'Custom Shortcuts'!$C$15:$C$103,\"\",0)","v":""},{"$f":"COUNTIF(ExcelShortcuts[Key],\"=\"&ExcelShortcuts[[#This Row],[Key]])","v":6}]
["R","Ctrl+Shift","",{"$f":"IF(ExcelShortcuts[[#This Row],[Attribute]]=\"Alone\",\"\",ExcelShortcuts[[#This Row],[Attribute]]&\"+\")&ExcelShortcuts[[#This Row],[Key]]","v":"Ctrl+Shift+R"},{"$f":"_xlfn.XLOOKUP(SUBSTITUTE(ExcelShortcuts[[#This Row],[Shortcut]],\"+\",\" + \"),'Custom Shortcuts'!$D$15:$D$103,'Custom Shortcuts'!$C$15:$C$103,\"\",0)","v":"Review"},{"$f":"COUNTIF(ExcelShortcuts[Key],\"=\"&ExcelShortcuts[[#This Row],[Key]])","v":6}]
["R","Shift+Alt","",{"$f":"IF(ExcelShortcuts[[#This Row],[Attribute]]=\"Alone\",\"\",ExcelShortcuts[[#This Row],[Attribute]]&\"+\")&ExcelShortcuts[[#This Row],[Key]]","v":"Shift+Alt+R"},{"$f":"_xlfn.XLOOKUP(SUBSTITUTE(ExcelShortcuts[[#This Row],[Shortcut]],\"+\",\" + \"),'Custom Shortcuts'!$D$15:$D$103,'Custom Shortcuts'!$C$15:$C$103,\"\",0)","v":""},{"$f":"COUNTIF(ExcelShortcuts[Key],\"=\"&ExcelShortcuts[[#This Row],[Key]])","v":6}]
["R","Ctrl+Alt","",{"$f":"IF(ExcelShortcuts[[#This Row],[Attribute]]=\"Alone\",\"\",ExcelShortcuts[[#This Row],[Attribute]]&\"+\")&ExcelShortcuts[[#This Row],[Key]]","v":"Ctrl+Alt+R"},{"$f":"_xlfn.XLOOKUP(SUBSTITUTE(ExcelShortcuts[[#This Row],[Shortcut]],\"+\",\" + \"),'Custom Shortcuts'!$D$15:$D$103,'Custom Shortcuts'!$C$15:$C$103,\"\",0)","v":"Relocate Inputs"},{"$f":"COUNTIF(ExcelShortcuts[Key],\"=\"&ExcelShortcuts[[#This Row],[Key]])","v":6}]
["R","Ctrl+Shift+Alt","",{"$f":"IF(ExcelShortcuts[[#This Row],[Attribute]]=\"Alone\",\"\",ExcelShortcuts[[#This Row],[Attribute]]&\"+\")&ExcelShortcuts[[#This Row],[Key]]","v":"Ctrl+Shift+Alt+R"},{"$f":"_xlfn.XLOOKUP(SUBSTITUTE(ExcelShortcuts[[#This Row],[Shortcut]],\"+\",\" + \"),'Custom Shortcuts'!$D$15:$D$103,'Custom Shortcuts'!$C$15:$C$103,\"\",0)","v":""},{"$f":"COUNTIF(ExcelShortcuts[Key],\"=\"&ExcelShortcuts[[#This Row],[Key]])","v":6}]
["S","Ctrl","Save",{"$f":"IF(ExcelShortcuts[[#This Row],[Attribute]]=\"Alone\",\"\",ExcelShortcuts[[#This Row],[Attribute]]&\"+\")&ExcelShortcuts[[#This Row],[Key]]","v":"Ctrl+S"},{"$f":"_xlfn.XLOOKUP(SUBSTITUTE(ExcelShortcuts[[#This Row],[Shortcut]],\"+\",\" + \"),'Custom Shortcuts'!$D$15:$D$103,'Custom Shortcuts'!$C$15:$C$103,\"\",0)","v":""},{"$f":"COUNTIF(ExcelShortcuts[Key],\"=\"&ExcelShortcuts[[#This Row],[Key]])","v":6}]
["S","Alt","Send Now (only when emailing not as attachment)",{"$f":"IF(ExcelShortcuts[[#This Row],[Attribute]]=\"Alone\",\"\",ExcelShortcuts[[#This Row],[Attribute]]&\"+\")&ExcelShortcuts[[#This Row],[Key]]","v":"Alt+S"},{"$f":"_xlfn.XLOOKUP(SUBSTITUTE(ExcelShortcuts[[#This Row],[Shortcut]],\"+\",\" + \"),'Custom Shortcuts'!$D$15:$D$103,'Custom Shortcuts'!$C$15:$C$103,\"\",0)","v":""},{"$f":"COUNTIF(ExcelShortcuts[Key],\"=\"&ExcelShortcuts[[#This Row],[Key]])","v":6}]
["S","Ctrl+Shift","",{"$f":"IF(ExcelShortcuts[[#This Row],[Attribute]]=\"Alone\",\"\",ExcelShortcuts[[#This Row],[Attribute]]&\"+\")&ExcelShortcuts[[#This Row],[Key]]","v":"Ctrl+Shift+S"},{"$f":"_xlfn.XLOOKUP(SUBSTITUTE(ExcelShortcuts[[#This Row],[Shortcut]],\"+\",\" + \"),'Custom Shortcuts'!$D$15:$D$103,'Custom Shortcuts'!$C$15:$C$103,\"\",0)","v":"Add Sparkline in column F"},{"$f":"COUNTIF(ExcelShortcuts[Key],\"=\"&ExcelShortcuts[[#This Row],[Key]])","v":6}]
["S","Shift+Alt",null,{"$f":"IF(ExcelShortcuts[[#This Row],[Attribute]]=\"Alone\",\"\",ExcelShortcuts[[#This Row],[Attribute]]&\"+\")&ExcelShortcuts[[#This Row],[Key]]","v":"Shift+Alt+S"},{"$f":"_xlfn.XLOOKUP(SUBSTITUTE(ExcelShortcuts[[#This Row],[Shortcut]],\"+\",\" + \"),'Custom Shortcuts'!$D$15:$D$103,'Custom Shortcuts'!$C$15:$C$103,\"\",0)","v":""},{"$f":"COUNTIF(ExcelShortcuts[Key],\"=\"&ExcelShortcuts[[#This Row],[Key]])","v":6}]
["S","Ctrl+Alt","",{"$f":"IF(ExcelShortcuts[[#This Row],[Attribute]]=\"Alone\",\"\",ExcelShortcuts[[#This Row],[Attribute]]&\"+\")&ExcelShortcuts[[#This Row],[Key]]","v":"Ctrl+Alt+S"},{"$f":"_xlfn.XLOOKUP(SUBSTITUTE(ExcelShortcuts[[#This Row],[Shortcut]],\"+\",\" + \"),'Custom Shortcuts'!$D$15:$D$103,'Custom Shortcuts'!$C$15:$C$103,\"\",0)","v":"Paste Format From Copied Range"},{"$f":"COUNTIF(ExcelShortcuts[Key],\"=\"&ExcelShortcuts[[#This Row],[Key]])","v":6}]
["S","Ctrl+Shift+Alt","",{"$f":"IF(ExcelShortcuts[[#This Row],[Attribute]]=\"Alone\",\"\",ExcelShortcuts[[#This Row],[Attribute]]&\"+\")&ExcelShortcuts[[#This Row],[Key]]","v":"Ctrl+Shift+Alt+S"},{"$f":"_xlfn.XLOOKUP(SUBSTITUTE(ExcelShortcuts[[#This Row],[Shortcut]],\"+\",\" + \"),'Custom Shortcuts'!$D$15:$D$103,'Custom Shortcuts'!$C$15:$C$103,\"\",0)","v":""},{"$f":"COUNTIF(ExcelShortcuts[Key],\"=\"&ExcelShortcuts[[#This Row],[Key]])","v":6}]
["T","Ctrl","Excel 2007: Insert Table",{"$f":"IF(ExcelShortcuts[[#This Row],[Attribute]]=\"Alone\",\"\",ExcelShortcuts[[#This Row],[Attribute]]&\"+\")&ExcelShortcuts[[#This Row],[Key]]","v":"Ctrl+T"},{"$f":"_xlfn.XLOOKUP(SUBSTITUTE(ExcelShortcuts[[#This Row],[Shortcut]],\"+\",\" + \"),'Custom Shortcuts'!$D$15:$D$103,'Custom Shortcuts'!$C$15:$C$103,\"\",0)","v":""},{"$f":"COUNTIF(ExcelShortcuts[Key],\"=\"&ExcelShortcuts[[#This Row],[Key]])","v":6}]
["T","Alt","Excel 2003: Activate Tools menu",{"$f":"IF(ExcelShortcuts[[#This Row],[Attribute]]=\"Alone\",\"\",ExcelShortcuts[[#This Row],[Attribute]]&\"+\")&ExcelShortcuts[[#This Row],[Key]]","v":"Alt+T"},{"$f":"_xlfn.XLOOKUP(SUBSTITUTE(ExcelShortcuts[[#This Row],[Shortcut]],\"+\",\" + \"),'Custom Shortcuts'!$D$15:$D$103,'Custom Shortcuts'!$C$15:$C$103,\"\",0)","v":""},{"$f":"COUNTIF(ExcelShortcuts[Key],\"=\"&ExcelShortcuts[[#This Row],[Key]])","v":6}]
["T","Ctrl+Shift","Toggle Total Row",{"$f":"IF(ExcelShortcuts[[#This Row],[Attribute]]=\"Alone\",\"\",ExcelShortcuts[[#This Row],[Attribute]]&\"+\")&ExcelShortcuts[[#This Row],[Key]]","v":"Ctrl+Shift+T"},{"$f":"_xlfn.XLOOKUP(SUBSTITUTE(ExcelShortcuts[[#This Row],[Shortcut]],\"+\",\" + \"),'Custom Shortcuts'!$D$15:$D$103,'Custom Shortcuts'!$C$15:$C$103,\"\",0)","v":"Square Brackets"},{"$f":"COUNTIF(ExcelShortcuts[Key],\"=\"&ExcelShortcuts[[#This Row],[Key]])","v":6}]
["T","Shift+Alt","",{"$f":"IF(ExcelShortcuts[[#This Row],[Attribute]]=\"Alone\",\"\",ExcelShortcuts[[#This Row],[Attribute]]&\"+\")&ExcelShortcuts[[#This Row],[Key]]","v":"Shift+Alt+T"},{"$f":"_xlfn.XLOOKUP(SUBSTITUTE(ExcelShortcuts[[#This Row],[Shortcut]],\"+\",\" + \"),'Custom Shortcuts'!$D$15:$D$103,'Custom Shortcuts'!$C$15:$C$103,\"\",0)","v":""},{"$f":"COUNTIF(ExcelShortcuts[Key],\"=\"&ExcelShortcuts[[#This Row],[Key]])","v":6}]
["T","Ctrl+Alt","",{"$f":"IF(ExcelShortcuts[[#This Row],[Attribute]]=\"Alone\",\"\",ExcelShortcuts[[#This Row],[Attribute]]&\"+\")&ExcelShortcuts[[#This Row],[Key]]","v":"Ctrl+Alt+T"},{"$f":"_xlfn.XLOOKUP(SUBSTITUTE(ExcelShortcuts[[#This Row],[Shortcut]],\"+\",\" + \"),'Custom Shortcuts'!$D$15:$D$103,'Custom Shortcuts'!$C$15:$C$103,\"\",0)","v":""},{"$f":"COUNTIF(ExcelShortcuts[Key],\"=\"&ExcelShortcuts[[#This Row],[Key]])","v":6}]
["T","Ctrl+Shift+Alt","",{"$f":"IF(ExcelShortcuts[[#This Row],[Attribute]]=\"Alone\",\"\",ExcelShortcuts[[#This Row],[Attribute]]&\"+\")&ExcelShortcuts[[#This Row],[Key]]","v":"Ctrl+Shift+Alt+T"},{"$f":"_xlfn.XLOOKUP(SUBSTITUTE(ExcelShortcuts[[#This Row],[Shortcut]],\"+\",\" + \"),'Custom Shortcuts'!$D$15:$D$103,'Custom Shortcuts'!$C$15:$C$103,\"\",0)","v":""},{"$f":"COUNTIF(ExcelShortcuts[Key],\"=\"&ExcelShortcuts[[#This Row],[Key]])","v":6}]
["U","Ctrl","Underline (toggle)",{"$f":"IF(ExcelShortcuts[[#This Row],[Attribute]]=\"Alone\",\"\",ExcelShortcuts[[#This Row],[Attribute]]&\"+\")&ExcelShortcuts[[#This Row],[Key]]","v":"Ctrl+U"},{"$f":"_xlfn.XLOOKUP(SUBSTITUTE(ExcelShortcuts[[#This Row],[Shortcut]],\"+\",\" + \"),'Custom Shortcuts'!$D$15:$D$103,'Custom Shortcuts'!$C$15:$C$103,\"\",0)","v":""},{"$f":"COUNTIF(ExcelShortcuts[Key],\"=\"&ExcelShortcuts[[#This Row],[Key]])","v":6}]
["U","Alt","",{"$f":"IF(ExcelShortcuts[[#This Row],[Attribute]]=\"Alone\",\"\",ExcelShortcuts[[#This Row],[Attribute]]&\"+\")&ExcelShortcuts[[#This Row],[Key]]","v":"Alt+U"},{"$f":"_xlfn.XLOOKUP(SUBSTITUTE(ExcelShortcuts[[#This Row],[Shortcut]],\"+\",\" + \"),'Custom Shortcuts'!$D$15:$D$103,'Custom Shortcuts'!$C$15:$C$103,\"\",0)","v":""},{"$f":"COUNTIF(ExcelShortcuts[Key],\"=\"&ExcelShortcuts[[#This Row],[Key]])","v":6}]
["U","Ctrl+Shift","",{"$f":"IF(ExcelShortcuts[[#This Row],[Attribute]]=\"Alone\",\"\",ExcelShortcuts[[#This Row],[Attribute]]&\"+\")&ExcelShortcuts[[#This Row],[Key]]","v":"Ctrl+Shift+U"},{"$f":"_xlfn.XLOOKUP(SUBSTITUTE(ExcelShortcuts[[#This Row],[Shortcut]],\"+\",\" + \"),'Custom Shortcuts'!$D$15:$D$103,'Custom Shortcuts'!$C$15:$C$103,\"\",0)","v":""},{"$f":"COUNTIF(ExcelShortcuts[Key],\"=\"&ExcelShortcuts[[#This Row],[Key]])","v":6}]
["U","Shift+Alt","",{"$f":"IF(ExcelShortcuts[[#This Row],[Attribute]]=\"Alone\",\"\",ExcelShortcuts[[#This Row],[Attribute]]&\"+\")&ExcelShortcuts[[#This Row],[Key]]","v":"Shift+Alt+U"},{"$f":"_xlfn.XLOOKUP(SUBSTITUTE(ExcelShortcuts[[#This Row],[Shortcut]],\"+\",\" + \"),'Custom Shortcuts'!$D$15:$D$103,'Custom Shortcuts'!$C$15:$C$103,\"\",0)","v":""},{"$f":"COUNTIF(ExcelShortcuts[Key],\"=\"&ExcelShortcuts[[#This Row],[Key]])","v":6}]
["U","Ctrl+Alt","",{"$f":"IF(ExcelShortcuts[[#This Row],[Attribute]]=\"Alone\",\"\",ExcelShortcuts[[#This Row],[Attribute]]&\"+\")&ExcelShortcuts[[#This Row],[Key]]","v":"Ctrl+Alt+U"},{"$f":"_xlfn.XLOOKUP(SUBSTITUTE(ExcelShortcuts[[#This Row],[Shortcut]],\"+\",\" + \"),'Custom Shortcuts'!$D$15:$D$103,'Custom Shortcuts'!$C$15:$C$103,\"\",0)","v":""},{"$f":"COUNTIF(ExcelShortcuts[Key],\"=\"&ExcelShortcuts[[#This Row],[Key]])","v":6}]
["U","Ctrl+Shift+Alt","",{"$f":"IF(ExcelShortcuts[[#This Row],[Attribute]]=\"Alone\",\"\",ExcelShortcuts[[#This Row],[Attribute]]&\"+\")&ExcelShortcuts[[#This Row],[Key]]","v":"Ctrl+Shift+Alt+U"},{"$f":"_xlfn.XLOOKUP(SUBSTITUTE(ExcelShortcuts[[#This Row],[Shortcut]],\"+\",\" + \"),'Custom Shortcuts'!$D$15:$D$103,'Custom Shortcuts'!$C$15:$C$103,\"\",0)","v":""},{"$f":"COUNTIF(ExcelShortcuts[Key],\"=\"&ExcelShortcuts[[#This Row],[Key]])","v":6}]
["V","Ctrl","Paste",{"$f":"IF(ExcelShortcuts[[#This Row],[Attribute]]=\"Alone\",\"\",ExcelShortcuts[[#This Row],[Attribute]]&\"+\")&ExcelShortcuts[[#This Row],[Key]]","v":"Ctrl+V"},{"$f":"_xlfn.XLOOKUP(SUBSTITUTE(ExcelShortcuts[[#This Row],[Shortcut]],\"+\",\" + \"),'Custom Shortcuts'!$D$15:$D$103,'Custom Shortcuts'!$C$15:$C$103,\"\",0)","v":""},{"$f":"COUNTIF(ExcelShortcuts[Key],\"=\"&ExcelShortcuts[[#This Row],[Key]])","v":6}]
["V","Alt","Excel 2003: Activate View menu",{"$f":"IF(ExcelShortcuts[[#This Row],[Attribute]]=\"Alone\",\"\",ExcelShortcuts[[#This Row],[Attribute]]&\"+\")&ExcelShortcuts[[#This Row],[Key]]","v":"Alt+V"},{"$f":"_xlfn.XLOOKUP(SUBSTITUTE(ExcelShortcuts[[#This Row],[Shortcut]],\"+\",\" + \"),'Custom Shortcuts'!$D$15:$D$103,'Custom Shortcuts'!$C$15:$C$103,\"\",0)","v":""},{"$f":"COUNTIF(ExcelShortcuts[Key],\"=\"&ExcelShortcuts[[#This Row],[Key]])","v":6}]
["V","Ctrl+Shift","",{"$f":"IF(ExcelShortcuts[[#This Row],[Attribute]]=\"Alone\",\"\",ExcelShortcuts[[#This Row],[Attribute]]&\"+\")&ExcelShortcuts[[#This Row],[Key]]","v":"Ctrl+Shift+V"},{"$f":"_xlfn.XLOOKUP(SUBSTITUTE(ExcelShortcuts[[#This Row],[Shortcut]],\"+\",\" + \"),'Custom Shortcuts'!$D$15:$D$103,'Custom Shortcuts'!$C$15:$C$103,\"\",0)","v":"Valued"},{"$f":"COUNTIF(ExcelShortcuts[Key],\"=\"&ExcelShortcuts[[#This Row],[Key]])","v":6}]
["V","Shift+Alt","",{"$f":"IF(ExcelShortcuts[[#This Row],[Attribute]]=\"Alone\",\"\",ExcelShortcuts[[#This Row],[Attribute]]&\"+\")&ExcelShortcuts[[#This Row],[Key]]","v":"Shift+Alt+V"},{"$f":"_xlfn.XLOOKUP(SUBSTITUTE(ExcelShortcuts[[#This Row],[Shortcut]],\"+\",\" + \"),'Custom Shortcuts'!$D$15:$D$103,'Custom Shortcuts'!$C$15:$C$103,\"\",0)","v":""},{"$f":"COUNTIF(ExcelShortcuts[Key],\"=\"&ExcelShortcuts[[#This Row],[Key]])","v":6}]
["V","Ctrl+Alt","",{"$f":"IF(ExcelShortcuts[[#This Row],[Attribute]]=\"Alone\",\"\",ExcelShortcuts[[#This Row],[Attribute]]&\"+\")&ExcelShortcuts[[#This Row],[Key]]","v":"Ctrl+Alt+V"},{"$f":"_xlfn.XLOOKUP(SUBSTITUTE(ExcelShortcuts[[#This Row],[Shortcut]],\"+\",\" + \"),'Custom Shortcuts'!$D$15:$D$103,'Custom Shortcuts'!$C$15:$C$103,\"\",0)","v":""},{"$f":"COUNTIF(ExcelShortcuts[Key],\"=\"&ExcelShortcuts[[#This Row],[Key]])","v":6}]
["V","Ctrl+Shift+Alt","",{"$f":"IF(ExcelShortcuts[[#This Row],[Attribute]]=\"Alone\",\"\",ExcelShortcuts[[#This Row],[Attribute]]&\"+\")&ExcelShortcuts[[#This Row],[Key]]","v":"Ctrl+Shift+Alt+V"},{"$f":"_xlfn.XLOOKUP(SUBSTITUTE(ExcelShortcuts[[#This Row],[Shortcut]],\"+\",\" + \"),'Custom Shortcuts'!$D$15:$D$103,'Custom Shortcuts'!$C$15:$C$103,\"\",0)","v":""},{"$f":"COUNTIF(ExcelShortcuts[Key],\"=\"&ExcelShortcuts[[#This Row],[Key]])","v":6}]
["W","Ctrl","Close Window",{"$f":"IF(ExcelShortcuts[[#This Row],[Attribute]]=\"Alone\",\"\",ExcelShortcuts[[#This Row],[Attribute]]&\"+\")&ExcelShortcuts[[#This Row],[Key]]","v":"Ctrl+W"},{"$f":"_xlfn.XLOOKUP(SUBSTITUTE(ExcelShortcuts[[#This Row],[Shortcut]],\"+\",\" + \"),'Custom Shortcuts'!$D$15:$D$103,'Custom Shortcuts'!$C$15:$C$103,\"\",0)","v":""},{"$f":"COUNTIF(ExcelShortcuts[Key],\"=\"&ExcelShortcuts[[#This Row],[Key]])","v":6}]
["W","Alt","Excel 2003: Activate Window menu",{"$f":"IF(ExcelShortcuts[[#This Row],[Attribute]]=\"Alone\",\"\",ExcelShortcuts[[#This Row],[Attribute]]&\"+\")&ExcelShortcuts[[#This Row],[Key]]","v":"Alt+W"},{"$f":"_xlfn.XLOOKUP(SUBSTITUTE(ExcelShortcuts[[#This Row],[Shortcut]],\"+\",\" + \"),'Custom Shortcuts'!$D$15:$D$103,'Custom Shortcuts'!$C$15:$C$103,\"\",0)","v":""},{"$f":"COUNTIF(ExcelShortcuts[Key],\"=\"&ExcelShortcuts[[#This Row],[Key]])","v":6}]
["W","Ctrl+Shift","",{"$f":"IF(ExcelShortcuts[[#This Row],[Attribute]]=\"Alone\",\"\",ExcelShortcuts[[#This Row],[Attribute]]&\"+\")&ExcelShortcuts[[#This Row],[Key]]","v":"Ctrl+Shift+W"},{"$f":"_xlfn.XLOOKUP(SUBSTITUTE(ExcelShortcuts[[#This Row],[Shortcut]],\"+\",\" + \"),'Custom Shortcuts'!$D$15:$D$103,'Custom Shortcuts'!$C$15:$C$103,\"\",0)","v":"Power BI"},{"$f":"COUNTIF(ExcelShortcuts[Key],\"=\"&ExcelShortcuts[[#This Row],[Key]])","v":6}]
["W","Shift+Alt","",{"$f":"IF(ExcelShortcuts[[#This Row],[Attribute]]=\"Alone\",\"\",ExcelShortcuts[[#This Row],[Attribute]]&\"+\")&ExcelShortcuts[[#This Row],[Key]]","v":"Shift+Alt+W"},{"$f":"_xlfn.XLOOKUP(SUBSTITUTE(ExcelShortcuts[[#This Row],[Shortcut]],\"+\",\" + \"),'Custom Shortcuts'!$D$15:$D$103,'Custom Shortcuts'!$C$15:$C$103,\"\",0)","v":""},{"$f":"COUNTIF(ExcelShortcuts[Key],\"=\"&ExcelShortcuts[[#This Row],[Key]])","v":6}]
["W","Ctrl+Alt","",{"$f":"IF(ExcelShortcuts[[#This Row],[Attribute]]=\"Alone\",\"\",ExcelShortcuts[[#This Row],[Attribute]]&\"+\")&ExcelShortcuts[[#This Row],[Key]]","v":"Ctrl+Alt+W"},{"$f":"_xlfn.XLOOKUP(SUBSTITUTE(ExcelShortcuts[[#This Row],[Shortcut]],\"+\",\" + \"),'Custom Shortcuts'!$D$15:$D$103,'Custom Shortcuts'!$C$15:$C$103,\"\",0)","v":""},{"$f":"COUNTIF(ExcelShortcuts[Key],\"=\"&ExcelShortcuts[[#This Row],[Key]])","v":6}]
["W","Ctrl+Shift+Alt","",{"$f":"IF(ExcelShortcuts[[#This Row],[Attribute]]=\"Alone\",\"\",ExcelShortcuts[[#This Row],[Attribute]]&\"+\")&ExcelShortcuts[[#This Row],[Key]]","v":"Ctrl+Shift+Alt+W"},{"$f":"_xlfn.XLOOKUP(SUBSTITUTE(ExcelShortcuts[[#This Row],[Shortcut]],\"+\",\" + \"),'Custom Shortcuts'!$D$15:$D$103,'Custom Shortcuts'!$C$15:$C$103,\"\",0)","v":""},{"$f":"COUNTIF(ExcelShortcuts[Key],\"=\"&ExcelShortcuts[[#This Row],[Key]])","v":6}]
["X","Ctrl","Cut",{"$f":"IF(ExcelShortcuts[[#This Row],[Attribute]]=\"Alone\",\"\",ExcelShortcuts[[#This Row],[Attribute]]&\"+\")&ExcelShortcuts[[#This Row],[Key]]","v":"Ctrl+X"},{"$f":"_xlfn.XLOOKUP(SUBSTITUTE(ExcelShortcuts[[#This Row],[Shortcut]],\"+\",\" + \"),'Custom Shortcuts'!$D$15:$D$103,'Custom Shortcuts'!$C$15:$C$103,\"\",0)","v":""},{"$f":"COUNTIF(ExcelShortcuts[Key],\"=\"&ExcelShortcuts[[#This Row],[Key]])","v":6}]
["X","Alt","",{"$f":"IF(ExcelShortcuts[[#This Row],[Attribute]]=\"Alone\",\"\",ExcelShortcuts[[#This Row],[Attribute]]&\"+\")&ExcelShortcuts[[#This Row],[Key]]","v":"Alt+X"},{"$f":"_xlfn.XLOOKUP(SUBSTITUTE(ExcelShortcuts[[#This Row],[Shortcut]],\"+\",\" + \"),'Custom Shortcuts'!$D$15:$D$103,'Custom Shortcuts'!$C$15:$C$103,\"\",0)","v":""},{"$f":"COUNTIF(ExcelShortcuts[Key],\"=\"&ExcelShortcuts[[#This Row],[Key]])","v":6}]
["X","Ctrl+Shift","",{"$f":"IF(ExcelShortcuts[[#This Row],[Attribute]]=\"Alone\",\"\",ExcelShortcuts[[#This Row],[Attribute]]&\"+\")&ExcelShortcuts[[#This Row],[Key]]","v":"Ctrl+Shift+X"},{"$f":"_xlfn.XLOOKUP(SUBSTITUTE(ExcelShortcuts[[#This Row],[Shortcut]],\"+\",\" + \"),'Custom Shortcuts'!$D$15:$D$103,'Custom Shortcuts'!$C$15:$C$103,\"\",0)","v":"Export"},{"$f":"COUNTIF(ExcelShortcuts[Key],\"=\"&ExcelShortcuts[[#This Row],[Key]])","v":6}]
["X","Shift+Alt","",{"$f":"IF(ExcelShortcuts[[#This Row],[Attribute]]=\"Alone\",\"\",ExcelShortcuts[[#This Row],[Attribute]]&\"+\")&ExcelShortcuts[[#This Row],[Key]]","v":"Shift+Alt+X"},{"$f":"_xlfn.XLOOKUP(SUBSTITUTE(ExcelShortcuts[[#This Row],[Shortcut]],\"+\",\" + \"),'Custom Shortcuts'!$D$15:$D$103,'Custom Shortcuts'!$C$15:$C$103,\"\",0)","v":""},{"$f":"COUNTIF(ExcelShortcuts[Key],\"=\"&ExcelShortcuts[[#This Row],[Key]])","v":6}]
["X","Ctrl+Alt","",{"$f":"IF(ExcelShortcuts[[#This Row],[Attribute]]=\"Alone\",\"\",ExcelShortcuts[[#This Row],[Attribute]]&\"+\")&ExcelShortcuts[[#This Row],[Key]]","v":"Ctrl+Alt+X"},{"$f":"_xlfn.XLOOKUP(SUBSTITUTE(ExcelShortcuts[[#This Row],[Shortcut]],\"+\",\" + \"),'Custom Shortcuts'!$D$15:$D$103,'Custom Shortcuts'!$C$15:$C$103,\"\",0)","v":""},{"$f":"COUNTIF(ExcelShortcuts[Key],\"=\"&ExcelShortcuts[[#This Row],[Key]])","v":6}]
["X","Ctrl+Shift+Alt","",{"$f":"IF(ExcelShortcuts[[#This Row],[Attribute]]=\"Alone\",\"\",ExcelShortcuts[[#This Row],[Attribute]]&\"+\")&ExcelShortcuts[[#This Row],[Key]]","v":"Ctrl+Shift+Alt+X"},{"$f":"_xlfn.XLOOKUP(SUBSTITUTE(ExcelShortcuts[[#This Row],[Shortcut]],\"+\",\" + \"),'Custom Shortcuts'!$D$15:$D$103,'Custom Shortcuts'!$C$15:$C$103,\"\",0)","v":""},{"$f":"COUNTIF(ExcelShortcuts[Key],\"=\"&ExcelShortcuts[[#This Row],[Key]])","v":6}]
["Y","Ctrl","Redo",{"$f":"IF(ExcelShortcuts[[#This Row],[Attribute]]=\"Alone\",\"\",ExcelShortcuts[[#This Row],[Attribute]]&\"+\")&ExcelShortcuts[[#This Row],[Key]]","v":"Ctrl+Y"},{"$f":"_xlfn.XLOOKUP(SUBSTITUTE(ExcelShortcuts[[#This Row],[Shortcut]],\"+\",\" + \"),'Custom Shortcuts'!$D$15:$D$103,'Custom Shortcuts'!$C$15:$C$103,\"\",0)","v":""},{"$f":"COUNTIF(ExcelShortcuts[Key],\"=\"&ExcelShortcuts[[#This Row],[Key]])","v":6}]
["Y","Alt","",{"$f":"IF(ExcelShortcuts[[#This Row],[Attribute]]=\"Alone\",\"\",ExcelShortcuts[[#This Row],[Attribute]]&\"+\")&ExcelShortcuts[[#This Row],[Key]]","v":"Alt+Y"},{"$f":"_xlfn.XLOOKUP(SUBSTITUTE(ExcelShortcuts[[#This Row],[Shortcut]],\"+\",\" + \"),'Custom Shortcuts'!$D$15:$D$103,'Custom Shortcuts'!$C$15:$C$103,\"\",0)","v":""},{"$f":"COUNTIF(ExcelShortcuts[Key],\"=\"&ExcelShortcuts[[#This Row],[Key]])","v":6}]
["Y","Ctrl+Shift","",{"$f":"IF(ExcelShortcuts[[#This Row],[Attribute]]=\"Alone\",\"\",ExcelShortcuts[[#This Row],[Attribute]]&\"+\")&ExcelShortcuts[[#This Row],[Key]]","v":"Ctrl+Shift+Y"},{"$f":"_xlfn.XLOOKUP(SUBSTITUTE(ExcelShortcuts[[#This Row],[Shortcut]],\"+\",\" + \"),'Custom Shortcuts'!$D$15:$D$103,'Custom Shortcuts'!$C$15:$C$103,\"\",0)","v":"Placeholder"},{"$f":"COUNTIF(ExcelShortcuts[Key],\"=\"&ExcelShortcuts[[#This Row],[Key]])","v":6}]
["Y","Shift+Alt","",{"$f":"IF(ExcelShortcuts[[#This Row],[Attribute]]=\"Alone\",\"\",ExcelShortcuts[[#This Row],[Attribute]]&\"+\")&ExcelShortcuts[[#This Row],[Key]]","v":"Shift+Alt+Y"},{"$f":"_xlfn.XLOOKUP(SUBSTITUTE(ExcelShortcuts[[#This Row],[Shortcut]],\"+\",\" + \"),'Custom Shortcuts'!$D$15:$D$103,'Custom Shortcuts'!$C$15:$C$103,\"\",0)","v":""},{"$f":"COUNTIF(ExcelShortcuts[Key],\"=\"&ExcelShortcuts[[#This Row],[Key]])","v":6}]
["Y","Ctrl+Alt","",{"$f":"IF(ExcelShortcuts[[#This Row],[Attribute]]=\"Alone\",\"\",ExcelShortcuts[[#This Row],[Attribute]]&\"+\")&ExcelShortcuts[[#This Row],[Key]]","v":"Ctrl+Alt+Y"},{"$f":"_xlfn.XLOOKUP(SUBSTITUTE(ExcelShortcuts[[#This Row],[Shortcut]],\"+\",\" + \"),'Custom Shortcuts'!$D$15:$D$103,'Custom Shortcuts'!$C$15:$C$103,\"\",0)","v":""},{"$f":"COUNTIF(ExcelShortcuts[Key],\"=\"&ExcelShortcuts[[#This Row],[Key]])","v":6}]
["Y","Ctrl+Shift+Alt","",{"$f":"IF(ExcelShortcuts[[#This Row],[Attribute]]=\"Alone\",\"\",ExcelShortcuts[[#This Row],[Attribute]]&\"+\")&ExcelShortcuts[[#This Row],[Key]]","v":"Ctrl+Shift+Alt+Y"},{"$f":"_xlfn.XLOOKUP(SUBSTITUTE(ExcelShortcuts[[#This Row],[Shortcut]],\"+\",\" + \"),'Custom Shortcuts'!$D$15:$D$103,'Custom Shortcuts'!$C$15:$C$103,\"\",0)","v":""},{"$f":"COUNTIF(ExcelShortcuts[Key],\"=\"&ExcelShortcuts[[#This Row],[Key]])","v":6}]
["Z","Ctrl","Undo",{"$f":"IF(ExcelShortcuts[[#This Row],[Attribute]]=\"Alone\",\"\",ExcelShortcuts[[#This Row],[Attribute]]&\"+\")&ExcelShortcuts[[#This Row],[Key]]","v":"Ctrl+Z"},{"$f":"_xlfn.XLOOKUP(SUBSTITUTE(ExcelShortcuts[[#This Row],[Shortcut]],\"+\",\" + \"),'Custom Shortcuts'!$D$15:$D$103,'Custom Shortcuts'!$C$15:$C$103,\"\",0)","v":""},{"$f":"COUNTIF(ExcelShortcuts[Key],\"=\"&ExcelShortcuts[[#This Row],[Key]])","v":6}]
["Z","Alt","",{"$f":"IF(ExcelShortcuts[[#This Row],[Attribute]]=\"Alone\",\"\",ExcelShortcuts[[#This Row],[Attribute]]&\"+\")&ExcelShortcuts[[#This Row],[Key]]","v":"Alt+Z"},{"$f":"_xlfn.XLOOKUP(SUBSTITUTE(ExcelShortcuts[[#This Row],[Shortcut]],\"+\",\" + \"),'Custom Shortcuts'!$D$15:$D$103,'Custom Shortcuts'!$C$15:$C$103,\"\",0)","v":""},{"$f":"COUNTIF(ExcelShortcuts[Key],\"=\"&ExcelShortcuts[[#This Row],[Key]])","v":6}]
["Z","Ctrl+Shift","",{"$f":"IF(ExcelShortcuts[[#This Row],[Attribute]]=\"Alone\",\"\",ExcelShortcuts[[#This Row],[Attribute]]&\"+\")&ExcelShortcuts[[#This Row],[Key]]","v":"Ctrl+Shift+Z"},{"$f":"_xlfn.XLOOKUP(SUBSTITUTE(ExcelShortcuts[[#This Row],[Shortcut]],\"+\",\" + \"),'Custom Shortcuts'!$D$15:$D$103,'Custom Shortcuts'!$C$15:$C$103,\"\",0)","v":""},{"$f":"COUNTIF(ExcelShortcuts[Key],\"=\"&ExcelShortcuts[[#This Row],[Key]])","v":6}]
["Z","Shift+Alt","",{"$f":"IF(ExcelShortcuts[[#This Row],[Attribute]]=\"Alone\",\"\",ExcelShortcuts[[#This Row],[Attribute]]&\"+\")&ExcelShortcuts[[#This Row],[Key]]","v":"Shift+Alt+Z"},{"$f":"_xlfn.XLOOKUP(SUBSTITUTE(ExcelShortcuts[[#This Row],[Shortcut]],\"+\",\" + \"),'Custom Shortcuts'!$D$15:$D$103,'Custom Shortcuts'!$C$15:$C$103,\"\",0)","v":""},{"$f":"COUNTIF(ExcelShortcuts[Key],\"=\"&ExcelShortcuts[[#This Row],[Key]])","v":6}]
["Z","Ctrl+Alt","",{"$f":"IF(ExcelShortcuts[[#This Row],[Attribute]]=\"Alone\",\"\",ExcelShortcuts[[#This Row],[Attribute]]&\"+\")&ExcelShortcuts[[#This Row],[Key]]","v":"Ctrl+Alt+Z"},{"$f":"_xlfn.XLOOKUP(SUBSTITUTE(ExcelShortcuts[[#This Row],[Shortcut]],\"+\",\" + \"),'Custom Shortcuts'!$D$15:$D$103,'Custom Shortcuts'!$C$15:$C$103,\"\",0)","v":""},{"$f":"COUNTIF(ExcelShortcuts[Key],\"=\"&ExcelShortcuts[[#This Row],[Key]])","v":6}]
["Z","Ctrl+Shift+Alt","",{"$f":"IF(ExcelShortcuts[[#This Row],[Attribute]]=\"Alone\",\"\",ExcelShortcuts[[#This Row],[Attribute]]&\"+\")&ExcelShortcuts[[#This Row],[Key]]","v":"Ctrl+Shift+Alt+Z"},{"$f":"_xlfn.XLOOKUP(SUBSTITUTE(ExcelShortcuts[[#This Row],[Shortcut]],\"+\",\" + \"),'Custom Shortcuts'!$D$15:$D$103,'Custom Shortcuts'!$C$15:$C$103,\"\",0)","v":""},{"$f":"COUNTIF(ExcelShortcuts[Key],\"=\"&ExcelShortcuts[[#This Row],[Key]])","v":6}]

{"sheet":"Custom_Theme","index":4,"n_rows":20,"n_cols":2,"rows_kept":20,"cut":false,"hidden":false,"merged":[]}
["Name of theme","Financial_Model"]
[]
["Text/Background - Dark 1"]
["Text/Background - Light 1"]
["Text/Background - Dark 2"]
["Text/Background - Light 2"]
["Accent 1"]
["Accent 2"]
["Accent 3"]
["Accent 4"]
["Accent 5"]
["Accent 6"]
["Hyperlink"]
["Followed Hyperlink"]
[]
[]
["Custom Fonts name","Financial_Model"]
[]
["Heading Font","Example"]
["Body Font","Example"]

{"sheet":"Misc","index":5,"n_rows":25,"n_cols":6,"rows_kept":25,"cut":false,"hidden":false,"merged":[]}
[]
[null,null,null,null,null,"Short Cut Key Combination Modifiers Drop Down List"]
[null,null,"Test Mode",false,null,"Ctrl +"]
[null,null,null,null,null,"Ctrl + Shift +"]
[null,null,"Rebind keys on 1st macro run",true,null,"Ctrl + Alt +"]
[null,null,"Macros Run",false,null,"Ctrl + Alt + Shift +"]
[null,null,"Auto Formatting",true]
[null,null,"Show variances on userform",false]
[null,null,"Create Variance % tab when creating other variance tabs",false]
[]
[]
[null,null,"Maximum rows in Variance report",15000]
[null,null,"Maximum columns in Variance report",1000]
[]
[null,null,"SPARKLINES (default Line style applied)"]
[null,null,"Colour of line",12566463]
[null,null,"Weight of line in points",0.5]
[null,null,"Start column","J"]
[null,null,"End column (if blank, defaults to last used column)"]
[]
[null,null,"Userform Dialog scaling"]
[null,null,"Scaling for Windows",1]
[null,null,"Scaling for Mac",1.5]
[null,null,"This OS version",{"$f":"OSVersion","v":"Windows (32-bit) NT 10.00"}]
[null,null,"Userform Dialog scaling for this OS",{"$f":"IF(LEFT(OSVersion,3)=\"Win\",UF_Scaling_Windows,UF_Scaling_Mac)","v":1}]

{"sheet":"Link Format Exceptions","index":6,"n_rows":9,"n_cols":3,"rows_kept":9,"cut":false,"hidden":false,"merged":[]}
["Sheets to not change","Export Exception","Import Exception"]
["Change",false,false]
["FinStat",true,true]
["FS",true,true]
["FSAnn",true,true]
["InpC",true,true]
["InpS",true,true]
["InpS_M",true,true]
["Tmp",true,true]

{"sheet":"Capitalised Word Exceptions","index":7,"n_rows":55,"n_cols":1,"rows_kept":55,"cut":false,"hidden":false,"merged":[]}
["Sheets to not change"]
[" POS"]
["(Som)"]
["AEP"]
["AR/AP"]
["BEG"]
["BOP costs"]
["COD"]
["CRCC"]
["DSCR"]
["DSRA"]
["EBIT"]
["EBITDA"]
["EBL"]
["EGR"]
["EGR"]
["EGRs"]
["EPC"]
["EWEC"]
["FC"]
["IBRD"]
["IEP"]
["IEPs"]
["IFRIC"]
["IFRIC"]
["IFRIC12"]
["IFRS"]
["IRR"]
["LC"]
["LLCR"]
["LNTP"]
["Masdar"]
["MIGA"]
["MMRA"]
["O&M"]
["P50"]
["P75"]
["P90"]
["PCOD"]
["POS"]
["PPA"]
["PPI"]
["SHL"]
["SLM"]
["Som"]
["Soums"]
["SPV"]
["TPN"]
["US PPI"]
["US price"]
["USD"]
["UZ CPI"]
["VAT"]
["WHT"]
["WTG"]

{"sheet":"Settings","index":8,"n_rows":7,"n_cols":4,"rows_kept":7,"cut":false,"hidden":false,"merged":[]}
[null,"Column Number","Column Letter","Error Check"]
["Label Column",5,"E",{"$f":"IF(COLUMN(INDIRECT(C2&1))<>B2,\"Number and Letter do not match\",\"\")","v":""}]
["Units Column",7,"G",{"$f":"IF(COLUMN(INDIRECT(C3&1))<>B3,\"Number and Letter do not match\",\"\")","v":""}]
["Constant Column",6,"F",{"$f":"IF(COLUMN(INDIRECT(C4&1))<>B4,\"Number and Letter do not match\",\"\")","v":""}]
["Query Column",5,"E",{"$f":"IF(COLUMN(INDIRECT(C5&1))<>B5,\"Number and Letter do not match\",\"\")","v":""}]
["Time series start",10,"J",{"$f":"IF(COLUMN(INDIRECT(C6&1))<>B6,\"Number and Letter do not match\",\"\")","v":""}]
["Totals column",8,"H",{"$f":"IF(COLUMN(INDIRECT(C7&1))<>B7,\"Number and Letter do not match\",\"\")","v":""}]